Workbook

Sheet WelcomeDemo (hidden)
B2: Welcome!
B5: Thank you for trying out Business Plan Financials from Planning Shop. These worksheets will help you develop clear, compelling financial projections for your business. If you are unfamiliar with the business planning process, we encourage you to refer to our book, The Successful Business Plan: Secrets & Strategies, by Rhonda Abrams, for comprehensive, step-by-step guidance. It is available through our website, www.PlanningShop.com. Note that this demo copy of Business Plan Financials is deliberately feature-limited. We restrict you to just one product, one capital investment, one loan and 5 capital expenditures. If you purchase the Business Plan Financials, you get access to up to 10 products, 60 capital expenditures, 15 capital investments, and 20 loans. Also, the watermark that appears and prints on each page willbe removed. To use the Business Plan Financials workbook, first go to the Planning Shop tab of the Excel Ribbon.
B7: Each worksheet is composed of "cells" containing either black text or blue text. All you need to do is enter data in the blue cells--the black cells are automatically calculated for you.
B9: While you work, keep an eye out for red triangles that appear with some cells on the worksheets. These triangles indicate the presence of a "help balloon" that will popup when you roll over the triangle, presenting you with additional information and tips about the section you are working on.
B11: For more in-depth help and assistance, click on the "Business Plan Financials Help" menu in the toolbar. The help files contain extensive information about each worksheet, along with a "Frequently Asked Questions" (FAQ). To get started, click on the right-pointing arrow in the Planning Shop toolbar to reach the "Setup and Assumptions" worksheet, where you'll enter some basic information about your business.
B14: Version 2.7 Copyright © 2003-2012 Planning Shop

Sheet Warning (hidden)
C2: W A R N I N G !
C3: IT APPEARS THAT YOU DO NOT HAVE EXCEL'S MACRO CAPABILITY ENABLED. THESE FINANCIAL WORKSHEETS WILL NOT FUNCTION WITHOUT MACROS ENABLED.
C4: Excel 2007 for Windows: To enable macros: 1. Click the "Options" button in the Security Warning that appears at the top of this page.
C5: 2. A "Security Alert - Macros & Active X" window should appear. 3. Select the "Enable this content" radio button 4. Click the "OK" button. Your workbook should be ready to use now. If you do not see the "Security Warning" along the top of this page, scroll down for more detailed instructions, under "Excel 2007 on Windows - Enabling Macros"
C6: Excel 2010 for Windows: To enable macros: 1. Click the "Enable Content" button in the Security Warning that appears at the top of this page.
C7: If you do not see the "Security Warning" along the top of this page, scroll down for more detailed instructions, under "Excel 2010 and Excel 2013 on Windows - Enabling Macros"
C8: Excel 2013 for Windows: To enable macros: 1. Click the "Enable Content" button in the Security Warning that appears at the top of this page.
C9: If you do not see the "Security Warning" along the top of this page, scroll down for more detailed instructions, under "Excel 2010 & Excel 2013 on Windows - Enabling Macros"
C10: Excel 2010 for Mac: 1. A pop-up window appears. Select "Enable Macros". 2. Your workbook should now be ready to use.
C11: Excel 2008 for Mac: Excel 2008 for Mac does not support Macros or Visual Basic, so there is no way to enable the macros. Please obtain a Mac 2008-only version of Business Plan Financials from PlanningShop.
B13: Excel 2007 on Windows - Enabling Macros
D14: 1. From the Windows Ribbon, Select the circular "Windows" button in the upper left. 2. From the drop-down menu that appears, press the Excel Options button in the lower right.
D16: 3. From the "Excel Options" pop-up, select Trust Center on the left side. 4. Select Trust Center Settings…. In the lower right.
D18: 5. In the "Trust Center" pop-up, select "Macro Settings" on the left side. 6. Then, select the Disable all macros except digitally signed macros. (This works because the Planning Shop signs all its workbooks with digital certificates.) 7. Press OK twice.
B20: Excel 2010 and Excel 2013 on Windows - Enabling Macros
D21: Note: The procedure is exactly the same for Excel 2010 and Excel 2013, even though the Excel 2013 has a slightly different look than these screenshots. 1. In the upper left corner of the Excel Ribbon, press the "File" tab.
D23: 2. Select Options, in the lower left corner.
D25: 3. Select Trust Center from the Lower Left. 4. Click the "Trust Center Settings…" button in the lower right
D27: 5. Select "Macros Settings" from the left side menu 6. Select the "Disable all macros except digitally signed macros" radio button. 7. Click "OK" twice

Sheet ERASE ME WelcomeMac (hidden)
B2: Welcome to the Mac Version of Business Plan Financials
B5: Thank you for purchasing Planning Shop's Business Plan Financials. These worksheets will help you develop clear, compelling financial projections for your business. If you are unfamiliar with the business planning process, we encourage you to refer to our book, The Successful Business Plan: Secrets & Strategies, by Rhonda Abrams, for comprehensive, step-by-step guidance. It is available through our website, www.PlanningShop.com. First, a few tips to get you started: You may start directly editing this file. If you later decide to start over and need a fresh copy of this file, find the blank "ORIGINAL_PlanningShop_BusinessPlanFinancialsMac(2.7)" file in your PlanningShop directory. Make a copy of this file (just in case you might need to start over yet again), and then start editing the copy. You installed the Mac version of the Business Plan Financials product, which does not have the Planning Shop tab available in the Excel Ribbon (unlike the Windows version). Instead, to navigate between worksheets and charts, use the Excel worksheet tabs along the bottom edge of the Excel window.
B7: Start with the "Setup" worksheet. Enter your data, and then work your way through the workbook, one worksheet at a time, by clicking the next worksheet to the right. There are 23 worksheets/charts in this workbook. The last one (furthest to the right) is "NS5Yr." Each worksheet is composed of "cells" containing either black text or blue text. All you need to do is enter data in the blue cells--the black cells are automatically calculated for you.
B9: While you work, keep an eye out for red triangles that appear with some cells on the worksheets. These triangles indicate the presence of a "help balloon" that will popup when you roll over the triangle, presenting you with additional information and tips about the section you are working on.
B11: For more in-depth help and assistance, refer to the Business Plan Financials Help" PDF file in your PlanningShop folder. The document contains step-by-step instructions and includes a "Frequently Asked Questions" section. To get started, find the Excel worksheet listing (each worksheet is listed on a tab) along the bottom of the Excel window. Click on the "Setup" tab to reach the "Setup and Assumptions" worksheet, where you'll enter some basic information about your business.
B14: Version 2.7 Copyright © 2003-2012 Planning Shop

Sheet Welcome
B2: Welcome to Business Plan Financials!
B5: Thank you for purchasing Business Plan Financials from PlanningShop. These worksheets will help you develop clear, compelling financial projections for your business. If you are unfamiliar with the business planning process, we encourage you to refer to our book, Successful Business Plan: Secrets & Strategies, by Rhonda Abrams, for comprehensive, step-by-step guidance. It is available through our website, www.PlanningShop.com. First, a few tips to get you started: SAVING A BLANK WORKBOOK, TO ALLOW FOR RECOVERY FROM MISTAKES You may start directly editing this file. If you later decide to start over and need a fresh copy of this file, find the blank "ORIG_PlanningShop_BizPlanFin(2.8)" file in your PlanningShop directory. Make a copy of this file (just in case you might need to start over yet again), and then start editing the copy. NAVIGATING THE WORKSHEETS You installed the Windows version of Business Plan Financials. The Excel Ribbon now contains a "PlanningShop" tab, that contains controls to let you navigate between worksheets. The PlanningShop Ribbon looks slightly different in Excel 2007, Excel 2010, Excel 2013, but the functionality is the same.
B6: Excel 2007 for Windows:
B8: Excel 2010 for Windows:
B10: Excel 2013 for Windows:
B12: In Excel 2011 for Mac, there is no PlanningShop tab on the Excel Ribbon (Microsoft does not allow it). Instead, to navigate between worksheets and charts, use the Excel worksheet tabs along the bottom edge of the Excel window.
B13: HOW TO FILL IN THE WORKSHEETS Each worksheet is composed of "cells" containing either black text or blue text. All you need to do is enter data in the blue cells--the black cells are automatically calculated for you.
B15: While you work, keep an eye out for red triangles that appear with some cells on the worksheets. These triangles indicate the presence of a "help balloon" that will popup when you roll over the triangle, presenting you with additional information and tips about the section you are working on.
B17: FOR MORE HELP For more in-depth help and assistance, click on the "Business Plan Financials Help" menu in the toolbar. The help files contain extensive information about each worksheet, along with a "Frequently Asked Questions" (FAQ). To get started, click on the right-pointing arrow in the PlanningShop toolbar to reach the "Setup and Assumptions" worksheet, where you'll enter some basic information about your business.
B20: Version 2.8 Copyright © 2003-2014 PlanningShop

Sheet MacVsWindows (hidden)
B2: About Our Support of Mac vs. Windows
B4: PlanningShop supports Business Plan Financials on the following platforms:
B6: Windows
B7: 1. Microsoft Windows 8 with Microsoft Excel 2013
B8: 2. Microsoft Windows 7 with Microsoft Excel 2010 | H8: .
B9: 3. Microsoft Windows 7 with Microsoft Excel 2007
B10: 4. Microsoft Windows Vista with Microsoft Excel 2007
B12: Mac
B13: 5. Mac OS X Lion (10.7) with Microsoft Excel 2011
B15: If you use Windows (#1 - #3 above), then you need to install PlanningShop_BizPlanFin(2.8).exe.
B17: If you use Mac (#4 above), you need to install PlanningShop_BizPlanFinMac(2.8).dmg
B20: Differences between Mac and Windows
B21: Both the Mac and Windows versions of PlanningShop's Business Plan Financials product will produce high quality, detailed financial information for your business plan. However, there are some slight differences between the functionality in Mac and Windows. These differences don't affect the data in your business plan, but they do affect the user-friendliness of the Business Plan Financials workbook. We did our very best to make the Windows and Mac versions as similar as possible. However, Microsoft does not support customization of the Excel toolbar on Mac. Therefore, while we made every effort to preserve as much functionality as possible on the Mac, there were a few things we were not able to do:
B22: 1) There is no PlanningShop Toolbar in the Business Plan Financials for Mac. Instead, you will need to navigate between worksheets and charts using the Excel worksheet tabs (along the bottom edge of the workbook).
B23: 2) Business Plan Financials Help is not available directly from Excel. Instead, you should open the BizPlanFin_Help(2.7).PDF file that was copied to your Mac alongside the PlanningShop_BizPlanFinMac(2.8).XLS or PlanningShop_BizPlanFinMac(2.8).XLSM file.
B25: We are as disappointed as you are that we can't provide the same level of functionality in Mac as we do for Windows. We very much hope that Microsoft will remedy the situation in the next release of Excel for Mac, and that we'll then be able to offer identical functionality.
B27: Moving your Business Plan Financials workbook between Mac and Windows
B28: We advise you to completely edit your Business Plan Financials workbook on either Mac or Windows, and to not switch between the two platforms. If you switch between platforms, you may find that the Planning Shop toolbar, menus, online help, and macros permanently disappear.

Sheet Setup
C2: Setup and Assumptions
C5: COMPANY INFORMATION
C6: What is your company's name?
C7: Your Company Name
C9: What month will you officially start your company? | F9: January | I9: =IF(OR(CapEx!I6:I73<>""), "ERROR: Some capital purchases are before your start date. Please Fix (CapEx worksheet).", "") -> 
I11: =IF(OR(CapInvest!I6:I43<>""), "ERROR: Some capital investments are before your start date. Please Fix (CapInvest worksheet.","") -> 
C12: What year will you officially start your company? | F12: 2013
C14: SALES ASSUMPTIONS
C15: The Worksheets can accommodate sales projections for up to 10 major product/service lines. How many major product/service lines do you plan to have for your business? | F15: Ten
D16: Ten
C18: Most businesses sell at least some of their products/services on credit (e.g., "net 30" as opposed to cash). What percentage of your sales will be made on credit? | F18: 0.25
C21: For sales you make on credit, what terms will you extend? In other words, how many days will pass from the date of sale to when you expect to be paid? | F21: 30
C25: PERSONNEL ASSUMPTIONS
C26: Approximately how much do you expect to spend per year on benefits for each SALARIED/FULL TIME employee (medical insurance, etc.)? | F26: 5000
C29: Approximately how much do you expect to spend per year on benefits for each HOURLY/PART-TIME employee (medical insurance, etc.)? | F29: 36
C32: With health insurance and other benefits costing more each year, your plan should account for annual increases. How much do you estimate your benefit costs will increase each year? | F32: 0.05
C35: If you plan to increase wages (both salaried & hourly) on an annual basis, how much to you plan to increase them by? | F35: 0.035
C38: Approximately what percentage of each employee's salary or wages do you plan to set aside for payroll taxes? | F38: 0.15
C42: FINANCIAL ASSUMPTIONS
C43: What will be the opening balance in your bank account on the first day of business? This will be the opening balance in your Cash Flow Statements. | F43: 5000
C46: At approximately what rate do you expect to be taxed on your net income? | F46: 0.25
C49: If you will use an interest-bearing account for your banking, at what rate will you accrue interest? | F49: 0.01

Sheet SalesProj
B2: Sales Projections | E2: =Config!L2 -> 2013 | S2: =E2+1 -> 2014 | AG2: =S2+1 -> 2015 | AM2: =AG2+1 -> 2016 | AS2: =AM2+1 -> 2017
C3: Assumptions | E3: =Config!B67 -> January | F3: =Config!C67 -> February | G3: =Config!D67 -> March | H3: =Config!E67 -> April | I3: =Config!F67 -> May | J3: =Config!G67 -> June | K3: =Config!H67 -> July | L3: =Config!I67 -> August | M3: =Config!J67 -> September | N3: =Config!K67 -> October | O3: =Config!L67 -> November | P3: =Config!M67 -> December | Q3: TOTAL | S3: =E3 -> January | T3: =F3 -> February | U3: =G3 -> March | V3: =H3 -> April | W3: =I3 -> May | X3: =J3 -> June | Y3: July | Z3: August | AA3: September | AB3: October | AC3: November | AD3: December | AE3: TOTAL | AG3: 1st Quarter | AH3: 2nd Quarter | AI3: 3rd Quarter | AJ3: 4th Quarter | AK3: TOTAL | AM3: 1st Quarter | AN3: 2nd Quarter | AO3: 3rd Quarter | AP3: 4th Quarter | AQ3: TOTAL
B5: Product Line 1
B6: Unit Volume | D6: 0.02 | E6: 0 | F6: =E6*(1+P1GrowthRate) -> 0 | G6: 0 | H6: 0 | I6: 0 | J6: 0 | K6: 0 | L6: 0 | M6: 0 | N6: 0 | O6: 0 | P6: 0 | Q6: =SUM(E6:P6) -> 0 | S6: =P6*(1+P1GrowthRate) -> 0 | T6: =S6*(1+P1GrowthRate) -> 0 | U6: 0 | V6: 0 | W6: 0 | X6: 0 | Y6: 0 | Z6: 0 | AA6: 0 | AB6: 0 | AC6: 0 | AD6: 0 | AE6: =SUM(S6:AD6) -> 0 | AG6: =-FV(P1GrowthRate,3,($AD6*(1+P1GrowthRate))) -> 0 | AH6: =AG6*(1+P1GrowthRate)^3 -> 0 | AI6: =AH6*(1+P1GrowthRate)^3 -> 0 | AJ6: =AI6*(1+P1GrowthRate)^3 -> 0 | AK6: =SUM(AG6:AJ6) -> 0 | AM6: =AJ6*(1+P1GrowthRate)^3 -> 0 | AN6: =AM6*(1+P1GrowthRate)^3 -> 0 | AO6: =AN6*(1+P1GrowthRate)^3 -> 0 | AP6: =AO6*(1+P1GrowthRate)^3 -> 0 | AQ6: =SUM(AM6:AP6) -> 0 | AS6: =AQ6*(1+P1GrowthRate)^12 -> 0
B7: Unit Price | D7: 0.025 | E7: 0 | F7: =E7 -> 0 | G7: =F7 -> 0 | H7: 0 | I7: 0 | J7: 0 | K7: 0 | L7: 0 | M7: 0 | N7: 0 | O7: 0 | P7: 0 | S7: =P7*(1+$D7) -> 0 | T7: =S7 -> 0 | U7: =T7 -> 0 | V7: 0 | W7: 0 | X7: 0 | Y7: 0 | Z7: 0 | AA7: 0 | AB7: 0 | AC7: 0 | AD7: 0 | AG7: =AD7*(1+$D7) -> 0 | AH7: =AG7 -> 0 | AI7: =AH7 -> 0 | AJ7: =AI7 -> 0 | AM7: =AJ7*(1+$D7) -> 0 | AN7: =AM7 -> 0 | AO7: =AN7 -> 0 | AP7: =AO7 -> 0 | AS7: =AP7*(1+$D7) -> 0
B8: Gross Sales | E8: =PRODUCT(E6:E7) -> 0 | F8: 0 | G8: 0 | H8: 0 | I8: 0 | J8: 0 | K8: 0 | L8: 0 | M8: 0 | N8: 0 | O8: 0 | P8: 0 | Q8: 0 | S8: =PRODUCT(S6:S7) -> 0 | T8: 0 | U8: 0 | V8: 0 | W8: 0 | X8: 0 | Y8: 0 | Z8: 0 | AA8: 0 | AB8: 0 | AC8: 0 | AD8: 0 | AE8: =SUM(S8:AD8) -> 0 | AG8: =PRODUCT(AG6:AG7) -> 0 | AH8: =PRODUCT(AH6:AH7) -> 0 | AI8: =PRODUCT(AI6:AI7) -> 0 | AJ8: =PRODUCT(AJ6:AJ7) -> 0 | AK8: 0 | AM8: =PRODUCT(AM6:AM7) -> 0 | AN8: =PRODUCT(AN6:AN7) -> 0 | AO8: =PRODUCT(AO6:AO7) -> 0 | AP8: =PRODUCT(AP6:AP7) -> 0 | AQ8: 0 | AS8: =PRODUCT(AS6:AS7) -> 0
B9: (Commissions) | C9: 0.5 | D9: 0.15 | E9: =E8*P1CommRate*P1CommSales -> 0 | F9: 0 | G9: 0 | H9: 0 | I9: 0 | J9: 0 | K9: 0 | L9: 0 | M9: 0 | N9: 0 | O9: 0 | P9: 0 | Q9: 0 | S9: =S8*P1CommRate*P1CommSales -> 0 | T9: 0 | U9: 0 | V9: 0 | W9: 0 | X9: 0 | Y9: 0 | Z9: 0 | AA9: 0 | AB9: 0 | AC9: 0 | AD9: 0 | AE9: 0 | AG9: =AG8*P1CommRate*P1CommSales -> 0 | AH9: =AH8*P1CommRate*P1CommSales -> 0 | AI9: =AI8*P1CommRate*P1CommSales -> 0 | AJ9: =AJ8*P1CommRate*P1CommSales -> 0 | AK9: 0 | AM9: =AM8*P1CommRate*P1CommSales -> 0 | AN9: =AN8*P1CommRate*P1CommSales -> 0 | AO9: =AO8*P1CommRate*P1CommSales -> 0 | AP9: =AP8*P1CommRate*P1CommSales -> 0 | AQ9: 0 | AS9: =AS8*P1CommRate*P1CommSales -> 0
B10: (Returns and Allowances) | D10: 0.03 | E10: =E8*P1ReturnRate -> 0 | F10: 0 | G10: 0 | H10: 0 | I10: 0 | J10: 0 | K10: 0 | L10: 0 | M10: 0 | N10: 0 | O10: 0 | P10: 0 | Q10: 0 | S10: =S8*P1ReturnRate -> 0 | T10: 0 | U10: 0 | V10: 0 | W10: 0 | X10: 0 | Y10: 0 | Z10: 0 | AA10: 0 | AB10: 0 | AC10: 0 | AD10: 0 | AE10: 0 | AG10: =AG8*P1ReturnRate -> 0 | AH10: =AH8*P1ReturnRate -> 0 | AI10: =AI8*P1ReturnRate -> 0 | AJ10: =AJ8*P1ReturnRate -> 0 | AK10: 0 | AM10: =AM8*P1ReturnRate -> 0 | AN10: =AN8*P1ReturnRate -> 0 | AO10: =AO8*P1ReturnRate -> 0 | AP10: =AP8*P1ReturnRate -> 0 | AQ10: 0 | AS10: =AS8*P1ReturnRate -> 0
B11: Net Sales | E11: =E8-E9-E10 -> 0 | F11: 0 | G11: 0 | H11: 0 | I11: 0 | J11: 0 | K11: 0 | L11: 0 | M11: 0 | N11: 0 | O11: 0 | P11: 0 | Q11: 0 | S11: =S8-S9-S10 -> 0 | T11: 0 | U11: 0 | V11: 0 | W11: 0 | X11: 0 | Y11: 0 | Z11: 0 | AA11: 0 | AB11: 0 | AC11: 0 | AD11: 0 | AE11: 0 | AG11: =AG8-AG9-AG10 -> 0 | AH11: =AH8-AH9-AH10 -> 0 | AI11: =AI8-AI9-AI10 -> 0 | AJ11: =AJ8-AJ9-AJ10 -> 0 | AK11: 0 | AM11: =AM8-AM9-AM10 -> 0 | AN11: =AN8-AN9-AN10 -> 0 | AO11: =AO8-AO9-AO10 -> 0 | AP11: =AP8-AP9-AP10 -> 0 | AQ11: 0 | AS11: =AS8-AS9-AS10 -> 0
B12: (Cost of Goods Sold) | D12: 0.5 | E12: =E8*P1COG -> 0 | F12: =F8*P1COG -> 0 | G12: 0 | H12: 0 | I12: 0 | J12: 0 | K12: 0 | L12: 0 | M12: 0 | N12: 0 | O12: 0 | P12: 0 | Q12: =SUM(E12:P12) -> 0 | S12: =S8*P1COG -> 0 | T12: 0 | U12: 0 | V12: 0 | W12: 0 | X12: 0 | Y12: 0 | Z12: 0 | AA12: 0 | AB12: 0 | AC12: 0 | AD12: 0 | AE12: 0 | AG12: =AG8*P1COG -> 0 | AH12: =AH8*P1COG -> 0 | AI12: =AI8*P1COG -> 0 | AJ12: =AJ8*P1COG -> 0 | AK12: =SUM(AG12:AJ12) -> 0 | AM12: =AM8*P1COG -> 0 | AN12: =AN8*P1COG -> 0 | AO12: =AO8*P1COG -> 0 | AP12: =AP8*P1COG -> 0 | AQ12: =SUM(AM12:AP12) -> 0 | AS12: =AS8*P1COG -> 0
B13: GROSS PROFIT | E13: =E11-E12 -> 0 | F13: =F11-F12 -> 0 | G13: 0 | H13: 0 | I13: 0 | J13: 0 | K13: 0 | L13: 0 | M13: 0 | N13: 0 | O13: 0 | P13: 0 | Q13: =SUM(E13:P13) -> 0 | S13: =S11-S12 -> 0 | T13: 0 | U13: 0 | V13: 0 | W13: 0 | X13: 0 | Y13: 0 | Z13: 0 | AA13: 0 | AB13: 0 | AC13: 0 | AD13: 0 | AE13: 0 | AG13: =AG11-AG12 -> 0 | AH13: =AH11-AH12 -> 0 | AI13: =AI11-AI12 -> 0 | AJ13: =AJ11-AJ12 -> 0 | AK13: =SUM(AG13:AJ13) -> 0 | AM13: =AM11-AM12 -> 0 | AN13: =AN11-AN12 -> 0 | AO13: =AO11-AO12 -> 0 | AP13: =AP11-AP12 -> 0 | AQ13: =SUM(AM13:AP13) -> 0 | AS13: =AS11-AS12 -> 0
B15: Product Line 2
B16: Unit Volume | D16: 0.02 | E16: 0 | F16: =E16*(1+P2GrowthRate) -> 0 | G16: 0 | H16: 0 | I16: 0 | J16: 0 | K16: 0 | L16: 0 | M16: 0 | N16: 0 | O16: 0 | P16: 0 | Q16: =SUM(E16:P16) -> 0 | S16: =P16*(1+P2GrowthRate) -> 0 | T16: =S16*(1+P2GrowthRate) -> 0 | U16: 0 | V16: 0 | W16: 0 | X16: 0 | Y16: 0 | Z16: 0 | AA16: 0 | AB16: 0 | AC16: 0 | AD16: 0 | AE16: =SUM(S16:AD16) -> 0 | AG16: =-FV(P2GrowthRate,3,($AD16*(1+P2GrowthRate))) -> 0 | AH16: =AG16*(1+P2GrowthRate)^3 -> 0 | AI16: =AH16*(1+P2GrowthRate)^3 -> 0 | AJ16: =AI16*(1+P2GrowthRate)^3 -> 0 | AK16: =SUM(AG16:AJ16) -> 0 | AM16: =AJ16*(1+P2GrowthRate)^3 -> 0 | AN16: =AM16*(1+P2GrowthRate)^3 -> 0 | AO16: =AN16*(1+P2GrowthRate)^3 -> 0 | AP16: =AO16*(1+P2GrowthRate)^3 -> 0 | AQ16: =SUM(AM16:AP16) -> 0 | AS16: =AQ16*(1+P2GrowthRate)^12 -> 0
B17: Unit Price | D17: 0.025 | E17: 0 | F17: =E17 -> 0 | G17: =F17 -> 0 | H17: 0 | I17: 0 | J17: 0 | K17: 0 | L17: 0 | M17: 0 | N17: 0 | O17: 0 | P17: 0 | S17: =P17*(1+$D17) -> 0 | T17: =S17 -> 0 | U17: =T17 -> 0 | V17: 0 | W17: 0 | X17: 0 | Y17: 0 | Z17: 0 | AA17: 0 | AB17: 0 | AC17: 0 | AD17: 0 | AG17: =AD17*(1+$D17) -> 0 | AH17: =AG17 -> 0 | AI17: =AH17 -> 0 | AJ17: =AI17 -> 0 | AM17: =AJ17*(1+$D17) -> 0 | AN17: =AM17 -> 0 | AO17: =AN17 -> 0 | AP17: =AO17 -> 0 | AS17: =AP17*(1+$D17) -> 0
B18: Gross Sales | E18: =PRODUCT(E16:E17) -> 0 | F18: 0 | G18: 0 | H18: 0 | I18: 0 | J18: 0 | K18: 0 | L18: 0 | M18: 0 | N18: 0 | O18: 0 | P18: 0 | Q18: =SUM(E18:P18) -> 0 | S18: =PRODUCT(S16:S17) -> 0 | T18: 0 | U18: 0 | V18: 0 | W18: 0 | X18: 0 | Y18: 0 | Z18: 0 | AA18: 0 | AB18: 0 | AC18: 0 | AD18: 0 | AE18: =SUM(S18:AD18) -> 0 | AG18: =PRODUCT(AG16:AG17) -> 0 | AH18: =PRODUCT(AH16:AH17) -> 0 | AI18: =PRODUCT(AI16:AI17) -> 0 | AJ18: =PRODUCT(AJ16:AJ17) -> 0 | AK18: =SUM(AG18:AJ18) -> 0 | AM18: =PRODUCT(AM16:AM17) -> 0 | AN18: =PRODUCT(AN16:AN17) -> 0 | AO18: =PRODUCT(AO16:AO17) -> 0 | AP18: =PRODUCT(AP16:AP17) -> 0 | AQ18: =SUM(AM18:AP18) -> 0 | AS18: =PRODUCT(AS16:AS17) -> 0
B19: (Commissions) | C19: 0.5 | D19: 0.15 | E19: =E18*P2CommRate*P2CommSales -> 0 | F19: 0 | G19: 0 | H19: 0 | I19: 0 | J19: 0 | K19: 0 | L19: 0 | M19: 0 | N19: 0 | O19: 0 | P19: 0 | Q19: 0 | S19: =S18*P2CommRate*P2CommSales -> 0 | T19: 0 | U19: 0 | V19: 0 | W19: 0 | X19: 0 | Y19: 0 | Z19: 0 | AA19: 0 | AB19: 0 | AC19: 0 | AD19: 0 | AE19: 0 | AG19: =AG18*P2CommRate*P2CommSales -> 0 | AH19: =AH18*P2CommRate*P2CommSales -> 0 | AI19: =AI18*P2CommRate*P2CommSales -> 0 | AJ19: =AJ18*P2CommRate*P2CommSales -> 0 | AK19: 0 | AM19: =AM18*P2CommRate*P2CommSales -> 0 | AN19: =AN18*P2CommRate*P2CommSales -> 0 | AO19: =AO18*P2CommRate*P2CommSales -> 0 | AP19: =AP18*P2CommRate*P2CommSales -> 0 | AQ19: 0 | AS19: =AS18*P2CommRate*P2CommSales -> 0
B20: (Returns and Allowances) | D20: 0.03 | E20: =E18*P2ReturnRate -> 0 | F20: 0 | G20: 0 | H20: 0 | I20: 0 | J20: 0 | K20: 0 | L20: 0 | M20: 0 | N20: 0 | O20: 0 | P20: 0 | Q20: 0 | S20: =S18*P2ReturnRate -> 0 | T20: 0 | U20: 0 | V20: 0 | W20: 0 | X20: 0 | Y20: 0 | Z20: 0 | AA20: 0 | AB20: 0 | AC20: 0 | AD20: 0 | AE20: 0 | AG20: =AG18*P2ReturnRate -> 0 | AH20: =AH18*P2ReturnRate -> 0 | AI20: =AI18*P2ReturnRate -> 0 | AJ20: =AJ18*P2ReturnRate -> 0 | AK20: 0 | AM20: =AM18*P2ReturnRate -> 0 | AN20: =AN18*P2ReturnRate -> 0 | AO20: =AO18*P2ReturnRate -> 0 | AP20: =AP18*P2ReturnRate -> 0 | AQ20: 0 | AS20: =AS18*P2ReturnRate -> 0
B21: Net Sales | E21: =E18-E19-E20 -> 0 | F21: 0 | G21: 0 | H21: 0 | I21: 0 | J21: 0 | K21: 0 | L21: 0 | M21: 0 | N21: 0 | O21: 0 | P21: 0 | Q21: 0 | S21: =S18-S19-S20 -> 0 | T21: 0 | U21: 0 | V21: 0 | W21: 0 | X21: 0 | Y21: 0 | Z21: 0 | AA21: 0 | AB21: 0 | AC21: 0 | AD21: 0 | AE21: 0 | AG21: =AG18-AG19-AG20 -> 0 | AH21: =AH18-AH19-AH20 -> 0 | AI21: =AI18-AI19-AI20 -> 0 | AJ21: =AJ18-AJ19-AJ20 -> 0 | AK21: 0 | AM21: =AM18-AM19-AM20 -> 0 | AN21: =AN18-AN19-AN20 -> 0 | AO21: =AO18-AO19-AO20 -> 0 | AP21: =AP18-AP19-AP20 -> 0 | AQ21: 0 | AS21: =AS18-AS19-AS20 -> 0
B22: (Cost of Goods Sold) | D22: 0.5 | E22: =E18*P2COG -> 0 | F22: 0 | G22: 0 | H22: 0 | I22: 0 | J22: 0 | K22: 0 | L22: 0 | M22: 0 | N22: 0 | O22: 0 | P22: 0 | Q22: 0 | S22: =S18*P2COG -> 0 | T22: 0 | U22: 0 | V22: 0 | W22: 0 | X22: 0 | Y22: 0 | Z22: 0 | AA22: 0 | AB22: 0 | AC22: 0 | AD22: 0 | AE22: 0 | AG22: =AG18*P2COG -> 0 | AH22: =AH18*P2COG -> 0 | AI22: =AI18*P2COG -> 0 | AJ22: =AJ18*P2COG -> 0 | AK22: 0 | AM22: =AM18*P2COG -> 0 | AN22: =AN18*P2COG -> 0 | AO22: =AO18*P2COG -> 0 | AP22: =AP18*P2COG -> 0 | AQ22: 0 | AS22: =AS18*P2COG -> 0
B23: GROSS PROFIT | E23: =E21-E22 -> 0 | F23: 0 | G23: 0 | H23: 0 | I23: 0 | J23: 0 | K23: 0 | L23: 0 | M23: 0 | N23: 0 | O23: 0 | P23: 0 | Q23: 0 | S23: =S21-S22 -> 0 | T23: 0 | U23: 0 | V23: 0 | W23: 0 | X23: 0 | Y23: 0 | Z23: 0 | AA23: 0 | AB23: 0 | AC23: 0 | AD23: 0 | AE23: 0 | AG23: =AG21-AG22 -> 0 | AH23: =AH21-AH22 -> 0 | AI23: =AI21-AI22 -> 0 | AJ23: =AJ21-AJ22 -> 0 | AK23: 0 | AM23: =AM21-AM22 -> 0 | AN23: =AN21-AN22 -> 0 | AO23: =AO21-AO22 -> 0 | AP23: =AP21-AP22 -> 0 | AQ23: 0 | AS23: =AS21-AS22 -> 0
B25: Product Line 3
B26: Unit Volume | D26: 0.02 | E26: 0 | F26: =E26*(1+P3GrowthRate) -> 0 | G26: 0 | H26: 0 | I26: 0 | J26: 0 | K26: 0 | L26: 0 | M26: 0 | N26: 0 | O26: 0 | P26: 0 | Q26: =SUM(E26:P26) -> 0 | S26: =P26*(1+P3GrowthRate) -> 0 | T26: =S26*(1+P3GrowthRate) -> 0 | U26: 0 | V26: 0 | W26: 0 | X26: 0 | Y26: 0 | Z26: 0 | AA26: 0 | AB26: 0 | AC26: 0 | AD26: 0 | AE26: =SUM(S26:AD26) -> 0 | AG26: =-FV(P3GrowthRate,3,($AD26*(1+P3GrowthRate))) -> 0 | AH26: =AG26*(1+P3GrowthRate)^3 -> 0 | AI26: =AH26*(1+P3GrowthRate)^3 -> 0 | AJ26: =AI26*(1+P3GrowthRate)^3 -> 0 | AK26: =SUM(AG26:AJ26) -> 0 | AM26: =AJ26*(1+P3GrowthRate)^3 -> 0 | AN26: =AM26*(1+P3GrowthRate)^3 -> 0 | AO26: =AN26*(1+P3GrowthRate)^3 -> 0 | AP26: =AO26*(1+P3GrowthRate)^3 -> 0 | AQ26: =SUM(AM26:AP26) -> 0 | AS26: =AQ26*(1+P3GrowthRate)^12 -> 0
B27: Unit Price | D27: 0.025 | E27: 0 | F27: =E27 -> 0 | G27: =F27 -> 0 | H27: 0 | I27: 0 | J27: 0 | K27: 0 | L27: 0 | M27: 0 | N27: 0 | O27: 0 | P27: 0 | S27: =P27*(1+$D27) -> 0 | T27: =S27 -> 0 | U27: =T27 -> 0 | V27: 0 | W27: 0 | X27: 0 | Y27: 0 | Z27: 0 | AA27: 0 | AB27: 0 | AC27: 0 | AD27: 0 | AG27: =AD27*(1+$D27) -> 0 | AH27: =AG27 -> 0 | AI27: =AH27 -> 0 | AJ27: =AI27 -> 0 | AM27: =AJ27*(1+$D27) -> 0 | AN27: =AM27 -> 0 | AO27: =AN27 -> 0 | AP27: =AO27 -> 0 | AS27: =AP27*(1+$D27) -> 0
B28: Gross Sales | E28: =PRODUCT(E26:E27) -> 0 | F28: 0 | G28: 0 | H28: 0 | I28: 0 | J28: 0 | K28: 0 | L28: 0 | M28: 0 | N28: 0 | O28: 0 | P28: 0 | Q28: =SUM(E28:P28) -> 0 | S28: =PRODUCT(S26:S27) -> 0 | T28: 0 | U28: 0 | V28: 0 | W28: 0 | X28: 0 | Y28: 0 | Z28: 0 | AA28: 0 | AB28: 0 | AC28: 0 | AD28: 0 | AE28: =SUM(S28:AD28) -> 0 | AG28: =PRODUCT(AG26:AG27) -> 0 | AH28: =PRODUCT(AH26:AH27) -> 0 | AI28: =PRODUCT(AI26:AI27) -> 0 | AJ28: =PRODUCT(AJ26:AJ27) -> 0 | AK28: =SUM(AG28:AJ28) -> 0 | AM28: =PRODUCT(AM26:AM27) -> 0 | AN28: =PRODUCT(AN26:AN27) -> 0 | AO28: =PRODUCT(AO26:AO27) -> 0 | AP28: =PRODUCT(AP26:AP27) -> 0 | AQ28: =SUM(AM28:AP28) -> 0 | AS28: =PRODUCT(AS26:AS27) -> 0
B29: (Commissions) | C29: 0.5 | D29: 0.15 | E29: =E28*P3CommRate*P3CommSales -> 0 | F29: 0 | G29: 0 | H29: 0 | I29: 0 | J29: 0 | K29: 0 | L29: 0 | M29: 0 | N29: 0 | O29: 0 | P29: 0 | Q29: 0 | S29: =S28*P3CommRate*P3CommSales -> 0 | T29: 0 | U29: 0 | V29: 0 | W29: 0 | X29: 0 | Y29: 0 | Z29: 0 | AA29: 0 | AB29: 0 | AC29: 0 | AD29: 0 | AE29: 0 | AG29: =AG28*P3CommRate*P3CommSales -> 0 | AH29: =AH28*P3CommRate*P3CommSales -> 0 | AI29: =AI28*P3CommRate*P3CommSales -> 0 | AJ29: =AJ28*P3CommRate*P3CommSales -> 0 | AK29: 0 | AM29: =AM28*P3CommRate*P3CommSales -> 0 | AN29: =AN28*P3CommRate*P3CommSales -> 0 | AO29: =AO28*P3CommRate*P3CommSales -> 0 | AP29: =AP28*P3CommRate*P3CommSales -> 0 | AQ29: 0 | AS29: =AS28*P3CommRate*P3CommSales -> 0
B30: (Returns and Allowances) | D30: 0.03 | E30: =E28*P3ReturnRate -> 0 | F30: 0 | G30: 0 | H30: 0 | I30: 0 | J30: 0 | K30: 0 | L30: 0 | M30: 0 | N30: 0 | O30: 0 | P30: 0 | Q30: 0 | S30: =S28*P3ReturnRate -> 0 | T30: 0 | U30: 0 | V30: 0 | W30: 0 | X30: 0 | Y30: 0 | Z30: 0 | AA30: 0 | AB30: 0 | AC30: 0 | AD30: 0 | AE30: 0 | AG30: =AG28*P3ReturnRate -> 0 | AH30: =AH28*P3ReturnRate -> 0 | AI30: =AI28*P3ReturnRate -> 0 | AJ30: =AJ28*P3ReturnRate -> 0 | AK30: 0 | AM30: =AM28*P3ReturnRate -> 0 | AN30: =AN28*P3ReturnRate -> 0 | AO30: =AO28*P3ReturnRate -> 0 | AP30: =AP28*P3ReturnRate -> 0 | AQ30: 0 | AS30: =AS28*P3ReturnRate -> 0
B31: Net Sales | E31: =E28-E29-E30 -> 0 | F31: 0 | G31: 0 | H31: 0 | I31: 0 | J31: 0 | K31: 0 | L31: 0 | M31: 0 | N31: 0 | O31: 0 | P31: 0 | Q31: 0 | S31: =S28-S29-S30 -> 0 | T31: 0 | U31: 0 | V31: 0 | W31: 0 | X31: 0 | Y31: 0 | Z31: 0 | AA31: 0 | AB31: 0 | AC31: 0 | AD31: 0 | AE31: 0 | AG31: =AG28-AG29-AG30 -> 0 | AH31: =AH28-AH29-AH30 -> 0 | AI31: =AI28-AI29-AI30 -> 0 | AJ31: =AJ28-AJ29-AJ30 -> 0 | AK31: 0 | AM31: =AM28-AM29-AM30 -> 0 | AN31: =AN28-AN29-AN30 -> 0 | AO31: =AO28-AO29-AO30 -> 0 | AP31: =AP28-AP29-AP30 -> 0 | AQ31: 0 | AS31: =AS28-AS29-AS30 -> 0
B32: (Cost of Goods Sold) | D32: 0.5 | E32: =E28*P3COG -> 0 | F32: 0 | G32: 0 | H32: 0 | I32: 0 | J32: 0 | K32: 0 | L32: 0 | M32: 0 | N32: 0 | O32: 0 | P32: 0 | Q32: 0 | S32: =S28*P3COG -> 0 | T32: 0 | U32: 0 | V32: 0 | W32: 0 | X32: 0 | Y32: 0 | Z32: 0 | AA32: 0 | AB32: 0 | AC32: 0 | AD32: 0 | AE32: 0 | AG32: =AG28*P3COG -> 0 | AH32: =AH28*P3COG -> 0 | AI32: =AI28*P3COG -> 0 | AJ32: =AJ28*P3COG -> 0 | AK32: 0 | AM32: =AM28*P3COG -> 0 | AN32: =AN28*P3COG -> 0 | AO32: =AO28*P3COG -> 0 | AP32: =AP28*P3COG -> 0 | AQ32: 0 | AS32: =AS28*P3COG -> 0
B33: GROSS PROFIT | E33: =E31-E32 -> 0 | F33: 0 | G33: 0 | H33: 0 | I33: 0 | J33: 0 | K33: 0 | L33: 0 | M33: 0 | N33: 0 | O33: 0 | P33: 0 | Q33: 0 | S33: =S31-S32 -> 0 | T33: 0 | U33: 0 | V33: 0 | W33: 0 | X33: 0 | Y33: 0 | Z33: 0 | AA33: 0 | AB33: 0 | AC33: 0 | AD33: 0 | AE33: 0 | AG33: =AG31-AG32 -> 0 | AH33: =AH31-AH32 -> 0 | AI33: =AI31-AI32 -> 0 | AJ33: =AJ31-AJ32 -> 0 | AK33: 0 | AM33: =AM31-AM32 -> 0 | AN33: =AN31-AN32 -> 0 | AO33: =AO31-AO32 -> 0 | AP33: =AP31-AP32 -> 0 | AQ33: 0 | AS33: =AS31-AS32 -> 0
B35: Product Line 4
B36: Unit Volume | D36: 0.02 | E36: 0 | F36: =E36*(1+P4GrowthRate) -> 0 | G36: 0 | H36: 0 | I36: 0 | J36: 0 | K36: 0 | L36: 0 | M36: 0 | N36: 0 | O36: 0 | P36: 0 | Q36: =SUM(E36:P36) -> 0 | S36: =P36*(1+P4GrowthRate) -> 0 | T36: =S36*(1+P4GrowthRate) -> 0 | U36: 0 | V36: 0 | W36: 0 | X36: 0 | Y36: 0 | Z36: 0 | AA36: 0 | AB36: 0 | AC36: 0 | AD36: 0 | AE36: =SUM(S36:AD36) -> 0 | AG36: =-FV(P4GrowthRate,3,($AD36*(1+P4GrowthRate))) -> 0 | AH36: =AG36*(1+P4GrowthRate)^3 -> 0 | AI36: =AH36*(1+P4GrowthRate)^3 -> 0 | AJ36: =AI36*(1+P4GrowthRate)^3 -> 0 | AK36: =SUM(AG36:AJ36) -> 0 | AM36: =AJ36*(1+P4GrowthRate)^3 -> 0 | AN36: =AM36*(1+P4GrowthRate)^3 -> 0 | AO36: =AN36*(1+P4GrowthRate)^3 -> 0 | AP36: =AO36*(1+P4GrowthRate)^3 -> 0 | AQ36: =SUM(AM36:AP36) -> 0 | AS36: =AQ36*(1+P4GrowthRate)^12 -> 0
B37: Unit Price | D37: 0.025 | E37: 0 | F37: =E37 -> 0 | G37: =F37 -> 0 | H37: 0 | I37: 0 | J37: 0 | K37: 0 | L37: 0 | M37: 0 | N37: 0 | O37: 0 | P37: 0 | S37: =P37*(1+$D37) -> 0 | T37: =S37 -> 0 | U37: =T37 -> 0 | V37: 0 | W37: 0 | X37: 0 | Y37: 0 | Z37: 0 | AA37: 0 | AB37: 0 | AC37: 0 | AD37: 0 | AG37: =AD37*(1+$D37) -> 0 | AH37: =AG37 -> 0 | AI37: =AH37 -> 0 | AJ37: =AI37 -> 0 | AM37: =AJ37*(1+$D37) -> 0 | AN37: =AM37 -> 0 | AO37: =AN37 -> 0 | AP37: =AO37 -> 0 | AS37: =AP37*(1+$D37) -> 0
B38: Gross Sales | E38: =PRODUCT(E36:E37) -> 0 | F38: 0 | G38: 0 | H38: 0 | I38: 0 | J38: 0 | K38: 0 | L38: 0 | M38: 0 | N38: 0 | O38: 0 | P38: 0 | Q38: =SUM(E38:P38) -> 0 | S38: =PRODUCT(S36:S37) -> 0 | T38: 0 | U38: 0 | V38: 0 | W38: 0 | X38: 0 | Y38: 0 | Z38: 0 | AA38: 0 | AB38: 0 | AC38: 0 | AD38: 0 | AE38: =SUM(S38:AD38) -> 0 | AG38: =PRODUCT(AG36:AG37) -> 0 | AH38: =PRODUCT(AH36:AH37) -> 0 | AI38: =PRODUCT(AI36:AI37) -> 0 | AJ38: =PRODUCT(AJ36:AJ37) -> 0 | AK38: =SUM(AG38:AJ38) -> 0 | AM38: =PRODUCT(AM36:AM37) -> 0 | AN38: =PRODUCT(AN36:AN37) -> 0 | AO38: =PRODUCT(AO36:AO37) -> 0 | AP38: =PRODUCT(AP36:AP37) -> 0 | AQ38: =SUM(AM38:AP38) -> 0 | AS38: =PRODUCT(AS36:AS37) -> 0
B39: (Commissions) | C39: 0.5 | D39: 0.15 | E39: =E38*P4CommRate*P4CommSales -> 0 | F39: 0 | G39: 0 | H39: 0 | I39: 0 | J39: 0 | K39: 0 | L39: 0 | M39: 0 | N39: 0 | O39: 0 | P39: 0 | Q39: 0 | S39: =S38*P4CommRate*P4CommSales -> 0 | T39: 0 | U39: 0 | V39: 0 | W39: 0 | X39: 0 | Y39: 0 | Z39: 0 | AA39: 0 | AB39: 0 | AC39: 0 | AD39: 0 | AE39: 0 | AG39: =AG38*P4CommRate*P4CommSales -> 0 | AH39: =AH38*P4CommRate*P4CommSales -> 0 | AI39: =AI38*P4CommRate*P4CommSales -> 0 | AJ39: =AJ38*P4CommRate*P4CommSales -> 0 | AK39: 0 | AM39: =AM38*P4CommRate*P4CommSales -> 0 | AN39: =AN38*P4CommRate*P4CommSales -> 0 | AO39: =AO38*P4CommRate*P4CommSales -> 0 | AP39: =AP38*P4CommRate*P4CommSales -> 0 | AQ39: 0 | AS39: =AS38*P4CommRate*P4CommSales -> 0
B40: (Returns and Allowances) | D40: 0.03 | E40: =E38*P4ReturnRate -> 0 | F40: 0 | G40: 0 | H40: 0 | I40: 0 | J40: 0 | K40: 0 | L40: 0 | M40: 0 | N40: 0 | O40: 0 | P40: 0 | Q40: 0 | S40: =S38*P4ReturnRate -> 0 | T40: 0 | U40: 0 | V40: 0 | W40: 0 | X40: 0 | Y40: 0 | Z40: 0 | AA40: 0 | AB40: 0 | AC40: 0 | AD40: 0 | AE40: 0 | AG40: =AG38*P4ReturnRate -> 0 | AH40: =AH38*P4ReturnRate -> 0 | AI40: =AI38*P4ReturnRate -> 0 | AJ40: =AJ38*P4ReturnRate -> 0 | AK40: 0 | AM40: =AM38*P4ReturnRate -> 0 | AN40: =AN38*P4ReturnRate -> 0 | AO40: =AO38*P4ReturnRate -> 0 | AP40: =AP38*P4ReturnRate -> 0 | AQ40: 0 | AS40: =AS38*P4ReturnRate -> 0
B41: Net Sales | E41: =E38-E39-E40 -> 0 | F41: 0 | G41: 0 | H41: 0 | I41: 0 | J41: 0 | K41: 0 | L41: 0 | M41: 0 | N41: 0 | O41: 0 | P41: 0 | Q41: 0 | S41: =S38-S39-S40 -> 0 | T41: 0 | U41: 0 | V41: 0 | W41: 0 | X41: 0 | Y41: 0 | Z41: 0 | AA41: 0 | AB41: 0 | AC41: 0 | AD41: 0 | AE41: 0 | AG41: =AG38-AG39-AG40 -> 0 | AH41: =AH38-AH39-AH40 -> 0 | AI41: =AI38-AI39-AI40 -> 0 | AJ41: =AJ38-AJ39-AJ40 -> 0 | AK41: 0 | AM41: =AM38-AM39-AM40 -> 0 | AN41: =AN38-AN39-AN40 -> 0 | AO41: =AO38-AO39-AO40 -> 0 | AP41: =AP38-AP39-AP40 -> 0 | AQ41: 0 | AS41: =AS38-AS39-AS40 -> 0
B42: (Cost of Goods Sold) | D42: 0.5 | E42: =E38*P4COG -> 0 | F42: 0 | G42: 0 | H42: 0 | I42: 0 | J42: 0 | K42: 0 | L42: 0 | M42: 0 | N42: 0 | O42: 0 | P42: 0 | Q42: 0 | S42: =S38*P4COG -> 0 | T42: 0 | U42: 0 | V42: 0 | W42: 0 | X42: 0 | Y42: 0 | Z42: 0 | AA42: 0 | AB42: 0 | AC42: 0 | AD42: 0 | AE42: 0 | AG42: =AG38*P4COG -> 0 | AH42: =AH38*P4COG -> 0 | AI42: =AI38*P4COG -> 0 | AJ42: =AJ38*P4COG -> 0 | AK42: 0 | AM42: =AM38*P4COG -> 0 | AN42: =AN38*P4COG -> 0 | AO42: =AO38*P4COG -> 0 | AP42: =AP38*P4COG -> 0 | AQ42: 0 | AS42: =AS38*P4COG -> 0
B43: GROSS PROFIT | E43: =E41-E42 -> 0 | F43: 0 | G43: 0 | H43: 0 | I43: 0 | J43: 0 | K43: 0 | L43: 0 | M43: 0 | N43: 0 | O43: 0 | P43: 0 | Q43: 0 | S43: =S41-S42 -> 0 | T43: 0 | U43: 0 | V43: 0 | W43: 0 | X43: 0 | Y43: 0 | Z43: 0 | AA43: 0 | AB43: 0 | AC43: 0 | AD43: 0 | AE43: 0 | AG43: =AG41-AG42 -> 0 | AH43: =AH41-AH42 -> 0 | AI43: =AI41-AI42 -> 0 | AJ43: =AJ41-AJ42 -> 0 | AK43: 0 | AM43: =AM41-AM42 -> 0 | AN43: =AN41-AN42 -> 0 | AO43: =AO41-AO42 -> 0 | AP43: =AP41-AP42 -> 0 | AQ43: 0 | AS43: =AS41-AS42 -> 0
B45: Product Line 5
B46: Unit Volume | D46: 0.02 | E46: 0 | F46: =E46*(1+P5GrowthRate) -> 0 | G46: 0 | H46: 0 | I46: 0 | J46: 0 | K46: 0 | L46: 0 | M46: 0 | N46: 0 | O46: 0 | P46: 0 | Q46: =SUM(E46:P46) -> 0 | S46: =P46*(1+P5GrowthRate) -> 0 | T46: =S46*(1+P5GrowthRate) -> 0 | U46: 0 | V46: 0 | W46: 0 | X46: 0 | Y46: 0 | Z46: 0 | AA46: 0 | AB46: 0 | AC46: 0 | AD46: 0 | AE46: =SUM(S46:AD46) -> 0 | AG46: =-FV(P5GrowthRate,3,($AD46*(1+P5GrowthRate))) -> 0 | AH46: =AG46*(1+P5GrowthRate)^3 -> 0 | AI46: =AH46*(1+P5GrowthRate)^3 -> 0 | AJ46: =AI46*(1+P5GrowthRate)^3 -> 0 | AK46: =SUM(AG46:AJ46) -> 0 | AM46: =AJ46*(1+P5GrowthRate)^3 -> 0 | AN46: =AM46*(1+P5GrowthRate)^3 -> 0 | AO46: =AN46*(1+P5GrowthRate)^3 -> 0 | AP46: =AO46*(1+P5GrowthRate)^3 -> 0 | AQ46: =SUM(AM46:AP46) -> 0 | AS46: =AQ46*(1+P5GrowthRate)^12 -> 0
B47: Unit Price | D47: 0.025 | E47: 0 | F47: =E47 -> 0 | G47: =F47 -> 0 | H47: 0 | I47: 0 | J47: 0 | K47: 0 | L47: 0 | M47: 0 | N47: 0 | O47: 0 | P47: 0 | S47: =P47*(1+$D47) -> 0 | T47: =S47 -> 0 | U47: =T47 -> 0 | V47: 0 | W47: 0 | X47: 0 | Y47: 0 | Z47: 0 | AA47: 0 | AB47: 0 | AC47: 0 | AD47: 0 | AG47: =AD47*(1+$D47) -> 0 | AH47: =AG47 -> 0 | AI47: =AH47 -> 0 | AJ47: =AI47 -> 0 | AM47: =AJ47*(1+$D47) -> 0 | AN47: =AM47 -> 0 | AO47: =AN47 -> 0 | AP47: =AO47 -> 0 | AS47: =AP47*(1+$D47) -> 0
B48: Gross Sales | E48: =PRODUCT(E46:E47) -> 0 | F48: 0 | G48: 0 | H48: 0 | I48: 0 | J48: 0 | K48: 0 | L48: 0 | M48: 0 | N48: 0 | O48: 0 | P48: 0 | Q48: =SUM(E48:P48) -> 0 | S48: =PRODUCT(S46:S47) -> 0 | T48: 0 | U48: 0 | V48: 0 | W48: 0 | X48: 0 | Y48: 0 | Z48: 0 | AA48: 0 | AB48: 0 | AC48: 0 | AD48: 0 | AE48: =SUM(S48:AD48) -> 0 | AG48: =PRODUCT(AG46:AG47) -> 0 | AH48: =PRODUCT(AH46:AH47) -> 0 | AI48: =PRODUCT(AI46:AI47) -> 0 | AJ48: =PRODUCT(AJ46:AJ47) -> 0 | AK48: =SUM(AG48:AJ48) -> 0 | AM48: =PRODUCT(AM46:AM47) -> 0 | AN48: =PRODUCT(AN46:AN47) -> 0 | AO48: =PRODUCT(AO46:AO47) -> 0 | AP48: =PRODUCT(AP46:AP47) -> 0 | AQ48: =SUM(AM48:AP48) -> 0 | AS48: =PRODUCT(AS46:AS47) -> 0
B49: (Commissions) | C49: 0.5 | D49: 0.15 | E49: =E48*P5CommRate*P5CommSales -> 0 | F49: 0 | G49: 0 | H49: 0 | I49: 0 | J49: 0 | K49: 0 | L49: 0 | M49: 0 | N49: 0 | O49: 0 | P49: 0 | Q49: 0 | S49: =S48*P5CommRate*P5CommSales -> 0 | T49: 0 | U49: 0 | V49: 0 | W49: 0 | X49: 0 | Y49: 0 | Z49: 0 | AA49: 0 | AB49: 0 | AC49: 0 | AD49: 0 | AE49: 0 | AG49: =AG48*P5CommRate*P5CommSales -> 0 | AH49: =AH48*P5CommRate*P5CommSales -> 0 | AI49: =AI48*P5CommRate*P5CommSales -> 0 | AJ49: =AJ48*P5CommRate*P5CommSales -> 0 | AK49: 0 | AM49: =AM48*P5CommRate*P5CommSales -> 0 | AN49: =AN48*P5CommRate*P5CommSales -> 0 | AO49: =AO48*P5CommRate*P5CommSales -> 0 | AP49: =AP48*P5CommRate*P5CommSales -> 0 | AQ49: 0 | AS49: =AS48*P5CommRate*P5CommSales -> 0
B50: (Returns and Allowances) | D50: 0.03 | E50: =E48*P5ReturnRate -> 0 | F50: 0 | G50: 0 | H50: 0 | I50: 0 | J50: 0 | K50: 0 | L50: 0 | M50: 0 | N50: 0 | O50: 0 | P50: 0 | Q50: 0 | S50: =S48*P5ReturnRate -> 0 | T50: 0 | U50: 0 | V50: 0 | W50: 0 | X50: 0 | Y50: 0 | Z50: 0 | AA50: 0 | AB50: 0 | AC50: 0 | AD50: 0 | AE50: 0 | AG50: =AG48*P5ReturnRate -> 0 | AH50: =AH48*P5ReturnRate -> 0 | AI50: =AI48*P5ReturnRate -> 0 | AJ50: =AJ48*P5ReturnRate -> 0 | AK50: 0 | AM50: =AM48*P5ReturnRate -> 0 | AN50: =AN48*P5ReturnRate -> 0 | AO50: =AO48*P5ReturnRate -> 0 | AP50: =AP48*P5ReturnRate -> 0 | AQ50: 0 | AS50: =AS48*P5ReturnRate -> 0
B51: Net Sales | E51: =E48-E49-E50 -> 0 | F51: 0 | G51: 0 | H51: 0 | I51: 0 | J51: 0 | K51: 0 | L51: 0 | M51: 0 | N51: 0 | O51: 0 | P51: 0 | Q51: 0 | S51: =S48-S49-S50 -> 0 | T51: 0 | U51: 0 | V51: 0 | W51: 0 | X51: 0 | Y51: 0 | Z51: 0 | AA51: 0 | AB51: 0 | AC51: 0 | AD51: 0 | AE51: 0 | AG51: =AG48-AG49-AG50 -> 0 | AH51: =AH48-AH49-AH50 -> 0 | AI51: =AI48-AI49-AI50 -> 0 | AJ51: =AJ48-AJ49-AJ50 -> 0 | AK51: 0 | AM51: =AM48-AM49-AM50 -> 0 | AN51: =AN48-AN49-AN50 -> 0 | AO51: =AO48-AO49-AO50 -> 0 | AP51: =AP48-AP49-AP50 -> 0 | AQ51: 0 | AS51: =AS48-AS49-AS50 -> 0
B52: (Cost of Goods Sold) | D52: 0.5 | E52: =E48*P5COG -> 0 | F52: 0 | G52: 0 | H52: 0 | I52: 0 | J52: 0 | K52: 0 | L52: 0 | M52: 0 | N52: 0 | O52: 0 | P52: 0 | Q52: 0 | S52: =S48*P5COG -> 0 | T52: 0 | U52: 0 | V52: 0 | W52: 0 | X52: 0 | Y52: 0 | Z52: 0 | AA52: 0 | AB52: 0 | AC52: 0 | AD52: 0 | AE52: 0 | AG52: =AG48*P5COG -> 0 | AH52: =AH48*P5COG -> 0 | AI52: =AI48*P5COG -> 0 | AJ52: =AJ48*P5COG -> 0 | AK52: 0 | AM52: =AM48*P5COG -> 0 | AN52: =AN48*P5COG -> 0 | AO52: =AO48*P5COG -> 0 | AP52: =AP48*P5COG -> 0 | AQ52: 0 | AS52: =AS48*P5COG -> 0
B53: GROSS PROFIT | E53: =E51-E52 -> 0 | F53: 0 | G53: 0 | H53: 0 | I53: 0 | J53: 0 | K53: 0 | L53: 0 | M53: 0 | N53: 0 | O53: 0 | P53: 0 | Q53: 0 | S53: =S51-S52 -> 0 | T53: 0 | U53: 0 | V53: 0 | W53: 0 | X53: 0 | Y53: 0 | Z53: 0 | AA53: 0 | AB53: 0 | AC53: 0 | AD53: 0 | AE53: 0 | AG53: =AG51-AG52 -> 0 | AH53: =AH51-AH52 -> 0 | AI53: =AI51-AI52 -> 0 | AJ53: =AJ51-AJ52 -> 0 | AK53: 0 | AM53: =AM51-AM52 -> 0 | AN53: =AN51-AN52 -> 0 | AO53: =AO51-AO52 -> 0 | AP53: =AP51-AP52 -> 0 | AQ53: 0 | AS53: =AS51-AS52 -> 0
B55: Product Line 6
B56: Unit Volume | D56: 0.02 | E56: 0 | F56: =E56*(1+P6GrowthRate) -> 0 | G56: 0 | H56: 0 | I56: 0 | J56: 0 | K56: 0 | L56: 0 | M56: 0 | N56: 0 | O56: 0 | P56: 0 | Q56: =SUM(E56:P56) -> 0 | S56: =P56*(1+P6GrowthRate) -> 0 | T56: =S56*(1+P6GrowthRate) -> 0 | U56: 0 | V56: 0 | W56: 0 | X56: 0 | Y56: 0 | Z56: 0 | AA56: 0 | AB56: 0 | AC56: 0 | AD56: 0 | AE56: =SUM(S56:AD56) -> 0 | AG56: =-FV(P6GrowthRate,3,($AD56*(1+P6GrowthRate))) -> 0 | AH56: =AG56*(1+P6GrowthRate)^3 -> 0 | AI56: =AH56*(1+P6GrowthRate)^3 -> 0 | AJ56: =AI56*(1+P6GrowthRate)^3 -> 0 | AK56: =SUM(AG56:AJ56) -> 0 | AM56: =AJ56*(1+P6GrowthRate)^3 -> 0 | AN56: =AM56*(1+P6GrowthRate)^3 -> 0 | AO56: =AN56*(1+P6GrowthRate)^3 -> 0 | AP56: =AO56*(1+P6GrowthRate)^3 -> 0 | AQ56: =SUM(AM56:AP56) -> 0 | AS56: =AQ56*(1+P6GrowthRate)^12 -> 0
B57: Unit Price | D57: 0.025 | E57: 0 | F57: =E57 -> 0 | G57: =F57 -> 0 | H57: 0 | I57: 0 | J57: 0 | K57: 0 | L57: 0 | M57: 0 | N57: 0 | O57: 0 | P57: 0 | S57: =P57*(1+$D57) -> 0 | T57: =S57 -> 0 | U57: =T57 -> 0 | V57: 0 | W57: 0 | X57: 0 | Y57: 0 | Z57: 0 | AA57: 0 | AB57: 0 | AC57: 0 | AD57: 0 | AG57: =AD57*(1+$D57) -> 0 | AH57: =AG57 -> 0 | AI57: =AH57 -> 0 | AJ57: =AI57 -> 0 | AM57: =AJ57*(1+$D57) -> 0 | AN57: =AM57 -> 0 | AO57: =AN57 -> 0 | AP57: =AO57 -> 0 | AS57: =AP57*(1+$D57) -> 0
B58: Gross Sales | E58: =PRODUCT(E56:E57) -> 0 | F58: 0 | G58: 0 | H58: 0 | I58: 0 | J58: 0 | K58: 0 | L58: 0 | M58: 0 | N58: 0 | O58: 0 | P58: 0 | Q58: =SUM(E58:P58) -> 0 | S58: =PRODUCT(S56:S57) -> 0 | T58: 0 | U58: 0 | V58: 0 | W58: 0 | X58: 0 | Y58: 0 | Z58: 0 | AA58: 0 | AB58: 0 | AC58: 0 | AD58: 0 | AE58: =SUM(S58:AD58) -> 0 | AG58: =PRODUCT(AG56:AG57) -> 0 | AH58: =PRODUCT(AH56:AH57) -> 0 | AI58: =PRODUCT(AI56:AI57) -> 0 | AJ58: =PRODUCT(AJ56:AJ57) -> 0 | AK58: =SUM(AG58:AJ58) -> 0 | AM58: =PRODUCT(AM56:AM57) -> 0 | AN58: =PRODUCT(AN56:AN57) -> 0 | AO58: =PRODUCT(AO56:AO57) -> 0 | AP58: =PRODUCT(AP56:AP57) -> 0 | AQ58: =SUM(AM58:AP58) -> 0 | AS58: =PRODUCT(AS56:AS57) -> 0
B59: (Commissions) | C59: 0.5 | D59: 0.15 | E59: =E58*P6CommRate*P6CommSales -> 0 | F59: 0 | G59: 0 | H59: 0 | I59: 0 | J59: 0 | K59: 0 | L59: 0 | M59: 0 | N59: 0 | O59: 0 | P59: 0 | Q59: 0 | S59: =S58*P6CommRate*P6CommSales -> 0 | T59: 0 | U59: 0 | V59: 0 | W59: 0 | X59: 0 | Y59: 0 | Z59: 0 | AA59: 0 | AB59: 0 | AC59: 0 | AD59: 0 | AE59: 0 | AG59: =AG58*P6CommRate*P6CommSales -> 0 | AH59: =AH58*P6CommRate*P6CommSales -> 0 | AI59: =AI58*P6CommRate*P6CommSales -> 0 | AJ59: =AJ58*P6CommRate*P6CommSales -> 0 | AK59: 0 | AM59: =AM58*P6CommRate*P6CommSales -> 0 | AN59: =AN58*P6CommRate*P6CommSales -> 0 | AO59: =AO58*P6CommRate*P6CommSales -> 0 | AP59: =AP58*P6CommRate*P6CommSales -> 0 | AQ59: 0 | AS59: =AS58*P6CommRate*P6CommSales -> 0
B60: (Returns and Allowances) | D60: 0.03 | E60: =E58*P6ReturnRate -> 0 | F60: 0 | G60: 0 | H60: 0 | I60: 0 | J60: 0 | K60: 0 | L60: 0 | M60: 0 | N60: 0 | O60: 0 | P60: 0 | Q60: 0 | S60: =S58*P6ReturnRate -> 0 | T60: 0 | U60: 0 | V60: 0 | W60: 0 | X60: 0 | Y60: 0 | Z60: 0 | AA60: 0 | AB60: 0 | AC60: 0 | AD60: 0 | AE60: 0 | AG60: =AG58*P6ReturnRate -> 0 | AH60: =AH58*P6ReturnRate -> 0 | AI60: =AI58*P6ReturnRate -> 0 | AJ60: =AJ58*P6ReturnRate -> 0 | AK60: 0 | AM60: =AM58*P6ReturnRate -> 0 | AN60: =AN58*P6ReturnRate -> 0 | AO60: =AO58*P6ReturnRate -> 0 | AP60: =AP58*P6ReturnRate -> 0 | AQ60: 0 | AS60: =AS58*P6ReturnRate -> 0
B61: Net Sales | E61: =E58-E59-E60 -> 0 | F61: 0 | G61: 0 | H61: 0 | I61: 0 | J61: 0 | K61: 0 | L61: 0 | M61: 0 | N61: 0 | O61: 0 | P61: 0 | Q61: 0 | S61: =S58-S59-S60 -> 0 | T61: 0 | U61: 0 | V61: 0 | W61: 0 | X61: 0 | Y61: 0 | Z61: 0 | AA61: 0 | AB61: 0 | AC61: 0 | AD61: 0 | AE61: 0 | AG61: =AG58-AG59-AG60 -> 0 | AH61: =AH58-AH59-AH60 -> 0 | AI61: =AI58-AI59-AI60 -> 0 | AJ61: =AJ58-AJ59-AJ60 -> 0 | AK61: 0 | AM61: =AM58-AM59-AM60 -> 0 | AN61: =AN58-AN59-AN60 -> 0 | AO61: =AO58-AO59-AO60 -> 0 | AP61: =AP58-AP59-AP60 -> 0 | AQ61: 0 | AS61: =AS58-AS59-AS60 -> 0
B62: (Cost of Goods Sold) | D62: 0.5 | E62: =E58*P6COG -> 0 | F62: 0 | G62: 0 | H62: 0 | I62: 0 | J62: 0 | K62: 0 | L62: 0 | M62: 0 | N62: 0 | O62: 0 | P62: 0 | Q62: 0 | S62: =S58*P6COG -> 0 | T62: 0 | U62: 0 | V62: 0 | W62: 0 | X62: 0 | Y62: 0 | Z62: 0 | AA62: 0 | AB62: 0 | AC62: 0 | AD62: 0 | AE62: 0 | AG62: =AG58*P6COG -> 0 | AH62: =AH58*P6COG -> 0 | AI62: =AI58*P6COG -> 0 | AJ62: =AJ58*P6COG -> 0 | AK62: 0 | AM62: =AM58*P6COG -> 0 | AN62: =AN58*P6COG -> 0 | AO62: =AO58*P6COG -> 0 | AP62: =AP58*P6COG -> 0 | AQ62: 0 | AS62: =AS58*P6COG -> 0
B63: GROSS PROFIT | E63: =E61-E62 -> 0 | F63: 0 | G63: 0 | H63: 0 | I63: 0 | J63: 0 | K63: 0 | L63: 0 | M63: 0 | N63: 0 | O63: 0 | P63: 0 | Q63: 0 | S63: =S61-S62 -> 0 | T63: 0 | U63: 0 | V63: 0 | W63: 0 | X63: 0 | Y63: 0 | Z63: 0 | AA63: 0 | AB63: 0 | AC63: 0 | AD63: 0 | AE63: 0 | AG63: =AG61-AG62 -> 0 | AH63: =AH61-AH62 -> 0 | AI63: =AI61-AI62 -> 0 | AJ63: =AJ61-AJ62 -> 0 | AK63: 0 | AM63: =AM61-AM62 -> 0 | AN63: =AN61-AN62 -> 0 | AO63: =AO61-AO62 -> 0 | AP63: =AP61-AP62 -> 0 | AQ63: 0 | AS63: =AS61-AS62 -> 0
B65: Product Line 7
B66: Unit Volume | D66: 0.02 | E66: 0 | F66: =E66*(1+P7GrowthRate) -> 0 | G66: 0 | H66: 0 | I66: 0 | J66: 0 | K66: 0 | L66: 0 | M66: 0 | N66: 0 | O66: 0 | P66: 0 | Q66: =SUM(E66:P66) -> 0 | S66: =P66*(1+P7GrowthRate) -> 0 | T66: =S66*(1+P7GrowthRate) -> 0 | U66: 0 | V66: 0 | W66: 0 | X66: 0 | Y66: 0 | Z66: 0 | AA66: 0 | AB66: 0 | AC66: 0 | AD66: 0 | AE66: =SUM(S66:AD66) -> 0 | AG66: =-FV(P7GrowthRate,3,($AD66*(1+P7GrowthRate))) -> 0 | AH66: =AG66*(1+P7GrowthRate)^3 -> 0 | AI66: =AH66*(1+P7GrowthRate)^3 -> 0 | AJ66: =AI66*(1+P7GrowthRate)^3 -> 0 | AK66: =SUM(AG66:AJ66) -> 0 | AM66: =AJ66*(1+P7GrowthRate)^3 -> 0 | AN66: =AM66*(1+P7GrowthRate)^3 -> 0 | AO66: =AN66*(1+P7GrowthRate)^3 -> 0 | AP66: =AO66*(1+P7GrowthRate)^3 -> 0 | AQ66: =SUM(AM66:AP66) -> 0 | AS66: =AQ66*(1+P7GrowthRate)^12 -> 0
B67: Unit Price | D67: 0.025 | E67: 0 | F67: =E67 -> 0 | G67: =F67 -> 0 | H67: 0 | I67: 0 | J67: 0 | K67: 0 | L67: 0 | M67: 0 | N67: 0 | O67: 0 | P67: 0 | S67: =P67*(1+$D67) -> 0 | T67: =S67 -> 0 | U67: =T67 -> 0 | V67: 0 | W67: 0 | X67: 0 | Y67: 0 | Z67: 0 | AA67: 0 | AB67: 0 | AC67: 0 | AD67: 0 | AG67: =AD67*(1+$D67) -> 0 | AH67: =AG67 -> 0 | AI67: =AH67 -> 0 | AJ67: =AI67 -> 0 | AM67: =AJ67*(1+$D67) -> 0 | AN67: =AM67 -> 0 | AO67: =AN67 -> 0 | AP67: =AO67 -> 0 | AS67: =AP67*(1+$D67) -> 0
B68: Gross Sales | E68: =PRODUCT(E66:E67) -> 0 | F68: 0 | G68: 0 | H68: 0 | I68: 0 | J68: 0 | K68: 0 | L68: 0 | M68: 0 | N68: 0 | O68: 0 | P68: 0 | Q68: =SUM(E68:P68) -> 0 | S68: =PRODUCT(S66:S67) -> 0 | T68: 0 | U68: 0 | V68: 0 | W68: 0 | X68: 0 | Y68: 0 | Z68: 0 | AA68: 0 | AB68: 0 | AC68: 0 | AD68: 0 | AE68: =SUM(S68:AD68) -> 0 | AG68: =PRODUCT(AG66:AG67) -> 0 | AH68: =PRODUCT(AH66:AH67) -> 0 | AI68: =PRODUCT(AI66:AI67) -> 0 | AJ68: =PRODUCT(AJ66:AJ67) -> 0 | AK68: =SUM(AG68:AJ68) -> 0 | AM68: =PRODUCT(AM66:AM67) -> 0 | AN68: =PRODUCT(AN66:AN67) -> 0 | AO68: =PRODUCT(AO66:AO67) -> 0 | AP68: =PRODUCT(AP66:AP67) -> 0 | AQ68: =SUM(AM68:AP68) -> 0 | AS68: =PRODUCT(AS66:AS67) -> 0
B69: (Commissions) | C69: 0.5 | D69: 0.15 | E69: =E68*P7CommRate*P7CommSales -> 0 | F69: 0 | G69: 0 | H69: 0 | I69: 0 | J69: 0 | K69: 0 | L69: 0 | M69: 0 | N69: 0 | O69: 0 | P69: 0 | Q69: 0 | S69: =S68*P7CommRate*P7CommSales -> 0 | T69: 0 | U69: 0 | V69: 0 | W69: 0 | X69: 0 | Y69: 0 | Z69: 0 | AA69: 0 | AB69: 0 | AC69: 0 | AD69: 0 | AE69: 0 | AG69: =AG68*P7CommRate*P7CommSales -> 0 | AH69: =AH68*P7CommRate*P7CommSales -> 0 | AI69: =AI68*P7CommRate*P7CommSales -> 0 | AJ69: =AJ68*P7CommRate*P7CommSales -> 0 | AK69: 0 | AM69: =AM68*P7CommRate*P7CommSales -> 0 | AN69: =AN68*P7CommRate*P7CommSales -> 0 | AO69: =AO68*P7CommRate*P7CommSales -> 0 | AP69: =AP68*P7CommRate*P7CommSales -> 0 | AQ69: 0 | AS69: =AS68*P7CommRate*P7CommSales -> 0
B70: (Returns and Allowances) | D70: 0.03 | E70: =E68*P7ReturnRate -> 0 | F70: 0 | G70: 0 | H70: 0 | I70: 0 | J70: 0 | K70: 0 | L70: 0 | M70: 0 | N70: 0 | O70: 0 | P70: 0 | Q70: 0 | S70: =S68*P7ReturnRate -> 0 | T70: 0 | U70: 0 | V70: 0 | W70: 0 | X70: 0 | Y70: 0 | Z70: 0 | AA70: 0 | AB70: 0 | AC70: 0 | AD70: 0 | AE70: 0 | AG70: =AG68*P7ReturnRate -> 0 | AH70: =AH68*P7ReturnRate -> 0 | AI70: =AI68*P7ReturnRate -> 0 | AJ70: =AJ68*P7ReturnRate -> 0 | AK70: 0 | AM70: =AM68*P7ReturnRate -> 0 | AN70: =AN68*P7ReturnRate -> 0 | AO70: =AO68*P7ReturnRate -> 0 | AP70: =AP68*P7ReturnRate -> 0 | AQ70: 0 | AS70: =AS68*P7ReturnRate -> 0
B71: Net Sales | E71: =E68-E69-E70 -> 0 | F71: 0 | G71: 0 | H71: 0 | I71: 0 | J71: 0 | K71: 0 | L71: 0 | M71: 0 | N71: 0 | O71: 0 | P71: 0 | Q71: 0 | S71: =S68-S69-S70 -> 0 | T71: 0 | U71: 0 | V71: 0 | W71: 0 | X71: 0 | Y71: 0 | Z71: 0 | AA71: 0 | AB71: 0 | AC71: 0 | AD71: 0 | AE71: 0 | AG71: =AG68-AG69-AG70 -> 0 | AH71: =AH68-AH69-AH70 -> 0 | AI71: =AI68-AI69-AI70 -> 0 | AJ71: =AJ68-AJ69-AJ70 -> 0 | AK71: 0 | AM71: =AM68-AM69-AM70 -> 0 | AN71: =AN68-AN69-AN70 -> 0 | AO71: =AO68-AO69-AO70 -> 0 | AP71: =AP68-AP69-AP70 -> 0 | AQ71: 0 | AS71: =AS68-AS69-AS70 -> 0
B72: (Cost of Goods Sold) | D72: 0.5 | E72: =E68*P7COG -> 0 | F72: 0 | G72: 0 | H72: 0 | I72: 0 | J72: 0 | K72: 0 | L72: 0 | M72: 0 | N72: 0 | O72: 0 | P72: 0 | Q72: 0 | S72: =S68*P7COG -> 0 | T72: 0 | U72: 0 | V72: 0 | W72: 0 | X72: 0 | Y72: 0 | Z72: 0 | AA72: 0 | AB72: 0 | AC72: 0 | AD72: 0 | AE72: 0 | AG72: =AG68*P7COG -> 0 | AH72: =AH68*P7COG -> 0 | AI72: =AI68*P7COG -> 0 | AJ72: =AJ68*P7COG -> 0 | AK72: 0 | AM72: =AM68*P7COG -> 0 | AN72: =AN68*P7COG -> 0 | AO72: =AO68*P7COG -> 0 | AP72: =AP68*P7COG -> 0 | AQ72: 0 | AS72: =AS68*P7COG -> 0
B73: GROSS PROFIT | E73: =E71-E72 -> 0 | F73: 0 | G73: 0 | H73: 0 | I73: 0 | J73: 0 | K73: 0 | L73: 0 | M73: 0 | N73: 0 | O73: 0 | P73: 0 | Q73: 0 | S73: =S71-S72 -> 0 | T73: 0 | U73: 0 | V73: 0 | W73: 0 | X73: 0 | Y73: 0 | Z73: 0 | AA73: 0 | AB73: 0 | AC73: 0 | AD73: 0 | AE73: 0 | AG73: =AG71-AG72 -> 0 | AH73: =AH71-AH72 -> 0 | AI73: =AI71-AI72 -> 0 | AJ73: =AJ71-AJ72 -> 0 | AK73: 0 | AM73: =AM71-AM72 -> 0 | AN73: =AN71-AN72 -> 0 | AO73: =AO71-AO72 -> 0 | AP73: =AP71-AP72 -> 0 | AQ73: 0 | AS73: =AS71-AS72 -> 0
B75: Product Line 8
B76: Unit Volume | D76: 0.02 | E76: 0 | F76: =E76*(1+P8GrowthRate) -> 0 | G76: 0 | H76: 0 | I76: 0 | J76: 0 | K76: 0 | L76: 0 | M76: 0 | N76: 0 | O76: 0 | P76: 0 | Q76: =SUM(E76:P76) -> 0 | S76: =P76*(1+P8GrowthRate) -> 0 | T76: =S76*(1+P8GrowthRate) -> 0 | U76: 0 | V76: 0 | W76: 0 | X76: 0 | Y76: 0 | Z76: 0 | AA76: 0 | AB76: 0 | AC76: 0 | AD76: 0 | AE76: =SUM(S76:AD76) -> 0 | AG76: =-FV(P8GrowthRate,3,($AD76*(1+P8GrowthRate))) -> 0 | AH76: =AG76*(1+P8GrowthRate)^3 -> 0 | AI76: =AH76*(1+P8GrowthRate)^3 -> 0 | AJ76: =AI76*(1+P8GrowthRate)^3 -> 0 | AK76: =SUM(AG76:AJ76) -> 0 | AM76: =AJ76*(1+P8GrowthRate)^3 -> 0 | AN76: =AM76*(1+P8GrowthRate)^3 -> 0 | AO76: =AN76*(1+P8GrowthRate)^3 -> 0 | AP76: =AO76*(1+P8GrowthRate)^3 -> 0 | AQ76: =SUM(AM76:AP76) -> 0 | AS76: =AQ76*(1+P8GrowthRate)^12 -> 0
B77: Unit Price | D77: 0.025 | E77: 0 | F77: =E77 -> 0 | G77: =F77 -> 0 | H77: 0 | I77: 0 | J77: 0 | K77: 0 | L77: 0 | M77: 0 | N77: 0 | O77: 0 | P77: 0 | S77: =P77*(1+$D77) -> 0 | T77: =S77 -> 0 | U77: =T77 -> 0 | V77: 0 | W77: 0 | X77: 0 | Y77: 0 | Z77: 0 | AA77: 0 | AB77: 0 | AC77: 0 | AD77: 0 | AG77: =AD77*(1+$D77) -> 0 | AH77: =AG77 -> 0 | AI77: =AH77 -> 0 | AJ77: =AI77 -> 0 | AM77: =AJ77*(1+$D77) -> 0 | AN77: =AM77 -> 0 | AO77: =AN77 -> 0 | AP77: =AO77 -> 0 | AS77: =AP77*(1+$D77) -> 0
B78: Gross Sales | E78: =PRODUCT(E76:E77) -> 0 | F78: 0 | G78: 0 | H78: 0 | I78: 0 | J78: 0 | K78: 0 | L78: 0 | M78: 0 | N78: 0 | O78: 0 | P78: 0 | Q78: =SUM(E78:P78) -> 0 | S78: =PRODUCT(S76:S77) -> 0 | T78: 0 | U78: 0 | V78: 0 | W78: 0 | X78: 0 | Y78: 0 | Z78: 0 | AA78: 0 | AB78: 0 | AC78: 0 | AD78: 0 | AE78: =SUM(S78:AD78) -> 0 | AG78: =PRODUCT(AG76:AG77) -> 0 | AH78: =PRODUCT(AH76:AH77) -> 0 | AI78: =PRODUCT(AI76:AI77) -> 0 | AJ78: =PRODUCT(AJ76:AJ77) -> 0 | AK78: =SUM(AG78:AJ78) -> 0 | AM78: =PRODUCT(AM76:AM77) -> 0 | AN78: =PRODUCT(AN76:AN77) -> 0 | AO78: =PRODUCT(AO76:AO77) -> 0 | AP78: =PRODUCT(AP76:AP77) -> 0 | AQ78: =SUM(AM78:AP78) -> 0 | AS78: =PRODUCT(AS76:AS77) -> 0
B79: (Commissions) | C79: 0.5 | D79: 0.15 | E79: =E78*P8CommRate*P8CommSales -> 0 | F79: 0 | G79: 0 | H79: 0 | I79: 0 | J79: 0 | K79: 0 | L79: 0 | M79: 0 | N79: 0 | O79: 0 | P79: 0 | Q79: 0 | S79: =S78*P8CommRate*P8CommSales -> 0 | T79: 0 | U79: 0 | V79: 0 | W79: 0 | X79: 0 | Y79: 0 | Z79: 0 | AA79: 0 | AB79: 0 | AC79: 0 | AD79: 0 | AE79: 0 | AG79: =AG78*P8CommRate*P8CommSales -> 0 | AH79: =AH78*P8CommRate*P8CommSales -> 0 | AI79: =AI78*P8CommRate*P8CommSales -> 0 | AJ79: =AJ78*P8CommRate*P8CommSales -> 0 | AK79: 0 | AM79: =AM78*P8CommRate*P8CommSales -> 0 | AN79: =AN78*P8CommRate*P8CommSales -> 0 | AO79: =AO78*P8CommRate*P8CommSales -> 0 | AP79: =AP78*P8CommRate*P8CommSales -> 0 | AQ79: 0 | AS79: =AS78*P8CommRate*P8CommSales -> 0
B80: (Returns and Allowances) | D80: 0.03 | E80: =E78*P8ReturnRate -> 0 | F80: 0 | G80: 0 | H80: 0 | I80: 0 | J80: 0 | K80: 0 | L80: 0 | M80: 0 | N80: 0 | O80: 0 | P80: 0 | Q80: 0 | S80: =S78*P8ReturnRate -> 0 | T80: 0 | U80: 0 | V80: 0 | W80: 0 | X80: 0 | Y80: 0 | Z80: 0 | AA80: 0 | AB80: 0 | AC80: 0 | AD80: 0 | AE80: 0 | AG80: =AG78*P8ReturnRate -> 0 | AH80: =AH78*P8ReturnRate -> 0 | AI80: =AI78*P8ReturnRate -> 0 | AJ80: =AJ78*P8ReturnRate -> 0 | AK80: 0 | AM80: =AM78*P8ReturnRate -> 0 | AN80: =AN78*P8ReturnRate -> 0 | AO80: =AO78*P8ReturnRate -> 0 | AP80: =AP78*P8ReturnRate -> 0 | AQ80: 0 | AS80: =AS78*P8ReturnRate -> 0
B81: Net Sales | E81: =E78-E79-E80 -> 0 | F81: 0 | G81: 0 | H81: 0 | I81: 0 | J81: 0 | K81: 0 | L81: 0 | M81: 0 | N81: 0 | O81: 0 | P81: 0 | Q81: 0 | S81: =S78-S79-S80 -> 0 | T81: 0 | U81: 0 | V81: 0 | W81: 0 | X81: 0 | Y81: 0 | Z81: 0 | AA81: 0 | AB81: 0 | AC81: 0 | AD81: 0 | AE81: 0 | AG81: =AG78-AG79-AG80 -> 0 | AH81: =AH78-AH79-AH80 -> 0 | AI81: =AI78-AI79-AI80 -> 0 | AJ81: =AJ78-AJ79-AJ80 -> 0 | AK81: 0 | AM81: =AM78-AM79-AM80 -> 0 | AN81: =AN78-AN79-AN80 -> 0 | AO81: =AO78-AO79-AO80 -> 0 | AP81: =AP78-AP79-AP80 -> 0 | AQ81: 0 | AS81: =AS78-AS79-AS80 -> 0
B82: (Cost of Goods Sold) | D82: 0.5 | E82: =E78*P8COG -> 0 | F82: 0 | G82: 0 | H82: 0 | I82: 0 | J82: 0 | K82: 0 | L82: 0 | M82: 0 | N82: 0 | O82: 0 | P82: 0 | Q82: 0 | S82: =S78*P8COG -> 0 | T82: 0 | U82: 0 | V82: 0 | W82: 0 | X82: 0 | Y82: 0 | Z82: 0 | AA82: 0 | AB82: 0 | AC82: 0 | AD82: 0 | AE82: 0 | AG82: =AG78*P8COG -> 0 | AH82: =AH78*P8COG -> 0 | AI82: =AI78*P8COG -> 0 | AJ82: =AJ78*P8COG -> 0 | AK82: 0 | AM82: =AM78*P8COG -> 0 | AN82: =AN78*P8COG -> 0 | AO82: =AO78*P8COG -> 0 | AP82: =AP78*P8COG -> 0 | AQ82: 0 | AS82: =AS78*P8COG -> 0
B83: GROSS PROFIT | E83: =E81-E82 -> 0 | F83: 0 | G83: 0 | H83: 0 | I83: 0 | J83: 0 | K83: 0 | L83: 0 | M83: 0 | N83: 0 | O83: 0 | P83: 0 | Q83: 0 | S83: =S81-S82 -> 0 | T83: 0 | U83: 0 | V83: 0 | W83: 0 | X83: 0 | Y83: 0 | Z83: 0 | AA83: 0 | AB83: 0 | AC83: 0 | AD83: 0 | AE83: 0 | AG83: =AG81-AG82 -> 0 | AH83: =AH81-AH82 -> 0 | AI83: =AI81-AI82 -> 0 | AJ83: =AJ81-AJ82 -> 0 | AK83: 0 | AM83: =AM81-AM82 -> 0 | AN83: =AN81-AN82 -> 0 | AO83: =AO81-AO82 -> 0 | AP83: =AP81-AP82 -> 0 | AQ83: 0 | AS83: =AS81-AS82 -> 0
B85: Product Line 9
B86: Unit Volume | D86: 0.02 | E86: 0 | F86: =E86*(1+P9GrowthRate) -> 0 | G86: 0 | H86: 0 | I86: 0 | J86: 0 | K86: 0 | L86: 0 | M86: 0 | N86: 0 | O86: 0 | P86: 0 | Q86: =SUM(E86:P86) -> 0 | S86: =P86*(1+P9GrowthRate) -> 0 | T86: =S86*(1+P9GrowthRate) -> 0 | U86: 0 | V86: 0 | W86: 0 | X86: 0 | Y86: 0 | Z86: 0 | AA86: 0 | AB86: 0 | AC86: 0 | AD86: 0 | AE86: =SUM(S86:AD86) -> 0 | AG86: =-FV(P9GrowthRate,3,($AD86*(1+P9GrowthRate))) -> 0 | AH86: =AG86*(1+P9GrowthRate)^3 -> 0 | AI86: =AH86*(1+P9GrowthRate)^3 -> 0 | AJ86: =AI86*(1+P9GrowthRate)^3 -> 0 | AK86: =SUM(AG86:AJ86) -> 0 | AM86: =AJ86*(1+P9GrowthRate)^3 -> 0 | AN86: =AM86*(1+P9GrowthRate)^3 -> 0 | AO86: =AN86*(1+P9GrowthRate)^3 -> 0 | AP86: =AO86*(1+P9GrowthRate)^3 -> 0 | AQ86: =SUM(AM86:AP86) -> 0 | AS86: =AQ86*(1+P9GrowthRate)^12 -> 0
B87: Unit Price | D87: 0.025 | E87: 0 | F87: =E87 -> 0 | G87: =F87 -> 0 | H87: 0 | I87: 0 | J87: 0 | K87: 0 | L87: 0 | M87: 0 | N87: 0 | O87: 0 | P87: 0 | S87: =P87*(1+$D87) -> 0 | T87: =S87 -> 0 | U87: =T87 -> 0 | V87: 0 | W87: 0 | X87: 0 | Y87: 0 | Z87: 0 | AA87: 0 | AB87: 0 | AC87: 0 | AD87: 0 | AG87: =AD87*(1+$D87) -> 0 | AH87: =AG87 -> 0 | AI87: =AH87 -> 0 | AJ87: =AI87 -> 0 | AM87: =AJ87*(1+$D87) -> 0 | AN87: =AM87 -> 0 | AO87: =AN87 -> 0 | AP87: =AO87 -> 0 | AS87: =AP87*(1+$D87) -> 0
B88: Gross Sales | E88: =PRODUCT(E86:E87) -> 0 | F88: 0 | G88: 0 | H88: 0 | I88: 0 | J88: 0 | K88: 0 | L88: 0 | M88: 0 | N88: 0 | O88: 0 | P88: 0 | Q88: =SUM(E88:P88) -> 0 | S88: =PRODUCT(S86:S87) -> 0 | T88: 0 | U88: 0 | V88: 0 | W88: 0 | X88: 0 | Y88: 0 | Z88: 0 | AA88: 0 | AB88: 0 | AC88: 0 | AD88: 0 | AE88: =SUM(S88:AD88) -> 0 | AG88: =PRODUCT(AG86:AG87) -> 0 | AH88: =PRODUCT(AH86:AH87) -> 0 | AI88: =PRODUCT(AI86:AI87) -> 0 | AJ88: =PRODUCT(AJ86:AJ87) -> 0 | AK88: =SUM(AG88:AJ88) -> 0 | AM88: =PRODUCT(AM86:AM87) -> 0 | AN88: =PRODUCT(AN86:AN87) -> 0 | AO88: =PRODUCT(AO86:AO87) -> 0 | AP88: =PRODUCT(AP86:AP87) -> 0 | AQ88: =SUM(AM88:AP88) -> 0 | AS88: =PRODUCT(AS86:AS87) -> 0
B89: (Commissions) | C89: 0.5 | D89: 0.15 | E89: =E88*P9CommRate*P9CommSales -> 0 | F89: 0 | G89: 0 | H89: 0 | I89: 0 | J89: 0 | K89: 0 | L89: 0 | M89: 0 | N89: 0 | O89: 0 | P89: 0 | Q89: 0 | S89: =S88*P9CommRate*P9CommSales -> 0 | T89: 0 | U89: 0 | V89: 0 | W89: 0 | X89: 0 | Y89: 0 | Z89: 0 | AA89: 0 | AB89: 0 | AC89: 0 | AD89: 0 | AE89: 0 | AG89: =AG88*P9CommRate*P9CommSales -> 0 | AH89: =AH88*P9CommRate*P9CommSales -> 0 | AI89: =AI88*P9CommRate*P9CommSales -> 0 | AJ89: =AJ88*P9CommRate*P9CommSales -> 0 | AK89: 0 | AM89: =AM88*P9CommRate*P9CommSales -> 0 | AN89: =AN88*P9CommRate*P9CommSales -> 0 | AO89: =AO88*P9CommRate*P9CommSales -> 0 | AP89: =AP88*P9CommRate*P9CommSales -> 0 | AQ89: 0 | AS89: =AS88*P9CommRate*P9CommSales -> 0
B90: (Returns and Allowances) | D90: 0.03 | E90: =E88*P9ReturnRate -> 0 | F90: 0 | G90: 0 | H90: 0 | I90: 0 | J90: 0 | K90: 0 | L90: 0 | M90: 0 | N90: 0 | O90: 0 | P90: 0 | Q90: 0 | S90: =S88*P9ReturnRate -> 0 | T90: 0 | U90: 0 | V90: 0 | W90: 0 | X90: 0 | Y90: 0 | Z90: 0 | AA90: 0 | AB90: 0 | AC90: 0 | AD90: 0 | AE90: 0 | AG90: =AG88*P9ReturnRate -> 0 | AH90: =AH88*P9ReturnRate -> 0 | AI90: =AI88*P9ReturnRate -> 0 | AJ90: =AJ88*P9ReturnRate -> 0 | AK90: 0 | AM90: =AM88*P9ReturnRate -> 0 | AN90: =AN88*P9ReturnRate -> 0 | AO90: =AO88*P9ReturnRate -> 0 | AP90: =AP88*P9ReturnRate -> 0 | AQ90: 0 | AS90: =AS88*P9ReturnRate -> 0
B91: Net Sales | E91: =E88-E89-E90 -> 0 | F91: 0 | G91: 0 | H91: 0 | I91: 0 | J91: 0 | K91: 0 | L91: 0 | M91: 0 | N91: 0 | O91: 0 | P91: 0 | Q91: 0 | S91: =S88-S89-S90 -> 0 | T91: 0 | U91: 0 | V91: 0 | W91: 0 | X91: 0 | Y91: 0 | Z91: 0 | AA91: 0 | AB91: 0 | AC91: 0 | AD91: 0 | AE91: 0 | AG91: =AG88-AG89-AG90 -> 0 | AH91: =AH88-AH89-AH90 -> 0 | AI91: =AI88-AI89-AI90 -> 0 | AJ91: =AJ88-AJ89-AJ90 -> 0 | AK91: 0 | AM91: =AM88-AM89-AM90 -> 0 | AN91: =AN88-AN89-AN90 -> 0 | AO91: =AO88-AO89-AO90 -> 0 | AP91: =AP88-AP89-AP90 -> 0 | AQ91: 0 | AS91: =AS88-AS89-AS90 -> 0
B92: (Cost of Goods Sold) | D92: 0.5 | E92: =E88*P9COG -> 0 | F92: 0 | G92: 0 | H92: 0 | I92: 0 | J92: 0 | K92: 0 | L92: 0 | M92: 0 | N92: 0 | O92: 0 | P92: 0 | Q92: 0 | S92: =S88*P9COG -> 0 | T92: 0 | U92: 0 | V92: 0 | W92: 0 | X92: 0 | Y92: 0 | Z92: 0 | AA92: 0 | AB92: 0 | AC92: 0 | AD92: 0 | AE92: 0 | AG92: =AG88*P9COG -> 0 | AH92: =AH88*P9COG -> 0 | AI92: =AI88*P9COG -> 0 | AJ92: =AJ88*P9COG -> 0 | AK92: 0 | AM92: =AM88*P9COG -> 0 | AN92: =AN88*P9COG -> 0 | AO92: =AO88*P9COG -> 0 | AP92: =AP88*P9COG -> 0 | AQ92: 0 | AS92: =AS88*P9COG -> 0
B93: GROSS PROFIT | E93: =E91-E92 -> 0 | F93: 0 | G93: 0 | H93: 0 | I93: 0 | J93: 0 | K93: 0 | L93: 0 | M93: 0 | N93: 0 | O93: 0 | P93: 0 | Q93: 0 | S93: =S91-S92 -> 0 | T93: 0 | U93: 0 | V93: 0 | W93: 0 | X93: 0 | Y93: 0 | Z93: 0 | AA93: 0 | AB93: 0 | AC93: 0 | AD93: 0 | AE93: 0 | AG93: =AG91-AG92 -> 0 | AH93: =AH91-AH92 -> 0 | AI93: =AI91-AI92 -> 0 | AJ93: =AJ91-AJ92 -> 0 | AK93: 0 | AM93: =AM91-AM92 -> 0 | AN93: =AN91-AN92 -> 0 | AO93: =AO91-AO92 -> 0 | AP93: =AP91-AP92 -> 0 | AQ93: 0 | AS93: =AS91-AS92 -> 0
B95: Product Line 10
B96: Unit Volume | D96: 0.02 | E96: 0 | F96: =E96*(1+P10GrowthRate) -> 0 | G96: 0 | H96: 0 | I96: 0 | J96: 0 | K96: 0 | L96: 0 | M96: 0 | N96: 0 | O96: 0 | P96: 0 | Q96: =SUM(E96:P96) -> 0 | S96: =P96*(1+P10GrowthRate) -> 0 | T96: =S96*(1+P10GrowthRate) -> 0 | U96: 0 | V96: 0 | W96: 0 | X96: 0 | Y96: 0 | Z96: 0 | AA96: 0 | AB96: 0 | AC96: 0 | AD96: 0 | AE96: =SUM(S96:AD96) -> 0 | AG96: =-FV(P10GrowthRate,3,($AD96*(1+P10GrowthRate))) -> 0 | AH96: =AG96*(1+P10GrowthRate)^3 -> 0 | AI96: =AH96*(1+P10GrowthRate)^3 -> 0 | AJ96: =AI96*(1+P10GrowthRate)^3 -> 0 | AK96: =SUM(AG96:AJ96) -> 0 | AM96: =AJ96*(1+P10GrowthRate)^3 -> 0 | AN96: =AM96*(1+P10GrowthRate)^3 -> 0 | AO96: =AN96*(1+P10GrowthRate)^3 -> 0 | AP96: =AO96*(1+P10GrowthRate)^3 -> 0 | AQ96: =SUM(AM96:AP96) -> 0 | AS96: =AQ96*(1+P10GrowthRate)^12 -> 0
B97: Unit Price | D97: 0.025 | E97: 0 | F97: =E97 -> 0 | G97: =F97 -> 0 | H97: 0 | I97: 0 | J97: 0 | K97: 0 | L97: 0 | M97: 0 | N97: 0 | O97: 0 | P97: 0 | S97: =P97*(1+$D97) -> 0 | T97: =S97 -> 0 | U97: =T97 -> 0 | V97: 0 | W97: 0 | X97: 0 | Y97: 0 | Z97: 0 | AA97: 0 | AB97: 0 | AC97: 0 | AD97: 0 | AG97: =AD97*(1+$D97) -> 0 | AH97: =AG97 -> 0 | AI97: =AH97 -> 0 | AJ97: =AI97 -> 0 | AM97: =AJ97*(1+$D97) -> 0 | AN97: =AM97 -> 0 | AO97: =AN97 -> 0 | AP97: =AO97 -> 0 | AS97: =AP97*(1+$D97) -> 0
B98: Gross Sales | E98: =PRODUCT(E96:E97) -> 0 | F98: 0 | G98: 0 | H98: 0 | I98: 0 | J98: 0 | K98: 0 | L98: 0 | M98: 0 | N98: 0 | O98: 0 | P98: 0 | Q98: =SUM(E98:P98) -> 0 | S98: =PRODUCT(S96:S97) -> 0 | T98: 0 | U98: 0 | V98: 0 | W98: 0 | X98: 0 | Y98: 0 | Z98: 0 | AA98: 0 | AB98: 0 | AC98: 0 | AD98: 0 | AE98: =SUM(S98:AD98) -> 0 | AG98: =PRODUCT(AG96:AG97) -> 0 | AH98: =PRODUCT(AH96:AH97) -> 0 | AI98: =PRODUCT(AI96:AI97) -> 0 | AJ98: =PRODUCT(AJ96:AJ97) -> 0 | AK98: =SUM(AG98:AJ98) -> 0 | AM98: =PRODUCT(AM96:AM97) -> 0 | AN98: =PRODUCT(AN96:AN97) -> 0 | AO98: =PRODUCT(AO96:AO97) -> 0 | AP98: =PRODUCT(AP96:AP97) -> 0 | AQ98: =SUM(AM98:AP98) -> 0 | AS98: =PRODUCT(AS96:AS97) -> 0
B99: (Commissions) | C99: 0.5 | D99: 0.15 | E99: =E98*P10CommRate*P10CommSales -> 0 | F99: 0 | G99: 0 | H99: 0 | I99: 0 | J99: 0 | K99: 0 | L99: 0 | M99: 0 | N99: 0 | O99: 0 | P99: 0 | Q99: 0 | S99: =S98*P10CommRate*P10CommSales -> 0 | T99: 0 | U99: 0 | V99: 0 | W99: 0 | X99: 0 | Y99: 0 | Z99: 0 | AA99: 0 | AB99: 0 | AC99: 0 | AD99: 0 | AE99: 0 | AG99: =AG98*P10CommRate*P10CommSales -> 0 | AH99: =AH98*P10CommRate*P10CommSales -> 0 | AI99: =AI98*P10CommRate*P10CommSales -> 0 | AJ99: =AJ98*P10CommRate*P10CommSales -> 0 | AK99: 0 | AM99: =AM98*P10CommRate*P10CommSales -> 0 | AN99: =AN98*P10CommRate*P10CommSales -> 0 | AO99: =AO98*P10CommRate*P10CommSales -> 0 | AP99: =AP98*P10CommRate*P10CommSales -> 0 | AQ99: 0 | AS99: =AS98*P10CommRate*P10CommSales -> 0
B100: (Returns and Allowances) | D100: 0.03 | E100: =E98*P10ReturnRate -> 0 | F100: 0 | G100: 0 | H100: 0 | I100: 0 | J100: 0 | K100: 0 | L100: 0 | M100: 0 | N100: 0 | O100: 0 | P100: 0 | Q100: 0 | S100: =S98*P10ReturnRate -> 0 | T100: 0 | U100: 0 | V100: 0 | W100: 0 | X100: 0 | Y100: 0 | Z100: 0 | AA100: 0 | AB100: 0 | AC100: 0 | AD100: 0 | AE100: 0 | AG100: =AG98*P10ReturnRate -> 0 | AH100: =AH98*P10ReturnRate -> 0 | AI100: =AI98*P10ReturnRate -> 0 | AJ100: =AJ98*P10ReturnRate -> 0 | AK100: 0 | AM100: =AM98*P10ReturnRate -> 0 | AN100: =AN98*P10ReturnRate -> 0 | AO100: =AO98*P10ReturnRate -> 0 | AP100: =AP98*P10ReturnRate -> 0 | AQ100: 0 | AS100: =AS98*P10ReturnRate -> 0
B101: Net Sales | E101: =E98-E99-E100 -> 0 | F101: 0 | G101: 0 | H101: 0 | I101: 0 | J101: 0 | K101: 0 | L101: 0 | M101: 0 | N101: 0 | O101: 0 | P101: 0 | Q101: 0 | S101: =S98-S99-S100 -> 0 | T101: 0 | U101: 0 | V101: 0 | W101: 0 | X101: 0 | Y101: 0 | Z101: 0 | AA101: 0 | AB101: 0 | AC101: 0 | AD101: 0 | AE101: 0 | AG101: =AG98-AG99-AG100 -> 0 | AH101: =AH98-AH99-AH100 -> 0 | AI101: =AI98-AI99-AI100 -> 0 | AJ101: =AJ98-AJ99-AJ100 -> 0 | AK101: 0 | AM101: =AM98-AM99-AM100 -> 0 | AN101: =AN98-AN99-AN100 -> 0 | AO101: =AO98-AO99-AO100 -> 0 | AP101: =AP98-AP99-AP100 -> 0 | AQ101: 0 | AS101: =AS98-AS99-AS100 -> 0
B102: (Cost of Goods Sold) | D102: 0.5 | E102: =E98*P10COG -> 0 | F102: 0 | G102: 0 | H102: 0 | I102: 0 | J102: 0 | K102: 0 | L102: 0 | M102: 0 | N102: 0 | O102: 0 | P102: 0 | Q102: 0 | S102: =S98*P10COG -> 0 | T102: 0 | U102: 0 | V102: 0 | W102: 0 | X102: 0 | Y102: 0 | Z102: 0 | AA102: 0 | AB102: 0 | AC102: 0 | AD102: 0 | AE102: 0 | AG102: =AG98*P10COG -> 0 | AH102: =AH98*P10COG -> 0 | AI102: =AI98*P10COG -> 0 | AJ102: =AJ98*P10COG -> 0 | AK102: 0 | AM102: =AM98*P10COG -> 0 | AN102: =AN98*P10COG -> 0 | AO102: =AO98*P10COG -> 0 | AP102: =AP98*P10COG -> 0 | AQ102: 0 | AS102: =AS98*P10COG -> 0
B103: GROSS PROFIT | E103: =E101-E102 -> 0 | F103: 0 | G103: 0 | H103: 0 | I103: 0 | J103: 0 | K103: 0 | L103: 0 | M103: 0 | N103: 0 | O103: 0 | P103: 0 | Q103: 0 | S103: =S101-S102 -> 0 | T103: 0 | U103: 0 | V103: 0 | W103: 0 | X103: 0 | Y103: 0 | Z103: 0 | AA103: 0 | AB103: 0 | AC103: 0 | AD103: 0 | AE103: 0 | AG103: =AG101-AG102 -> 0 | AH103: =AH101-AH102 -> 0 | AI103: =AI101-AI102 -> 0 | AJ103: =AJ101-AJ102 -> 0 | AK103: 0 | AM103: =AM101-AM102 -> 0 | AN103: =AN101-AN102 -> 0 | AO103: =AO101-AO102 -> 0 | AP103: =AP101-AP102 -> 0 | AQ103: 0 | AS103: =AS101-AS102 -> 0
B105: Totals for All Product Lines
B106: Total Unit Volume | E106: =SUBTOTAL(109, E96,E86,E76,E66,E56,E46,E36,E26,E16,E6) -> 0 | F106: 0 | G106: 0 | H106: 0 | I106: 0 | J106: 0 | K106: 0 | L106: 0 | M106: 0 | N106: 0 | O106: 0 | P106: 0 | Q106: =SUM(E106:P106) -> 0 | S106: =SUBTOTAL(109, S96,S86,S76,S66,S56,S46,S36,S26,S16,S6) -> 0 | T106: 0 | U106: 0 | V106: 0 | W106: 0 | X106: 0 | Y106: 0 | Z106: 0 | AA106: 0 | AB106: 0 | AC106: 0 | AD106: 0 | AE106: =SUM(S106:AD106) -> 0 | AG106: =SUBTOTAL(109, AG96,AG86,AG76,AG66,AG56,AG46,AG36,AG26,AG16,AG6) -> 0 | AH106: =SUBTOTAL(109, AH96,AH86,AH76,AH66,AH56,AH46,AH36,AH26,AH16,AH6) -> 0 | AI106: =SUBTOTAL(109, AI96,AI86,AI76,AI66,AI56,AI46,AI36,AI26,AI16,AI6) -> 0 | AJ106: =SUBTOTAL(109, AJ96,AJ86,AJ76,AJ66,AJ56,AJ46,AJ36,AJ26,AJ16,AJ6) -> 0 | AK106: =SUM(AG106:AJ106) -> 0 | AM106: =SUBTOTAL(109, AM96,AM86,AM76,AM66,AM56,AM46,AM36,AM26,AM16,AM6) -> 0 | AN106: =SUBTOTAL(109, AN96,AN86,AN76,AN66,AN56,AN46,AN36,AN26,AN16,AN6) -> 0 | AO106: =SUBTOTAL(109, AO96,AO86,AO76,AO66,AO56,AO46,AO36,AO26,AO16,AO6) -> 0 | AP106: =SUBTOTAL(109, AP96,AP86,AP76,AP66,AP56,AP46,AP36,AP26,AP16,AP6) -> 0 | AQ106: =SUM(AM106:AP106) -> 0 | AS106: =SUBTOTAL(109, AS96,AS86,AS76,AS66,AS56,AS46,AS36,AS26,AS16,AS6) -> 0
B107: Total Gross Sales | E107: =SUBTOTAL(109, E98,E88,E78,E68,E58,E48,E38,E28,E18,E8) -> 0 | F107: 0 | G107: 0 | H107: 0 | I107: 0 | J107: 0 | K107: 0 | L107: 0 | M107: 0 | N107: 0 | O107: 0 | P107: 0 | Q107: 0 | S107: =SUBTOTAL(109, S98,S88,S78,S68,S58,S48,S38,S28,S18,S8) -> 0 | T107: 0 | U107: 0 | V107: 0 | W107: 0 | X107: 0 | Y107: 0 | Z107: 0 | AA107: 0 | AB107: 0 | AC107: 0 | AD107: 0 | AE107: 0 | AG107: =SUBTOTAL(109, AG98,AG88,AG78,AG68,AG58,AG48,AG38,AG28,AG18,AG8) -> 0 | AH107: 0 | AI107: 0 | AJ107: 0 | AK107: 0 | AM107: =SUBTOTAL(109, AM98,AM88,AM78,AM68,AM58,AM48,AM38,AM28,AM18,AM8) -> 0 | AN107: 0 | AO107: 0 | AP107: 0 | AQ107: 0 | AS107: =SUBTOTAL(109, AS98,AS88,AS78,AS68,AS58,AS48,AS38,AS28,AS18,AS8) -> 0
B108: (Total Commissions) | E108: =SUBTOTAL(109, E99,E89,E79,E69,E59,E49,E39,E29,E19,E9) -> 0 | F108: 0 | G108: 0 | H108: 0 | I108: 0 | J108: 0 | K108: 0 | L108: 0 | M108: 0 | N108: 0 | O108: 0 | P108: 0 | Q108: 0 | S108: =SUBTOTAL(109, S99,S89,S79,S69,S59,S49,S39,S29,S19,S9) -> 0 | T108: 0 | U108: 0 | V108: 0 | W108: 0 | X108: 0 | Y108: 0 | Z108: 0 | AA108: 0 | AB108: 0 | AC108: 0 | AD108: 0 | AE108: 0 | AG108: 0 | AH108: 0 | AI108: 0 | AJ108: 0 | AK108: 0 | AM108: 0 | AN108: 0 | AO108: 0 | AP108: 0 | AQ108: 0 | AS108: 0
B109: (Total Returns and Allowances) | E109: =SUBTOTAL(109, E100,E90,E80,E70,E60,E50,E40,E30,E20,E10) -> 0 | F109: 0 | G109: 0 | H109: 0 | I109: 0 | J109: 0 | K109: 0 | L109: 0 | M109: 0 | N109: 0 | O109: 0 | P109: 0 | Q109: 0 | S109: =SUBTOTAL(109, S100,S90,S80,S70,S60,S50,S40,S30,S20,S10) -> 0 | T109: 0 | U109: 0 | V109: 0 | W109: 0 | X109: 0 | Y109: 0 | Z109: 0 | AA109: 0 | AB109: 0 | AC109: 0 | AD109: 0 | AE109: 0 | AG109: 0 | AH109: 0 | AI109: 0 | AJ109: 0 | AK109: 0 | AM109: 0 | AN109: 0 | AO109: 0 | AP109: 0 | AQ109: 0 | AS109: 0
B110: Total Net Sales | E110: =SUBTOTAL(109, E101,E91,E81,E71,E61,E51,E41,E31,E21,E11) -> 0 | F110: 0 | G110: 0 | H110: 0 | I110: 0 | J110: 0 | K110: 0 | L110: 0 | M110: 0 | N110: 0 | O110: 0 | P110: 0 | Q110: 0 | S110: =SUBTOTAL(109, S101,S91,S81,S71,S61,S51,S41,S31,S21,S11) -> 0 | T110: 0 | U110: 0 | V110: 0 | W110: 0 | X110: 0 | Y110: 0 | Z110: 0 | AA110: 0 | AB110: 0 | AC110: 0 | AD110: 0 | AE110: 0 | AG110: 0 | AH110: 0 | AI110: 0 | AJ110: 0 | AK110: 0 | AM110: 0 | AN110: 0 | AO110: 0 | AP110: 0 | AQ110: 0 | AS110: 0
B111: (Total Cost of Goods Sold) | E111: =SUBTOTAL(109, E102,E92,E82,E72,E62,E52,E42,E32,E22,E12) -> 0 | F111: 0 | G111: 0 | H111: 0 | I111: 0 | J111: 0 | K111: 0 | L111: 0 | M111: 0 | N111: 0 | O111: 0 | P111: 0 | Q111: 0 | S111: =SUBTOTAL(109, S102,S92,S82,S72,S62,S52,S42,S32,S22,S12) -> 0 | T111: 0 | U111: 0 | V111: 0 | W111: 0 | X111: 0 | Y111: 0 | Z111: 0 | AA111: 0 | AB111: 0 | AC111: 0 | AD111: 0 | AE111: 0 | AG111: 0 | AH111: 0 | AI111: 0 | AJ111: 0 | AK111: 0 | AM111: 0 | AN111: 0 | AO111: 0 | AP111: 0 | AQ111: 0 | AS111: 0
B112: TOTAL GROSS PROFIT | E112: =SUBTOTAL(109, E103,E93,E83,E73,E63,E53,E43,E33,E23,E13) -> 0 | F112: 0 | G112: 0 | H112: 0 | I112: 0 | J112: 0 | K112: 0 | L112: 0 | M112: 0 | N112: 0 | O112: 0 | P112: 0 | Q112: 0 | S112: =SUBTOTAL(109, S103,S93,S83,S73,S63,S53,S43,S33,S23,S13) -> 0 | T112: 0 | U112: 0 | V112: 0 | W112: 0 | X112: 0 | Y112: 0 | Z112: 0 | AA112: 0 | AB112: 0 | AC112: 0 | AD112: 0 | AE112: 0 | AG112: 0 | AH112: 0 | AI112: 0 | AJ112: 0 | AK112: 0 | AM112: 0 | AN112: 0 | AO112: 0 | AP112: 0 | AQ112: 0 | AS112: 0

Sheet Inventory
B2: Inventory | C2: =SalesProj!E2 -> 2013 | Q2: =SalesProj!S2 -> 2014 | AE2: =SalesProj!AG2 -> 2015 | AK2: =SalesProj!AM2 -> 2016 | AQ2: =SalesProj!AS2 -> 2017
C3: =SalesProj!E3 -> January | D3: =SalesProj!F3 -> February | E3: =SalesProj!G3 -> March | F3: =SalesProj!H3 -> April | G3: =SalesProj!I3 -> May | H3: =SalesProj!J3 -> June | I3: =SalesProj!K3 -> July | J3: =SalesProj!L3 -> August | K3: =SalesProj!M3 -> September | L3: =SalesProj!N3 -> October | M3: =SalesProj!O3 -> November | N3: =SalesProj!P3 -> December | O3: TOTAL | Q3: =C3 -> January | R3: February | S3: March | T3: April | U3: May | V3: June | W3: July | X3: August | Y3: September | Z3: October | AA3: November | AB3: December | AC3: TOTAL | AE3: 1st Quarter | AF3: 2nd Quarter | AG3: 3rd Quarter | AH3: 4th Quarter | AI3: TOTAL | AK3: 1st Quarter | AL3: 2nd Quarter | AM3: 3rd Quarter | AN3: 4th Quarter | AO3: TOTAL
B5: =SalesProj!B5 -> Product Line 1
B6: Cost of Goods Sold | C6: =SalesProj!E12 -> 0 | D6: =SalesProj!F12 -> 0 | E6: =SalesProj!G12 -> 0 | F6: =SalesProj!H12 -> 0 | G6: =SalesProj!I12 -> 0 | H6: =SalesProj!J12 -> 0 | I6: =SalesProj!K12 -> 0 | J6: =SalesProj!L12 -> 0 | K6: =SalesProj!M12 -> 0 | L6: =SalesProj!N12 -> 0 | M6: =SalesProj!O12 -> 0 | N6: =SalesProj!P12 -> 0 | O6: =SUM(C6:N6) -> 0 | Q6: =SalesProj!S12 -> 0 | R6: =SalesProj!T12 -> 0 | S6: =SalesProj!U12 -> 0 | T6: =SalesProj!V12 -> 0 | U6: =SalesProj!W12 -> 0 | V6: =SalesProj!X12 -> 0 | W6: =SalesProj!Y12 -> 0 | X6: =SalesProj!Z12 -> 0 | Y6: =SalesProj!AA12 -> 0 | Z6: =SalesProj!AB12 -> 0 | AA6: =SalesProj!AC12 -> 0 | AB6: =SalesProj!AD12 -> 0 | AC6: =SUM(Q6:AB6) -> 0 | AE6: =SalesProj!AG12 -> 0 | AF6: =SalesProj!AH12 -> 0 | AG6: =SalesProj!AI12 -> 0 | AH6: =SalesProj!AJ12 -> 0 | AI6: =SUM(AE6:AH6) -> 0 | AK6: =SalesProj!AM12 -> 0 | AL6: =SalesProj!AN12 -> 0 | AM6: =SalesProj!AO12 -> 0 | AN6: =SalesProj!AP12 -> 0 | AO6: =SUM(AK6:AN6) -> 0 | AQ6: =SalesProj!AS12 -> 0
B7: Items/Parts 1 | C7: 0 | D7: =IF(C6=0,0,C7*(D6/C6)) -> 0 | E7: =IF(D6=0,0,D7*(E6/D6)) -> 0 | F7: 0 | G7: 0 | H7: 0 | I7: 0 | J7: 0 | K7: 0 | L7: 0 | M7: 0 | N7: 0 | O7: =SUM(C7:N7) -> 0 | Q7: =IF(N6=0,0,N7*(Q6/N6)) -> 0 | R7: =IF(Q6=0,0,Q7*(R6/Q6)) -> 0 | S7: =IF(R6=0,0,R7*(S6/R6)) -> 0 | T7: =IF(S6=0,0,S7*(T6/S6)) -> 0 | U7: =IF(T6=0,0,T7*(U6/T6)) -> 0 | V7: =IF(U6=0,0,U7*(V6/U6)) -> 0 | W7: =IF(V6=0,0,V7*(W6/V6)) -> 0 | X7: =IF(W6=0,0,W7*(X6/W6)) -> 0 | Y7: =IF(X6=0,0,X7*(Y6/X6)) -> 0 | Z7: =IF(Y6=0,0,Y7*(Z6/Y6)) -> 0 | AA7: =IF(Z6=0,0,Z7*(AA6/Z6)) -> 0 | AB7: =IF(AA6=0,0,AA7*(AB6/AA6)) -> 0 | AC7: =SUM(Q7:AB7) -> 0 | AE7: =IF(SUM(Z6:AB6)=0,0,SUM(Z7:AB7)*AE6/(SUM(Z6:AB6))) -> 0 | AF7: =IF(AE6=0,0,AE7*(AF6/AE6)) -> 0 | AG7: =IF(AF6=0,0,AF7*(AG6/AF6)) -> 0 | AH7: =IF(AG6=0,0,AG7*(AH6/AG6)) -> 0 | AI7: =SUM(AE7:AH7) -> 0 | AK7: =IF(AH6=0,0,AH7*(AK6/AH6)) -> 0 | AL7: =IF(AK6=0,0,AK7*(AL6/AK6)) -> 0 | AM7: =IF(AL6=0,0,AL7*(AM6/AL6)) -> 0 | AN7: =IF(AM6=0,0,AM7*(AN6/AM6)) -> 0 | AO7: =SUM(AK7:AN7) -> 0 | AQ7: =IF(AO6=0,0,AO7*(AQ6/AO6)) -> 0
B8: Items/Parts 2 | C8: 0 | D8: =IF(C6=0,0,C8*(D6/C6)) -> 0 | E8: =IF(D6=0,0,D8*(E6/D6)) -> 0 | F8: 0 | G8: 0 | H8: 0 | I8: 0 | J8: 0 | K8: 0 | L8: 0 | M8: 0 | N8: 0 | O8: =SUM(C8:N8) -> 0 | Q8: =IF(N6=0,0,N8*(Q6/N6)) -> 0 | R8: =IF(Q6=0,0,Q8*(R6/Q6)) -> 0 | S8: =IF(R6=0,0,R8*(S6/R6)) -> 0 | T8: 0 | U8: 0 | V8: 0 | W8: 0 | X8: 0 | Y8: 0 | Z8: 0 | AA8: 0 | AB8: 0 | AC8: =SUM(Q8:AB8) -> 0 | AE8: =IF(SUM(Z6:AB6)=0,0,SUM(Z8:AB8)*AE6/(SUM(Z6:AB6))) -> 0 | AF8: =IF(AE6=0,0,AE8*(AF6/AE6)) -> 0 | AG8: 0 | AH8: 0 | AI8: =SUM(AE8:AH8) -> 0 | AK8: =IF(AH6=0,0,AH8*(AK6/AH6)) -> 0 | AL8: =IF(AK6=0,0,AK8*(AL6/AK6)) -> 0 | AM8: 0 | AN8: 0 | AO8: =SUM(AK8:AN8) -> 0 | AQ8: =IF(AO6=0,0,AO8*(AQ6/AO6)) -> 0
B9: Items/Parts 3 | C9: 0 | D9: =IF(C6=0,0,C9*(D6/C6)) -> 0 | E9: =IF(D6=0,0,D9*(E6/D6)) -> 0 | F9: 0 | G9: 0 | H9: 0 | I9: 0 | J9: 0 | K9: 0 | L9: 0 | M9: 0 | N9: 0 | O9: =SUM(C9:N9) -> 0 | Q9: =IF(N6=0,0,N9*(Q6/N6)) -> 0 | R9: =IF(Q6=0,0,Q9*(R6/Q6)) -> 0 | S9: =IF(R6=0,0,R9*(S6/R6)) -> 0 | T9: 0 | U9: 0 | V9: 0 | W9: 0 | X9: 0 | Y9: 0 | Z9: 0 | AA9: 0 | AB9: 0 | AC9: =SUM(Q9:AB9) -> 0 | AE9: =IF(SUM(Z6:AB6)=0,0,SUM(Z9:AB9)*AE6/(SUM(Z6:AB6))) -> 0 | AF9: =IF(AE6=0,0,AE9*(AF6/AE6)) -> 0 | AG9: 0 | AH9: 0 | AI9: =SUM(AE9:AH9) -> 0 | AK9: =IF(AH6=0,0,AH9*(AK6/AH6)) -> 0 | AL9: =IF(AK6=0,0,AK9*(AL6/AK6)) -> 0 | AM9: 0 | AN9: 0 | AO9: =SUM(AK9:AN9) -> 0 | AQ9: =IF(AO6=0,0,AO9*(AQ6/AO6)) -> 0
B10: Items/Parts 4 | C10: 0 | D10: =IF(C6=0,0,C10*(D6/C6)) -> 0 | E10: =IF(D6=0,0,D10*(E6/D6)) -> 0 | F10: 0 | G10: 0 | H10: 0 | I10: 0 | J10: 0 | K10: 0 | L10: 0 | M10: 0 | N10: 0 | O10: =SUM(C10:N10) -> 0 | Q10: =IF(N6=0,0,N10*(Q6/N6)) -> 0 | R10: =IF(Q6=0,0,Q10*(R6/Q6)) -> 0 | S10: =IF(R6=0,0,R10*(S6/R6)) -> 0 | T10: 0 | U10: 0 | V10: 0 | W10: 0 | X10: 0 | Y10: 0 | Z10: 0 | AA10: 0 | AB10: 0 | AC10: =SUM(Q10:AB10) -> 0 | AE10: =IF(SUM(Z6:AB6)=0,0,SUM(Z10:AB10)*AE6/(SUM(Z6:AB6))) -> 0 | AF10: =IF(AE6=0,0,AE10*(AF6/AE6)) -> 0 | AG10: 0 | AH10: 0 | AI10: =SUM(AE10:AH10) -> 0 | AK10: =IF(AH6=0,0,AH10*(AK6/AH6)) -> 0 | AL10: =IF(AK6=0,0,AK10*(AL6/AK6)) -> 0 | AM10: 0 | AN10: 0 | AO10: =SUM(AK10:AN10) -> 0 | AQ10: =IF(AO6=0,0,AO10*(AQ6/AO6)) -> 0
B11: Total Inventory Expense | C11: =SUM(C7:C10) -> 0 | D11: =SUM(D7:D10) -> 0 | E11: 0 | F11: 0 | G11: 0 | H11: 0 | I11: 0 | J11: 0 | K11: 0 | L11: 0 | M11: 0 | N11: 0 | O11: =SUM(O7:O10) -> 0 | Q11: =SUM(Q7:Q10) -> 0 | R11: =SUM(R7:R10) -> 0 | S11: =SUM(S7:S10) -> 0 | T11: 0 | U11: 0 | V11: 0 | W11: 0 | X11: 0 | Y11: 0 | Z11: 0 | AA11: 0 | AB11: 0 | AC11: =SUM(AC7:AC10) -> 0 | AE11: =SUM(AE7:AE10) -> 0 | AF11: =SUM(AF7:AF10) -> 0 | AG11: =SUM(AG7:AG10) -> 0 | AH11: =SUM(AH7:AH10) -> 0 | AI11: =SUM(AI7:AI10) -> 0 | AK11: =SUM(AK7:AK10) -> 0 | AL11: =SUM(AL7:AL10) -> 0 | AM11: =SUM(AM7:AM10) -> 0 | AN11: =SUM(AN7:AN10) -> 0 | AO11: =SUM(AO7:AO10) -> 0 | AQ11: =SUM(AQ7:AQ10) -> 0
B13: =SalesProj!B15 -> Product Line 2
B14: Cost of Goods Sold | C14: =SalesProj!E22 -> 0 | D14: =SalesProj!F22 -> 0 | E14: =SalesProj!G22 -> 0 | F14: =SalesProj!H22 -> 0 | G14: =SalesProj!I22 -> 0 | H14: =SalesProj!J22 -> 0 | I14: =SalesProj!K22 -> 0 | J14: =SalesProj!L22 -> 0 | K14: =SalesProj!M22 -> 0 | L14: =SalesProj!N22 -> 0 | M14: =SalesProj!O22 -> 0 | N14: =SalesProj!P22 -> 0 | O14: =SUM(C14:N14) -> 0 | Q14: =SalesProj!S22 -> 0 | R14: =SalesProj!T22 -> 0 | S14: =SalesProj!U22 -> 0 | T14: =SalesProj!V22 -> 0 | U14: =SalesProj!W22 -> 0 | V14: =SalesProj!X22 -> 0 | W14: =SalesProj!Y22 -> 0 | X14: =SalesProj!Z22 -> 0 | Y14: =SalesProj!AA22 -> 0 | Z14: =SalesProj!AB22 -> 0 | AA14: =SalesProj!AC22 -> 0 | AB14: =SalesProj!AD22 -> 0 | AC14: =SUM(Q14:AB14) -> 0 | AE14: =SalesProj!AG22 -> 0 | AF14: =SalesProj!AH22 -> 0 | AG14: =SalesProj!AI22 -> 0 | AH14: =SalesProj!AJ22 -> 0 | AI14: =SUM(AE14:AH14) -> 0 | AK14: =SalesProj!AM22 -> 0 | AL14: =SalesProj!AN22 -> 0 | AM14: =SalesProj!AO22 -> 0 | AN14: =SalesProj!AP22 -> 0 | AO14: =SUM(AK14:AN14) -> 0 | AQ14: =SalesProj!AS22 -> 0
B15: Items/Parts 1 | C15: 0 | D15: =IF(C14=0,0,C15*(D14/C14)) -> 0 | E15: =IF(D14=0,0,D15*(E14/D14)) -> 0 | F15: =IF(E14=0,0,E15*(F14/E14)) -> 0 | G15: =IF(F14=0,0,F15*(G14/F14)) -> 0 | H15: =IF(G14=0,0,G15*(H14/G14)) -> 0 | I15: =IF(H14=0,0,H15*(I14/H14)) -> 0 | J15: =IF(I14=0,0,I15*(J14/I14)) -> 0 | K15: =IF(J14=0,0,J15*(K14/J14)) -> 0 | L15: =IF(K14=0,0,K15*(L14/K14)) -> 0 | M15: =IF(L14=0,0,L15*(M14/L14)) -> 0 | N15: =IF(M14=0,0,M15*(N14/M14)) -> 0 | O15: =SUM(C15:N15) -> 0 | Q15: =IF(N14=0,0,N15*(Q14/N14)) -> 0 | R15: =IF(Q14=0,0,Q15*(R14/Q14)) -> 0 | S15: =IF(R14=0,0,R15*(S14/R14)) -> 0 | T15: =IF(S14=0,0,S15*(T14/S14)) -> 0 | U15: =IF(T14=0,0,T15*(U14/T14)) -> 0 | V15: =IF(U14=0,0,U15*(V14/U14)) -> 0 | W15: =IF(V14=0,0,V15*(W14/V14)) -> 0 | X15: =IF(W14=0,0,W15*(X14/W14)) -> 0 | Y15: =IF(X14=0,0,X15*(Y14/X14)) -> 0 | Z15: =IF(Y14=0,0,Y15*(Z14/Y14)) -> 0 | AA15: =IF(Z14=0,0,Z15*(AA14/Z14)) -> 0 | AB15: =IF(AA14=0,0,AA15*(AB14/AA14)) -> 0 | AC15: =SUM(Q15:AB15) -> 0 | AE15: =IF(SUM(Z14:AB14)=0,0,SUM(Z15:AB15)*AE14/(SUM(Z14:AB14))) -> 0 | AF15: =IF(AE14=0,0,AE15*(AF14/AE14)) -> 0 | AG15: =IF(AF14=0,0,AF15*(AG14/AF14)) -> 0 | AH15: =IF(AG14=0,0,AG15*(AH14/AG14)) -> 0 | AI15: =SUM(AE15:AH15) -> 0 | AK15: =IF(AH14=0,0,AH15*(AK14/AH14)) -> 0 | AL15: =IF(AK14=0,0,AK15*(AL14/AK14)) -> 0 | AM15: =IF(AL14=0,0,AL15*(AM14/AL14)) -> 0 | AN15: =IF(AM14=0,0,AM15*(AN14/AM14)) -> 0 | AO15: =SUM(AK15:AN15) -> 0 | AQ15: =IF(AO14=0,0,AO15*(AQ14/AO14)) -> 0
B16: Items/Parts 2 | C16: 0 | D16: =IF(C14=0,0,C16*(D14/C14)) -> 0 | E16: =IF(D14=0,0,D16*(E14/D14)) -> 0 | F16: 0 | G16: 0 | H16: 0 | I16: 0 | J16: 0 | K16: 0 | L16: 0 | M16: 0 | N16: 0 | O16: =SUM(C16:N16) -> 0 | Q16: =IF(N14=0,0,N16*(Q14/N14)) -> 0 | R16: =IF(Q14=0,0,Q16*(R14/Q14)) -> 0 | S16: =IF(R14=0,0,R16*(S14/R14)) -> 0 | T16: 0 | U16: 0 | V16: 0 | W16: 0 | X16: 0 | Y16: 0 | Z16: 0 | AA16: 0 | AB16: 0 | AC16: =SUM(Q16:AB16) -> 0 | AE16: =IF(SUM(Z14:AB14)=0,0,SUM(Z16:AB16)*AE14/(SUM(Z14:AB14))) -> 0 | AF16: =IF(AE14=0,0,AE16*(AF14/AE14)) -> 0 | AG16: 0 | AH16: 0 | AI16: =SUM(AE16:AH16) -> 0 | AK16: =IF(AH14=0,0,AH16*(AK14/AH14)) -> 0 | AL16: =IF(AK14=0,0,AK16*(AL14/AK14)) -> 0 | AM16: 0 | AN16: 0 | AO16: =SUM(AK16:AN16) -> 0 | AQ16: =IF(AO14=0,0,AO16*(AQ14/AO14)) -> 0
B17: Items/Parts 3 | C17: 0 | D17: =IF(C14=0,0,C17*(D14/C14)) -> 0 | E17: =IF(D14=0,0,D17*(E14/D14)) -> 0 | F17: 0 | G17: 0 | H17: 0 | I17: 0 | J17: 0 | K17: 0 | L17: 0 | M17: 0 | N17: 0 | O17: =SUM(C17:N17) -> 0 | Q17: =IF(N14=0,0,N17*(Q14/N14)) -> 0 | R17: =IF(Q14=0,0,Q17*(R14/Q14)) -> 0 | S17: =IF(R14=0,0,R17*(S14/R14)) -> 0 | T17: 0 | U17: 0 | V17: 0 | W17: 0 | X17: 0 | Y17: 0 | Z17: 0 | AA17: 0 | AB17: 0 | AC17: =SUM(Q17:AB17) -> 0 | AE17: =IF(SUM(Z14:AB14)=0,0,SUM(Z17:AB17)*AE14/(SUM(Z14:AB14))) -> 0 | AF17: =IF(AE14=0,0,AE17*(AF14/AE14)) -> 0 | AG17: 0 | AH17: 0 | AI17: =SUM(AE17:AH17) -> 0 | AK17: =IF(AH14=0,0,AH17*(AK14/AH14)) -> 0 | AL17: =IF(AK14=0,0,AK17*(AL14/AK14)) -> 0 | AM17: 0 | AN17: 0 | AO17: =SUM(AK17:AN17) -> 0 | AQ17: =IF(AO14=0,0,AO17*(AQ14/AO14)) -> 0
B18: Items/Parts 4 | C18: 0 | D18: =IF(C14=0,0,C18*(D14/C14)) -> 0 | E18: =IF(D14=0,0,D18*(E14/D14)) -> 0 | F18: 0 | G18: 0 | H18: 0 | I18: 0 | J18: 0 | K18: 0 | L18: 0 | M18: 0 | N18: 0 | O18: =SUM(C18:N18) -> 0 | Q18: =IF(N14=0,0,N18*(Q14/N14)) -> 0 | R18: =IF(Q14=0,0,Q18*(R14/Q14)) -> 0 | S18: =IF(R14=0,0,R18*(S14/R14)) -> 0 | T18: 0 | U18: 0 | V18: 0 | W18: 0 | X18: 0 | Y18: 0 | Z18: 0 | AA18: 0 | AB18: 0 | AC18: =SUM(Q18:AB18) -> 0 | AE18: =IF(SUM(Z14:AB14)=0,0,SUM(Z18:AB18)*AE14/(SUM(Z14:AB14))) -> 0 | AF18: =IF(AE14=0,0,AE18*(AF14/AE14)) -> 0 | AG18: 0 | AH18: 0 | AI18: =SUM(AE18:AH18) -> 0 | AK18: =IF(AH14=0,0,AH18*(AK14/AH14)) -> 0 | AL18: =IF(AK14=0,0,AK18*(AL14/AK14)) -> 0 | AM18: 0 | AN18: 0 | AO18: =SUM(AK18:AN18) -> 0 | AQ18: =IF(AO14=0,0,AO18*(AQ14/AO14)) -> 0
B19: Total Inventory Expense | C19: =SUM(C15:C18) -> 0 | D19: 0 | E19: 0 | F19: 0 | G19: 0 | H19: 0 | I19: 0 | J19: 0 | K19: 0 | L19: 0 | M19: 0 | N19: 0 | O19: 0 | Q19: =SUM(Q15:Q18) -> 0 | R19: 0 | S19: 0 | T19: 0 | U19: 0 | V19: 0 | W19: 0 | X19: 0 | Y19: 0 | Z19: 0 | AA19: 0 | AB19: 0 | AC19: 0 | AE19: =SUM(AE15:AE18) -> 0 | AF19: =SUM(AF15:AF18) -> 0 | AG19: =SUM(AG15:AG18) -> 0 | AH19: =SUM(AH15:AH18) -> 0 | AI19: =SUM(AI15:AI18) -> 0 | AK19: =SUM(AK15:AK18) -> 0 | AL19: =SUM(AL15:AL18) -> 0 | AM19: =SUM(AM15:AM18) -> 0 | AN19: =SUM(AN15:AN18) -> 0 | AO19: =SUM(AO15:AO18) -> 0 | AQ19: =SUM(AQ15:AQ18) -> 0
B21: =SalesProj!B25 -> Product Line 3
B22: Cost of Goods Sold | C22: =SalesProj!E32 -> 0 | D22: =SalesProj!F32 -> 0 | E22: =SalesProj!G32 -> 0 | F22: =SalesProj!H32 -> 0 | G22: =SalesProj!I32 -> 0 | H22: =SalesProj!J32 -> 0 | I22: =SalesProj!K32 -> 0 | J22: =SalesProj!L32 -> 0 | K22: =SalesProj!M32 -> 0 | L22: =SalesProj!N32 -> 0 | M22: =SalesProj!O32 -> 0 | N22: =SalesProj!P32 -> 0 | O22: =SUM(C22:N22) -> 0 | Q22: =SalesProj!S32 -> 0 | R22: =SalesProj!T32 -> 0 | S22: =SalesProj!U32 -> 0 | T22: =SalesProj!V32 -> 0 | U22: =SalesProj!W32 -> 0 | V22: =SalesProj!X32 -> 0 | W22: =SalesProj!Y32 -> 0 | X22: =SalesProj!Z32 -> 0 | Y22: =SalesProj!AA32 -> 0 | Z22: =SalesProj!AB32 -> 0 | AA22: =SalesProj!AC32 -> 0 | AB22: =SalesProj!AD32 -> 0 | AC22: =SUM(Q22:AB22) -> 0 | AE22: =SalesProj!AG32 -> 0 | AF22: =SalesProj!AH32 -> 0 | AG22: =SalesProj!AI32 -> 0 | AH22: =SalesProj!AJ32 -> 0 | AI22: =SUM(AE22:AH22) -> 0 | AK22: =SalesProj!AM32 -> 0 | AL22: =SalesProj!AN32 -> 0 | AM22: =SalesProj!AO32 -> 0 | AN22: =SalesProj!AP32 -> 0 | AO22: =SUM(AK22:AN22) -> 0 | AQ22: =SalesProj!AS32 -> 0
B23: Items/Parts 1 | C23: 0 | D23: =IF(C22=0,0,C23*(D22/C22)) -> 0 | E23: =IF(D22=0,0,D23*(E22/D22)) -> 0 | F23: =IF(E22=0,0,E23*(F22/E22)) -> 0 | G23: =IF(F22=0,0,F23*(G22/F22)) -> 0 | H23: =IF(G22=0,0,G23*(H22/G22)) -> 0 | I23: =IF(H22=0,0,H23*(I22/H22)) -> 0 | J23: =IF(I22=0,0,I23*(J22/I22)) -> 0 | K23: =IF(J22=0,0,J23*(K22/J22)) -> 0 | L23: =IF(K22=0,0,K23*(L22/K22)) -> 0 | M23: =IF(L22=0,0,L23*(M22/L22)) -> 0 | N23: =IF(M22=0,0,M23*(N22/M22)) -> 0 | O23: =SUM(C23:N23) -> 0 | Q23: =IF(N22=0,0,N23*(Q22/N22)) -> 0 | R23: =IF(Q22=0,0,Q23*(R22/Q22)) -> 0 | S23: =IF(R22=0,0,R23*(S22/R22)) -> 0 | T23: =IF(S22=0,0,S23*(T22/S22)) -> 0 | U23: =IF(T22=0,0,T23*(U22/T22)) -> 0 | V23: =IF(U22=0,0,U23*(V22/U22)) -> 0 | W23: =IF(V22=0,0,V23*(W22/V22)) -> 0 | X23: =IF(W22=0,0,W23*(X22/W22)) -> 0 | Y23: =IF(X22=0,0,X23*(Y22/X22)) -> 0 | Z23: =IF(Y22=0,0,Y23*(Z22/Y22)) -> 0 | AA23: =IF(Z22=0,0,Z23*(AA22/Z22)) -> 0 | AB23: =IF(AA22=0,0,AA23*(AB22/AA22)) -> 0 | AC23: =SUM(Q23:AB23) -> 0 | AE23: =IF(SUM(Z22:AB22)=0,0,SUM(Z23:AB23)*AE22/(SUM(Z22:AB22))) -> 0 | AF23: =IF(AE22=0,0,AE23*(AF22/AE22)) -> 0 | AG23: =IF(AF22=0,0,AF23*(AG22/AF22)) -> 0 | AH23: =IF(AG22=0,0,AG23*(AH22/AG22)) -> 0 | AI23: =SUM(AE23:AH23) -> 0 | AK23: =IF(AH22=0,0,AH23*(AK22/AH22)) -> 0 | AL23: =IF(AK22=0,0,AK23*(AL22/AK22)) -> 0 | AM23: =IF(AL22=0,0,AL23*(AM22/AL22)) -> 0 | AN23: =IF(AM22=0,0,AM23*(AN22/AM22)) -> 0 | AO23: =SUM(AK23:AN23) -> 0 | AQ23: =IF(AO22=0,0,AO23*(AQ22/AO22)) -> 0
B24: Items/Parts 2 | C24: 0 | D24: =IF(C22=0,0,C24*(D22/C22)) -> 0 | E24: =IF(D22=0,0,D24*(E22/D22)) -> 0 | F24: 0 | G24: 0 | H24: 0 | I24: 0 | J24: 0 | K24: 0 | L24: 0 | M24: 0 | N24: 0 | O24: =SUM(C24:N24) -> 0 | Q24: =IF(N22=0,0,N24*(Q22/N22)) -> 0 | R24: =IF(Q22=0,0,Q24*(R22/Q22)) -> 0 | S24: =IF(R22=0,0,R24*(S22/R22)) -> 0 | T24: 0 | U24: 0 | V24: 0 | W24: 0 | X24: 0 | Y24: 0 | Z24: 0 | AA24: 0 | AB24: 0 | AC24: =SUM(Q24:AB24) -> 0 | AE24: =IF(SUM(Z22:AB22)=0,0,SUM(Z24:AB24)*AE22/(SUM(Z22:AB22))) -> 0 | AF24: =IF(AE22=0,0,AE24*(AF22/AE22)) -> 0 | AG24: 0 | AH24: 0 | AI24: =SUM(AE24:AH24) -> 0 | AK24: =IF(AH22=0,0,AH24*(AK22/AH22)) -> 0 | AL24: =IF(AK22=0,0,AK24*(AL22/AK22)) -> 0 | AM24: 0 | AN24: 0 | AO24: =SUM(AK24:AN24) -> 0 | AQ24: =IF(AO22=0,0,AO24*(AQ22/AO22)) -> 0
B25: Items/Parts 3 | C25: 0 | D25: =IF(C22=0,0,C25*(D22/C22)) -> 0 | E25: =IF(D22=0,0,D25*(E22/D22)) -> 0 | F25: 0 | G25: 0 | H25: 0 | I25: 0 | J25: 0 | K25: 0 | L25: 0 | M25: 0 | N25: 0 | O25: =SUM(C25:N25) -> 0 | Q25: =IF(N22=0,0,N25*(Q22/N22)) -> 0 | R25: =IF(Q22=0,0,Q25*(R22/Q22)) -> 0 | S25: =IF(R22=0,0,R25*(S22/R22)) -> 0 | T25: 0 | U25: 0 | V25: 0 | W25: 0 | X25: 0 | Y25: 0 | Z25: 0 | AA25: 0 | AB25: 0 | AC25: =SUM(Q25:AB25) -> 0 | AE25: =IF(SUM(Z22:AB22)=0,0,SUM(Z25:AB25)*AE22/(SUM(Z22:AB22))) -> 0 | AF25: =IF(AE22=0,0,AE25*(AF22/AE22)) -> 0 | AG25: 0 | AH25: 0 | AI25: =SUM(AE25:AH25) -> 0 | AK25: =IF(AH22=0,0,AH25*(AK22/AH22)) -> 0 | AL25: =IF(AK22=0,0,AK25*(AL22/AK22)) -> 0 | AM25: 0 | AN25: 0 | AO25: =SUM(AK25:AN25) -> 0 | AQ25: =IF(AO22=0,0,AO25*(AQ22/AO22)) -> 0
B26: Items/Parts 4 | C26: 0 | D26: =IF(C22=0,0,C26*(D22/C22)) -> 0 | E26: =IF(D22=0,0,D26*(E22/D22)) -> 0 | F26: 0 | G26: 0 | H26: 0 | I26: 0 | J26: 0 | K26: 0 | L26: 0 | M26: 0 | N26: 0 | O26: =SUM(C26:N26) -> 0 | Q26: =IF(N22=0,0,N26*(Q22/N22)) -> 0 | R26: =IF(Q22=0,0,Q26*(R22/Q22)) -> 0 | S26: =IF(R22=0,0,R26*(S22/R22)) -> 0 | T26: 0 | U26: 0 | V26: 0 | W26: 0 | X26: 0 | Y26: 0 | Z26: 0 | AA26: 0 | AB26: 0 | AC26: =SUM(Q26:AB26) -> 0 | AE26: =IF(SUM(Z22:AB22)=0,0,SUM(Z26:AB26)*AE22/(SUM(Z22:AB22))) -> 0 | AF26: =IF(AE22=0,0,AE26*(AF22/AE22)) -> 0 | AG26: 0 | AH26: 0 | AI26: =SUM(AE26:AH26) -> 0 | AK26: =IF(AH22=0,0,AH26*(AK22/AH22)) -> 0 | AL26: =IF(AK22=0,0,AK26*(AL22/AK22)) -> 0 | AM26: 0 | AN26: 0 | AO26: =SUM(AK26:AN26) -> 0 | AQ26: =IF(AO22=0,0,AO26*(AQ22/AO22)) -> 0
B27: Total Inventory Expense | C27: =SUM(C23:C26) -> 0 | D27: 0 | E27: 0 | F27: 0 | G27: 0 | H27: 0 | I27: 0 | J27: 0 | K27: 0 | L27: 0 | M27: 0 | N27: 0 | O27: 0 | Q27: =SUM(Q23:Q26) -> 0 | R27: 0 | S27: 0 | T27: 0 | U27: 0 | V27: 0 | W27: 0 | X27: 0 | Y27: 0 | Z27: 0 | AA27: 0 | AB27: 0 | AC27: 0 | AE27: =SUM(AE23:AE26) -> 0 | AF27: =SUM(AF23:AF26) -> 0 | AG27: =SUM(AG23:AG26) -> 0 | AH27: =SUM(AH23:AH26) -> 0 | AI27: =SUM(AI23:AI26) -> 0 | AK27: =SUM(AK23:AK26) -> 0 | AL27: =SUM(AL23:AL26) -> 0 | AM27: =SUM(AM23:AM26) -> 0 | AN27: =SUM(AN23:AN26) -> 0 | AO27: =SUM(AO23:AO26) -> 0 | AQ27: =SUM(AQ23:AQ26) -> 0
B29: =SalesProj!B35 -> Product Line 4
B30: Cost of Goods Sold | C30: =SalesProj!E42 -> 0 | D30: =SalesProj!F42 -> 0 | E30: =SalesProj!G42 -> 0 | F30: =SalesProj!H42 -> 0 | G30: =SalesProj!I42 -> 0 | H30: =SalesProj!J42 -> 0 | I30: =SalesProj!K42 -> 0 | J30: =SalesProj!L42 -> 0 | K30: =SalesProj!M42 -> 0 | L30: =SalesProj!N42 -> 0 | M30: =SalesProj!O42 -> 0 | N30: =SalesProj!P42 -> 0 | O30: =SUM(C30:N30) -> 0 | Q30: =SalesProj!S42 -> 0 | R30: =SalesProj!T42 -> 0 | S30: =SalesProj!U42 -> 0 | T30: =SalesProj!V42 -> 0 | U30: =SalesProj!W42 -> 0 | V30: =SalesProj!X42 -> 0 | W30: =SalesProj!Y42 -> 0 | X30: =SalesProj!Z42 -> 0 | Y30: =SalesProj!AA42 -> 0 | Z30: =SalesProj!AB42 -> 0 | AA30: =SalesProj!AC42 -> 0 | AB30: =SalesProj!AD42 -> 0 | AC30: =SUM(Q30:AB30) -> 0 | AE30: =SalesProj!AG42 -> 0 | AF30: =SalesProj!AH42 -> 0 | AG30: =SalesProj!AI42 -> 0 | AH30: =SalesProj!AJ42 -> 0 | AI30: =SUM(AE30:AH30) -> 0 | AK30: =SalesProj!AM42 -> 0 | AL30: =SalesProj!AN42 -> 0 | AM30: =SalesProj!AO42 -> 0 | AN30: =SalesProj!AP42 -> 0 | AO30: =SUM(AK30:AN30) -> 0 | AQ30: =SalesProj!AS42 -> 0
B31: Items/Parts 1 | C31: 0 | D31: =IF(C30=0,0,C31*(D30/C30)) -> 0 | E31: =IF(D30=0,0,D31*(E30/D30)) -> 0 | F31: =IF(E30=0,0,E31*(F30/E30)) -> 0 | G31: =IF(F30=0,0,F31*(G30/F30)) -> 0 | H31: =IF(G30=0,0,G31*(H30/G30)) -> 0 | I31: =IF(H30=0,0,H31*(I30/H30)) -> 0 | J31: =IF(I30=0,0,I31*(J30/I30)) -> 0 | K31: =IF(J30=0,0,J31*(K30/J30)) -> 0 | L31: =IF(K30=0,0,K31*(L30/K30)) -> 0 | M31: =IF(L30=0,0,L31*(M30/L30)) -> 0 | N31: =IF(M30=0,0,M31*(N30/M30)) -> 0 | O31: =SUM(C31:N31) -> 0 | Q31: =IF(N30=0,0,N31*(Q30/N30)) -> 0 | R31: =IF(Q30=0,0,Q31*(R30/Q30)) -> 0 | S31: =IF(R30=0,0,R31*(S30/R30)) -> 0 | T31: =IF(S30=0,0,S31*(T30/S30)) -> 0 | U31: =IF(T30=0,0,T31*(U30/T30)) -> 0 | V31: =IF(U30=0,0,U31*(V30/U30)) -> 0 | W31: =IF(V30=0,0,V31*(W30/V30)) -> 0 | X31: =IF(W30=0,0,W31*(X30/W30)) -> 0 | Y31: =IF(X30=0,0,X31*(Y30/X30)) -> 0 | Z31: =IF(Y30=0,0,Y31*(Z30/Y30)) -> 0 | AA31: =IF(Z30=0,0,Z31*(AA30/Z30)) -> 0 | AB31: =IF(AA30=0,0,AA31*(AB30/AA30)) -> 0 | AC31: =SUM(Q31:AB31) -> 0 | AE31: =IF(SUM(Z30:AB30)=0,0,SUM(Z31:AB31)*AE30/(SUM(Z30:AB30))) -> 0 | AF31: =IF(AE30=0,0,AE31*(AF30/AE30)) -> 0 | AG31: =IF(AF30=0,0,AF31*(AG30/AF30)) -> 0 | AH31: =IF(AG30=0,0,AG31*(AH30/AG30)) -> 0 | AI31: =SUM(AE31:AH31) -> 0 | AK31: =IF(AH30=0,0,AH31*(AK30/AH30)) -> 0 | AL31: =IF(AK30=0,0,AK31*(AL30/AK30)) -> 0 | AM31: =IF(AL30=0,0,AL31*(AM30/AL30)) -> 0 | AN31: =IF(AM30=0,0,AM31*(AN30/AM30)) -> 0 | AO31: =SUM(AK31:AN31) -> 0 | AQ31: =IF(AO30=0,0,AO31*(AQ30/AO30)) -> 0
B32: Items/Parts 2 | C32: 0 | D32: =IF(C30=0,0,C32*(D30/C30)) -> 0 | E32: =IF(D30=0,0,D32*(E30/D30)) -> 0 | F32: 0 | G32: 0 | H32: 0 | I32: 0 | J32: 0 | K32: 0 | L32: 0 | M32: 0 | N32: 0 | O32: =SUM(C32:N32) -> 0 | Q32: =IF(N30=0,0,N32*(Q30/N30)) -> 0 | R32: =IF(Q30=0,0,Q32*(R30/Q30)) -> 0 | S32: =IF(R30=0,0,R32*(S30/R30)) -> 0 | T32: 0 | U32: 0 | V32: 0 | W32: 0 | X32: 0 | Y32: 0 | Z32: 0 | AA32: 0 | AB32: 0 | AC32: =SUM(Q32:AB32) -> 0 | AE32: =IF(SUM(Z30:AB30)=0,0,SUM(Z32:AB32)*AE30/(SUM(Z30:AB30))) -> 0 | AF32: =IF(AE30=0,0,AE32*(AF30/AE30)) -> 0 | AG32: 0 | AH32: 0 | AI32: =SUM(AE32:AH32) -> 0 | AK32: =IF(AH30=0,0,AH32*(AK30/AH30)) -> 0 | AL32: =IF(AK30=0,0,AK32*(AL30/AK30)) -> 0 | AM32: 0 | AN32: 0 | AO32: =SUM(AK32:AN32) -> 0 | AQ32: =IF(AO30=0,0,AO32*(AQ30/AO30)) -> 0
B33: Items/Parts 3 | C33: 0 | D33: =IF(C30=0,0,C33*(D30/C30)) -> 0 | E33: =IF(D30=0,0,D33*(E30/D30)) -> 0 | F33: 0 | G33: 0 | H33: 0 | I33: 0 | J33: 0 | K33: 0 | L33: 0 | M33: 0 | N33: 0 | O33: =SUM(C33:N33) -> 0 | Q33: =IF(N30=0,0,N33*(Q30/N30)) -> 0 | R33: =IF(Q30=0,0,Q33*(R30/Q30)) -> 0 | S33: =IF(R30=0,0,R33*(S30/R30)) -> 0 | T33: 0 | U33: 0 | V33: 0 | W33: 0 | X33: 0 | Y33: 0 | Z33: 0 | AA33: 0 | AB33: 0 | AC33: =SUM(Q33:AB33) -> 0 | AE33: =IF(SUM(Z30:AB30)=0,0,SUM(Z33:AB33)*AE30/(SUM(Z30:AB30))) -> 0 | AF33: =IF(AE30=0,0,AE33*(AF30/AE30)) -> 0 | AG33: 0 | AH33: 0 | AI33: =SUM(AE33:AH33) -> 0 | AK33: =IF(AH30=0,0,AH33*(AK30/AH30)) -> 0 | AL33: =IF(AK30=0,0,AK33*(AL30/AK30)) -> 0 | AM33: 0 | AN33: 0 | AO33: =SUM(AK33:AN33) -> 0 | AQ33: =IF(AO30=0,0,AO33*(AQ30/AO30)) -> 0
B34: Items/Parts 4 | C34: 0 | D34: =IF(C30=0,0,C34*(D30/C30)) -> 0 | E34: =IF(D30=0,0,D34*(E30/D30)) -> 0 | F34: 0 | G34: 0 | H34: 0 | I34: 0 | J34: 0 | K34: 0 | L34: 0 | M34: 0 | N34: 0 | O34: =SUM(C34:N34) -> 0 | Q34: =IF(N30=0,0,N34*(Q30/N30)) -> 0 | R34: =IF(Q30=0,0,Q34*(R30/Q30)) -> 0 | S34: =IF(R30=0,0,R34*(S30/R30)) -> 0 | T34: 0 | U34: 0 | V34: 0 | W34: 0 | X34: 0 | Y34: 0 | Z34: 0 | AA34: 0 | AB34: 0 | AC34: =SUM(Q34:AB34) -> 0 | AE34: =IF(SUM(Z30:AB30)=0,0,SUM(Z34:AB34)*AE30/(SUM(Z30:AB30))) -> 0 | AF34: =IF(AE30=0,0,AE34*(AF30/AE30)) -> 0 | AG34: 0 | AH34: 0 | AI34: =SUM(AE34:AH34) -> 0 | AK34: =IF(AH30=0,0,AH34*(AK30/AH30)) -> 0 | AL34: =IF(AK30=0,0,AK34*(AL30/AK30)) -> 0 | AM34: 0 | AN34: 0 | AO34: =SUM(AK34:AN34) -> 0 | AQ34: =IF(AO30=0,0,AO34*(AQ30/AO30)) -> 0
B35: Total Inventory Expense | C35: =SUM(C31:C34) -> 0 | D35: 0 | E35: 0 | F35: 0 | G35: 0 | H35: 0 | I35: 0 | J35: 0 | K35: 0 | L35: 0 | M35: 0 | N35: 0 | O35: 0 | Q35: =SUM(Q31:Q34) -> 0 | R35: 0 | S35: 0 | T35: 0 | U35: 0 | V35: 0 | W35: 0 | X35: 0 | Y35: 0 | Z35: 0 | AA35: 0 | AB35: 0 | AC35: 0 | AE35: =SUM(AE31:AE34) -> 0 | AF35: =SUM(AF31:AF34) -> 0 | AG35: =SUM(AG31:AG34) -> 0 | AH35: =SUM(AH31:AH34) -> 0 | AI35: =SUM(AI31:AI34) -> 0 | AK35: =SUM(AK31:AK34) -> 0 | AL35: =SUM(AL31:AL34) -> 0 | AM35: =SUM(AM31:AM34) -> 0 | AN35: =SUM(AN31:AN34) -> 0 | AO35: =SUM(AO31:AO34) -> 0 | AQ35: =SUM(AQ31:AQ34) -> 0
B37: =SalesProj!B45 -> Product Line 5
B38: Cost of Goods Sold | C38: =SalesProj!E52 -> 0 | D38: =SalesProj!F52 -> 0 | E38: =SalesProj!G52 -> 0 | F38: =SalesProj!H52 -> 0 | G38: =SalesProj!I52 -> 0 | H38: =SalesProj!J52 -> 0 | I38: =SalesProj!K52 -> 0 | J38: =SalesProj!L52 -> 0 | K38: =SalesProj!M52 -> 0 | L38: =SalesProj!N52 -> 0 | M38: =SalesProj!O52 -> 0 | N38: =SalesProj!P52 -> 0 | O38: =SUM(C38:N38) -> 0 | Q38: =SalesProj!S52 -> 0 | R38: =SalesProj!T52 -> 0 | S38: =SalesProj!U52 -> 0 | T38: =SalesProj!V52 -> 0 | U38: =SalesProj!W52 -> 0 | V38: =SalesProj!X52 -> 0 | W38: =SalesProj!Y52 -> 0 | X38: =SalesProj!Z52 -> 0 | Y38: =SalesProj!AA52 -> 0 | Z38: =SalesProj!AB52 -> 0 | AA38: =SalesProj!AC52 -> 0 | AB38: =SalesProj!AD52 -> 0 | AC38: =SUM(Q38:AB38) -> 0 | AE38: =SalesProj!AG52 -> 0 | AF38: =SalesProj!AH52 -> 0 | AG38: =SalesProj!AI52 -> 0 | AH38: =SalesProj!AJ52 -> 0 | AI38: =SUM(AE38:AH38) -> 0 | AK38: =SalesProj!AM52 -> 0 | AL38: =SalesProj!AN52 -> 0 | AM38: =SalesProj!AO52 -> 0 | AN38: =SalesProj!AP52 -> 0 | AO38: =SUM(AK38:AN38) -> 0 | AQ38: =SalesProj!AS52 -> 0
B39: Items/Parts 1 | C39: 0 | D39: =IF(C38=0,0,C39*(D38/C38)) -> 0 | E39: =IF(D38=0,0,D39*(E38/D38)) -> 0 | F39: =IF(E38=0,0,E39*(F38/E38)) -> 0 | G39: =IF(F38=0,0,F39*(G38/F38)) -> 0 | H39: =IF(G38=0,0,G39*(H38/G38)) -> 0 | I39: =IF(H38=0,0,H39*(I38/H38)) -> 0 | J39: =IF(I38=0,0,I39*(J38/I38)) -> 0 | K39: =IF(J38=0,0,J39*(K38/J38)) -> 0 | L39: =IF(K38=0,0,K39*(L38/K38)) -> 0 | M39: =IF(L38=0,0,L39*(M38/L38)) -> 0 | N39: =IF(M38=0,0,M39*(N38/M38)) -> 0 | O39: =SUM(C39:N39) -> 0 | Q39: =IF(N38=0,0,N39*(Q38/N38)) -> 0 | R39: =IF(Q38=0,0,Q39*(R38/Q38)) -> 0 | S39: =IF(R38=0,0,R39*(S38/R38)) -> 0 | T39: =IF(S38=0,0,S39*(T38/S38)) -> 0 | U39: =IF(T38=0,0,T39*(U38/T38)) -> 0 | V39: =IF(U38=0,0,U39*(V38/U38)) -> 0 | W39: =IF(V38=0,0,V39*(W38/V38)) -> 0 | X39: =IF(W38=0,0,W39*(X38/W38)) -> 0 | Y39: =IF(X38=0,0,X39*(Y38/X38)) -> 0 | Z39: =IF(Y38=0,0,Y39*(Z38/Y38)) -> 0 | AA39: =IF(Z38=0,0,Z39*(AA38/Z38)) -> 0 | AB39: =IF(AA38=0,0,AA39*(AB38/AA38)) -> 0 | AC39: =SUM(Q39:AB39) -> 0 | AE39: =IF(SUM(Z38:AB38)=0,0,SUM(Z39:AB39)*AE38/(SUM(Z38:AB38))) -> 0 | AF39: =IF(AE38=0,0,AE39*(AF38/AE38)) -> 0 | AG39: =IF(AF38=0,0,AF39*(AG38/AF38)) -> 0 | AH39: =IF(AG38=0,0,AG39*(AH38/AG38)) -> 0 | AI39: =SUM(AE39:AH39) -> 0 | AK39: =IF(AH38=0,0,AH39*(AK38/AH38)) -> 0 | AL39: =IF(AK38=0,0,AK39*(AL38/AK38)) -> 0 | AM39: =IF(AL38=0,0,AL39*(AM38/AL38)) -> 0 | AN39: =IF(AM38=0,0,AM39*(AN38/AM38)) -> 0 | AO39: =SUM(AK39:AN39) -> 0 | AQ39: =IF(AO38=0,0,AO39*(AQ38/AO38)) -> 0
B40: Items/Parts 2 | C40: 0 | D40: =IF(C38=0,0,C40*(D38/C38)) -> 0 | E40: =IF(D38=0,0,D40*(E38/D38)) -> 0 | F40: 0 | G40: 0 | H40: 0 | I40: 0 | J40: 0 | K40: 0 | L40: 0 | M40: 0 | N40: 0 | O40: =SUM(C40:N40) -> 0 | Q40: =IF(N38=0,0,N40*(Q38/N38)) -> 0 | R40: =IF(Q38=0,0,Q40*(R38/Q38)) -> 0 | S40: =IF(R38=0,0,R40*(S38/R38)) -> 0 | T40: 0 | U40: 0 | V40: 0 | W40: 0 | X40: 0 | Y40: 0 | Z40: 0 | AA40: 0 | AB40: 0 | AC40: =SUM(Q40:AB40) -> 0 | AE40: =IF(SUM(Z38:AB38)=0,0,SUM(Z40:AB40)*AE38/(SUM(Z38:AB38))) -> 0 | AF40: =IF(AE38=0,0,AE40*(AF38/AE38)) -> 0 | AG40: 0 | AH40: 0 | AI40: =SUM(AE40:AH40) -> 0 | AK40: =IF(AH38=0,0,AH40*(AK38/AH38)) -> 0 | AL40: =IF(AK38=0,0,AK40*(AL38/AK38)) -> 0 | AM40: 0 | AN40: 0 | AO40: =SUM(AK40:AN40) -> 0 | AQ40: =IF(AO38=0,0,AO40*(AQ38/AO38)) -> 0
B41: Items/Parts 3 | C41: 0 | D41: =IF(C38=0,0,C41*(D38/C38)) -> 0 | E41: =IF(D38=0,0,D41*(E38/D38)) -> 0 | F41: 0 | G41: 0 | H41: 0 | I41: 0 | J41: 0 | K41: 0 | L41: 0 | M41: 0 | N41: 0 | O41: =SUM(C41:N41) -> 0 | Q41: =IF(N38=0,0,N41*(Q38/N38)) -> 0 | R41: =IF(Q38=0,0,Q41*(R38/Q38)) -> 0 | S41: =IF(R38=0,0,R41*(S38/R38)) -> 0 | T41: 0 | U41: 0 | V41: 0 | W41: 0 | X41: 0 | Y41: 0 | Z41: 0 | AA41: 0 | AB41: 0 | AC41: =SUM(Q41:AB41) -> 0 | AE41: =IF(SUM(Z38:AB38)=0,0,SUM(Z41:AB41)*AE38/(SUM(Z38:AB38))) -> 0 | AF41: =IF(AE38=0,0,AE41*(AF38/AE38)) -> 0 | AG41: 0 | AH41: 0 | AI41: =SUM(AE41:AH41) -> 0 | AK41: =IF(AH38=0,0,AH41*(AK38/AH38)) -> 0 | AL41: =IF(AK38=0,0,AK41*(AL38/AK38)) -> 0 | AM41: 0 | AN41: 0 | AO41: =SUM(AK41:AN41) -> 0 | AQ41: =IF(AO38=0,0,AO41*(AQ38/AO38)) -> 0
B42: Items/Parts 4 | C42: 0 | D42: =IF(C38=0,0,C42*(D38/C38)) -> 0 | E42: =IF(D38=0,0,D42*(E38/D38)) -> 0 | F42: 0 | G42: 0 | H42: 0 | I42: 0 | J42: 0 | K42: 0 | L42: 0 | M42: 0 | N42: 0 | O42: =SUM(C42:N42) -> 0 | Q42: =IF(N38=0,0,N42*(Q38/N38)) -> 0 | R42: =IF(Q38=0,0,Q42*(R38/Q38)) -> 0 | S42: =IF(R38=0,0,R42*(S38/R38)) -> 0 | T42: 0 | U42: 0 | V42: 0 | W42: 0 | X42: 0 | Y42: 0 | Z42: 0 | AA42: 0 | AB42: 0 | AC42: =SUM(Q42:AB42) -> 0 | AE42: =IF(SUM(Z38:AB38)=0,0,SUM(Z42:AB42)*AE38/(SUM(Z38:AB38))) -> 0 | AF42: =IF(AE38=0,0,AE42*(AF38/AE38)) -> 0 | AG42: 0 | AH42: 0 | AI42: =SUM(AE42:AH42) -> 0 | AK42: =IF(AH38=0,0,AH42*(AK38/AH38)) -> 0 | AL42: =IF(AK38=0,0,AK42*(AL38/AK38)) -> 0 | AM42: 0 | AN42: 0 | AO42: =SUM(AK42:AN42) -> 0 | AQ42: =IF(AO38=0,0,AO42*(AQ38/AO38)) -> 0
B43: Total Inventory Expense | C43: =SUM(C39:C42) -> 0 | D43: 0 | E43: 0 | F43: 0 | G43: 0 | H43: 0 | I43: 0 | J43: 0 | K43: 0 | L43: 0 | M43: 0 | N43: 0 | O43: 0 | Q43: =SUM(Q39:Q42) -> 0 | R43: 0 | S43: 0 | T43: 0 | U43: 0 | V43: 0 | W43: 0 | X43: 0 | Y43: 0 | Z43: 0 | AA43: 0 | AB43: 0 | AC43: 0 | AE43: =SUM(AE39:AE42) -> 0 | AF43: =SUM(AF39:AF42) -> 0 | AG43: =SUM(AG39:AG42) -> 0 | AH43: =SUM(AH39:AH42) -> 0 | AI43: =SUM(AI39:AI42) -> 0 | AK43: =SUM(AK39:AK42) -> 0 | AL43: =SUM(AL39:AL42) -> 0 | AM43: =SUM(AM39:AM42) -> 0 | AN43: =SUM(AN39:AN42) -> 0 | AO43: =SUM(AO39:AO42) -> 0 | AQ43: =SUM(AQ39:AQ42) -> 0
B45: =SalesProj!B55 -> Product Line 6
B46: Cost of Goods Sold | C46: =SalesProj!E62 -> 0 | D46: =SalesProj!F62 -> 0 | E46: =SalesProj!G62 -> 0 | F46: =SalesProj!H62 -> 0 | G46: =SalesProj!I62 -> 0 | H46: =SalesProj!J62 -> 0 | I46: =SalesProj!K62 -> 0 | J46: =SalesProj!L62 -> 0 | K46: =SalesProj!M62 -> 0 | L46: =SalesProj!N62 -> 0 | M46: =SalesProj!O62 -> 0 | N46: =SalesProj!P62 -> 0 | O46: =SUM(C46:N46) -> 0 | Q46: =SalesProj!S62 -> 0 | R46: =SalesProj!T62 -> 0 | S46: =SalesProj!U62 -> 0 | T46: =SalesProj!V62 -> 0 | U46: =SalesProj!W62 -> 0 | V46: =SalesProj!X62 -> 0 | W46: =SalesProj!Y62 -> 0 | X46: =SalesProj!Z62 -> 0 | Y46: =SalesProj!AA62 -> 0 | Z46: =SalesProj!AB62 -> 0 | AA46: =SalesProj!AC62 -> 0 | AB46: =SalesProj!AD62 -> 0 | AC46: =SUM(Q46:AB46) -> 0 | AE46: =SalesProj!AG62 -> 0 | AF46: =SalesProj!AH62 -> 0 | AG46: =SalesProj!AI62 -> 0 | AH46: =SalesProj!AJ62 -> 0 | AI46: =SUM(AE46:AH46) -> 0 | AK46: =SalesProj!AM62 -> 0 | AL46: =SalesProj!AN62 -> 0 | AM46: =SalesProj!AO62 -> 0 | AN46: =SalesProj!AP62 -> 0 | AO46: =SUM(AK46:AN46) -> 0 | AQ46: =SalesProj!AS62 -> 0
B47: Items/Parts 1 | C47: 0 | D47: =IF(C46=0,0,C47*(D46/C46)) -> 0 | E47: =IF(D46=0,0,D47*(E46/D46)) -> 0 | F47: =IF(E46=0,0,E47*(F46/E46)) -> 0 | G47: =IF(F46=0,0,F47*(G46/F46)) -> 0 | H47: =IF(G46=0,0,G47*(H46/G46)) -> 0 | I47: =IF(H46=0,0,H47*(I46/H46)) -> 0 | J47: =IF(I46=0,0,I47*(J46/I46)) -> 0 | K47: =IF(J46=0,0,J47*(K46/J46)) -> 0 | L47: =IF(K46=0,0,K47*(L46/K46)) -> 0 | M47: =IF(L46=0,0,L47*(M46/L46)) -> 0 | N47: =IF(M46=0,0,M47*(N46/M46)) -> 0 | O47: =SUM(C47:N47) -> 0 | Q47: =IF(N46=0,0,N47*(Q46/N46)) -> 0 | R47: =IF(Q46=0,0,Q47*(R46/Q46)) -> 0 | S47: =IF(R46=0,0,R47*(S46/R46)) -> 0 | T47: =IF(S46=0,0,S47*(T46/S46)) -> 0 | U47: =IF(T46=0,0,T47*(U46/T46)) -> 0 | V47: =IF(U46=0,0,U47*(V46/U46)) -> 0 | W47: =IF(V46=0,0,V47*(W46/V46)) -> 0 | X47: =IF(W46=0,0,W47*(X46/W46)) -> 0 | Y47: =IF(X46=0,0,X47*(Y46/X46)) -> 0 | Z47: =IF(Y46=0,0,Y47*(Z46/Y46)) -> 0 | AA47: =IF(Z46=0,0,Z47*(AA46/Z46)) -> 0 | AB47: =IF(AA46=0,0,AA47*(AB46/AA46)) -> 0 | AC47: =SUM(Q47:AB47) -> 0 | AE47: =IF(SUM(Z46:AB46)=0,0,SUM(Z47:AB47)*AE46/(SUM(Z46:AB46))) -> 0 | AF47: =IF(AE46=0,0,AE47*(AF46/AE46)) -> 0 | AG47: =IF(AF46=0,0,AF47*(AG46/AF46)) -> 0 | AH47: =IF(AG46=0,0,AG47*(AH46/AG46)) -> 0 | AI47: =SUM(AE47:AH47) -> 0 | AK47: =IF(AH46=0,0,AH47*(AK46/AH46)) -> 0 | AL47: =IF(AK46=0,0,AK47*(AL46/AK46)) -> 0 | AM47: =IF(AL46=0,0,AL47*(AM46/AL46)) -> 0 | AN47: =IF(AM46=0,0,AM47*(AN46/AM46)) -> 0 | AO47: =SUM(AK47:AN47) -> 0 | AQ47: =IF(AO46=0,0,AO47*(AQ46/AO46)) -> 0
B48: Items/Parts 2 | C48: 0 | D48: =IF(C46=0,0,C48*(D46/C46)) -> 0 | E48: =IF(D46=0,0,D48*(E46/D46)) -> 0 | F48: 0 | G48: 0 | H48: 0 | I48: 0 | J48: 0 | K48: 0 | L48: 0 | M48: 0 | N48: 0 | O48: =SUM(C48:N48) -> 0 | Q48: =IF(N46=0,0,N48*(Q46/N46)) -> 0 | R48: =IF(Q46=0,0,Q48*(R46/Q46)) -> 0 | S48: =IF(R46=0,0,R48*(S46/R46)) -> 0 | T48: 0 | U48: 0 | V48: 0 | W48: 0 | X48: 0 | Y48: 0 | Z48: 0 | AA48: 0 | AB48: 0 | AC48: =SUM(Q48:AB48) -> 0 | AE48: =IF(SUM(Z46:AB46)=0,0,SUM(Z48:AB48)*AE46/(SUM(Z46:AB46))) -> 0 | AF48: =IF(AE46=0,0,AE48*(AF46/AE46)) -> 0 | AG48: 0 | AH48: 0 | AI48: =SUM(AE48:AH48) -> 0 | AK48: =IF(AH46=0,0,AH48*(AK46/AH46)) -> 0 | AL48: =IF(AK46=0,0,AK48*(AL46/AK46)) -> 0 | AM48: 0 | AN48: 0 | AO48: =SUM(AK48:AN48) -> 0 | AQ48: =IF(AO46=0,0,AO48*(AQ46/AO46)) -> 0
B49: Items/Parts 3 | C49: 0 | D49: =IF(C46=0,0,C49*(D46/C46)) -> 0 | E49: =IF(D46=0,0,D49*(E46/D46)) -> 0 | F49: 0 | G49: 0 | H49: 0 | I49: 0 | J49: 0 | K49: 0 | L49: 0 | M49: 0 | N49: 0 | O49: =SUM(C49:N49) -> 0 | Q49: =IF(N46=0,0,N49*(Q46/N46)) -> 0 | R49: =IF(Q46=0,0,Q49*(R46/Q46)) -> 0 | S49: =IF(R46=0,0,R49*(S46/R46)) -> 0 | T49: 0 | U49: 0 | V49: 0 | W49: 0 | X49: 0 | Y49: 0 | Z49: 0 | AA49: 0 | AB49: 0 | AC49: =SUM(Q49:AB49) -> 0 | AE49: =IF(SUM(Z46:AB46)=0,0,SUM(Z49:AB49)*AE46/(SUM(Z46:AB46))) -> 0 | AF49: =IF(AE46=0,0,AE49*(AF46/AE46)) -> 0 | AG49: 0 | AH49: 0 | AI49: =SUM(AE49:AH49) -> 0 | AK49: =IF(AH46=0,0,AH49*(AK46/AH46)) -> 0 | AL49: =IF(AK46=0,0,AK49*(AL46/AK46)) -> 0 | AM49: 0 | AN49: 0 | AO49: =SUM(AK49:AN49) -> 0 | AQ49: =IF(AO46=0,0,AO49*(AQ46/AO46)) -> 0
B50: Items/Parts 4 | C50: 0 | D50: =IF(C46=0,0,C50*(D46/C46)) -> 0 | E50: =IF(D46=0,0,D50*(E46/D46)) -> 0 | F50: 0 | G50: 0 | H50: 0 | I50: 0 | J50: 0 | K50: 0 | L50: 0 | M50: 0 | N50: 0 | O50: =SUM(C50:N50) -> 0 | Q50: =IF(N46=0,0,N50*(Q46/N46)) -> 0 | R50: =IF(Q46=0,0,Q50*(R46/Q46)) -> 0 | S50: =IF(R46=0,0,R50*(S46/R46)) -> 0 | T50: 0 | U50: 0 | V50: 0 | W50: 0 | X50: 0 | Y50: 0 | Z50: 0 | AA50: 0 | AB50: 0 | AC50: =SUM(Q50:AB50) -> 0 | AE50: =IF(SUM(Z46:AB46)=0,0,SUM(Z50:AB50)*AE46/(SUM(Z46:AB46))) -> 0 | AF50: =IF(AE46=0,0,AE50*(AF46/AE46)) -> 0 | AG50: 0 | AH50: 0 | AI50: =SUM(AE50:AH50) -> 0 | AK50: =IF(AH46=0,0,AH50*(AK46/AH46)) -> 0 | AL50: =IF(AK46=0,0,AK50*(AL46/AK46)) -> 0 | AM50: 0 | AN50: 0 | AO50: =SUM(AK50:AN50) -> 0 | AQ50: =IF(AO46=0,0,AO50*(AQ46/AO46)) -> 0
B51: Total Inventory Expense | C51: =SUM(C47:C50) -> 0 | D51: 0 | E51: 0 | F51: 0 | G51: 0 | H51: 0 | I51: 0 | J51: 0 | K51: 0 | L51: 0 | M51: 0 | N51: 0 | O51: 0 | Q51: =SUM(Q47:Q50) -> 0 | R51: 0 | S51: 0 | T51: 0 | U51: 0 | V51: 0 | W51: 0 | X51: 0 | Y51: 0 | Z51: 0 | AA51: 0 | AB51: 0 | AC51: 0 | AE51: =SUM(AE47:AE50) -> 0 | AF51: =SUM(AF47:AF50) -> 0 | AG51: =SUM(AG47:AG50) -> 0 | AH51: =SUM(AH47:AH50) -> 0 | AI51: =SUM(AI47:AI50) -> 0 | AK51: =SUM(AK47:AK50) -> 0 | AL51: =SUM(AL47:AL50) -> 0 | AM51: =SUM(AM47:AM50) -> 0 | AN51: =SUM(AN47:AN50) -> 0 | AO51: =SUM(AO47:AO50) -> 0 | AQ51: =SUM(AQ47:AQ50) -> 0
B53: =SalesProj!B65 -> Product Line 7
B54: Cost of Goods Sold | C54: =SalesProj!E72 -> 0 | D54: =SalesProj!F72 -> 0 | E54: =SalesProj!G72 -> 0 | F54: =SalesProj!H72 -> 0 | G54: =SalesProj!I72 -> 0 | H54: =SalesProj!J72 -> 0 | I54: =SalesProj!K72 -> 0 | J54: =SalesProj!L72 -> 0 | K54: =SalesProj!M72 -> 0 | L54: =SalesProj!N72 -> 0 | M54: =SalesProj!O72 -> 0 | N54: =SalesProj!P72 -> 0 | O54: =SUM(C54:N54) -> 0 | Q54: =SalesProj!S72 -> 0 | R54: =SalesProj!T72 -> 0 | S54: =SalesProj!U72 -> 0 | T54: =SalesProj!V72 -> 0 | U54: =SalesProj!W72 -> 0 | V54: =SalesProj!X72 -> 0 | W54: =SalesProj!Y72 -> 0 | X54: =SalesProj!Z72 -> 0 | Y54: =SalesProj!AA72 -> 0 | Z54: =SalesProj!AB72 -> 0 | AA54: =SalesProj!AC72 -> 0 | AB54: =SalesProj!AD72 -> 0 | AC54: =SUM(Q54:AB54) -> 0 | AE54: =SalesProj!AG72 -> 0 | AF54: =SalesProj!AH72 -> 0 | AG54: =SalesProj!AI72 -> 0 | AH54: =SalesProj!AJ72 -> 0 | AI54: =SUM(AE54:AH54) -> 0 | AK54: =SalesProj!AM72 -> 0 | AL54: =SalesProj!AN72 -> 0 | AM54: =SalesProj!AO72 -> 0 | AN54: =SalesProj!AP72 -> 0 | AO54: =SUM(AK54:AN54) -> 0 | AQ54: =SalesProj!AS72 -> 0
B55: Items/Parts 1 | C55: 0 | D55: =IF(C54=0,0,C55*(D54/C54)) -> 0 | E55: =IF(D54=0,0,D55*(E54/D54)) -> 0 | F55: =IF(E54=0,0,E55*(F54/E54)) -> 0 | G55: =IF(F54=0,0,F55*(G54/F54)) -> 0 | H55: =IF(G54=0,0,G55*(H54/G54)) -> 0 | I55: =IF(H54=0,0,H55*(I54/H54)) -> 0 | J55: =IF(I54=0,0,I55*(J54/I54)) -> 0 | K55: =IF(J54=0,0,J55*(K54/J54)) -> 0 | L55: =IF(K54=0,0,K55*(L54/K54)) -> 0 | M55: =IF(L54=0,0,L55*(M54/L54)) -> 0 | N55: =IF(M54=0,0,M55*(N54/M54)) -> 0 | O55: =SUM(C55:N55) -> 0 | Q55: =IF(N54=0,0,N55*(Q54/N54)) -> 0 | R55: =IF(Q54=0,0,Q55*(R54/Q54)) -> 0 | S55: =IF(R54=0,0,R55*(S54/R54)) -> 0 | T55: =IF(S54=0,0,S55*(T54/S54)) -> 0 | U55: =IF(T54=0,0,T55*(U54/T54)) -> 0 | V55: =IF(U54=0,0,U55*(V54/U54)) -> 0 | W55: =IF(V54=0,0,V55*(W54/V54)) -> 0 | X55: =IF(W54=0,0,W55*(X54/W54)) -> 0 | Y55: =IF(X54=0,0,X55*(Y54/X54)) -> 0 | Z55: =IF(Y54=0,0,Y55*(Z54/Y54)) -> 0 | AA55: =IF(Z54=0,0,Z55*(AA54/Z54)) -> 0 | AB55: =IF(AA54=0,0,AA55*(AB54/AA54)) -> 0 | AC55: =SUM(Q55:AB55) -> 0 | AE55: =IF(SUM(Z54:AB54)=0,0,SUM(Z55:AB55)*AE54/(SUM(Z54:AB54))) -> 0 | AF55: =IF(AE54=0,0,AE55*(AF54/AE54)) -> 0 | AG55: =IF(AF54=0,0,AF55*(AG54/AF54)) -> 0 | AH55: =IF(AG54=0,0,AG55*(AH54/AG54)) -> 0 | AI55: =SUM(AE55:AH55) -> 0 | AK55: =IF(AH54=0,0,AH55*(AK54/AH54)) -> 0 | AL55: =IF(AK54=0,0,AK55*(AL54/AK54)) -> 0 | AM55: =IF(AL54=0,0,AL55*(AM54/AL54)) -> 0 | AN55: =IF(AM54=0,0,AM55*(AN54/AM54)) -> 0 | AO55: =SUM(AK55:AN55) -> 0 | AQ55: =IF(AO54=0,0,AO55*(AQ54/AO54)) -> 0
B56: Items/Parts 2 | C56: 0 | D56: =IF(C54=0,0,C56*(D54/C54)) -> 0 | E56: =IF(D54=0,0,D56*(E54/D54)) -> 0 | F56: 0 | G56: 0 | H56: 0 | I56: 0 | J56: 0 | K56: 0 | L56: 0 | M56: 0 | N56: 0 | O56: =SUM(C56:N56) -> 0 | Q56: =IF(N54=0,0,N56*(Q54/N54)) -> 0 | R56: =IF(Q54=0,0,Q56*(R54/Q54)) -> 0 | S56: =IF(R54=0,0,R56*(S54/R54)) -> 0 | T56: 0 | U56: 0 | V56: 0 | W56: 0 | X56: 0 | Y56: 0 | Z56: 0 | AA56: 0 | AB56: 0 | AC56: =SUM(Q56:AB56) -> 0 | AE56: =IF(SUM(Z54:AB54)=0,0,SUM(Z56:AB56)*AE54/(SUM(Z54:AB54))) -> 0 | AF56: =IF(AE54=0,0,AE56*(AF54/AE54)) -> 0 | AG56: 0 | AH56: 0 | AI56: =SUM(AE56:AH56) -> 0 | AK56: =IF(AH54=0,0,AH56*(AK54/AH54)) -> 0 | AL56: =IF(AK54=0,0,AK56*(AL54/AK54)) -> 0 | AM56: 0 | AN56: 0 | AO56: =SUM(AK56:AN56) -> 0 | AQ56: =IF(AO54=0,0,AO56*(AQ54/AO54)) -> 0
B57: Items/Parts 3 | C57: 0 | D57: =IF(C54=0,0,C57*(D54/C54)) -> 0 | E57: =IF(D54=0,0,D57*(E54/D54)) -> 0 | F57: 0 | G57: 0 | H57: 0 | I57: 0 | J57: 0 | K57: 0 | L57: 0 | M57: 0 | N57: 0 | O57: =SUM(C57:N57) -> 0 | Q57: =IF(N54=0,0,N57*(Q54/N54)) -> 0 | R57: =IF(Q54=0,0,Q57*(R54/Q54)) -> 0 | S57: =IF(R54=0,0,R57*(S54/R54)) -> 0 | T57: 0 | U57: 0 | V57: 0 | W57: 0 | X57: 0 | Y57: 0 | Z57: 0 | AA57: 0 | AB57: 0 | AC57: =SUM(Q57:AB57) -> 0 | AE57: =IF(SUM(Z54:AB54)=0,0,SUM(Z57:AB57)*AE54/(SUM(Z54:AB54))) -> 0 | AF57: =IF(AE54=0,0,AE57*(AF54/AE54)) -> 0 | AG57: 0 | AH57: 0 | AI57: =SUM(AE57:AH57) -> 0 | AK57: =IF(AH54=0,0,AH57*(AK54/AH54)) -> 0 | AL57: =IF(AK54=0,0,AK57*(AL54/AK54)) -> 0 | AM57: 0 | AN57: 0 | AO57: =SUM(AK57:AN57) -> 0 | AQ57: =IF(AO54=0,0,AO57*(AQ54/AO54)) -> 0
B58: Items/Parts 4 | C58: 0 | D58: =IF(C54=0,0,C58*(D54/C54)) -> 0 | E58: =IF(D54=0,0,D58*(E54/D54)) -> 0 | F58: 0 | G58: 0 | H58: 0 | I58: 0 | J58: 0 | K58: 0 | L58: 0 | M58: 0 | N58: 0 | O58: =SUM(C58:N58) -> 0 | Q58: =IF(N54=0,0,N58*(Q54/N54)) -> 0 | R58: =IF(Q54=0,0,Q58*(R54/Q54)) -> 0 | S58: =IF(R54=0,0,R58*(S54/R54)) -> 0 | T58: 0 | U58: 0 | V58: 0 | W58: 0 | X58: 0 | Y58: 0 | Z58: 0 | AA58: 0 | AB58: 0 | AC58: =SUM(Q58:AB58) -> 0 | AE58: =IF(SUM(Z54:AB54)=0,0,SUM(Z58:AB58)*AE54/(SUM(Z54:AB54))) -> 0 | AF58: =IF(AE54=0,0,AE58*(AF54/AE54)) -> 0 | AG58: 0 | AH58: 0 | AI58: =SUM(AE58:AH58) -> 0 | AK58: =IF(AH54=0,0,AH58*(AK54/AH54)) -> 0 | AL58: =IF(AK54=0,0,AK58*(AL54/AK54)) -> 0 | AM58: 0 | AN58: 0 | AO58: =SUM(AK58:AN58) -> 0 | AQ58: =IF(AO54=0,0,AO58*(AQ54/AO54)) -> 0
B59: Total Inventory Expense | C59: =SUM(C55:C58) -> 0 | D59: 0 | E59: 0 | F59: 0 | G59: 0 | H59: 0 | I59: 0 | J59: 0 | K59: 0 | L59: 0 | M59: 0 | N59: 0 | O59: 0 | Q59: =SUM(Q55:Q58) -> 0 | R59: 0 | S59: 0 | T59: 0 | U59: 0 | V59: 0 | W59: 0 | X59: 0 | Y59: 0 | Z59: 0 | AA59: 0 | AB59: 0 | AC59: 0 | AE59: =SUM(AE55:AE58) -> 0 | AF59: =SUM(AF55:AF58) -> 0 | AG59: =SUM(AG55:AG58) -> 0 | AH59: =SUM(AH55:AH58) -> 0 | AI59: =SUM(AI55:AI58) -> 0 | AK59: =SUM(AK55:AK58) -> 0 | AL59: =SUM(AL55:AL58) -> 0 | AM59: =SUM(AM55:AM58) -> 0 | AN59: =SUM(AN55:AN58) -> 0 | AO59: =SUM(AO55:AO58) -> 0 | AQ59: =SUM(AQ55:AQ58) -> 0
B61: =SalesProj!B75 -> Product Line 8
B62: Cost of Goods Sold | C62: =SalesProj!E82 -> 0 | D62: =SalesProj!F82 -> 0 | E62: =SalesProj!G82 -> 0 | F62: =SalesProj!H82 -> 0 | G62: =SalesProj!I82 -> 0 | H62: =SalesProj!J82 -> 0 | I62: =SalesProj!K82 -> 0 | J62: =SalesProj!L82 -> 0 | K62: =SalesProj!M82 -> 0 | L62: =SalesProj!N82 -> 0 | M62: =SalesProj!O82 -> 0 | N62: =SalesProj!P82 -> 0 | O62: =SUM(C62:N62) -> 0 | Q62: =SalesProj!S82 -> 0 | R62: =SalesProj!T82 -> 0 | S62: =SalesProj!U82 -> 0 | T62: =SalesProj!V82 -> 0 | U62: =SalesProj!W82 -> 0 | V62: =SalesProj!X82 -> 0 | W62: =SalesProj!Y82 -> 0 | X62: =SalesProj!Z82 -> 0 | Y62: =SalesProj!AA82 -> 0 | Z62: =SalesProj!AB82 -> 0 | AA62: =SalesProj!AC82 -> 0 | AB62: =SalesProj!AD82 -> 0 | AC62: =SUM(Q62:AB62) -> 0 | AE62: =SalesProj!AG82 -> 0 | AF62: =SalesProj!AH82 -> 0 | AG62: =SalesProj!AI82 -> 0 | AH62: =SalesProj!AJ82 -> 0 | AI62: =SUM(AE62:AH62) -> 0 | AK62: =SalesProj!AM82 -> 0 | AL62: =SalesProj!AN82 -> 0 | AM62: =SalesProj!AO82 -> 0 | AN62: =SalesProj!AP82 -> 0 | AO62: =SUM(AK62:AN62) -> 0 | AQ62: =SalesProj!AS82 -> 0
B63: Items/Parts 1 | C63: 0 | D63: =IF(C62=0,0,C63*(D62/C62)) -> 0 | E63: =IF(D62=0,0,D63*(E62/D62)) -> 0 | F63: =IF(E62=0,0,E63*(F62/E62)) -> 0 | G63: =IF(F62=0,0,F63*(G62/F62)) -> 0 | H63: =IF(G62=0,0,G63*(H62/G62)) -> 0 | I63: =IF(H62=0,0,H63*(I62/H62)) -> 0 | J63: =IF(I62=0,0,I63*(J62/I62)) -> 0 | K63: =IF(J62=0,0,J63*(K62/J62)) -> 0 | L63: =IF(K62=0,0,K63*(L62/K62)) -> 0 | M63: =IF(L62=0,0,L63*(M62/L62)) -> 0 | N63: =IF(M62=0,0,M63*(N62/M62)) -> 0 | O63: =SUM(C63:N63) -> 0 | Q63: =IF(N62=0,0,N63*(Q62/N62)) -> 0 | R63: =IF(Q62=0,0,Q63*(R62/Q62)) -> 0 | S63: =IF(R62=0,0,R63*(S62/R62)) -> 0 | T63: =IF(S62=0,0,S63*(T62/S62)) -> 0 | U63: =IF(T62=0,0,T63*(U62/T62)) -> 0 | V63: =IF(U62=0,0,U63*(V62/U62)) -> 0 | W63: =IF(V62=0,0,V63*(W62/V62)) -> 0 | X63: =IF(W62=0,0,W63*(X62/W62)) -> 0 | Y63: =IF(X62=0,0,X63*(Y62/X62)) -> 0 | Z63: =IF(Y62=0,0,Y63*(Z62/Y62)) -> 0 | AA63: =IF(Z62=0,0,Z63*(AA62/Z62)) -> 0 | AB63: =IF(AA62=0,0,AA63*(AB62/AA62)) -> 0 | AC63: =SUM(Q63:AB63) -> 0 | AE63: =IF(SUM(Z62:AB62)=0,0,SUM(Z63:AB63)*AE62/(SUM(Z62:AB62))) -> 0 | AF63: =IF(AE62=0,0,AE63*(AF62/AE62)) -> 0 | AG63: =IF(AF62=0,0,AF63*(AG62/AF62)) -> 0 | AH63: =IF(AG62=0,0,AG63*(AH62/AG62)) -> 0 | AI63: =SUM(AE63:AH63) -> 0 | AK63: =IF(AH62=0,0,AH63*(AK62/AH62)) -> 0 | AL63: =IF(AK62=0,0,AK63*(AL62/AK62)) -> 0 | AM63: =IF(AL62=0,0,AL63*(AM62/AL62)) -> 0 | AN63: =IF(AM62=0,0,AM63*(AN62/AM62)) -> 0 | AO63: =SUM(AK63:AN63) -> 0 | AQ63: =IF(AO62=0,0,AO63*(AQ62/AO62)) -> 0
B64: Items/Parts 2 | C64: 0 | D64: =IF(C62=0,0,C64*(D62/C62)) -> 0 | E64: =IF(D62=0,0,D64*(E62/D62)) -> 0 | F64: 0 | G64: 0 | H64: 0 | I64: 0 | J64: 0 | K64: 0 | L64: 0 | M64: 0 | N64: 0 | O64: =SUM(C64:N64) -> 0 | Q64: =IF(N62=0,0,N64*(Q62/N62)) -> 0 | R64: =IF(Q62=0,0,Q64*(R62/Q62)) -> 0 | S64: =IF(R62=0,0,R64*(S62/R62)) -> 0 | T64: 0 | U64: 0 | V64: 0 | W64: 0 | X64: 0 | Y64: 0 | Z64: 0 | AA64: 0 | AB64: 0 | AC64: =SUM(Q64:AB64) -> 0 | AE64: =IF(SUM(Z62:AB62)=0,0,SUM(Z64:AB64)*AE62/(SUM(Z62:AB62))) -> 0 | AF64: =IF(AE62=0,0,AE64*(AF62/AE62)) -> 0 | AG64: 0 | AH64: 0 | AI64: =SUM(AE64:AH64) -> 0 | AK64: =IF(AH62=0,0,AH64*(AK62/AH62)) -> 0 | AL64: =IF(AK62=0,0,AK64*(AL62/AK62)) -> 0 | AM64: 0 | AN64: 0 | AO64: =SUM(AK64:AN64) -> 0 | AQ64: =IF(AO62=0,0,AO64*(AQ62/AO62)) -> 0
B65: Items/Parts 3 | C65: 0 | D65: =IF(C62=0,0,C65*(D62/C62)) -> 0 | E65: =IF(D62=0,0,D65*(E62/D62)) -> 0 | F65: 0 | G65: 0 | H65: 0 | I65: 0 | J65: 0 | K65: 0 | L65: 0 | M65: 0 | N65: 0 | O65: =SUM(C65:N65) -> 0 | Q65: =IF(N62=0,0,N65*(Q62/N62)) -> 0 | R65: =IF(Q62=0,0,Q65*(R62/Q62)) -> 0 | S65: =IF(R62=0,0,R65*(S62/R62)) -> 0 | T65: 0 | U65: 0 | V65: 0 | W65: 0 | X65: 0 | Y65: 0 | Z65: 0 | AA65: 0 | AB65: 0 | AC65: =SUM(Q65:AB65) -> 0 | AE65: =IF(SUM(Z62:AB62)=0,0,SUM(Z65:AB65)*AE62/(SUM(Z62:AB62))) -> 0 | AF65: =IF(AE62=0,0,AE65*(AF62/AE62)) -> 0 | AG65: 0 | AH65: 0 | AI65: =SUM(AE65:AH65) -> 0 | AK65: =IF(AH62=0,0,AH65*(AK62/AH62)) -> 0 | AL65: =IF(AK62=0,0,AK65*(AL62/AK62)) -> 0 | AM65: 0 | AN65: 0 | AO65: =SUM(AK65:AN65) -> 0 | AQ65: =IF(AO62=0,0,AO65*(AQ62/AO62)) -> 0
B66: Items/Parts 4 | C66: 0 | D66: =IF(C62=0,0,C66*(D62/C62)) -> 0 | E66: =IF(D62=0,0,D66*(E62/D62)) -> 0 | F66: 0 | G66: 0 | H66: 0 | I66: 0 | J66: 0 | K66: 0 | L66: 0 | M66: 0 | N66: 0 | O66: =SUM(C66:N66) -> 0 | Q66: =IF(N62=0,0,N66*(Q62/N62)) -> 0 | R66: =IF(Q62=0,0,Q66*(R62/Q62)) -> 0 | S66: =IF(R62=0,0,R66*(S62/R62)) -> 0 | T66: 0 | U66: 0 | V66: 0 | W66: 0 | X66: 0 | Y66: 0 | Z66: 0 | AA66: 0 | AB66: 0 | AC66: =SUM(Q66:AB66) -> 0 | AE66: =IF(SUM(Z62:AB62)=0,0,SUM(Z66:AB66)*AE62/(SUM(Z62:AB62))) -> 0 | AF66: =IF(AE62=0,0,AE66*(AF62/AE62)) -> 0 | AG66: 0 | AH66: 0 | AI66: =SUM(AE66:AH66) -> 0 | AK66: =IF(AH62=0,0,AH66*(AK62/AH62)) -> 0 | AL66: =IF(AK62=0,0,AK66*(AL62/AK62)) -> 0 | AM66: 0 | AN66: 0 | AO66: =SUM(AK66:AN66) -> 0 | AQ66: =IF(AO62=0,0,AO66*(AQ62/AO62)) -> 0
B67: Total Inventory Expense | C67: =SUM(C63:C66) -> 0 | D67: 0 | E67: 0 | F67: 0 | G67: 0 | H67: 0 | I67: 0 | J67: 0 | K67: 0 | L67: 0 | M67: 0 | N67: 0 | O67: 0 | Q67: =SUM(Q63:Q66) -> 0 | R67: 0 | S67: 0 | T67: 0 | U67: 0 | V67: 0 | W67: 0 | X67: 0 | Y67: 0 | Z67: 0 | AA67: 0 | AB67: 0 | AC67: 0 | AE67: =SUM(AE63:AE66) -> 0 | AF67: =SUM(AF63:AF66) -> 0 | AG67: =SUM(AG63:AG66) -> 0 | AH67: =SUM(AH63:AH66) -> 0 | AI67: =SUM(AI63:AI66) -> 0 | AK67: =SUM(AK63:AK66) -> 0 | AL67: =SUM(AL63:AL66) -> 0 | AM67: =SUM(AM63:AM66) -> 0 | AN67: =SUM(AN63:AN66) -> 0 | AO67: =SUM(AO63:AO66) -> 0 | AQ67: =SUM(AQ63:AQ66) -> 0
B69: =SalesProj!B85 -> Product Line 9
B70: Cost of Goods Sold | C70: =SalesProj!E92 -> 0 | D70: =SalesProj!F92 -> 0 | E70: =SalesProj!G92 -> 0 | F70: =SalesProj!H92 -> 0 | G70: =SalesProj!I92 -> 0 | H70: =SalesProj!J92 -> 0 | I70: =SalesProj!K92 -> 0 | J70: =SalesProj!L92 -> 0 | K70: =SalesProj!M92 -> 0 | L70: =SalesProj!N92 -> 0 | M70: =SalesProj!O92 -> 0 | N70: =SalesProj!P92 -> 0 | O70: =SUM(C70:N70) -> 0 | Q70: =SalesProj!S92 -> 0 | R70: =SalesProj!T92 -> 0 | S70: =SalesProj!U92 -> 0 | T70: =SalesProj!V92 -> 0 | U70: =SalesProj!W92 -> 0 | V70: =SalesProj!X92 -> 0 | W70: =SalesProj!Y92 -> 0 | X70: =SalesProj!Z92 -> 0 | Y70: =SalesProj!AA92 -> 0 | Z70: =SalesProj!AB92 -> 0 | AA70: =SalesProj!AC92 -> 0 | AB70: =SalesProj!AD92 -> 0 | AC70: =SUM(Q70:AB70) -> 0 | AE70: =SalesProj!AG92 -> 0 | AF70: =SalesProj!AH92 -> 0 | AG70: =SalesProj!AI92 -> 0 | AH70: =SalesProj!AJ92 -> 0 | AI70: =SUM(AE70:AH70) -> 0 | AK70: =SalesProj!AM92 -> 0 | AL70: =SalesProj!AN92 -> 0 | AM70: =SalesProj!AO92 -> 0 | AN70: =SalesProj!AP92 -> 0 | AO70: =SUM(AK70:AN70) -> 0 | AQ70: =SalesProj!AS92 -> 0
B71: Items/Parts 1 | C71: 0 | D71: =IF(C70=0,0,C71*(D70/C70)) -> 0 | E71: =IF(D70=0,0,D71*(E70/D70)) -> 0 | F71: =IF(E70=0,0,E71*(F70/E70)) -> 0 | G71: =IF(F70=0,0,F71*(G70/F70)) -> 0 | H71: =IF(G70=0,0,G71*(H70/G70)) -> 0 | I71: =IF(H70=0,0,H71*(I70/H70)) -> 0 | J71: =IF(I70=0,0,I71*(J70/I70)) -> 0 | K71: =IF(J70=0,0,J71*(K70/J70)) -> 0 | L71: =IF(K70=0,0,K71*(L70/K70)) -> 0 | M71: =IF(L70=0,0,L71*(M70/L70)) -> 0 | N71: =IF(M70=0,0,M71*(N70/M70)) -> 0 | O71: =SUM(C71:N71) -> 0 | Q71: =IF(N70=0,0,N71*(Q70/N70)) -> 0 | R71: =IF(Q70=0,0,Q71*(R70/Q70)) -> 0 | S71: =IF(R70=0,0,R71*(S70/R70)) -> 0 | T71: =IF(S70=0,0,S71*(T70/S70)) -> 0 | U71: =IF(T70=0,0,T71*(U70/T70)) -> 0 | V71: =IF(U70=0,0,U71*(V70/U70)) -> 0 | W71: =IF(V70=0,0,V71*(W70/V70)) -> 0 | X71: =IF(W70=0,0,W71*(X70/W70)) -> 0 | Y71: =IF(X70=0,0,X71*(Y70/X70)) -> 0 | Z71: =IF(Y70=0,0,Y71*(Z70/Y70)) -> 0 | AA71: =IF(Z70=0,0,Z71*(AA70/Z70)) -> 0 | AB71: =IF(AA70=0,0,AA71*(AB70/AA70)) -> 0 | AC71: =SUM(Q71:AB71) -> 0 | AE71: =IF(SUM(Z70:AB70)=0,0,SUM(Z71:AB71)*AE70/(SUM(Z70:AB70))) -> 0 | AF71: =IF(AE70=0,0,AE71*(AF70/AE70)) -> 0 | AG71: =IF(AF70=0,0,AF71*(AG70/AF70)) -> 0 | AH71: =IF(AG70=0,0,AG71*(AH70/AG70)) -> 0 | AI71: =SUM(AE71:AH71) -> 0 | AK71: =IF(AH70=0,0,AH71*(AK70/AH70)) -> 0 | AL71: =IF(AK70=0,0,AK71*(AL70/AK70)) -> 0 | AM71: =IF(AL70=0,0,AL71*(AM70/AL70)) -> 0 | AN71: =IF(AM70=0,0,AM71*(AN70/AM70)) -> 0 | AO71: =SUM(AK71:AN71) -> 0 | AQ71: =IF(AO70=0,0,AO71*(AQ70/AO70)) -> 0
B72: Items/Parts 2 | C72: 0 | D72: =IF(C70=0,0,C72*(D70/C70)) -> 0 | E72: =IF(D70=0,0,D72*(E70/D70)) -> 0 | F72: 0 | G72: 0 | H72: 0 | I72: 0 | J72: 0 | K72: 0 | L72: 0 | M72: 0 | N72: 0 | O72: =SUM(C72:N72) -> 0 | Q72: =IF(N70=0,0,N72*(Q70/N70)) -> 0 | R72: =IF(Q70=0,0,Q72*(R70/Q70)) -> 0 | S72: =IF(R70=0,0,R72*(S70/R70)) -> 0 | T72: 0 | U72: 0 | V72: 0 | W72: 0 | X72: 0 | Y72: 0 | Z72: 0 | AA72: 0 | AB72: 0 | AC72: =SUM(Q72:AB72) -> 0 | AE72: =IF(SUM(Z70:AB70)=0,0,SUM(Z72:AB72)*AE70/(SUM(Z70:AB70))) -> 0 | AF72: =IF(AE70=0,0,AE72*(AF70/AE70)) -> 0 | AG72: 0 | AH72: 0 | AI72: =SUM(AE72:AH72) -> 0 | AK72: =IF(AH70=0,0,AH72*(AK70/AH70)) -> 0 | AL72: =IF(AK70=0,0,AK72*(AL70/AK70)) -> 0 | AM72: 0 | AN72: 0 | AO72: =SUM(AK72:AN72) -> 0 | AQ72: =IF(AO70=0,0,AO72*(AQ70/AO70)) -> 0
B73: Items/Parts 3 | C73: 0 | D73: =IF(C70=0,0,C73*(D70/C70)) -> 0 | E73: =IF(D70=0,0,D73*(E70/D70)) -> 0 | F73: 0 | G73: 0 | H73: 0 | I73: 0 | J73: 0 | K73: 0 | L73: 0 | M73: 0 | N73: 0 | O73: =SUM(C73:N73) -> 0 | Q73: =IF(N70=0,0,N73*(Q70/N70)) -> 0 | R73: =IF(Q70=0,0,Q73*(R70/Q70)) -> 0 | S73: =IF(R70=0,0,R73*(S70/R70)) -> 0 | T73: 0 | U73: 0 | V73: 0 | W73: 0 | X73: 0 | Y73: 0 | Z73: 0 | AA73: 0 | AB73: 0 | AC73: =SUM(Q73:AB73) -> 0 | AE73: =IF(SUM(Z70:AB70)=0,0,SUM(Z73:AB73)*AE70/(SUM(Z70:AB70))) -> 0 | AF73: =IF(AE70=0,0,AE73*(AF70/AE70)) -> 0 | AG73: 0 | AH73: 0 | AI73: =SUM(AE73:AH73) -> 0 | AK73: =IF(AH70=0,0,AH73*(AK70/AH70)) -> 0 | AL73: =IF(AK70=0,0,AK73*(AL70/AK70)) -> 0 | AM73: 0 | AN73: 0 | AO73: =SUM(AK73:AN73) -> 0 | AQ73: =IF(AO70=0,0,AO73*(AQ70/AO70)) -> 0
B74: Items/Parts 4 | C74: 0 | D74: =IF(C70=0,0,C74*(D70/C70)) -> 0 | E74: =IF(D70=0,0,D74*(E70/D70)) -> 0 | F74: 0 | G74: 0 | H74: 0 | I74: 0 | J74: 0 | K74: 0 | L74: 0 | M74: 0 | N74: 0 | O74: =SUM(C74:N74) -> 0 | Q74: =IF(N70=0,0,N74*(Q70/N70)) -> 0 | R74: =IF(Q70=0,0,Q74*(R70/Q70)) -> 0 | S74: =IF(R70=0,0,R74*(S70/R70)) -> 0 | T74: 0 | U74: 0 | V74: 0 | W74: 0 | X74: 0 | Y74: 0 | Z74: 0 | AA74: 0 | AB74: 0 | AC74: =SUM(Q74:AB74) -> 0 | AE74: =IF(SUM(Z70:AB70)=0,0,SUM(Z74:AB74)*AE70/(SUM(Z70:AB70))) -> 0 | AF74: =IF(AE70=0,0,AE74*(AF70/AE70)) -> 0 | AG74: 0 | AH74: 0 | AI74: =SUM(AE74:AH74) -> 0 | AK74: =IF(AH70=0,0,AH74*(AK70/AH70)) -> 0 | AL74: =IF(AK70=0,0,AK74*(AL70/AK70)) -> 0 | AM74: 0 | AN74: 0 | AO74: =SUM(AK74:AN74) -> 0 | AQ74: =IF(AO70=0,0,AO74*(AQ70/AO70)) -> 0
B75: Total Inventory Expense | C75: =SUM(C71:C74) -> 0 | D75: 0 | E75: 0 | F75: 0 | G75: 0 | H75: 0 | I75: 0 | J75: 0 | K75: 0 | L75: 0 | M75: 0 | N75: 0 | O75: 0 | Q75: =SUM(Q71:Q74) -> 0 | R75: 0 | S75: 0 | T75: 0 | U75: 0 | V75: 0 | W75: 0 | X75: 0 | Y75: 0 | Z75: 0 | AA75: 0 | AB75: 0 | AC75: 0 | AE75: =SUM(AE71:AE74) -> 0 | AF75: =SUM(AF71:AF74) -> 0 | AG75: =SUM(AG71:AG74) -> 0 | AH75: =SUM(AH71:AH74) -> 0 | AI75: =SUM(AI71:AI74) -> 0 | AK75: =SUM(AK71:AK74) -> 0 | AL75: =SUM(AL71:AL74) -> 0 | AM75: =SUM(AM71:AM74) -> 0 | AN75: =SUM(AN71:AN74) -> 0 | AO75: =SUM(AO71:AO74) -> 0 | AQ75: =SUM(AQ71:AQ74) -> 0
B77: =SalesProj!B95 -> Product Line 10
B78: Cost of Goods Sold | C78: =SalesProj!E102 -> 0 | D78: =SalesProj!F102 -> 0 | E78: =SalesProj!G102 -> 0 | F78: =SalesProj!H102 -> 0 | G78: =SalesProj!I102 -> 0 | H78: =SalesProj!J102 -> 0 | I78: =SalesProj!K102 -> 0 | J78: =SalesProj!L102 -> 0 | K78: =SalesProj!M102 -> 0 | L78: =SalesProj!N102 -> 0 | M78: =SalesProj!O102 -> 0 | N78: =SalesProj!P102 -> 0 | O78: =SUM(C78:N78) -> 0 | Q78: =SalesProj!S102 -> 0 | R78: =SalesProj!T102 -> 0 | S78: =SalesProj!U102 -> 0 | T78: =SalesProj!V102 -> 0 | U78: =SalesProj!W102 -> 0 | V78: =SalesProj!X102 -> 0 | W78: =SalesProj!Y102 -> 0 | X78: =SalesProj!Z102 -> 0 | Y78: =SalesProj!AA102 -> 0 | Z78: =SalesProj!AB102 -> 0 | AA78: =SalesProj!AC102 -> 0 | AB78: =SalesProj!AD102 -> 0 | AC78: =SUM(Q78:AB78) -> 0 | AE78: =SalesProj!AG102 -> 0 | AF78: =SalesProj!AH102 -> 0 | AG78: =SalesProj!AI102 -> 0 | AH78: =SalesProj!AJ102 -> 0 | AI78: =SUM(AE78:AH78) -> 0 | AK78: =SalesProj!AM102 -> 0 | AL78: =SalesProj!AN102 -> 0 | AM78: =SalesProj!AO102 -> 0 | AN78: =SalesProj!AP102 -> 0 | AO78: =SUM(AK78:AN78) -> 0 | AQ78: =SalesProj!AS102 -> 0
B79: Items/Parts 1 | C79: 0 | D79: =IF(C78=0,0,C79*(D78/C78)) -> 0 | E79: =IF(D78=0,0,D79*(E78/D78)) -> 0 | F79: =IF(E78=0,0,E79*(F78/E78)) -> 0 | G79: =IF(F78=0,0,F79*(G78/F78)) -> 0 | H79: =IF(G78=0,0,G79*(H78/G78)) -> 0 | I79: =IF(H78=0,0,H79*(I78/H78)) -> 0 | J79: =IF(I78=0,0,I79*(J78/I78)) -> 0 | K79: =IF(J78=0,0,J79*(K78/J78)) -> 0 | L79: =IF(K78=0,0,K79*(L78/K78)) -> 0 | M79: =IF(L78=0,0,L79*(M78/L78)) -> 0 | N79: =IF(M78=0,0,M79*(N78/M78)) -> 0 | O79: =SUM(C79:N79) -> 0 | Q79: =IF(N78=0,0,N79*(Q78/N78)) -> 0 | R79: =IF(Q78=0,0,Q79*(R78/Q78)) -> 0 | S79: =IF(R78=0,0,R79*(S78/R78)) -> 0 | T79: =IF(S78=0,0,S79*(T78/S78)) -> 0 | U79: =IF(T78=0,0,T79*(U78/T78)) -> 0 | V79: =IF(U78=0,0,U79*(V78/U78)) -> 0 | W79: =IF(V78=0,0,V79*(W78/V78)) -> 0 | X79: =IF(W78=0,0,W79*(X78/W78)) -> 0 | Y79: =IF(X78=0,0,X79*(Y78/X78)) -> 0 | Z79: =IF(Y78=0,0,Y79*(Z78/Y78)) -> 0 | AA79: =IF(Z78=0,0,Z79*(AA78/Z78)) -> 0 | AB79: =IF(AA78=0,0,AA79*(AB78/AA78)) -> 0 | AC79: =SUM(Q79:AB79) -> 0 | AE79: =IF(SUM(Z78:AB78)=0,0,SUM(Z79:AB79)*AE78/(SUM(Z78:AB78))) -> 0 | AF79: =IF(AE78=0,0,AE79*(AF78/AE78)) -> 0 | AG79: =IF(AF78=0,0,AF79*(AG78/AF78)) -> 0 | AH79: =IF(AG78=0,0,AG79*(AH78/AG78)) -> 0 | AI79: =SUM(AE79:AH79) -> 0 | AK79: =IF(AH78=0,0,AH79*(AK78/AH78)) -> 0 | AL79: =IF(AK78=0,0,AK79*(AL78/AK78)) -> 0 | AM79: =IF(AL78=0,0,AL79*(AM78/AL78)) -> 0 | AN79: =IF(AM78=0,0,AM79*(AN78/AM78)) -> 0 | AO79: =SUM(AK79:AN79) -> 0 | AQ79: =IF(AO78=0,0,AO79*(AQ78/AO78)) -> 0
B80: Items/Parts 2 | C80: 0 | D80: =IF(C78=0,0,C80*(D78/C78)) -> 0 | E80: =IF(D78=0,0,D80*(E78/D78)) -> 0 | F80: 0 | G80: 0 | H80: 0 | I80: 0 | J80: 0 | K80: 0 | L80: 0 | M80: 0 | N80: 0 | O80: =SUM(C80:N80) -> 0 | Q80: =IF(N78=0,0,N80*(Q78/N78)) -> 0 | R80: =IF(Q78=0,0,Q80*(R78/Q78)) -> 0 | S80: =IF(R78=0,0,R80*(S78/R78)) -> 0 | T80: 0 | U80: 0 | V80: 0 | W80: 0 | X80: 0 | Y80: 0 | Z80: 0 | AA80: 0 | AB80: 0 | AC80: =SUM(Q80:AB80) -> 0 | AE80: =IF(SUM(Z78:AB78)=0,0,SUM(Z80:AB80)*AE78/(SUM(Z78:AB78))) -> 0 | AF80: =IF(AE78=0,0,AE80*(AF78/AE78)) -> 0 | AG80: 0 | AH80: 0 | AI80: =SUM(AE80:AH80) -> 0 | AK80: =IF(AH78=0,0,AH80*(AK78/AH78)) -> 0 | AL80: =IF(AK78=0,0,AK80*(AL78/AK78)) -> 0 | AM80: 0 | AN80: 0 | AO80: =SUM(AK80:AN80) -> 0 | AQ80: =IF(AO78=0,0,AO80*(AQ78/AO78)) -> 0
B81: Items/Parts 3 | C81: 0 | D81: =IF(C78=0,0,C81*(D78/C78)) -> 0 | E81: =IF(D78=0,0,D81*(E78/D78)) -> 0 | F81: 0 | G81: 0 | H81: 0 | I81: 0 | J81: 0 | K81: 0 | L81: 0 | M81: 0 | N81: 0 | O81: =SUM(C81:N81) -> 0 | Q81: =IF(N78=0,0,N81*(Q78/N78)) -> 0 | R81: =IF(Q78=0,0,Q81*(R78/Q78)) -> 0 | S81: =IF(R78=0,0,R81*(S78/R78)) -> 0 | T81: 0 | U81: 0 | V81: 0 | W81: 0 | X81: 0 | Y81: 0 | Z81: 0 | AA81: 0 | AB81: 0 | AC81: =SUM(Q81:AB81) -> 0 | AE81: =IF(SUM(Z78:AB78)=0,0,SUM(Z81:AB81)*AE78/(SUM(Z78:AB78))) -> 0 | AF81: =IF(AE78=0,0,AE81*(AF78/AE78)) -> 0 | AG81: 0 | AH81: 0 | AI81: =SUM(AE81:AH81) -> 0 | AK81: =IF(AH78=0,0,AH81*(AK78/AH78)) -> 0 | AL81: =IF(AK78=0,0,AK81*(AL78/AK78)) -> 0 | AM81: 0 | AN81: 0 | AO81: =SUM(AK81:AN81) -> 0 | AQ81: =IF(AO78=0,0,AO81*(AQ78/AO78)) -> 0
B82: Items/Parts 4 | C82: 0 | D82: =IF(C78=0,0,C82*(D78/C78)) -> 0 | E82: =IF(D78=0,0,D82*(E78/D78)) -> 0 | F82: 0 | G82: 0 | H82: 0 | I82: 0 | J82: 0 | K82: 0 | L82: 0 | M82: 0 | N82: 0 | O82: =SUM(C82:N82) -> 0 | Q82: =IF(N78=0,0,N82*(Q78/N78)) -> 0 | R82: =IF(Q78=0,0,Q82*(R78/Q78)) -> 0 | S82: =IF(R78=0,0,R82*(S78/R78)) -> 0 | T82: 0 | U82: 0 | V82: 0 | W82: 0 | X82: 0 | Y82: 0 | Z82: 0 | AA82: 0 | AB82: 0 | AC82: =SUM(Q82:AB82) -> 0 | AE82: =IF(SUM(Z78:AB78)=0,0,SUM(Z82:AB82)*AE78/(SUM(Z78:AB78))) -> 0 | AF82: =IF(AE78=0,0,AE82*(AF78/AE78)) -> 0 | AG82: 0 | AH82: 0 | AI82: =SUM(AE82:AH82) -> 0 | AK82: =IF(AH78=0,0,AH82*(AK78/AH78)) -> 0 | AL82: =IF(AK78=0,0,AK82*(AL78/AK78)) -> 0 | AM82: 0 | AN82: 0 | AO82: =SUM(AK82:AN82) -> 0 | AQ82: =IF(AO78=0,0,AO82*(AQ78/AO78)) -> 0
B83: Total Inventory Expense | C83: =SUM(C79:C82) -> 0 | D83: 0 | E83: 0 | F83: 0 | G83: 0 | H83: 0 | I83: 0 | J83: 0 | K83: 0 | L83: 0 | M83: 0 | N83: 0 | O83: 0 | Q83: =SUM(Q79:Q82) -> 0 | R83: 0 | S83: 0 | T83: 0 | U83: 0 | V83: 0 | W83: 0 | X83: 0 | Y83: 0 | Z83: 0 | AA83: 0 | AB83: 0 | AC83: 0 | AE83: =SUM(AE79:AE82) -> 0 | AF83: =SUM(AF79:AF82) -> 0 | AG83: =SUM(AG79:AG82) -> 0 | AH83: =SUM(AH79:AH82) -> 0 | AI83: =SUM(AI79:AI82) -> 0 | AK83: =SUM(AK79:AK82) -> 0 | AL83: =SUM(AL79:AL82) -> 0 | AM83: =SUM(AM79:AM82) -> 0 | AN83: =SUM(AN79:AN82) -> 0 | AO83: =SUM(AO79:AO82) -> 0 | AQ83: =SUM(AQ79:AQ82) -> 0
B85: GRAND TOTAL INVENTORY | C85: =SUBTOTAL(109, C83,C75,C67,C59,C51,C43,C35,C27,C19,C11) -> 0 | D85: 0 | E85: 0 | F85: 0 | G85: 0 | H85: 0 | I85: 0 | J85: 0 | K85: 0 | L85: 0 | M85: 0 | N85: 0 | O85: =SUM(C85:N85) -> 0 | Q85: =SUBTOTAL(109, Q83,Q75,Q67,Q59,Q51,Q43,Q35,Q27,Q19,Q11) -> 0 | R85: 0 | S85: 0 | T85: 0 | U85: 0 | V85: 0 | W85: 0 | X85: 0 | Y85: 0 | Z85: 0 | AA85: 0 | AB85: 0 | AC85: =SUM(Q85:AB85) -> 0 | AE85: =SUBTOTAL(109, AE83,AE75,AE67,AE59,AE51,AE43,AE35,AE27,AE19,AE11) -> 0 | AF85: =SUBTOTAL(109, AF83,AF75,AF67,AF59,AF51,AF43,AF35,AF27,AF19,AF11) -> 0 | AG85: =SUBTOTAL(109, AG83,AG75,AG67,AG59,AG51,AG43,AG35,AG27,AG19,AG11) -> 0 | AH85: =SUBTOTAL(109, AH83,AH75,AH67,AH59,AH51,AH43,AH35,AH27,AH19,AH11) -> 0 | AI85: =SUM(AE85:AH85) -> 0 | AK85: =SUBTOTAL(109, AK83,AK75,AK67,AK59,AK51,AK43,AK35,AK27,AK19,AK11) -> 0 | AL85: =SUBTOTAL(109, AL83,AL75,AL67,AL59,AL51,AL43,AL35,AL27,AL19,AL11) -> 0 | AM85: =SUBTOTAL(109, AM83,AM75,AM67,AM59,AM51,AM43,AM35,AM27,AM19,AM11) -> 0 | AN85: =SUBTOTAL(109, AN83,AN75,AN67,AN59,AN51,AN43,AN35,AN27,AN19,AN11) -> 0 | AO85: =SUM(AK85:AN85) -> 0 | AQ85: =SUBTOTAL(109, AQ83,AQ75,AQ67,AQ59,AQ51,AQ43,AQ35,AQ27,AQ19,AQ11) -> 0

Sheet CapEx
B2: Capital Purchases
B3: Item | C3: Cost | D3: Purchase Date | F3: Years of Service | G3: Salvage Value
I4: Reminder: All purchases must be on or after your business start date of:
B5: Facilities | D5: Month | E5: Year | I5: =cStartDate -> 2013-01-01
B6: Item Name (change name here) | C6: 0 | D6: Jan | E6: 2013 | F6: 1 | G6: 0 | I6: =IF(AND(DATEVALUE("01-"& $D6 &"-"& $E6) <cStartDate, C6>0), "WARNING - Purchase date must be on or after your business's start date.", "") -> 
B7: Item Name (change name here) | C7: 0 | D7: Jan | E7: 2013 | F7: 1 | G7: 0
B8: Item Name (change name here) | C8: 0 | D8: Jan | E8: 2013 | F8: 1 | G8: 0 | I8: =IF(AND(DATEVALUE("01-"& $D8 &"-"& $E8) <cStartDate, C8>0), "WARNING - Purchase date must be on or after your business's start date.", "") -> 
B9: Item Name (change name here) | C9: 0 | D9: Jan | E9: 2013 | F9: 1 | G9: 0
B10: Item Name (change name here) | C10: 0 | D10: Jan | E10: 2013 | F10: 1 | G10: 0
B11: Item Name (change name here) | C11: 0 | D11: Jan | E11: 2013 | F11: 1 | G11: 0
B12: Item Name (change name here) | C12: 0 | D12: Jan | E12: 2013 | F12: 1 | G12: 0
B13: Item Name (change name here) | C13: 0 | D13: Jan | E13: 2013 | F13: 1 | G13: 0
B14: Item Name (change name here) | C14: 0 | D14: Jan | E14: 2013 | F14: 1 | G14: 0
B15: Item Name (change name here) | C15: 0 | D15: Jan | E15: 2013 | F15: 1 | G15: 0
B17: Equipment
B18: Item Name (change name here) | C18: 0 | D18: Jan | E18: 2013 | F18: 1 | G18: 0 | I18: =IF(AND(DATEVALUE("01-"& $D18 &"-"& $E18) <cStartDate, C18>0), "WARNING - Purchase date must be on or after your business's start date.", "") -> 
B19: Item Name (change name here) | C19: 0 | D19: Jan | E19: 2013 | F19: 1 | G19: 0
B20: Item Name (change name here) | C20: 0 | D20: Jan | E20: 2013 | F20: 1 | G20: 0
B21: Item Name (change name here) | C21: 0 | D21: Jan | E21: 2013 | F21: 1 | G21: 0
B22: Item Name (change name here) | C22: 0 | D22: Jan | E22: 2013 | F22: 1 | G22: 0
B23: Item Name (change name here) | C23: 0 | D23: Jan | E23: 2013 | F23: 1 | G23: 0
B24: Item Name (change name here) | C24: 0 | D24: Jan | E24: 2013 | F24: 1 | G24: 0
B25: Item Name (change name here) | C25: 0 | D25: Jan | E25: 2013 | F25: 1 | G25: 0
B26: Item Name (change name here) | C26: 0 | D26: Jan | E26: 2013 | F26: 1 | G26: 0
B27: Item Name (change name here) | C27: 0 | D27: Jan | E27: 2013 | F27: 1 | G27: 0
B28: Item Name (change name here) | C28: 0 | D28: Jan | E28: 2013 | F28: 1 | G28: 0
B29: Item Name (change name here) | C29: 0 | D29: Jan | E29: 2013 | F29: 1 | G29: 0
B30: Item Name (change name here) | C30: 0 | D30: Jan | E30: 2013 | F30: 1 | G30: 0
B31: Item Name (change name here) | C31: 0 | D31: Jan | E31: 2013 | F31: 1 | G31: 0
B32: Item Name (change name here) | C32: 0 | D32: Jan | E32: 2013 | F32: 1 | G32: 0
B33: Item Name (change name here) | C33: 0 | D33: Jan | E33: 2013 | F33: 1 | G33: 0
B34: Item Name (change name here) | C34: 0 | D34: Jan | E34: 2013 | F34: 1 | G34: 0
B35: Item Name (change name here) | C35: 0 | D35: Jan | E35: 2013 | F35: 1 | G35: 0
B36: Item Name (change name here) | C36: 0 | D36: Jan | E36: 2013 | F36: 1 | G36: 0
B37: Item Name (change name here) | C37: 0 | D37: Jan | E37: 2013 | F37: 1 | G37: 0
B39: Computer Hardware/Software
B40: Item Name (change name here) | C40: 0 | D40: Jan | E40: 2013 | F40: 1 | G40: 0 | I40: =IF(AND(DATEVALUE("01-"& $D40 &"-"& $E40) <cStartDate, C40>0), "WARNING - Purchase date must be on or after your business's start date.", "") -> 
B41: Item Name (change name here) | C41: 0 | D41: Jan | E41: 2013 | F41: 1 | G41: 0
B42: Item Name (change name here) | C42: 0 | D42: Jan | E42: 2013 | F42: 1 | G42: 0
B43: Item Name (change name here) | C43: 0 | D43: Jan | E43: 2013 | F43: 1 | G43: 0
B44: Item Name (change name here) | C44: 0 | D44: Jan | E44: 2013 | F44: 1 | G44: 0
B45: Item Name (change name here) | C45: 0 | D45: Jan | E45: 2013 | F45: 1 | G45: 0
B46: Item Name (change name here) | C46: 0 | D46: Jan | E46: 2013 | F46: 1 | G46: 0
B47: Item Name (change name here) | C47: 0 | D47: Jan | E47: 2013 | F47: 1 | G47: 0
B48: Item Name (change name here) | C48: 0 | D48: Jan | E48: 2013 | F48: 1 | G48: 0
B49: Item Name (change name here) | C49: 0 | D49: Jan | E49: 2013 | F49: 1 | G49: 0
B50: Item Name (change name here) | C50: 0 | D50: Jan | E50: 2013 | F50: 1 | G50: 0
B51: Item Name (change name here) | C51: 0 | D51: Jan | E51: 2013 | F51: 1 | G51: 0
B52: Item Name (change name here) | C52: 0 | D52: Jan | E52: 2013 | F52: 1 | G52: 0
B53: Item Name (change name here) | C53: 0 | D53: Jan | E53: 2013 | F53: 1 | G53: 0
B54: Item Name (change name here) | C54: 0 | D54: Jan | E54: 2013 | F54: 1 | G54: 0
B56: Telecommunications
B57: Item Name (change name here) | C57: 0 | D57: Jan | E57: 2013 | F57: 1 | G57: 0 | I57: =IF(AND(DATEVALUE("01-"& $D57 &"-"& $E57) <cStartDate, C57>0), "WARNING - Purchase date must be on or after your business's start date.", "") -> 
B58: Item Name (change name here) | C58: 0 | D58: Jan | E58: 2013 | F58: 1 | G58: 0 | I58: =IF(AND(DATEVALUE("01-"& $D58 &"-"& $E58) <cStartDate, C58>0), "WARNING - Purchase date must be on or after your business's start date.", "") -> 
B59: Item Name (change name here) | C59: 0 | D59: Jan | E59: 2013 | F59: 1 | G59: 0 | I59: =IF(AND(DATEVALUE("01-"& $D59 &"-"& $E59) <cStartDate, C59>0), "WARNING - Purchase date must be on or after your business's start date.", "") -> 
B60: Item Name (change name here) | C60: 0 | D60: Jan | E60: 2013 | F60: 1 | G60: 0 | I60: =IF(AND(DATEVALUE("01-"& $D60 &"-"& $E60) <cStartDate, C60>0), "WARNING - Purchase date must be on or after your business's start date.", "") -> 
B61: Item Name (change name here) | C61: 0 | D61: Jan | E61: 2013 | F61: 1 | G61: 0 | I61: =IF(AND(DATEVALUE("01-"& $D61 &"-"& $E61) <cStartDate, C61>0), "WARNING - Purchase date must be on or after your business's start date.", "") -> 
B63: Land
B64: Item Name (change name here) | C64: 0 | D64: Jan | E64: 2013 | F64: Land is a non-depreciable asset | I64: =IF(AND(DATEVALUE("01-"& $D64 &"-"& $E64) <cStartDate, C64>0), "WARNING - Purchase date must be on or after your business's start date.", "") -> 
B65: Item Name (change name here) | C65: 0 | D65: Jan | E65: 2013
B66: Item Name (change name here) | C66: 0 | D66: Jan | E66: 2013
B67: Item Name (change name here) | C67: 0 | D67: Jan | E67: 2013
B68: Item Name (change name here) | C68: 0 | D68: Jan | E68: 2013
B69: Item Name (change name here) | C69: 0 | D69: Jan | E69: 2013
B70: Item Name (change name here) | C70: 0 | D70: Jan | E70: 2013
B71: Item Name (change name here) | C71: 0 | D71: Jan | E71: 2013
B72: Item Name (change name here) | C72: 0 | D72: Jan | E72: 2013
B73: Item Name (change name here) | C73: 0 | D73: Jan | E73: 2013

Sheet StaffBudj
B2: Staffing Budget | C2: =SalesProj!E2 -> 2013 | Q2: =SalesProj!S2 -> 2014 | AE2: =SalesProj!AG2 -> 2015 | AK2: =SalesProj!AM2 -> 2016 | AQ2: =SalesProj!AS2 -> 2017
C3: =SalesProj!E3 -> January | D3: =SalesProj!F3 -> February | E3: =SalesProj!G3 -> March | F3: =SalesProj!H3 -> April | G3: =SalesProj!I3 -> May | H3: =SalesProj!J3 -> June | I3: =SalesProj!K3 -> July | J3: =SalesProj!L3 -> August | K3: =SalesProj!M3 -> September | L3: =SalesProj!N3 -> October | M3: =SalesProj!O3 -> November | N3: =SalesProj!P3 -> December | O3: TOTAL | Q3: =SalesProj!E3 -> January | R3: =SalesProj!F3 -> February | S3: =SalesProj!G3 -> March | T3: =SalesProj!H3 -> April | U3: =SalesProj!I3 -> May | V3: =SalesProj!J3 -> June | W3: =SalesProj!K3 -> July | X3: =SalesProj!L3 -> August | Y3: =SalesProj!M3 -> September | Z3: =SalesProj!N3 -> October | AA3: =SalesProj!O3 -> November | AB3: =SalesProj!P3 -> December | AC3: TOTAL | AE3: 1st Quarter | AF3: 2nd Quarter | AG3: 3rd Quarter | AH3: 4th Quarter | AI3: TOTAL | AK3: 1st Quarter | AL3: 2nd Quarter | AM3: 3rd Quarter | AN3: 4th Quarter | AO3: TOTAL | AQ3: TOTAL
B5: Management
B6: # Salaried Employees | C6: 0 | D6: =C6 -> 0 | E6: 0 | F6: 0 | G6: 0 | H6: 0 | I6: 0 | J6: 0 | K6: 0 | L6: 0 | M6: 0 | N6: =M6 -> 0 | Q6: =N6 -> 0 | R6: =Q6 -> 0 | S6: 0 | T6: 0 | U6: 0 | V6: 0 | W6: 0 | X6: 0 | Y6: 0 | Z6: 0 | AA6: 0 | AB6: 0 | AE6: =AB6 -> 0 | AF6: =AE6 -> 0 | AG6: 0 | AH6: 0 | AK6: =AH6 -> 0 | AL6: =AK6 -> 0 | AM6: 0 | AN6: 0 | AQ6: =AN6 -> 0
B7: Avg Salary per employee | C7: 0 | D7: =C7 -> 0 | E7: 0 | F7: 0 | G7: 0 | H7: 0 | I7: 0 | J7: 0 | K7: 0 | L7: 0 | M7: 0 | N7: 0 | O7: =SUM(C7:N7) -> 0 | Q7: =N7*(1+WageIncreaseRate) -> 0 | R7: =Q7 -> 0 | S7: 0 | T7: 0 | U7: 0 | V7: 0 | W7: 0 | X7: 0 | Y7: 0 | Z7: 0 | AA7: 0 | AB7: 0 | AC7: =SUM(Q7:AB7) -> 0 | AE7: =AB7*(1+WageIncreaseRate)*3 -> 0 | AF7: 0 | AG7: 0 | AH7: 0 | AI7: =SUM(AE7:AH7) -> 0 | AK7: =AH7*(1+WageIncreaseRate) -> 0 | AL7: 0 | AM7: 0 | AN7: 0 | AO7: =SUM(AK7:AN7) -> 0 | AQ7: =AN7*(1+WageIncreaseRate)*4 -> 0
B8: Benefits (across all employees) | C8: =C6*EmpBenes/12 -> 0 | D8: 0 | E8: 0 | F8: 0 | G8: 0 | H8: 0 | I8: 0 | J8: 0 | K8: 0 | L8: 0 | M8: 0 | N8: 0 | O8: =SUM(C8:N8) -> 0 | Q8: =Q6*(EmpBenes*(1+EmpBeneIncrease))/12 -> 0 | R8: 0 | S8: 0 | T8: 0 | U8: 0 | V8: 0 | W8: 0 | X8: 0 | Y8: 0 | Z8: 0 | AA8: 0 | AB8: 0 | AC8: =SUM(Q8:AB8) -> 0 | AE8: =AE6*(EmpBenes*(1+EmpBeneIncrease)^2)/4 -> 0 | AF8: =AF6*(EmpBenes*(1+EmpBeneIncrease)^2)/4 -> 0 | AG8: =AG6*(EmpBenes*(1+EmpBeneIncrease)^2)/4 -> 0 | AH8: =AH6*(EmpBenes*(1+EmpBeneIncrease)^2)/4 -> 0 | AI8: =SUM(AE8:AH8) -> 0 | AK8: =AK6*(EmpBenes*(1+EmpBeneIncrease)^3)/4 -> 0 | AL8: =AL6*(EmpBenes*(1+EmpBeneIncrease)^3)/4 -> 0 | AM8: =AM6*(EmpBenes*(1+EmpBeneIncrease)^3)/4 -> 0 | AN8: =AN6*(EmpBenes*(1+EmpBeneIncrease)^3)/4 -> 0 | AO8: =SUM(AK8:AN8) -> 0 | AQ8: =AQ6*(EmpBenes*(1+EmpBeneIncrease)^4) -> 0
B9: Payroll Taxes (across all employees) | C9: =C7*C6*PayrollTaxes -> 0 | D9: 0 | E9: 0 | F9: 0 | G9: 0 | H9: 0 | I9: 0 | J9: 0 | K9: 0 | L9: 0 | M9: 0 | N9: 0 | O9: =SUM(C9:N9) -> 0 | Q9: =Q7*Q6*PayrollTaxes -> 0 | R9: 0 | S9: 0 | T9: 0 | U9: 0 | V9: 0 | W9: 0 | X9: 0 | Y9: 0 | Z9: 0 | AA9: 0 | AB9: 0 | AC9: =SUM(Q9:AB9) -> 0 | AE9: =AE7*AE6*PayrollTaxes -> 0 | AF9: =AF7*AF6*PayrollTaxes -> 0 | AG9: =AG7*AG6*PayrollTaxes -> 0 | AH9: =AH7*AH6*PayrollTaxes -> 0 | AI9: =SUM(AE9:AH9) -> 0 | AK9: =AK7*AK6*PayrollTaxes -> 0 | AL9: =AL7*AL6*PayrollTaxes -> 0 | AM9: =AM7*AM6*PayrollTaxes -> 0 | AN9: =AN7*AN6*PayrollTaxes -> 0 | AO9: =SUM(AK9:AN9) -> 0 | AQ9: =AQ6*AQ7*PayrollTaxes -> 0
B10: Total Costs | C10: =(C6*C7)+C8+C9 -> 0 | D10: =D6*D7+D8+D9 -> 0 | E10: =(E6*E7)+E8+E9 -> 0 | F10: 0 | G10: 0 | H10: 0 | I10: 0 | J10: 0 | K10: 0 | L10: 0 | M10: 0 | N10: 0 | O10: =SUM(C10:N10) -> 0 | Q10: =(Q6*Q7)+Q8+Q9 -> 0 | R10: =R6*R7+R8+R9 -> 0 | S10: =(S6*S7)+S8+S9 -> 0 | T10: 0 | U10: 0 | V10: 0 | W10: 0 | X10: 0 | Y10: 0 | Z10: 0 | AA10: 0 | AB10: 0 | AC10: =SUM(Q10:AB10) -> 0 | AE10: =(AE6*AE7)+AE8+AE9 -> 0 | AF10: =(AF6*AF7)+AF8+AF9 -> 0 | AG10: =(AG6*AG7)+AG8+AG9 -> 0 | AH10: =(AH6*AH7)+AH8+AH9 -> 0 | AI10: =SUM(AE10:AH10) -> 0 | AK10: =(AK6*AK7)+AK8+AK9 -> 0 | AL10: =(AL6*AL7)+AL8+AL9 -> 0 | AM10: =(AM6*AM7)+AM8+AM9 -> 0 | AN10: =(AN6*AN7)+AN8+AN9 -> 0 | AO10: =SUM(AK10:AN10) -> 0 | AQ10: =(AQ7*AQ6)+AQ8+AQ9 -> 0
B12: Administrative/Support
B13: # Salaried Employees | C13: 0 | D13: =C13 -> 0 | E13: 0 | F13: 0 | G13: 0 | H13: 0 | I13: 0 | J13: 0 | K13: 0 | L13: 0 | M13: 0 | N13: 0 | Q13: =N13 -> 0 | R13: =Q13 -> 0 | S13: 0 | T13: 0 | U13: 0 | V13: 0 | W13: 0 | X13: 0 | Y13: 0 | Z13: 0 | AA13: 0 | AB13: 0 | AE13: =AB13 -> 0 | AF13: =AE13 -> 0 | AG13: 0 | AH13: 0 | AK13: =AH13 -> 0 | AL13: =AK13 -> 0 | AM13: 0 | AN13: 0 | AQ13: =AN13 -> 0
B14: Avg Salary per employee | C14: 0 | D14: =C14 -> 0 | E14: 0 | F14: 0 | G14: 0 | H14: 0 | I14: 0 | J14: 0 | K14: 0 | L14: 0 | M14: 0 | N14: 0 | O14: =SUM(C14:N14) -> 0 | Q14: =N14*(1+WageIncreaseRate) -> 0 | R14: =Q14 -> 0 | S14: 0 | T14: 0 | U14: 0 | V14: 0 | W14: 0 | X14: 0 | Y14: 0 | Z14: 0 | AA14: 0 | AB14: 0 | AC14: =SUM(Q14:AB14) -> 0 | AE14: =AB14*(1+WageIncreaseRate)*3 -> 0 | AF14: 0 | AG14: 0 | AH14: 0 | AI14: =SUM(AE14:AH14) -> 0 | AK14: =AH14*(1+WageIncreaseRate) -> 0 | AL14: 0 | AM14: 0 | AN14: 0 | AO14: =SUM(AK14:AN14) -> 0 | AQ14: =AN14*(1+WageIncreaseRate)*4 -> 0
B15: Benefits (across all employees) | C15: =C13*EmpBenes/12 -> 0 | D15: 0 | E15: 0 | F15: 0 | G15: 0 | H15: 0 | I15: 0 | J15: 0 | K15: 0 | L15: 0 | M15: 0 | N15: 0 | O15: =SUM(C15:N15) -> 0 | Q15: =Q13*(EmpBenes*(1+EmpBeneIncrease))/12 -> 0 | R15: 0 | S15: 0 | T15: 0 | U15: 0 | V15: 0 | W15: 0 | X15: 0 | Y15: 0 | Z15: 0 | AA15: 0 | AB15: 0 | AC15: =SUM(Q15:AB15) -> 0 | AE15: =AE13*(EmpBenes*(1+EmpBeneIncrease)^2)/4 -> 0 | AF15: =AF13*(EmpBenes*(1+EmpBeneIncrease)^2)/4 -> 0 | AG15: =AG13*(EmpBenes*(1+EmpBeneIncrease)^2)/4 -> 0 | AH15: =AH13*(EmpBenes*(1+EmpBeneIncrease)^2)/4 -> 0 | AI15: =SUM(AE15:AH15) -> 0 | AK15: =AK13*(EmpBenes*(1+EmpBeneIncrease)^3)/4 -> 0 | AL15: =AL13*(EmpBenes*(1+EmpBeneIncrease)^3)/4 -> 0 | AM15: =AM13*(EmpBenes*(1+EmpBeneIncrease)^3)/4 -> 0 | AN15: =AN13*(EmpBenes*(1+EmpBeneIncrease)^3)/4 -> 0 | AO15: =SUM(AK15:AN15) -> 0 | AQ15: =AQ13*(EmpBenes*(1+EmpBeneIncrease)^4) -> 0
B16: Payroll Taxes (across all employees) | C16: =C14*C13*PayrollTaxes -> 0 | D16: 0 | E16: 0 | F16: 0 | G16: 0 | H16: 0 | I16: 0 | J16: 0 | K16: 0 | L16: 0 | M16: 0 | N16: 0 | O16: =SUM(C16:N16) -> 0 | Q16: =Q14*Q13*PayrollTaxes -> 0 | R16: 0 | S16: 0 | T16: 0 | U16: 0 | V16: 0 | W16: 0 | X16: 0 | Y16: 0 | Z16: 0 | AA16: 0 | AB16: 0 | AC16: =SUM(Q16:AB16) -> 0 | AE16: =AE14*AE13*PayrollTaxes -> 0 | AF16: =AF14*AF13*PayrollTaxes -> 0 | AG16: =AG14*AG13*PayrollTaxes -> 0 | AH16: =AH14*AH13*PayrollTaxes -> 0 | AI16: =SUM(AE16:AH16) -> 0 | AK16: =AK14*AK13*PayrollTaxes -> 0 | AL16: =AL14*AL13*PayrollTaxes -> 0 | AM16: =AM14*AM13*PayrollTaxes -> 0 | AN16: =AN14*AN13*PayrollTaxes -> 0 | AO16: =SUM(AK16:AN16) -> 0 | AQ16: =AQ13*AQ14*PayrollTaxes -> 0
B17: Total Costs | C17: =C13*C14+C15+C16 -> 0 | D17: =D13*D14+D15+D16 -> 0 | E17: =E13*E14+E15+E16 -> 0 | F17: 0 | G17: 0 | H17: 0 | I17: 0 | J17: 0 | K17: 0 | L17: 0 | M17: 0 | N17: 0 | O17: =SUM(C17:N17) -> 0 | Q17: =Q13*Q14+Q15+Q16 -> 0 | R17: =R13*R14+R15+R16 -> 0 | S17: =S13*S14+S15+S16 -> 0 | T17: 0 | U17: 0 | V17: 0 | W17: 0 | X17: 0 | Y17: 0 | Z17: 0 | AA17: 0 | AB17: 0 | AC17: =SUM(Q17:AB17) -> 0 | AE17: =(AE13*AE14)+AE15+AE16 -> 0 | AF17: =(AF13*AF14)+AF15+AF16 -> 0 | AG17: =(AG13*AG14)+AG15+AG16 -> 0 | AH17: =(AH13*AH14)+AH15+AH16 -> 0 | AI17: =SUM(AE17:AH17) -> 0 | AK17: =(AK13*AK14)+AK15+AK16 -> 0 | AL17: =(AL13*AL14)+AL15+AL16 -> 0 | AM17: =(AM13*AM14)+AM15+AM16 -> 0 | AN17: =(AN13*AN14)+AN15+AN16 -> 0 | AO17: =SUM(AK17:AN17) -> 0 | AQ17: =(AQ14*AQ13)+AQ15+AQ16 -> 0
B19: Sales/Marketing
B20: # Salaried Employees | C20: 0 | D20: =C20 -> 0 | E20: 0 | F20: 0 | G20: 0 | H20: 0 | I20: 0 | J20: 0 | K20: 0 | L20: 0 | M20: 0 | N20: 0 | Q20: =N20 -> 0 | R20: =Q20 -> 0 | S20: 0 | T20: 0 | U20: 0 | V20: 0 | W20: 0 | X20: 0 | Y20: 0 | Z20: 0 | AA20: 0 | AB20: 0 | AE20: =AB20 -> 0 | AF20: =AE20 -> 0 | AG20: 0 | AH20: 0 | AK20: =AH20 -> 0 | AL20: =AK20 -> 0 | AM20: 0 | AN20: 0 | AQ20: =AN20 -> 0
B21: Avg Salary per employee | C21: 0 | D21: =C21 -> 0 | E21: 0 | F21: 0 | G21: 0 | H21: 0 | I21: 0 | J21: 0 | K21: 0 | L21: 0 | M21: 0 | N21: 0 | O21: =SUM(C21:N21) -> 0 | Q21: =N21*(1+WageIncreaseRate) -> 0 | R21: =Q21 -> 0 | S21: 0 | T21: 0 | U21: 0 | V21: 0 | W21: 0 | X21: 0 | Y21: 0 | Z21: 0 | AA21: 0 | AB21: 0 | AC21: =SUM(Q21:AB21) -> 0 | AE21: =AB21*(1+WageIncreaseRate)*3 -> 0 | AF21: 0 | AG21: 0 | AH21: 0 | AI21: =SUM(AE21:AH21) -> 0 | AK21: =AH21*(1+WageIncreaseRate) -> 0 | AL21: 0 | AM21: 0 | AN21: 0 | AO21: =SUM(AK21:AN21) -> 0 | AQ21: =AN21*(1+WageIncreaseRate)*4 -> 0
B22: Benefits (across all employees) | C22: =C20*EmpBenes/12 -> 0 | D22: 0 | E22: 0 | F22: 0 | G22: 0 | H22: 0 | I22: 0 | J22: 0 | K22: 0 | L22: 0 | M22: 0 | N22: 0 | O22: =SUM(C22:N22) -> 0 | Q22: =Q20*(EmpBenes*(1+EmpBeneIncrease))/12 -> 0 | R22: 0 | S22: 0 | T22: 0 | U22: 0 | V22: 0 | W22: 0 | X22: 0 | Y22: 0 | Z22: 0 | AA22: 0 | AB22: 0 | AC22: =SUM(Q22:AB22) -> 0 | AE22: =AE20*(EmpBenes*(1+EmpBeneIncrease)^2)/4 -> 0 | AF22: =AF20*(EmpBenes*(1+EmpBeneIncrease)^2)/4 -> 0 | AG22: =AG20*(EmpBenes*(1+EmpBeneIncrease)^2)/4 -> 0 | AH22: =AH20*(EmpBenes*(1+EmpBeneIncrease)^2)/4 -> 0 | AI22: =SUM(AE22:AH22) -> 0 | AK22: =AK20*(EmpBenes*(1+EmpBeneIncrease)^3)/4 -> 0 | AL22: =AL20*(EmpBenes*(1+EmpBeneIncrease)^3)/4 -> 0 | AM22: =AM20*(EmpBenes*(1+EmpBeneIncrease)^3)/4 -> 0 | AN22: =AN20*(EmpBenes*(1+EmpBeneIncrease)^3)/4 -> 0 | AO22: =SUM(AK22:AN22) -> 0 | AQ22: =AQ20*(EmpBenes*(1+EmpBeneIncrease)^4) -> 0
B23: Payroll Taxes (across all employees) | C23: =C21*C20*PayrollTaxes -> 0 | D23: 0 | E23: 0 | F23: 0 | G23: 0 | H23: 0 | I23: 0 | J23: 0 | K23: 0 | L23: 0 | M23: 0 | N23: 0 | O23: =SUM(C23:N23) -> 0 | Q23: =Q21*Q20*PayrollTaxes -> 0 | R23: 0 | S23: 0 | T23: 0 | U23: 0 | V23: 0 | W23: 0 | X23: 0 | Y23: 0 | Z23: 0 | AA23: 0 | AB23: 0 | AC23: =SUM(Q23:AB23) -> 0 | AE23: =AE21*AE20*PayrollTaxes -> 0 | AF23: =AF21*AF20*PayrollTaxes -> 0 | AG23: =AG21*AG20*PayrollTaxes -> 0 | AH23: =AH21*AH20*PayrollTaxes -> 0 | AI23: =SUM(AE23:AH23) -> 0 | AK23: =AK21*AK20*PayrollTaxes -> 0 | AL23: =AL21*AL20*PayrollTaxes -> 0 | AM23: =AM21*AM20*PayrollTaxes -> 0 | AN23: =AN21*AN20*PayrollTaxes -> 0 | AO23: =SUM(AK23:AN23) -> 0 | AQ23: =AQ20*AQ21*PayrollTaxes -> 0
B24: Total Costs | C24: =C20*C21+C22+C23 -> 0 | D24: 0 | E24: 0 | F24: 0 | G24: 0 | H24: 0 | I24: 0 | J24: 0 | K24: 0 | L24: 0 | M24: 0 | N24: 0 | O24: =SUM(C24:N24) -> 0 | Q24: =Q20*Q21+Q22+Q23 -> 0 | R24: 0 | S24: 0 | T24: 0 | U24: 0 | V24: 0 | W24: 0 | X24: 0 | Y24: 0 | Z24: 0 | AA24: 0 | AB24: 0 | AC24: =SUM(Q24:AB24) -> 0 | AE24: =(AE20*AE21)+AE22+AE23 -> 0 | AF24: =(AF20*AF21)+AF22+AF23 -> 0 | AG24: =(AG20*AG21)+AG22+AG23 -> 0 | AH24: =(AH20*AH21)+AH22+AH23 -> 0 | AI24: =SUM(AE24:AH24) -> 0 | AK24: =(AK20*AK21)+AK22+AK23 -> 0 | AL24: =(AL20*AL21)+AL22+AL23 -> 0 | AM24: =(AM20*AM21)+AM22+AM23 -> 0 | AN24: =(AN20*AN21)+AN22+AN23 -> 0 | AO24: =SUM(AK24:AN24) -> 0 | AQ24: =(AQ21*AQ20)+AQ22+AQ23 -> 0
B26: Operations/Production
B27: # Salaried Employees | C27: 0 | D27: =C27 -> 0 | E27: 0 | F27: 0 | G27: 0 | H27: 0 | I27: 0 | J27: 0 | K27: 0 | L27: 0 | M27: 0 | N27: 0 | Q27: =N27 -> 0 | R27: =Q27 -> 0 | S27: 0 | T27: 0 | U27: 0 | V27: 0 | W27: 0 | X27: 0 | Y27: 0 | Z27: 0 | AA27: 0 | AB27: 0 | AE27: =AB27 -> 0 | AF27: =AE27 -> 0 | AG27: 0 | AH27: 0 | AK27: =AH27 -> 0 | AL27: =AK27 -> 0 | AM27: 0 | AN27: 0 | AQ27: =AN27 -> 0
B28: Avg Salary per employee | C28: 0 | D28: =C28 -> 0 | E28: 0 | F28: 0 | G28: 0 | H28: 0 | I28: 0 | J28: 0 | K28: 0 | L28: 0 | M28: 0 | N28: 0 | O28: =SUM(C28:N28) -> 0 | Q28: =N28*(1+WageIncreaseRate) -> 0 | R28: =Q28 -> 0 | S28: 0 | T28: 0 | U28: 0 | V28: 0 | W28: 0 | X28: 0 | Y28: 0 | Z28: 0 | AA28: 0 | AB28: 0 | AC28: =SUM(Q28:AB28) -> 0 | AE28: =AB28*(1+WageIncreaseRate)*3 -> 0 | AF28: 0 | AG28: 0 | AH28: 0 | AI28: =SUM(AE28:AH28) -> 0 | AK28: =AH28*(1+WageIncreaseRate) -> 0 | AL28: 0 | AM28: 0 | AN28: 0 | AO28: =SUM(AK28:AN28) -> 0 | AQ28: =AN28*(1+WageIncreaseRate)*4 -> 0
B29: Benefits (across all employees) | C29: =C27*EmpBenes/12 -> 0 | D29: 0 | E29: 0 | F29: 0 | G29: 0 | H29: 0 | I29: 0 | J29: 0 | K29: 0 | L29: 0 | M29: 0 | N29: 0 | O29: =SUM(C29:N29) -> 0 | Q29: =Q27*(EmpBenes*(1+EmpBeneIncrease))/12 -> 0 | R29: 0 | S29: 0 | T29: 0 | U29: 0 | V29: 0 | W29: 0 | X29: 0 | Y29: 0 | Z29: 0 | AA29: 0 | AB29: 0 | AC29: =SUM(Q29:AB29) -> 0 | AE29: =AE27*(EmpBenes*(1+EmpBeneIncrease)^2)/4 -> 0 | AF29: =AF27*(EmpBenes*(1+EmpBeneIncrease)^2)/4 -> 0 | AG29: =AG27*(EmpBenes*(1+EmpBeneIncrease)^2)/4 -> 0 | AH29: =AH27*(EmpBenes*(1+EmpBeneIncrease)^2)/4 -> 0 | AI29: =SUM(AE29:AH29) -> 0 | AK29: =AK27*(EmpBenes*(1+EmpBeneIncrease)^3)/4 -> 0 | AL29: =AL27*(EmpBenes*(1+EmpBeneIncrease)^3)/4 -> 0 | AM29: =AM27*(EmpBenes*(1+EmpBeneIncrease)^3)/4 -> 0 | AN29: =AN27*(EmpBenes*(1+EmpBeneIncrease)^3)/4 -> 0 | AO29: =SUM(AK29:AN29) -> 0 | AQ29: =AQ27*(EmpBenes*(1+EmpBeneIncrease)^4) -> 0
B30: Payroll Taxes (across all employees) | C30: =C28*C27*PayrollTaxes -> 0 | D30: 0 | E30: 0 | F30: 0 | G30: 0 | H30: 0 | I30: 0 | J30: 0 | K30: 0 | L30: 0 | M30: 0 | N30: 0 | O30: =SUM(C30:N30) -> 0 | Q30: =Q28*Q27*PayrollTaxes -> 0 | R30: 0 | S30: 0 | T30: 0 | U30: 0 | V30: 0 | W30: 0 | X30: 0 | Y30: 0 | Z30: 0 | AA30: 0 | AB30: 0 | AC30: =SUM(Q30:AB30) -> 0 | AE30: =AE28*AE27*PayrollTaxes -> 0 | AF30: =AF28*AF27*PayrollTaxes -> 0 | AG30: =AG28*AG27*PayrollTaxes -> 0 | AH30: =AH28*AH27*PayrollTaxes -> 0 | AI30: =SUM(AE30:AH30) -> 0 | AK30: =AK28*AK27*PayrollTaxes -> 0 | AL30: =AL28*AL27*PayrollTaxes -> 0 | AM30: =AM28*AM27*PayrollTaxes -> 0 | AN30: =AN28*AN27*PayrollTaxes -> 0 | AO30: =SUM(AK30:AN30) -> 0 | AQ30: =AQ27*AQ28*PayrollTaxes -> 0
B31: Total Costs | C31: =C27*C28+C29+C30 -> 0 | D31: 0 | E31: 0 | F31: 0 | G31: 0 | H31: 0 | I31: 0 | J31: 0 | K31: 0 | L31: 0 | M31: 0 | N31: 0 | O31: =SUM(C31:N31) -> 0 | Q31: =Q27*Q28+Q29+Q30 -> 0 | R31: =R27*R28+R29+R30 -> 0 | S31: 0 | T31: 0 | U31: 0 | V31: 0 | W31: 0 | X31: 0 | Y31: 0 | Z31: 0 | AA31: 0 | AB31: 0 | AC31: =SUM(Q31:AB31) -> 0 | AE31: =(AE27*AE28)+AE29+AE30 -> 0 | AF31: =(AF27*AF28)+AF29+AF30 -> 0 | AG31: =(AG27*AG28)+AG29+AG30 -> 0 | AH31: =(AH27*AH28)+AH29+AH30 -> 0 | AI31: =SUM(AE31:AH31) -> 0 | AK31: =(AK27*AK28)+AK29+AK30 -> 0 | AL31: =(AL27*AL28)+AL29+AL30 -> 0 | AM31: =(AM27*AM28)+AM29+AM30 -> 0 | AN31: =(AN27*AN28)+AN29+AN30 -> 0 | AO31: =SUM(AK31:AN31) -> 0 | AQ31: =(AQ28*AQ27)+AQ29+AQ30 -> 0
B33: Other
B34: # Salaried Employees | C34: 0 | D34: =C34 -> 0 | E34: 0 | F34: 0 | G34: 0 | H34: 0 | I34: 0 | J34: 0 | K34: 0 | L34: 0 | M34: 0 | N34: 0 | Q34: =N34 -> 0 | R34: =Q34 -> 0 | S34: 0 | T34: 0 | U34: 0 | V34: 0 | W34: 0 | X34: 0 | Y34: 0 | Z34: 0 | AA34: 0 | AB34: 0 | AE34: =AB34 -> 0 | AF34: =AE34 -> 0 | AG34: 0 | AH34: 0 | AK34: =AH34 -> 0 | AL34: =AK34 -> 0 | AM34: 0 | AN34: 0 | AQ34: =AN34 -> 0
B35: Avg Salary per employee | C35: 0 | D35: =C35 -> 0 | E35: 0 | F35: 0 | G35: 0 | H35: 0 | I35: 0 | J35: 0 | K35: 0 | L35: 0 | M35: 0 | N35: 0 | O35: =SUM(C35:N35) -> 0 | Q35: =N35*(1+WageIncreaseRate) -> 0 | R35: =Q35 -> 0 | S35: 0 | T35: 0 | U35: 0 | V35: 0 | W35: 0 | X35: 0 | Y35: 0 | Z35: 0 | AA35: 0 | AB35: 0 | AC35: =SUM(Q35:AB35) -> 0 | AE35: =AB35*(1+WageIncreaseRate)*3 -> 0 | AF35: 0 | AG35: 0 | AH35: 0 | AI35: =SUM(AE35:AH35) -> 0 | AK35: =AH35*(1+WageIncreaseRate) -> 0 | AL35: 0 | AM35: 0 | AN35: 0 | AO35: =SUM(AK35:AN35) -> 0 | AQ35: =AN35*(1+WageIncreaseRate)*4 -> 0
B36: Benefits (across all employees) | C36: =C34*EmpBenes/12 -> 0 | D36: 0 | E36: 0 | F36: 0 | G36: 0 | H36: 0 | I36: 0 | J36: 0 | K36: 0 | L36: 0 | M36: 0 | N36: 0 | O36: =SUM(C36:N36) -> 0 | Q36: =Q34*(EmpBenes*(1+EmpBeneIncrease))/12 -> 0 | R36: 0 | S36: 0 | T36: 0 | U36: 0 | V36: 0 | W36: 0 | X36: 0 | Y36: 0 | Z36: 0 | AA36: 0 | AB36: 0 | AC36: =SUM(Q36:AB36) -> 0 | AE36: =AE34*(EmpBenes*(1+EmpBeneIncrease)^2)/4 -> 0 | AF36: =AF34*(EmpBenes*(1+EmpBeneIncrease)^2)/4 -> 0 | AG36: =AG34*(EmpBenes*(1+EmpBeneIncrease)^2)/4 -> 0 | AH36: =AH34*(EmpBenes*(1+EmpBeneIncrease)^2)/4 -> 0 | AI36: =SUM(AE36:AH36) -> 0 | AK36: =AK34*(EmpBenes*(1+EmpBeneIncrease)^3)/4 -> 0 | AL36: =AL34*(EmpBenes*(1+EmpBeneIncrease)^3)/4 -> 0 | AM36: =AM34*(EmpBenes*(1+EmpBeneIncrease)^3)/4 -> 0 | AN36: =AN34*(EmpBenes*(1+EmpBeneIncrease)^3)/4 -> 0 | AO36: =SUM(AK36:AN36) -> 0 | AQ36: =AQ34*(EmpBenes*(1+EmpBeneIncrease)^4) -> 0
B37: Payroll Taxes (across all employees) | C37: =C35*C34*PayrollTaxes -> 0 | D37: 0 | E37: 0 | F37: 0 | G37: 0 | H37: 0 | I37: 0 | J37: 0 | K37: 0 | L37: 0 | M37: 0 | N37: 0 | O37: =SUM(C37:N37) -> 0 | Q37: =Q35*Q34*PayrollTaxes -> 0 | R37: 0 | S37: 0 | T37: 0 | U37: 0 | V37: 0 | W37: 0 | X37: 0 | Y37: 0 | Z37: 0 | AA37: 0 | AB37: 0 | AC37: =SUM(Q37:AB37) -> 0 | AE37: =AE35*AE34*PayrollTaxes -> 0 | AF37: =AF35*AF34*PayrollTaxes -> 0 | AG37: =AG35*AG34*PayrollTaxes -> 0 | AH37: =AH35*AH34*PayrollTaxes -> 0 | AI37: =SUM(AE37:AH37) -> 0 | AK37: =AK35*AK34*PayrollTaxes -> 0 | AL37: =AL35*AL34*PayrollTaxes -> 0 | AM37: =AM35*AM34*PayrollTaxes -> 0 | AN37: =AN35*AN34*PayrollTaxes -> 0 | AO37: =SUM(AK37:AN37) -> 0 | AQ37: =AQ34*AQ35*PayrollTaxes -> 0
B38: Total Costs | C38: =C34*C35+C36+C37 -> 0 | D38: 0 | E38: 0 | F38: 0 | G38: 0 | H38: 0 | I38: 0 | J38: 0 | K38: 0 | L38: 0 | M38: 0 | N38: 0 | O38: =SUM(C37:N37) -> 0 | Q38: =Q34*Q35+Q36+Q37 -> 0 | R38: 0 | S38: 0 | T38: 0 | U38: 0 | V38: 0 | W38: 0 | X38: 0 | Y38: 0 | Z38: 0 | AA38: 0 | AB38: 0 | AC38: =SUM(Q38:AB38) -> 0 | AE38: =(AE34*AE35)+AE36+AE37 -> 0 | AF38: =(AF34*AF35)+AF36+AF37 -> 0 | AG38: =(AG34*AG35)+AG36+AG37 -> 0 | AH38: =(AH34*AH35)+AH36+AH37 -> 0 | AI38: =SUM(AE38:AH38) -> 0 | AK38: =(AK34*AK35)+AK36+AK37 -> 0 | AL38: =(AL34*AL35)+AL36+AL37 -> 0 | AM38: =(AM34*AM35)+AM36+AM37 -> 0 | AN38: =(AN34*AN35)+AN36+AN37 -> 0 | AO38: =SUM(AK38:AN38) -> 0 | AQ38: =(AQ35*AQ34)+AQ36+AQ37 -> 0
B40: Part-Time / Hourly Employees
B41: # Part-Time Employees | C41: 0 | D41: =C41 -> 0 | E41: 0 | F41: 0 | G41: 0 | H41: 0 | I41: 0 | J41: 0 | K41: 0 | L41: 0 | M41: 0 | N41: 0 | Q41: =N41 -> 0 | R41: =Q41 -> 0 | S41: 0 | T41: 0 | U41: 0 | V41: 0 | W41: 0 | X41: 0 | Y41: 0 | Z41: 0 | AA41: 0 | AB41: 0 | AE41: =AB41 -> 0 | AF41: =AE41 -> 0 | AG41: 0 | AH41: 0 | AK41: =AH41 -> 0 | AL41: =AK41 -> 0 | AM41: 0 | AN41: 0 | AQ41: =AN41 -> 0
B42: Avg. Hours per Hourly Employee | C42: 0 | D42: =C42 -> 0 | E42: 0 | F42: 0 | G42: 0 | H42: 0 | I42: 0 | J42: 0 | K42: 0 | L42: 0 | M42: 0 | N42: 0 | Q42: =N42 -> 0 | R42: =Q42 -> 0 | S42: 0 | T42: 0 | U42: 0 | V42: 0 | W42: 0 | X42: 0 | Y42: 0 | Z42: 0 | AA42: 0 | AB42: 0 | AE42: =AB42*3 -> 0 | AF42: 0 | AG42: 0 | AH42: 0 | AK42: =AH42 -> 0 | AL42: 0 | AM42: 0 | AN42: 0 | AQ42: =AN42*4 -> 0
B43: Avg Hourly Rate | C43: 0 | D43: =C43 -> 0 | E43: 0 | F43: 0 | G43: 0 | H43: 0 | I43: 0 | J43: 0 | K43: 0 | L43: 0 | M43: 0 | N43: 0 | Q43: =N43*(1+WageIncreaseRate) -> 0 | R43: =Q43 -> 0 | S43: 0 | T43: 0 | U43: 0 | V43: 0 | W43: 0 | X43: 0 | Y43: 0 | Z43: 0 | AA43: 0 | AB43: 0 | AE43: =AB43*(1+WageIncreaseRate) -> 0 | AF43: 0 | AG43: 0 | AH43: 0 | AK43: =AH43*(1+WageIncreaseRate) -> 0 | AL43: 0 | AM43: 0 | AN43: 0 | AQ43: =AN43*(1+WageIncreaseRate) -> 0
B44: Calculated Wages Per Hourly Employee | C44: =C42*C43 -> 0 | D44: =D42*D43 -> 0 | E44: 0 | F44: 0 | G44: 0 | H44: 0 | I44: =I42*I43 -> 0 | J44: =J42*J43 -> 0 | K44: =K42*K43 -> 0 | L44: =L42*L43 -> 0 | M44: 0 | N44: =N42*N43 -> 0 | O44: =SUM(C44:N44) -> 0 | Q44: =Q42*Q43 -> 0 | R44: 0 | S44: 0 | T44: 0 | U44: 0 | V44: 0 | W44: 0 | X44: 0 | Y44: 0 | Z44: 0 | AA44: 0 | AB44: 0 | AC44: =SUM(Q44:AB44) -> 0 | AE44: =AE42*AE43 -> 0 | AF44: =AF42*AF43 -> 0 | AG44: 0 | AH44: 0 | AI44: =SUM(AE44:AH44) -> 0 | AK44: =AK42*AK43 -> 0 | AL44: =AL42*AL43 -> 0 | AM44: 0 | AN44: 0 | AO44: =SUM(AK44:AN44) -> 0 | AQ44: =AQ42*AQ43 -> 0
B45: Wages | C45: =C41*C44 -> 0 | D45: =D41*D44 -> 0 | E45: 0 | F45: 0 | G45: 0 | H45: 0 | I45: 0 | J45: 0 | K45: 0 | L45: 0 | M45: 0 | N45: =N41*N44 -> 0 | O45: =SUM(C45:N45) -> 0 | Q45: =Q41*Q44 -> 0 | R45: =R41*R44 -> 0 | S45: 0 | T45: 0 | U45: 0 | V45: 0 | W45: 0 | X45: 0 | Y45: 0 | Z45: 0 | AA45: 0 | AB45: 0 | AC45: =SUM(Q45:AB45) -> 0 | AE45: =AE41*AE44 -> 0 | AF45: =AF41*AF44 -> 0 | AG45: =AG41*AG44 -> 0 | AH45: 0 | AI45: =SUM(AE45:AH45) -> 0 | AK45: =AK41*AK44 -> 0 | AL45: =AL41*AL44 -> 0 | AM45: =AM41*AM44 -> 0 | AN45: =AN41*AN44 -> 0 | AO45: =SUM(AK45:AN45) -> 0 | AQ45: =AQ43*AQ44 -> 0
B46: Benefits (across all employees) | C46: =C41*PTEmpBenes/12 -> 0 | D46: 0 | E46: 0 | F46: 0 | G46: 0 | H46: 0 | I46: 0 | J46: 0 | K46: 0 | L46: 0 | M46: 0 | N46: 0 | O46: =SUM(C46:N46) -> 0 | Q46: =Q41*(PTEmpBenes*(1+EmpBeneIncrease))/12 -> 0 | R46: 0 | S46: 0 | T46: 0 | U46: 0 | V46: 0 | W46: 0 | X46: 0 | Y46: 0 | Z46: 0 | AA46: 0 | AB46: 0 | AC46: =SUM(Q46:AB46) -> 0 | AE46: =AE41*(PTEmpBenes*(1+EmpBeneIncrease)^2)/4 -> 0 | AF46: =AF41*(PTEmpBenes*(1+EmpBeneIncrease)^2)/4 -> 0 | AG46: =AG41*(PTEmpBenes*(1+EmpBeneIncrease)^2)/4 -> 0 | AH46: =AH41*(PTEmpBenes*(1+EmpBeneIncrease)^2)/4 -> 0 | AI46: =SUM(AE46:AH46) -> 0 | AK46: =AK41*(PTEmpBenes*(1+EmpBeneIncrease)^3)/4 -> 0 | AL46: =AL41*(PTEmpBenes*(1+EmpBeneIncrease)^3)/4 -> 0 | AM46: =AM41*(PTEmpBenes*(1+EmpBeneIncrease)^3)/4 -> 0 | AN46: =AN41*(PTEmpBenes*(1+EmpBeneIncrease)^3)/4 -> 0 | AO46: =SUM(AK46:AN46) -> 0 | AQ46: =AQ41*(PTEmpBenes*(1+EmpBeneIncrease)^4) -> 0
B47: Payroll Taxes (across all employees) | C47: =C41*C44*PayrollTaxes -> 0 | D47: 0 | E47: 0 | F47: 0 | G47: 0 | H47: 0 | I47: 0 | J47: 0 | K47: 0 | L47: 0 | M47: 0 | N47: 0 | O47: =SUM(C47:N47) -> 0 | Q47: =Q41*Q44*PayrollTaxes -> 0 | R47: 0 | S47: 0 | T47: 0 | U47: 0 | V47: 0 | W47: 0 | X47: 0 | Y47: 0 | Z47: 0 | AA47: 0 | AB47: 0 | AC47: =SUM(Q47:AB47) -> 0 | AE47: =AE41*AE44*PayrollTaxes -> 0 | AF47: =AF41*AF44*PayrollTaxes -> 0 | AG47: =AG41*AG44*PayrollTaxes -> 0 | AH47: =AH41*AH44*PayrollTaxes -> 0 | AI47: =SUM(AE47:AH47) -> 0 | AK47: =AK41*AK44*PayrollTaxes -> 0 | AL47: =AL41*AL44*PayrollTaxes -> 0 | AM47: =AM41*AM44*PayrollTaxes -> 0 | AN47: =AN41*AN44*PayrollTaxes -> 0 | AO47: =SUM(AK47:AN47) -> 0 | AQ47: =AQ41*AQ44*PayrollTaxes -> 0
B48: Total Costs | C48: =SUM(C45:C47) -> 0 | D48: =SUM(D45:D47) -> 0 | E48: 0 | F48: 0 | G48: 0 | H48: 0 | I48: 0 | J48: 0 | K48: =SUM(K45:K47) -> 0 | L48: =SUM(L45:L47) -> 0 | M48: =SUM(M45:M47) -> 0 | N48: =SUM(N45:N47) -> 0 | O48: =SUM(O45:O47) -> 0 | Q48: =SUM(Q45:Q47) -> 0 | R48: =SUM(R45:R47) -> 0 | S48: 0 | T48: 0 | U48: 0 | V48: 0 | W48: 0 | X48: 0 | Y48: 0 | Z48: 0 | AA48: 0 | AB48: 0 | AC48: =SUM(AC45:AC47) -> 0 | AE48: =SUM(AE45:AE47) -> 0 | AF48: =SUM(AF45:AF47) -> 0 | AG48: 0 | AH48: 0 | AI48: =SUM(AI45:AI47) -> 0 | AK48: =SUM(AK45:AK47) -> 0 | AL48: =SUM(AL45:AL47) -> 0 | AM48: 0 | AN48: 0 | AO48: =SUM(AO45:AO47) -> 0 | AQ48: =SUM(AQ45:AQ47) -> 0
B50: TOTAL
B51: # Full Time Employees | C51: =SUM(C34,C27,C20,C13,C6) -> 0 | D51: 0 | E51: 0 | F51: 0 | G51: 0 | H51: 0 | I51: 0 | J51: 0 | K51: 0 | L51: 0 | M51: 0 | N51: 0 | Q51: =SUM(Q34,Q27,Q20,Q13,Q6) -> 0 | R51: 0 | S51: 0 | T51: 0 | U51: 0 | V51: 0 | W51: 0 | X51: 0 | Y51: 0 | Z51: 0 | AA51: 0 | AB51: 0 | AE51: =SUM(AE34,AE27,AE20,AE13,AE6) -> 0 | AF51: =SUM(AF34,AF27,AF20,AF13,AF6) -> 0 | AG51: =SUM(AG34,AG27,AG20,AG13,AG6) -> 0 | AH51: =SUM(AH34,AH27,AH20,AH13,AH6) -> 0 | AK51: =SUM(AK34,AK27,AK20,AK13,AK6) -> 0 | AL51: =SUM(AL34,AL27,AL20,AL13,AL6) -> 0 | AM51: =SUM(AM34,AM27,AM20,AM13,AM6) -> 0 | AN51: =SUM(AN34,AN27,AN20,AN13,AN6) -> 0 | AQ51: =SUM(AQ34,AQ27,AQ20,AQ13,AQ6) -> 0
B52: # Part-Time Employees | C52: =C41 -> 0 | D52: =D41 -> 0 | E52: 0 | F52: 0 | G52: 0 | H52: 0 | I52: 0 | J52: 0 | K52: 0 | L52: 0 | M52: 0 | N52: 0 | Q52: =Q41 -> 0 | R52: =R41 -> 0 | S52: 0 | T52: 0 | U52: 0 | V52: 0 | W52: 0 | X52: 0 | Y52: 0 | Z52: 0 | AA52: 0 | AB52: 0 | AE52: =AE41 -> 0 | AF52: =AF41 -> 0 | AG52: =AG41 -> 0 | AH52: =AH41 -> 0 | AK52: =AK41 -> 0 | AL52: =AL41 -> 0 | AM52: =AM41 -> 0 | AN52: =AN41 -> 0 | AQ52: =AQ41 -> 0
B53: Salary/Wages | C53: =(C6*C7)+(C13*C14)+(C20*C21)+(C27*C28)+(C34*C35)+(C45) -> 0 | D53: =(D6*D7)+(D13*D14)+(D20*D21)+(D27*D28)+(D34*D35)+(D45) -> 0 | E53: 0 | F53: 0 | G53: 0 | H53: 0 | I53: 0 | J53: 0 | K53: 0 | L53: 0 | M53: =(M6*M7)+(M13*M14)+(M20*M21)+(M27*M28)+(M34*M35)+(M45) -> 0 | N53: 0 | O53: =SUM(C53:N53) -> 0 | Q53: =(Q6*Q7)+(Q13*Q14)+(Q20*Q21)+(Q27*Q28)+(Q34*Q35)+(Q45) -> 0 | R53: =(R6*R7)+(R13*R14)+(R20*R21)+(R27*R28)+(R34*R35)+(R45) -> 0 | S53: 0 | T53: 0 | U53: 0 | V53: 0 | W53: 0 | X53: 0 | Y53: 0 | Z53: 0 | AA53: 0 | AB53: 0 | AC53: =SUM(Q53:AB53) -> 0 | AE53: =(AE6*AE7)+(AE13*AE14)+(AE20*AE21)+(AE27*AE28)+(AE34*AE35)+(AE45) -> 0 | AF53: =(AF6*AF7)+(AF13*AF14)+(AF20*AF21)+(AF27*AF28)+(AF34*AF35)+(AF45) -> 0 | AG53: 0 | AH53: 0 | AI53: =SUM(AE53:AH53) -> 0 | AK53: =(AK6*AK7)+(AK13*AK14)+(AK20*AK21)+(AK27*AK28)+(AK34*AK35)+(AK45) -> 0 | AL53: =(AL6*AL7)+(AL13*AL14)+(AL20*AL21)+(AL27*AL28)+(AL34*AL35)+(AL45) -> 0 | AM53: 0 | AN53: 0 | AO53: =SUM(AK53:AN53) -> 0 | AQ53: =(AQ6*AQ7)+(AQ13*AQ14)+(AQ20*AQ21)+(AQ27*AQ28)+(AQ34*AQ35)+(AQ45) -> 0
B54: Benefits | C54: =SUM(C46, C36,C29,C22,C15,C8) -> 0 | D54: =SUM(D46, D36,D29,D22,D15,D8) -> 0 | E54: 0 | F54: 0 | G54: 0 | H54: 0 | I54: 0 | J54: 0 | K54: 0 | L54: 0 | M54: 0 | N54: 0 | O54: =SUM(C54:N54) -> 0 | Q54: =SUM(Q46, Q36,Q29,Q22,Q15,Q8) -> 0 | R54: 0 | S54: 0 | T54: 0 | U54: 0 | V54: 0 | W54: 0 | X54: 0 | Y54: 0 | Z54: 0 | AA54: 0 | AB54: 0 | AC54: =SUM(Q54:AB54) -> 0 | AE54: =SUM(AE46, AE36,AE29,AE22,AE15,AE8) -> 0 | AF54: 0 | AG54: 0 | AH54: 0 | AI54: =SUM(AE54:AH54) -> 0 | AK54: =SUM(AK46, AK36,AK29,AK22,AK15,AK8) -> 0 | AL54: 0 | AM54: 0 | AN54: 0 | AO54: =SUM(AK54:AN54) -> 0 | AQ54: =SUM(AQ46, AQ36,AQ29,AQ22,AQ15,AQ8) -> 0
B55: Payroll Taxes | C55: =SUM(C47, C37,C30,C23,C16,C9) -> 0 | D55: =SUM(D47, D37,D30,D23,D16,D9) -> 0 | E55: 0 | F55: 0 | G55: 0 | H55: 0 | I55: 0 | J55: 0 | K55: 0 | L55: 0 | M55: 0 | N55: 0 | O55: =SUM(C55:N55) -> 0 | Q55: =SUM(Q47, Q37,Q30,Q23,Q16,Q9) -> 0 | R55: 0 | S55: 0 | T55: 0 | U55: 0 | V55: 0 | W55: 0 | X55: 0 | Y55: 0 | Z55: 0 | AA55: 0 | AB55: 0 | AC55: =SUM(Q55:AB55) -> 0 | AE55: 0 | AF55: 0 | AG55: 0 | AH55: 0 | AI55: =SUM(AE55:AH55) -> 0 | AK55: 0 | AL55: 0 | AM55: 0 | AN55: 0 | AO55: =SUM(AK55:AN55) -> 0 | AQ55: =SUM(AQ47, AQ37,AQ30,AQ23,AQ16,AQ9) -> 0
B56: GRAND TOTAL COSTS | C56: =SUM(C53:C55) -> 0 | D56: 0 | E56: 0 | F56: 0 | G56: 0 | H56: 0 | I56: 0 | J56: 0 | K56: 0 | L56: 0 | M56: 0 | N56: 0 | O56: 0 | Q56: =SUM(Q53:Q55) -> 0 | R56: 0 | S56: 0 | T56: 0 | U56: 0 | V56: 0 | W56: 0 | X56: 0 | Y56: 0 | Z56: 0 | AA56: 0 | AB56: 0 | AC56: =SUM(AC53:AC55) -> 0 | AE56: =SUM(AE53:AE55) -> 0 | AF56: =SUM(AF53:AF55) -> 0 | AG56: =SUM(AG53:AG55) -> 0 | AH56: =SUM(AH53:AH55) -> 0 | AI56: =SUM(AI53:AI55) -> 0 | AK56: =SUM(AK53:AK55) -> 0 | AL56: =SUM(AL53:AL55) -> 0 | AM56: =SUM(AM53:AM55) -> 0 | AN56: =SUM(AN53:AN55) -> 0 | AO56: =SUM(AO53:AO55) -> 0 | AQ56: =SUM(AQ10,AQ17,AQ24,AQ31,AQ38, AQ48) -> 0

Sheet MktBudj
C1: =HYPERLINK( "http://www.planningshop.com/products/mbt.asp", "For a more comprehensive and detailed Marketing Budget, purchase the Excel Marketing Budget Templates from PlanningShop.") -> For a more comprehensive and detailed Marketing Budget, purchase the Excel Marketing Budget Templates from PlanningShop.
B2: Marketing Budget | C2: =SalesProj!E2 -> 2013 | Q2: =SalesProj!S2 -> 2014 | AE2: =SalesProj!AG2 -> 2015 | AK2: =SalesProj!AM2 -> 2016 | AQ2: =SalesProj!AS2 -> 2017
C3: =SalesProj!E3 -> January | D3: =SalesProj!F3 -> February | E3: =SalesProj!G3 -> March | F3: =SalesProj!H3 -> April | G3: =SalesProj!I3 -> May | H3: =SalesProj!J3 -> June | I3: =SalesProj!K3 -> July | J3: =SalesProj!L3 -> August | K3: =SalesProj!M3 -> September | L3: =SalesProj!N3 -> October | M3: =SalesProj!O3 -> November | N3: =SalesProj!P3 -> December | O3: TOTAL | Q3: =SalesProj!S3 -> January | R3: =SalesProj!T3 -> February | S3: =SalesProj!U3 -> March | T3: =SalesProj!V3 -> April | U3: =SalesProj!W3 -> May | V3: =SalesProj!X3 -> June | W3: =SalesProj!Y3 -> July | X3: =SalesProj!Z3 -> August | Y3: =SalesProj!AA3 -> September | Z3: =SalesProj!AB3 -> October | AA3: =SalesProj!AC3 -> November | AB3: =SalesProj!AD3 -> December | AC3: TOTAL | AE3: 1st Quarter | AF3: 2nd Quarter | AG3: 3rd Quarter | AH3: 4th Quarter | AI3: TOTAL | AK3: 1st Quarter | AL3: 2nd Quarter | AM3: 3rd Quarter | AN3: 4th Quarter | AO3: TOTAL
B4: Professional Assistance
B5: Marketing/PR Consultants | C5: 0 | D5: =C5 -> 0 | E5: =D5 -> 0 | F5: =E5 -> 0 | G5: =F5 -> 0 | H5: 0 | I5: 0 | J5: 0 | K5: 0 | L5: 0 | M5: 0 | N5: 0 | O5: =SUM(C5:N5) -> 0 | Q5: =N5 -> 0 | R5: =Q5 -> 0 | S5: =R5 -> 0 | T5: =S5 -> 0 | U5: =T5 -> 0 | V5: 0 | W5: 0 | X5: 0 | Y5: 0 | Z5: 0 | AA5: 0 | AB5: 0 | AC5: =SUM(Q5:AB5) -> 0 | AE5: =AB5*3 -> 0 | AF5: =AE5 -> 0 | AG5: =AF5 -> 0 | AH5: 0 | AI5: =SUM(AE5:AH5) -> 0 | AK5: =AH5 -> 0 | AL5: =AK5 -> 0 | AM5: =AL5 -> 0 | AN5: =AM5 -> 0 | AO5: =SUM(AK5:AN5) -> 0 | AQ5: =AN5*4 -> 0
B6: Advertising Agencies | C6: 0 | D6: =C6 -> 0 | E6: 0 | F6: 0 | G6: 0 | H6: 0 | I6: 0 | J6: 0 | K6: 0 | L6: 0 | M6: 0 | N6: 0 | O6: 0 | Q6: =N6 -> 0 | R6: =Q6 -> 0 | S6: 0 | T6: 0 | U6: 0 | V6: 0 | W6: 0 | X6: 0 | Y6: 0 | Z6: 0 | AA6: 0 | AB6: 0 | AC6: 0 | AE6: =AB6*3 -> 0 | AF6: =AE6 -> 0 | AG6: 0 | AH6: 0 | AI6: 0 | AK6: 0 | AL6: =AK6 -> 0 | AM6: 0 | AN6: 0 | AO6: 0 | AQ6: =AN6*4 -> 0
B7: Social Media Specialists | C7: 0 | D7: =C7 -> 0 | E7: 0 | F7: 0 | G7: 0 | H7: 0 | I7: 0 | J7: 0 | K7: 0 | L7: 0 | M7: 0 | N7: 0 | O7: 0 | Q7: 0 | R7: =Q7 -> 0 | S7: 0 | T7: 0 | U7: 0 | V7: 0 | W7: 0 | X7: 0 | Y7: 0 | Z7: 0 | AA7: 0 | AB7: 0 | AC7: 0 | AE7: 0 | AF7: 0 | AG7: 0 | AH7: 0 | AI7: 0 | AK7: 0 | AL7: 0 | AM7: 0 | AN7: 0 | AO7: 0 | AQ7: 0
B8: SEO Specialist | C8: 0 | D8: 0 | E8: 0 | F8: 0 | G8: 0 | H8: 0 | I8: 0 | J8: 0 | K8: 0 | L8: 0 | M8: 0 | N8: 0 | O8: =SUM(C8:N8) -> 0 | Q8: 0 | R8: =Q8 -> 0 | S8: 0 | T8: 0 | U8: 0 | V8: 0 | W8: 0 | X8: 0 | Y8: =X8 -> 0 | Z8: =Y8 -> 0 | AA8: =Z8 -> 0 | AB8: =AA8 -> 0 | AC8: 0 | AE8: 0 | AF8: =AE8 -> 0 | AG8: 0 | AH8: 0 | AI8: 0 | AK8: 0 | AL8: =AK8 -> 0 | AM8: 0 | AN8: 0 | AO8: 0 | AQ8: 0
B9: Graphic/Web Design | C9: 0 | D9: =C9 -> 0 | E9: 0 | F9: 0 | G9: 0 | H9: 0 | I9: 0 | J9: 0 | K9: 0 | L9: 0 | M9: 0 | N9: 0 | O9: 0 | Q9: 0 | R9: =Q9 -> 0 | S9: 0 | T9: 0 | U9: 0 | V9: 0 | W9: 0 | X9: 0 | Y9: 0 | Z9: 0 | AA9: 0 | AB9: 0 | AC9: 0 | AE9: 0 | AF9: 0 | AG9: 0 | AH9: 0 | AI9: 0 | AK9: 0 | AL9: 0 | AM9: 0 | AN9: 0 | AO9: 0 | AQ9: 0
B10: Brochures/Leaflets/Flyers | C10: 0 | D10: =C10 -> 0 | E10: 0 | F10: 0 | G10: 0 | H10: 0 | I10: 0 | J10: 0 | K10: 0 | L10: 0 | M10: 0 | N10: 0 | O10: 0 | Q10: 0 | R10: =Q10 -> 0 | S10: 0 | T10: 0 | U10: 0 | V10: 0 | W10: 0 | X10: 0 | Y10: 0 | Z10: 0 | AA10: 0 | AB10: 0 | AC10: 0 | AE10: 0 | AF10: 0 | AG10: 0 | AH10: 0 | AI10: 0 | AK10: 0 | AL10: 0 | AM10: 0 | AN10: 0 | AO10: 0 | AQ10: 0
B11: Signs/Billboards | C11: 0 | D11: =C11 -> 0 | E11: 0 | F11: 0 | G11: 0 | H11: 0 | I11: 0 | J11: 0 | K11: 0 | L11: 0 | M11: 0 | N11: 0 | O11: 0 | Q11: 0 | R11: =Q11 -> 0 | S11: 0 | T11: 0 | U11: 0 | V11: 0 | W11: 0 | X11: 0 | Y11: 0 | Z11: 0 | AA11: 0 | AB11: 0 | AC11: 0 | AE11: 0 | AF11: 0 | AG11: 0 | AH11: 0 | AI11: 0 | AK11: 0 | AL11: 0 | AM11: 0 | AN11: 0 | AO11: 0 | AQ11: 0
B12: Merchandising Displays | C12: 0 | D12: =C12 -> 0 | E12: 0 | F12: 0 | G12: 0 | H12: 0 | I12: 0 | J12: 0 | K12: 0 | L12: 0 | M12: 0 | N12: 0 | O12: 0 | Q12: 0 | R12: =Q12 -> 0 | S12: 0 | T12: 0 | U12: 0 | V12: 0 | W12: 0 | X12: 0 | Y12: 0 | Z12: 0 | AA12: 0 | AB12: 0 | AC12: 0 | AE12: 0 | AF12: 0 | AG12: 0 | AH12: 0 | AI12: 0 | AK12: 0 | AL12: 0 | AM12: 0 | AN12: 0 | AO12: 0 | AQ12: 0
B13: Sampling/Premiums | C13: 0 | D13: =C13 -> 0 | E13: 0 | F13: 0 | G13: 0 | H13: 0 | I13: 0 | J13: 0 | K13: 0 | L13: 0 | M13: 0 | N13: 0 | O13: 0 | Q13: 0 | R13: =Q13 -> 0 | S13: 0 | T13: 0 | U13: 0 | V13: 0 | W13: 0 | X13: 0 | Y13: 0 | Z13: 0 | AA13: 0 | AB13: 0 | AC13: 0 | AE13: 0 | AF13: 0 | AG13: 0 | AH13: 0 | AI13: 0 | AK13: 0 | AL13: 0 | AM13: 0 | AN13: 0 | AO13: 0 | AQ13: 0
B14: Media Advertising
B15: Print (newspaper, etc.) | C15: 0 | D15: =C15 -> 0 | E15: 0 | F15: 0 | G15: 0 | H15: 0 | I15: 0 | J15: 0 | K15: 0 | L15: 0 | M15: 0 | N15: 0 | O15: =SUM(C15:N15) -> 0 | Q15: =N15 -> 0 | R15: =Q15 -> 0 | S15: 0 | T15: 0 | U15: 0 | V15: 0 | W15: 0 | X15: 0 | Y15: 0 | Z15: 0 | AA15: 0 | AB15: 0 | AC15: =SUM(Q15:AB15) -> 0 | AE15: =AB15*3 -> 0 | AF15: =AE15 -> 0 | AG15: 0 | AH15: 0 | AI15: =SUM(AE15:AH15) -> 0 | AK15: =AH15 -> 0 | AL15: =AK15 -> 0 | AM15: 0 | AN15: 0 | AO15: =SUM(AK15:AN15) -> 0 | AQ15: 0
B16: Television and Radio | C16: 0 | D16: =C16 -> 0 | E16: 0 | F16: 0 | G16: 0 | H16: 0 | I16: 0 | J16: 0 | K16: 0 | L16: 0 | M16: 0 | N16: 0 | O16: 0 | Q16: =N16 -> 0 | R16: =Q16 -> 0 | S16: 0 | T16: 0 | U16: 0 | V16: 0 | W16: 0 | X16: 0 | Y16: 0 | Z16: 0 | AA16: 0 | AB16: 0 | AC16: 0 | AE16: =AB16*3 -> 0 | AF16: 0 | AG16: 0 | AH16: 0 | AI16: 0 | AK16: 0 | AL16: 0 | AM16: 0 | AN16: 0 | AO16: 0 | AQ16: 0
B17: Online | C17: 0 | D17: =C17 -> 0 | E17: 0 | F17: 0 | G17: 0 | H17: 0 | I17: 0 | J17: 0 | K17: 0 | L17: 0 | M17: 0 | N17: 0 | O17: 0 | Q17: 0 | R17: =Q17 -> 0 | S17: 0 | T17: 0 | U17: 0 | V17: 0 | W17: 0 | X17: 0 | Y17: 0 | Z17: 0 | AA17: 0 | AB17: 0 | AC17: 0 | AE17: 0 | AF17: 0 | AG17: 0 | AH17: 0 | AI17: 0 | AK17: 0 | AL17: 0 | AM17: 0 | AN17: 0 | AO17: 0 | AQ17: 0
B18: Other Media | C18: 0 | D18: =C18 -> 0 | E18: 0 | F18: 0 | G18: 0 | H18: 0 | I18: 0 | J18: 0 | K18: 0 | L18: 0 | M18: 0 | N18: 0 | O18: 0 | Q18: 0 | R18: =Q18 -> 0 | S18: 0 | T18: 0 | U18: 0 | V18: 0 | W18: 0 | X18: 0 | Y18: 0 | Z18: 0 | AA18: 0 | AB18: 0 | AC18: 0 | AE18: 0 | AF18: 0 | AG18: 0 | AH18: 0 | AI18: 0 | AK18: 0 | AL18: 0 | AM18: 0 | AN18: 0 | AO18: 0 | AQ18: 0
B19: Phone Directories | C19: 0 | D19: =C19 -> 0 | E19: 0 | F19: 0 | G19: 0 | H19: 0 | I19: 0 | J19: 0 | K19: 0 | L19: 0 | M19: 0 | N19: 0 | O19: 0 | Q19: 0 | R19: =Q19 -> 0 | S19: 0 | T19: 0 | U19: 0 | V19: 0 | W19: 0 | X19: 0 | Y19: 0 | Z19: 0 | AA19: 0 | AB19: 0 | AC19: 0 | AE19: 0 | AF19: 0 | AG19: 0 | AH19: 0 | AI19: 0 | AK19: 0 | AL19: 0 | AM19: 0 | AN19: 0 | AO19: 0 | AQ19: 0
B20: Advertising Specialties | C20: 0 | D20: =C20 -> 0 | E20: 0 | F20: 0 | G20: 0 | H20: 0 | I20: 0 | J20: 0 | K20: 0 | L20: 0 | M20: 0 | N20: 0 | O20: 0 | Q20: 0 | R20: =Q20 -> 0 | S20: 0 | T20: 0 | U20: 0 | V20: 0 | W20: 0 | X20: 0 | Y20: 0 | Z20: 0 | AA20: 0 | AB20: 0 | AC20: 0 | AE20: 0 | AF20: =AE20 -> 0 | AG20: 0 | AH20: 0 | AI20: 0 | AK20: 0 | AL20: =AK20 -> 0 | AM20: 0 | AN20: 0 | AO20: 0 | AQ20: 0
B21: Direct Mail | C21: 0 | D21: =C21 -> 0 | E21: 0 | F21: 0 | G21: 0 | H21: 0 | I21: 0 | J21: 0 | K21: 0 | L21: 0 | M21: 0 | N21: 0 | O21: 0 | Q21: 0 | R21: =Q21 -> 0 | S21: 0 | T21: 0 | U21: 0 | V21: 0 | W21: 0 | X21: 0 | Y21: 0 | Z21: 0 | AA21: 0 | AB21: 0 | AC21: 0 | AE21: 0 | AF21: 0 | AG21: 0 | AH21: 0 | AI21: 0 | AK21: 0 | AL21: 0 | AM21: 0 | AN21: 0 | AO21: 0 | AQ21: 0
B22: Website
B23: Development/Programming | C23: 0 | D23: =C23 -> 0 | E23: 0 | F23: 0 | G23: 0 | H23: 0 | I23: 0 | J23: 0 | K23: 0 | L23: 0 | M23: 0 | N23: 0 | O23: 0 | Q23: =N23 -> 0 | R23: =Q23 -> 0 | S23: 0 | T23: 0 | U23: 0 | V23: 0 | W23: 0 | X23: 0 | Y23: 0 | Z23: 0 | AA23: 0 | AB23: 0 | AC23: =SUM(Q23:AB23) -> 0 | AE23: =AB23*3 -> 0 | AF23: =AE23 -> 0 | AG23: 0 | AH23: 0 | AI23: =SUM(AE23:AH23) -> 0 | AK23: =AH23 -> 0 | AL23: =AK23 -> 0 | AM23: 0 | AN23: 0 | AO23: =SUM(AK23:AN23) -> 0 | AQ23: 0
B24: Maintenance and Hosting | C24: 0 | D24: =C24 -> 0 | E24: 0 | F24: 0 | G24: 0 | H24: 0 | I24: 0 | J24: 0 | K24: 0 | L24: 0 | M24: 0 | N24: 0 | O24: =SUM(C24:N24) -> 0 | Q24: =N24 -> 0 | R24: =Q24 -> 0 | S24: 0 | T24: 0 | U24: 0 | V24: 0 | W24: 0 | X24: 0 | Y24: 0 | Z24: 0 | AA24: 0 | AB24: 0 | AC24: =SUM(Q24:AB24) -> 0 | AE24: =AB24*3 -> 0 | AF24: 0 | AG24: 0 | AH24: 0 | AI24: =SUM(AE24:AH24) -> 0 | AK24: =AH24 -> 0 | AL24: 0 | AM24: 0 | AN24: 0 | AO24: =SUM(AK24:AN24) -> 0 | AQ24: 0
B25: Trade Shows
B26: Fees and Setup | C26: 0 | D26: =C26 -> 0 | E26: 0 | F26: 0 | G26: 0 | H26: 0 | I26: 0 | J26: 0 | K26: 0 | L26: 0 | M26: 0 | N26: 0 | O26: =SUM(C26:N26) -> 0 | Q26: =N26 -> 0 | R26: =Q26 -> 0 | S26: 0 | T26: 0 | U26: 0 | V26: 0 | W26: 0 | X26: 0 | Y26: 0 | Z26: 0 | AA26: 0 | AB26: 0 | AC26: =SUM(Q26:AB26) -> 0 | AE26: =AB26*3 -> 0 | AF26: =AE26 -> 0 | AG26: 0 | AH26: 0 | AI26: =SUM(AE26:AH26) -> 0 | AK26: =AH26 -> 0 | AL26: =AK26 -> 0 | AM26: 0 | AN26: 0 | AO26: =SUM(AK26:AN26) -> 0 | AQ26: 0
B27: Travel/Shipping | C27: 0 | D27: =C27 -> 0 | E27: 0 | F27: 0 | G27: 0 | H27: 0 | I27: 0 | J27: 0 | K27: 0 | L27: 0 | M27: 0 | N27: 0 | O27: =SUM(C27:N27) -> 0 | Q27: =N27 -> 0 | R27: =Q27 -> 0 | S27: 0 | T27: 0 | U27: 0 | V27: 0 | W27: 0 | X27: 0 | Y27: 0 | Z27: 0 | AA27: 0 | AB27: 0 | AC27: =SUM(Q27:AB27) -> 0 | AE27: =AB27*3 -> 0 | AF27: 0 | AG27: 0 | AH27: 0 | AI27: =SUM(AE27:AH27) -> 0 | AK27: =AH27 -> 0 | AL27: 0 | AM27: 0 | AN27: 0 | AO27: =SUM(AK27:AN27) -> 0 | AQ27: 0
B28: Exhibits/Signs | C28: 0 | D28: =C28 -> 0 | E28: 0 | F28: 0 | G28: 0 | H28: 0 | I28: 0 | J28: 0 | K28: 0 | L28: 0 | M28: 0 | N28: 0 | O28: =SUM(C28:N28) -> 0 | Q28: =N28 -> 0 | R28: =Q28 -> 0 | S28: 0 | T28: 0 | U28: 0 | V28: 0 | W28: 0 | X28: 0 | Y28: 0 | Z28: 0 | AA28: 0 | AB28: 0 | AC28: =SUM(Q28:AB28) -> 0 | AE28: =AB28*3 -> 0 | AF28: =AE28 -> 0 | AG28: 0 | AH28: 0 | AI28: =SUM(AE28:AH28) -> 0 | AK28: =AH28 -> 0 | AL28: =AK28 -> 0 | AM28: 0 | AN28: 0 | AO28: =SUM(AK28:AN28) -> 0 | AQ28: 0
B29: Public Relations/Materials | C29: 0 | D29: =C29 -> 0 | E29: 0 | F29: 0 | G29: 0 | H29: 0 | I29: 0 | J29: 0 | K29: 0 | L29: 0 | M29: 0 | N29: 0 | O29: =SUM(C29:N29) -> 0 | Q29: =N29 -> 0 | R29: =Q29 -> 0 | S29: 0 | T29: 0 | U29: 0 | V29: 0 | W29: 0 | X29: 0 | Y29: 0 | Z29: 0 | AA29: 0 | AB29: 0 | AC29: =SUM(Q29:AB29) -> 0 | AE29: =AB29*3 -> 0 | AF29: 0 | AG29: 0 | AH29: 0 | AI29: =SUM(AE29:AH29) -> 0 | AK29: =AH29 -> 0 | AL29: 0 | AM29: 0 | AN29: 0 | AO29: =SUM(AK29:AN29) -> 0 | AQ29: 0
B30: Informal Marketing / Networking
B31: Memberships/Meetings | C31: 0 | D31: =C31 -> 0 | E31: 0 | F31: 0 | G31: 0 | H31: 0 | I31: 0 | J31: 0 | K31: 0 | L31: 0 | M31: 0 | N31: 0 | O31: =SUM(C31:N31) -> 0 | Q31: =N31 -> 0 | R31: =Q31 -> 0 | S31: 0 | T31: 0 | U31: 0 | V31: 0 | W31: 0 | X31: 0 | Y31: 0 | Z31: 0 | AA31: 0 | AB31: 0 | AC31: =SUM(Q31:AB31) -> 0 | AE31: =AB31*3 -> 0 | AF31: =AE31 -> 0 | AG31: 0 | AH31: 0 | AI31: =SUM(AE31:AH31) -> 0 | AK31: =AH31 -> 0 | AL31: =AK31 -> 0 | AM31: 0 | AN31: 0 | AO31: =SUM(AK31:AN31) -> 0 | AQ31: 0
B32: Entertainment | C32: 0 | D32: =C32 -> 0 | E32: 0 | F32: 0 | G32: 0 | H32: 0 | I32: 0 | J32: 0 | K32: 0 | L32: 0 | M32: 0 | N32: 0 | O32: =SUM(C32:N32) -> 0 | Q32: =N32 -> 0 | R32: =Q32 -> 0 | S32: 0 | T32: 0 | U32: 0 | V32: 0 | W32: 0 | X32: 0 | Y32: 0 | Z32: 0 | AA32: 0 | AB32: 0 | AC32: =SUM(Q32:AB32) -> 0 | AE32: =AB32*3 -> 0 | AF32: 0 | AG32: 0 | AH32: 0 | AI32: =SUM(AE32:AH32) -> 0 | AK32: =AH32 -> 0 | AL32: 0 | AM32: 0 | AN32: 0 | AO32: =SUM(AK32:AN32) -> 0 | AQ32: 0
B33: Other | C33: 0 | D33: =C33 -> 0 | E33: 0 | F33: 0 | G33: 0 | H33: 0 | I33: 0 | J33: 0 | K33: 0 | L33: 0 | M33: 0 | N33: 0 | O33: =SUM(C33:N33) -> 0 | Q33: =N33 -> 0 | R33: =Q33 -> 0 | S33: 0 | T33: 0 | U33: 0 | V33: 0 | W33: 0 | X33: 0 | Y33: 0 | Z33: 0 | AA33: 0 | AB33: 0 | AC33: =SUM(Q33:AB33) -> 0 | AE33: =AB33*3 -> 0 | AF33: 0 | AG33: 0 | AH33: 0 | AI33: =SUM(AE33:AH33) -> 0 | AK33: =AH33 -> 0 | AL33: 0 | AM33: 0 | AN33: 0 | AO33: =SUM(AK33:AN33) -> 0 | AQ33: 0
B34: GRAND TOTAL COSTS | C34: =SUM(C5:C33) -> 0 | D34: 0 | E34: 0 | F34: 0 | G34: 0 | H34: 0 | I34: 0 | J34: 0 | K34: 0 | L34: 0 | M34: 0 | N34: 0 | O34: 0 | Q34: =SUM(Q5:Q33) -> 0 | R34: 0 | S34: 0 | T34: 0 | U34: 0 | V34: 0 | W34: 0 | X34: 0 | Y34: 0 | Z34: 0 | AA34: 0 | AB34: 0 | AC34: 0 | AE34: =SUM(AE5:AE33) -> 0 | AF34: =SUM(AF5:AF33) -> 0 | AG34: =SUM(AG5:AG33) -> 0 | AH34: =SUM(AH5:AH33) -> 0 | AI34: =SUM(AE34:AH34) -> 0 | AK34: =SUM(AK5:AK33) -> 0 | AL34: =SUM(AL5:AL33) -> 0 | AM34: =SUM(AM5:AM33) -> 0 | AN34: =SUM(AN5:AN33) -> 0 | AO34: =SUM(AK34:AN34) -> 0 | AQ34: =SUM(AQ5:AQ33) -> 0

Sheet ProSvs
B2: Professional Services | C2: =SalesProj!E2 -> 2013 | D2: =SalesProj!S2 -> 2014 | E2: =SalesProj!AG2 -> 2015 | F2: =SalesProj!AM2 -> 2016 | G2: =SalesProj!AS2 -> 2017
B5: General
B6: Attorneys | C6: 0 | D6: =C6 -> 0 | E6: =D6 -> 0 | F6: =E6 -> 0 | G6: =F6 -> 0
B7: Accountants | C7: 0 | D7: =C7 -> 0 | E7: 0 | F7: 0 | G7: 0
B8: Management consultants | C8: 0 | D8: 0 | E8: 0 | F8: 0 | G8: 0
B9: Industry specialists | C9: 0 | D9: 0 | E9: 0 | F9: 0 | G9: 0
B10: Technology consultants | C10: 0 | D10: 0 | E10: 0 | F10: 0 | G10: 0
B11: Other (change title here) | C11: 0 | D11: 0 | E11: 0 | F11: 0 | G11: 0
B12: Other (change title here) | C12: 0 | D12: 0 | E12: 0 | F12: 0 | G12: 0
B13: Total Costs | C13: =SUM(C6:C12) -> 0 | D13: =SUM(D6:D12) -> 0 | E13: =SUM(E6:E12) -> 0 | F13: =SUM(F6:F12) -> 0 | G13: =SUM(G6:G12) -> 0
B15: GRAND TOTAL COSTS | C15: =C13 -> 0 | D15: =D13 -> 0 | E15: =E13 -> 0 | F15: =F13 -> 0 | G15: =G13 -> 0

Sheet CapInvest
B2: Capital Investments and Loans
B3: Item | C3: Amount | D3: Date | F3: Loan Period | G3: Interest Rate
I4: Reminder: All invesments & loans must be on or after your business start date of:
B5: Equity Capital Investments | D5: Month | E5: Year | I5: =cStartDate -> 2013-01-01
B6: Investment Source Name | C6: 0 | D6: Jan | E6: 2013 | F6: Capital investments are not paid back on a loan schedule. | I6: =IF(AND(DATEVALUE("01-"& $D6 &"-"& $E6) <cStartDate, C6>0), "WARNING - Investment date must be on or after your business's start date.", "") -> 
B7: Investment Source Name | C7: 0 | D7: Jan | E7: 2013
B8: Investment Source Name | C8: 0 | D8: Jan | E8: 2013
B9: Investment Source Name | C9: 0 | D9: Jan | E9: 2013
B10: Investment Source Name | C10: 0 | D10: Jan | E10: 2013
B11: Investment Source Name | C11: 0 | D11: Jan | E11: 2013
B12: Investment Source Name | C12: 0 | D12: Jan | E12: 2013
B13: Investment Source Name | C13: 0 | D13: Jan | E13: 2013
B14: Investment Source Name | C14: 0 | D14: Jan | E14: 2013
B15: Investment Source Name | C15: 0 | D15: Jan | E15: 2013
B16: Investment Source Name | C16: 0 | D16: Jan | E16: 2013
B17: Investment Source Name | C17: 0 | D17: Jan | E17: 2013
B18: Investment Source Name | C18: 0 | D18: Jan | E18: 2013
B19: Investment Source Name | C19: 0 | D19: Jan | E19: 2013
B20: Investment Source Name | C20: 0 | D20: Jan | E20: 2013
B21: Total Capital Investments | C21: =SUM(C6:C20) -> 0
B23: Loans
B24: Loan Source Name | C24: 0 | D24: Jan | E24: 2013 | F24: 12 | G24: 0 | I24: =IF(AND(DATEVALUE("01-"& $D24 &"-"& $E24) <cStartDate, C24>0), "WARNING - Loan date must be on or after your business's start date.", "") -> 
B25: Loan Source Name | C25: 0 | D25: Jan | E25: 2013 | F25: 12 | G25: 0
B26: Loan Source Name | C26: 0 | D26: Jan | E26: 2013 | F26: 12 | G26: 0
B27: Loan Source Name | C27: 0 | D27: Jan | E27: 2013 | F27: 12 | G27: 0
B28: Loan Source Name | C28: 0 | D28: Jan | E28: 2013 | F28: 12 | G28: 0
B29: Loan Source Name | C29: 0 | D29: Jan | E29: 2013 | F29: 12 | G29: 0
B30: Loan Source Name | C30: 0 | D30: Jan | E30: 2013 | F30: 12 | G30: 0
B31: Loan Source Name | C31: 0 | D31: Jan | E31: 2013 | F31: 12 | G31: 0
B32: Loan Source Name | C32: 0 | D32: Jan | E32: 2013 | F32: 12 | G32: 0
B33: Loan Source Name | C33: 0 | D33: Jan | E33: 2013 | F33: 12 | G33: 0
B34: Loan Source Name | C34: 0 | D34: Jan | E34: 2013 | F34: 12 | G34: 0
B35: Loan Source Name | C35: 0 | D35: Jan | E35: 2013 | F35: 12 | G35: 0
B36: Loan Source Name | C36: 0 | D36: Jan | E36: 2013 | F36: 12 | G36: 0
B37: Loan Source Name | C37: 0 | D37: Jan | E37: 2013 | F37: 12 | G37: 0
B38: Loan Source Name | C38: 0 | D38: Jan | E38: 2013 | F38: 12 | G38: 0
B39: Loan Source Name | C39: 0 | D39: Jan | E39: 2013 | F39: 12 | G39: 0
B40: Loan Source Name | C40: 0 | D40: Jan | E40: 2013 | F40: 12 | G40: 0
B41: Loan Source Name | C41: 0 | D41: Jan | E41: 2013 | F41: 12 | G41: 0
B42: Loan Source Name | C42: 0 | D42: Jan | E42: 2013 | F42: 12 | G42: 0
B43: Loan Source Name | C43: 0 | D43: Jan | E43: 2013 | F43: 12 | G43: 0
B44: Total Loans | C44: =SUM(C24:C43) -> 0
B46: TOTAL INVESTMENTS AND LOANS | C46: =C44+C21 -> 0

Sheet IncSt
B2: Income Statements | C2: =SalesProj!E2 -> 2013 | Q2: =SalesProj!S2 -> 2014 | AE2: =SalesProj!AG2 -> 2015 | AK2: =SalesProj!AM2 -> 2016 | AQ2: =SalesProj!AS2 -> 2017
C3: =SalesProj!E3 -> January | D3: =SalesProj!F3 -> February | E3: =SalesProj!G3 -> March | F3: =SalesProj!H3 -> April | G3: =SalesProj!I3 -> May | H3: =SalesProj!J3 -> June | I3: =SalesProj!K3 -> July | J3: =SalesProj!L3 -> August | K3: =SalesProj!M3 -> September | L3: =SalesProj!N3 -> October | M3: =SalesProj!O3 -> November | N3: =SalesProj!P3 -> December | O3: TOTAL | Q3: =SalesProj!S3 -> January | R3: =SalesProj!T3 -> February | S3: =SalesProj!U3 -> March | T3: =SalesProj!V3 -> April | U3: =SalesProj!W3 -> May | V3: =SalesProj!X3 -> June | W3: =SalesProj!Y3 -> July | X3: =SalesProj!Z3 -> August | Y3: =SalesProj!AA3 -> September | Z3: =SalesProj!AB3 -> October | AA3: =SalesProj!AC3 -> November | AB3: =SalesProj!AD3 -> December | AC3: TOTAL | AE3: 1st Quarter | AF3: 2nd Quarter | AG3: 3rd Quarter | AH3: 4th Quarter | AI3: TOTAL | AK3: 1st Quarter | AL3: 2nd Quarter | AM3: 3rd Quarter | AN3: 4th Quarter | AO3: TOTAL
B5: INCOME
B6: Gross Sales | C6: =SalesProj!E107 -> 0 | D6: =SalesProj!F107 -> 0 | E6: =SalesProj!G107 -> 0 | F6: =SalesProj!H107 -> 0 | G6: =SalesProj!I107 -> 0 | H6: =SalesProj!J107 -> 0 | I6: =SalesProj!K107 -> 0 | J6: =SalesProj!L107 -> 0 | K6: =SalesProj!M107 -> 0 | L6: =SalesProj!N107 -> 0 | M6: =SalesProj!O107 -> 0 | N6: =SalesProj!P107 -> 0 | O6: =SUM(C6:N6) -> 0 | Q6: =SalesProj!S107 -> 0 | R6: =SalesProj!T107 -> 0 | S6: =SalesProj!U107 -> 0 | T6: =SalesProj!V107 -> 0 | U6: =SalesProj!W107 -> 0 | V6: =SalesProj!X107 -> 0 | W6: =SalesProj!Y107 -> 0 | X6: =SalesProj!Z107 -> 0 | Y6: =SalesProj!AA107 -> 0 | Z6: =SalesProj!AB107 -> 0 | AA6: =SalesProj!AC107 -> 0 | AB6: =SalesProj!AD107 -> 0 | AC6: =SUM(Q6:AB6) -> 0 | AE6: =SalesProj!AG107 -> 0 | AF6: =SalesProj!AH107 -> 0 | AG6: =SalesProj!AI107 -> 0 | AH6: =SalesProj!AJ107 -> 0 | AI6: =SUM(AE6:AH6) -> 0 | AK6: =SalesProj!AM107 -> 0 | AL6: =SalesProj!AN107 -> 0 | AM6: =SalesProj!AO107 -> 0 | AN6: =SalesProj!AP107 -> 0 | AO6: =SUM(AK6:AN6) -> 0 | AQ6: =SalesProj!AS107 -> 0
B7: (Commissions) | C7: =SalesProj!E108 -> 0 | D7: =SalesProj!F108 -> 0 | E7: =SalesProj!G108 -> 0 | F7: =SalesProj!H108 -> 0 | G7: =SalesProj!I108 -> 0 | H7: =SalesProj!J108 -> 0 | I7: =SalesProj!K108 -> 0 | J7: =SalesProj!L108 -> 0 | K7: =SalesProj!M108 -> 0 | L7: =SalesProj!N108 -> 0 | M7: =SalesProj!O108 -> 0 | N7: =SalesProj!P108 -> 0 | O7: =SUM(C7:N7) -> 0 | Q7: =SalesProj!S108 -> 0 | R7: =SalesProj!T108 -> 0 | S7: =SalesProj!U108 -> 0 | T7: =SalesProj!V108 -> 0 | U7: =SalesProj!W108 -> 0 | V7: =SalesProj!X108 -> 0 | W7: =SalesProj!Y108 -> 0 | X7: =SalesProj!Z108 -> 0 | Y7: =SalesProj!AA108 -> 0 | Z7: =SalesProj!AB108 -> 0 | AA7: =SalesProj!AC108 -> 0 | AB7: =SalesProj!AD108 -> 0 | AC7: =SUM(Q7:AB7) -> 0 | AE7: =SalesProj!AG108 -> 0 | AF7: =SalesProj!AH108 -> 0 | AG7: =SalesProj!AI108 -> 0 | AH7: =SalesProj!AJ108 -> 0 | AI7: =SUM(AE7:AH7) -> 0 | AK7: =SalesProj!AM108 -> 0 | AL7: =SalesProj!AN108 -> 0 | AM7: =SalesProj!AO108 -> 0 | AN7: =SalesProj!AP108 -> 0 | AO7: =SUM(AK7:AN7) -> 0 | AQ7: =SalesProj!AS108 -> 0
B8: (Returns and allowances) | C8: =SalesProj!E109 -> 0 | D8: =SalesProj!F109 -> 0 | E8: =SalesProj!G109 -> 0 | F8: =SalesProj!H109 -> 0 | G8: =SalesProj!I109 -> 0 | H8: =SalesProj!J109 -> 0 | I8: =SalesProj!K109 -> 0 | J8: =SalesProj!L109 -> 0 | K8: =SalesProj!M109 -> 0 | L8: =SalesProj!N109 -> 0 | M8: =SalesProj!O109 -> 0 | N8: =SalesProj!P109 -> 0 | O8: =SUM(C8:N8) -> 0 | Q8: =SalesProj!S109 -> 0 | R8: =SalesProj!T109 -> 0 | S8: =SalesProj!U109 -> 0 | T8: =SalesProj!V109 -> 0 | U8: =SalesProj!W109 -> 0 | V8: =SalesProj!X109 -> 0 | W8: =SalesProj!Y109 -> 0 | X8: =SalesProj!Z109 -> 0 | Y8: =SalesProj!AA109 -> 0 | Z8: =SalesProj!AB109 -> 0 | AA8: =SalesProj!AC109 -> 0 | AB8: =SalesProj!AD109 -> 0 | AC8: =SUM(Q8:AB8) -> 0 | AE8: =SalesProj!AG109 -> 0 | AF8: =SalesProj!AH109 -> 0 | AG8: =SalesProj!AI109 -> 0 | AH8: =SalesProj!AJ109 -> 0 | AI8: =SUM(AE8:AH8) -> 0 | AK8: =SalesProj!AM109 -> 0 | AL8: =SalesProj!AN109 -> 0 | AM8: =SalesProj!AO109 -> 0 | AN8: =SalesProj!AP109 -> 0 | AO8: =SUM(AK8:AN8) -> 0 | AQ8: =SalesProj!AS109 -> 0
B9: Net Sales | C9: =SUM(C6-C7-C8) -> 0 | D9: 0 | E9: 0 | F9: 0 | G9: 0 | H9: 0 | I9: 0 | J9: 0 | K9: 0 | L9: 0 | M9: 0 | N9: 0 | O9: =SUM(O6-O7-O8) -> 0 | Q9: =SUM(Q6-Q7-Q8) -> 0 | R9: 0 | S9: 0 | T9: 0 | U9: 0 | V9: 0 | W9: 0 | X9: 0 | Y9: 0 | Z9: 0 | AA9: 0 | AB9: 0 | AC9: 0 | AE9: =SUM(AE6-AE7-AE8) -> 0 | AF9: =SUM(AF6-AF7-AF8) -> 0 | AG9: =SUM(AG6-AG7-AG8) -> 0 | AH9: =SUM(AH6-AH7-AH8) -> 0 | AI9: =SUM(AI6-AI7-AI8) -> 0 | AK9: =SUM(AK6-AK7-AK8) -> 0 | AL9: =SUM(AL6-AL7-AL8) -> 0 | AM9: =SUM(AM6-AM7-AM8) -> 0 | AN9: =SUM(AN6-AN7-AN8) -> 0 | AO9: =SUM(AO6-AO7-AO8) -> 0 | AQ9: =SUM(AQ6-AQ7-AQ8) -> 0
B10: (Cost of Goods) | C10: =SalesProj!E111 -> 0 | D10: =SalesProj!F111 -> 0 | E10: =SalesProj!G111 -> 0 | F10: =SalesProj!H111 -> 0 | G10: =SalesProj!I111 -> 0 | H10: =SalesProj!J111 -> 0 | I10: =SalesProj!K111 -> 0 | J10: =SalesProj!L111 -> 0 | K10: =SalesProj!M111 -> 0 | L10: =SalesProj!N111 -> 0 | M10: =SalesProj!O111 -> 0 | N10: =SalesProj!P111 -> 0 | O10: =SUM(C10:N10) -> 0 | Q10: =SalesProj!S111 -> 0 | R10: =SalesProj!T111 -> 0 | S10: =SalesProj!U111 -> 0 | T10: =SalesProj!V111 -> 0 | U10: =SalesProj!W111 -> 0 | V10: =SalesProj!X111 -> 0 | W10: =SalesProj!Y111 -> 0 | X10: =SalesProj!Z111 -> 0 | Y10: =SalesProj!AA111 -> 0 | Z10: =SalesProj!AB111 -> 0 | AA10: =SalesProj!AC111 -> 0 | AB10: =SalesProj!AD111 -> 0 | AC10: =SUM(Q10:AB10) -> 0 | AE10: =SalesProj!AG111 -> 0 | AF10: =SalesProj!AH111 -> 0 | AG10: =SalesProj!AI111 -> 0 | AH10: =SalesProj!AJ111 -> 0 | AI10: =SUM(AE10:AH10) -> 0 | AK10: =SalesProj!AM111 -> 0 | AL10: =SalesProj!AN111 -> 0 | AM10: =SalesProj!AO111 -> 0 | AN10: =SalesProj!AP111 -> 0 | AO10: =SUM(AK10:AN10) -> 0 | AQ10: =SalesProj!AS111 -> 0
B11: GROSS PROFIT | C11: =SUM(C9-C10) -> 0 | D11: 0 | E11: 0 | F11: 0 | G11: 0 | H11: 0 | I11: 0 | J11: 0 | K11: 0 | L11: 0 | M11: 0 | N11: 0 | O11: 0 | Q11: =SUM(Q9-Q10) -> 0 | R11: 0 | S11: 0 | T11: =SUM(T9-T10) -> 0 | U11: 0 | V11: 0 | W11: 0 | X11: 0 | Y11: 0 | Z11: 0 | AA11: 0 | AB11: 0 | AC11: 0 | AE11: =SUM(AE9-AE10) -> 0 | AF11: =SUM(AF9-AF10) -> 0 | AG11: =SUM(AG9-AG10) -> 0 | AH11: =SUM(AH9-AH10) -> 0 | AI11: =SUM(AI9-AI10) -> 0 | AK11: =SUM(AK9-AK10) -> 0 | AL11: =SUM(AL9-AL10) -> 0 | AM11: =SUM(AM9-AM10) -> 0 | AN11: =SUM(AN9-AN10) -> 0 | AO11: =SUM(AO9-AO10) -> 0 | AQ11: =SUM(AQ9-AQ10) -> 0
B13: EXPENSES - General and Administrative
B14: Salaries and wages | C14: =StaffBudj!C53 -> 0 | D14: =StaffBudj!D53 -> 0 | E14: =StaffBudj!E53 -> 0 | F14: =StaffBudj!F53 -> 0 | G14: =StaffBudj!G53 -> 0 | H14: =StaffBudj!H53 -> 0 | I14: =StaffBudj!I53 -> 0 | J14: =StaffBudj!J53 -> 0 | K14: =StaffBudj!K53 -> 0 | L14: =StaffBudj!L53 -> 0 | M14: =StaffBudj!M53 -> 0 | N14: =StaffBudj!N53 -> 0 | O14: =SUM(C14:N14) -> 0 | Q14: =StaffBudj!Q53 -> 0 | R14: =StaffBudj!R53 -> 0 | S14: =StaffBudj!S53 -> 0 | T14: =StaffBudj!T53 -> 0 | U14: =StaffBudj!U53 -> 0 | V14: =StaffBudj!V53 -> 0 | W14: =StaffBudj!W53 -> 0 | X14: =StaffBudj!X53 -> 0 | Y14: =StaffBudj!Y53 -> 0 | Z14: =StaffBudj!Z53 -> 0 | AA14: =StaffBudj!AA53 -> 0 | AB14: =StaffBudj!AB53 -> 0 | AC14: =SUM(Q14:AB14) -> 0 | AE14: =StaffBudj!AE53 -> 0 | AF14: =StaffBudj!AF53 -> 0 | AG14: =StaffBudj!AG53 -> 0 | AH14: =StaffBudj!AH53 -> 0 | AI14: =SUM(AE14:AH14) -> 0 | AK14: =StaffBudj!AK53 -> 0 | AL14: =StaffBudj!AL53 -> 0 | AM14: =StaffBudj!AM53 -> 0 | AN14: =StaffBudj!AN53 -> 0 | AO14: =SUM(AK14:AN14) -> 0 | AQ14: =StaffBudj!AQ53 -> 0
B15: Employee benefits | C15: =StaffBudj!C54 -> 0 | D15: =StaffBudj!D54 -> 0 | E15: =StaffBudj!E54 -> 0 | F15: =StaffBudj!F54 -> 0 | G15: =StaffBudj!G54 -> 0 | H15: =StaffBudj!H54 -> 0 | I15: =StaffBudj!I54 -> 0 | J15: =StaffBudj!J54 -> 0 | K15: =StaffBudj!K54 -> 0 | L15: =StaffBudj!L54 -> 0 | M15: =StaffBudj!M54 -> 0 | N15: =StaffBudj!N54 -> 0 | O15: 0 | Q15: =StaffBudj!Q54 -> 0 | R15: =StaffBudj!R54 -> 0 | S15: =StaffBudj!S54 -> 0 | T15: =StaffBudj!T54 -> 0 | U15: =StaffBudj!U54 -> 0 | V15: =StaffBudj!V54 -> 0 | W15: =StaffBudj!W54 -> 0 | X15: =StaffBudj!X54 -> 0 | Y15: =StaffBudj!Y54 -> 0 | Z15: =StaffBudj!Z54 -> 0 | AA15: =StaffBudj!AA54 -> 0 | AB15: =StaffBudj!AB54 -> 0 | AC15: =SUM(Q15:AB15) -> 0 | AE15: =StaffBudj!AE54 -> 0 | AF15: =StaffBudj!AF54 -> 0 | AG15: =StaffBudj!AG54 -> 0 | AH15: =StaffBudj!AH54 -> 0 | AI15: 0 | AK15: =StaffBudj!AK54 -> 0 | AL15: =StaffBudj!AL54 -> 0 | AM15: =StaffBudj!AM54 -> 0 | AN15: =StaffBudj!AN54 -> 0 | AO15: 0 | AQ15: =StaffBudj!AQ54 -> 0
B16: Payroll taxes | C16: =StaffBudj!C55 -> 0 | D16: =StaffBudj!D55 -> 0 | E16: =StaffBudj!E55 -> 0 | F16: =StaffBudj!F55 -> 0 | G16: =StaffBudj!G55 -> 0 | H16: =StaffBudj!H55 -> 0 | I16: =StaffBudj!I55 -> 0 | J16: =StaffBudj!J55 -> 0 | K16: =StaffBudj!K55 -> 0 | L16: =StaffBudj!L55 -> 0 | M16: =StaffBudj!M55 -> 0 | N16: =StaffBudj!N55 -> 0 | O16: 0 | Q16: =StaffBudj!Q55 -> 0 | R16: =StaffBudj!R55 -> 0 | S16: =StaffBudj!S55 -> 0 | T16: =StaffBudj!T55 -> 0 | U16: =StaffBudj!U55 -> 0 | V16: =StaffBudj!V55 -> 0 | W16: =StaffBudj!W55 -> 0 | X16: =StaffBudj!X55 -> 0 | Y16: =StaffBudj!Y55 -> 0 | Z16: =StaffBudj!Z55 -> 0 | AA16: =StaffBudj!AA55 -> 0 | AB16: =StaffBudj!AB55 -> 0 | AC16: 0 | AE16: =StaffBudj!AE55 -> 0 | AF16: =StaffBudj!AF55 -> 0 | AG16: =StaffBudj!AG55 -> 0 | AH16: =StaffBudj!AH55 -> 0 | AI16: 0 | AK16: =StaffBudj!AK55 -> 0 | AL16: =StaffBudj!AL55 -> 0 | AM16: =StaffBudj!AM55 -> 0 | AN16: =StaffBudj!AN55 -> 0 | AO16: 0 | AQ16: =StaffBudj!AQ55 -> 0
B17: Professional services | C17: =ProSvs!C15/12 -> 0 | D17: =ProSvs!C15/12 -> 0 | E17: =ProSvs!C15/12 -> 0 | F17: =ProSvs!C15/12 -> 0 | G17: =ProSvs!C15/12 -> 0 | H17: =ProSvs!C15/12 -> 0 | I17: =ProSvs!C15/12 -> 0 | J17: =ProSvs!C15/12 -> 0 | K17: =ProSvs!C15/12 -> 0 | L17: =ProSvs!C15/12 -> 0 | M17: =ProSvs!C15/12 -> 0 | N17: =ProSvs!C15/12 -> 0 | O17: 0 | Q17: =ProSvs!$D$15/12 -> 0 | R17: =ProSvs!$D$15/12 -> 0 | S17: =ProSvs!$D$15/12 -> 0 | T17: =ProSvs!$D$15/12 -> 0 | U17: =ProSvs!$D$15/12 -> 0 | V17: =ProSvs!$D$15/12 -> 0 | W17: =ProSvs!$D$15/12 -> 0 | X17: =ProSvs!$D$15/12 -> 0 | Y17: =ProSvs!$D$15/12 -> 0 | Z17: =ProSvs!$D$15/12 -> 0 | AA17: =ProSvs!$D$15/12 -> 0 | AB17: =ProSvs!$D$15/12 -> 0 | AC17: 0 | AE17: =ProSvs!E15/4 -> 0 | AF17: =ProSvs!E15/4 -> 0 | AG17: =ProSvs!E15/4 -> 0 | AH17: =ProSvs!E15/4 -> 0 | AI17: 0 | AK17: =ProSvs!F15/4 -> 0 | AL17: =ProSvs!F15/4 -> 0 | AM17: =ProSvs!F15/4 -> 0 | AN17: =ProSvs!F15/4 -> 0 | AO17: 0 | AQ17: =ProSvs!G15 -> 0
B18: Marketing and advertising | C18: =MktBudj!C34 -> 0 | D18: =MktBudj!D34 -> 0 | E18: =MktBudj!E34 -> 0 | F18: =MktBudj!F34 -> 0 | G18: =MktBudj!G34 -> 0 | H18: =MktBudj!H34 -> 0 | I18: =MktBudj!I34 -> 0 | J18: =MktBudj!J34 -> 0 | K18: =MktBudj!K34 -> 0 | L18: =MktBudj!L34 -> 0 | M18: =MktBudj!M34 -> 0 | N18: =MktBudj!N34 -> 0 | O18: =SUM(C18:N18) -> 0 | Q18: =MktBudj!Q34 -> 0 | R18: =MktBudj!R34 -> 0 | S18: =MktBudj!S34 -> 0 | T18: =MktBudj!T34 -> 0 | U18: =MktBudj!U34 -> 0 | V18: =MktBudj!V34 -> 0 | W18: =MktBudj!W34 -> 0 | X18: =MktBudj!X34 -> 0 | Y18: =MktBudj!Y34 -> 0 | Z18: =MktBudj!Z34 -> 0 | AA18: =MktBudj!AA34 -> 0 | AB18: =MktBudj!AB34 -> 0 | AC18: =SUM(Q18:AB18) -> 0 | AE18: =MktBudj!AE34 -> 0 | AF18: =MktBudj!AF34 -> 0 | AG18: =MktBudj!AG34 -> 0 | AH18: =MktBudj!AH34 -> 0 | AI18: =SUM(AE18:AH18) -> 0 | AK18: =MktBudj!AK34 -> 0 | AL18: =MktBudj!AL34 -> 0 | AM18: =MktBudj!AM34 -> 0 | AN18: =MktBudj!AN34 -> 0 | AO18: =SUM(AK18:AN18) -> 0 | AQ18: =MktBudj!AQ34 -> 0
B19: Rent | C19: 0 | D19: =C19 -> 0 | E19: 0 | F19: 0 | G19: 0 | H19: 0 | I19: 0 | J19: 0 | K19: 0 | L19: 0 | M19: 0 | N19: 0 | O19: 0 | Q19: =N19 -> 0 | R19: =Q19 -> 0 | S19: 0 | T19: 0 | U19: 0 | V19: 0 | W19: 0 | X19: =W19 -> 0 | Y19: 0 | Z19: 0 | AA19: 0 | AB19: 0 | AC19: 0 | AE19: =AB19*3 -> 0 | AF19: =AE19 -> 0 | AG19: =AF19 -> 0 | AH19: 0 | AI19: 0 | AK19: =AH19 -> 0 | AL19: =AK19 -> 0 | AM19: 0 | AN19: 0 | AO19: 0 | AQ19: =AN19*4 -> 0
B20: Equipment rental | C20: 0 | D20: 0 | E20: 0 | F20: 0 | G20: 0 | H20: 0 | I20: 0 | J20: 0 | K20: 0 | L20: 0 | M20: 0 | N20: 0 | O20: 0 | Q20: 0 | R20: =Q20 -> 0 | S20: 0 | T20: 0 | U20: 0 | V20: 0 | W20: 0 | X20: 0 | Y20: 0 | Z20: 0 | AA20: 0 | AB20: 0 | AC20: 0 | AE20: 0 | AF20: =AE20 -> 0 | AG20: 0 | AH20: 0 | AI20: 0 | AK20: 0 | AL20: 0 | AM20: 0 | AN20: 0 | AO20: 0 | AQ20: 0
B21: Maintenance | C21: 0 | D21: 0 | E21: 0 | F21: 0 | G21: 0 | H21: 0 | I21: 0 | J21: 0 | K21: 0 | L21: 0 | M21: 0 | N21: 0 | O21: 0 | Q21: 0 | R21: 0 | S21: 0 | T21: 0 | U21: 0 | V21: 0 | W21: 0 | X21: 0 | Y21: 0 | Z21: 0 | AA21: 0 | AB21: 0 | AC21: 0 | AE21: 0 | AF21: =AE21 -> 0 | AG21: =AF21 -> 0 | AH21: =AG21 -> 0 | AI21: 0 | AK21: 0 | AL21: 0 | AM21: 0 | AN21: 0 | AO21: 0 | AQ21: 0
B22: Depreciation | C22: =DepnSchedule!P65 -> 0 | D22: =DepnSchedule!Q65 -> 0 | E22: =DepnSchedule!R65 -> 0 | F22: =DepnSchedule!S65 -> 0 | G22: =DepnSchedule!T65 -> 0 | H22: =DepnSchedule!U65 -> 0 | I22: =DepnSchedule!V65 -> 0 | J22: =DepnSchedule!W65 -> 0 | K22: =DepnSchedule!X65 -> 0 | L22: =DepnSchedule!Y65 -> 0 | M22: =DepnSchedule!Z65 -> 0 | N22: =DepnSchedule!AA65 -> 0 | O22: 0 | Q22: =DepnSchedule!AB65 -> 0 | R22: =DepnSchedule!AC65 -> 0 | S22: =DepnSchedule!AD65 -> 0 | T22: =DepnSchedule!AE65 -> 0 | U22: =DepnSchedule!AF65 -> 0 | V22: =DepnSchedule!AG65 -> 0 | W22: =DepnSchedule!AH65 -> 0 | X22: =DepnSchedule!AI65 -> 0 | Y22: =DepnSchedule!AJ65 -> 0 | Z22: =DepnSchedule!AK65 -> 0 | AA22: =DepnSchedule!AL65 -> 0 | AB22: =DepnSchedule!AM65 -> 0 | AC22: 0 | AE22: =SUM(DepnSchedule!AN65:AP65) -> 0 | AF22: =SUM(DepnSchedule!AQ65:AS65) -> 0 | AG22: =SUM(DepnSchedule!AT65:AV65) -> 0 | AH22: =SUM(DepnSchedule!AW65:AY65) -> 0 | AI22: 0 | AK22: =SUM(DepnSchedule!AZ65:BB65) -> 0 | AL22: =SUM(DepnSchedule!BC65:BE65) -> 0 | AM22: =SUM(DepnSchedule!BF65:BH65) -> 0 | AN22: =SUM(DepnSchedule!BI65:BK65) -> 0 | AO22: 0 | AQ22: =SUM(DepnSchedule!BL65:BW65) -> 0
B23: Insurance | C23: 0 | D23: 0 | E23: 0 | F23: 0 | G23: 0 | H23: 0 | I23: 0 | J23: 0 | K23: 0 | L23: 0 | M23: 0 | N23: 0 | O23: 0 | Q23: 0 | R23: =Q23 -> 0 | S23: 0 | T23: 0 | U23: 0 | V23: 0 | W23: 0 | X23: =W23 -> 0 | Y23: =X23 -> 0 | Z23: =Y23 -> 0 | AA23: =Z23 -> 0 | AB23: 0 | AC23: 0 | AE23: 0 | AF23: =AE23 -> 0 | AG23: 0 | AH23: 0 | AI23: 0 | AK23: 0 | AL23: 0 | AM23: 0 | AN23: 0 | AO23: 0 | AQ23: 0
B24: Telephone service | C24: 0 | D24: 0 | E24: 0 | F24: 0 | G24: 0 | H24: 0 | I24: 0 | J24: 0 | K24: 0 | L24: 0 | M24: 0 | N24: 0 | O24: 0 | Q24: 0 | R24: =Q24 -> 0 | S24: 0 | T24: 0 | U24: 0 | V24: 0 | W24: 0 | X24: 0 | Y24: 0 | Z24: 0 | AA24: 0 | AB24: 0 | AC24: 0 | AE24: 0 | AF24: 0 | AG24: 0 | AH24: 0 | AI24: 0 | AK24: 0 | AL24: 0 | AM24: 0 | AN24: 0 | AO24: 0 | AQ24: 0
B25: Utilities | C25: 0 | D25: 0 | E25: 0 | F25: 0 | G25: 0 | H25: 0 | I25: 0 | J25: 0 | K25: 0 | L25: 0 | M25: 0 | N25: 0 | O25: 0 | Q25: 0 | R25: =Q25 -> 0 | S25: 0 | T25: 0 | U25: 0 | V25: 0 | W25: 0 | X25: 0 | Y25: 0 | Z25: 0 | AA25: 0 | AB25: 0 | AC25: 0 | AE25: 0 | AF25: 0 | AG25: 0 | AH25: 0 | AI25: 0 | AK25: 0 | AL25: 0 | AM25: 0 | AN25: 0 | AO25: 0 | AQ25: 0
B26: Office supplies | C26: 0 | D26: 0 | E26: 0 | F26: 0 | G26: 0 | H26: 0 | I26: 0 | J26: 0 | K26: 0 | L26: 0 | M26: 0 | N26: 0 | O26: =SUM(C26:N26) -> 0 | Q26: 0 | R26: =Q26 -> 0 | S26: 0 | T26: 0 | U26: 0 | V26: 0 | W26: 0 | X26: 0 | Y26: 0 | Z26: 0 | AA26: 0 | AB26: 0 | AC26: =SUM(Q26:AB26) -> 0 | AE26: 0 | AF26: 0 | AG26: 0 | AH26: 0 | AI26: =SUM(AE26:AH26) -> 0 | AK26: 0 | AL26: 0 | AM26: 0 | AN26: 0 | AO26: =SUM(AK26:AN26) -> 0 | AQ26: 0
B27: Postage and shipping | C27: 0 | D27: 0 | E27: 0 | F27: 0 | G27: 0 | H27: 0 | I27: 0 | J27: 0 | K27: 0 | L27: 0 | M27: 0 | N27: 0 | O27: 0 | Q27: 0 | R27: =Q27 -> 0 | S27: 0 | T27: 0 | U27: 0 | V27: 0 | W27: 0 | X27: 0 | Y27: 0 | Z27: 0 | AA27: 0 | AB27: 0 | AC27: 0 | AE27: 0 | AF27: 0 | AG27: 0 | AH27: 0 | AI27: 0 | AK27: 0 | AL27: 0 | AM27: 0 | AN27: 0 | AO27: 0 | AQ27: 0
B28: Travel | C28: 0 | D28: 0 | E28: 0 | F28: 0 | G28: 0 | H28: 0 | I28: 0 | J28: 0 | K28: 0 | L28: 0 | M28: 0 | N28: 0 | O28: 0 | Q28: 0 | R28: =Q28 -> 0 | S28: 0 | T28: 0 | U28: 0 | V28: 0 | W28: 0 | X28: 0 | Y28: 0 | Z28: 0 | AA28: 0 | AB28: 0 | AC28: 0 | AE28: 0 | AF28: 0 | AG28: 0 | AH28: 0 | AI28: 0 | AK28: 0 | AL28: =AK28 -> 0 | AM28: 0 | AN28: 0 | AO28: 0 | AQ28: 0
B29: Entertainment | C29: 0 | D29: =C29 -> 0 | E29: 0 | F29: 0 | G29: 0 | H29: 0 | I29: 0 | J29: 0 | K29: 0 | L29: 0 | M29: 0 | N29: 0 | O29: 0 | Q29: 0 | R29: =Q29 -> 0 | S29: 0 | T29: 0 | U29: 0 | V29: 0 | W29: 0 | X29: 0 | Y29: 0 | Z29: 0 | AA29: 0 | AB29: 0 | AC29: 0 | AE29: 0 | AF29: =AE29 -> 0 | AG29: =AF29 -> 0 | AH29: =AG29 -> 0 | AI29: 0 | AK29: =AH29 -> 0 | AL29: 0 | AM29: 0 | AN29: 0 | AO29: 0 | AQ29: 0
B30: Interest on loans | C30: =LoanInvestSchedules!M$75 -> 0 | D30: =LoanInvestSchedules!N$75 -> 0 | E30: =LoanInvestSchedules!O$75 -> 0 | F30: =LoanInvestSchedules!P$75 -> 0 | G30: =LoanInvestSchedules!Q$75 -> 0 | H30: =LoanInvestSchedules!R$75 -> 0 | I30: =LoanInvestSchedules!S$75 -> 0 | J30: =LoanInvestSchedules!T$75 -> 0 | K30: =LoanInvestSchedules!U$75 -> 0 | L30: =LoanInvestSchedules!V$75 -> 0 | M30: =LoanInvestSchedules!W$75 -> 0 | N30: =LoanInvestSchedules!X$75 -> 0 | O30: 0 | Q30: =LoanInvestSchedules!Y$75 -> 0 | R30: =LoanInvestSchedules!Z$75 -> 0 | S30: =LoanInvestSchedules!AA$75 -> 0 | T30: =LoanInvestSchedules!AB$75 -> 0 | U30: =LoanInvestSchedules!AC$75 -> 0 | V30: =LoanInvestSchedules!AD$75 -> 0 | W30: =LoanInvestSchedules!AE$75 -> 0 | X30: =LoanInvestSchedules!AF$75 -> 0 | Y30: =LoanInvestSchedules!AG$75 -> 0 | Z30: =LoanInvestSchedules!AH$75 -> 0 | AA30: =LoanInvestSchedules!AI$75 -> 0 | AB30: =LoanInvestSchedules!AJ$75 -> 0 | AC30: 0 | AE30: =SUM(LoanInvestSchedules!AK$75:'LoanInvestSchedules'!AM$75) -> 0 | AF30: =SUM(LoanInvestSchedules!AN$75:'LoanInvestSchedules'!AP$75) -> 0 | AG30: =SUM(LoanInvestSchedules!AQ$75:'LoanInvestSchedules'!AS$75) -> 0 | AH30: =SUM(LoanInvestSchedules!AT$75:'LoanInvestSchedules'!AV$75) -> 0 | AI30: 0 | AK30: =SUM(LoanInvestSchedules!AW$75:'LoanInvestSchedules'!AY$75) -> 0 | AL30: =SUM(LoanInvestSchedules!AZ$75:'LoanInvestSchedules'!BB$75) -> 0 | AM30: =SUM(LoanInvestSchedules!BC$75:'LoanInvestSchedules'!BE$75) -> 0 | AN30: =SUM(LoanInvestSchedules!BF$75:'LoanInvestSchedules'!BH$75) -> 0 | AO30: 0 | AQ30: =SUM(LoanInvestSchedules!BI$75:'LoanInvestSchedules'!BT$75) -> 0
B31: Other (change title here) | C31: 0 | D31: =C31 -> 0 | E31: 0 | F31: 0 | G31: 0 | H31: 0 | I31: 0 | J31: 0 | K31: 0 | L31: 0 | M31: 0 | N31: 0 | O31: 0 | Q31: 0 | R31: =Q31 -> 0 | S31: 0 | T31: 0 | U31: 0 | V31: 0 | W31: 0 | X31: 0 | Y31: 0 | Z31: 0 | AA31: 0 | AB31: 0 | AC31: 0 | AE31: 0 | AF31: =AE31 -> 0 | AG31: 0 | AH31: 0 | AI31: 0 | AK31: =AH31 -> 0 | AL31: =AK31 -> 0 | AM31: 0 | AN31: 0 | AO31: 0 | AQ31: 0
B32: Other (change title here) | C32: 0 | D32: 0 | E32: 0 | F32: 0 | G32: 0 | H32: 0 | I32: 0 | J32: 0 | K32: 0 | L32: 0 | M32: 0 | N32: 0 | O32: 0 | Q32: 0 | R32: =Q32 -> 0 | S32: 0 | T32: 0 | U32: 0 | V32: 0 | W32: 0 | X32: 0 | Y32: 0 | Z32: 0 | AA32: 0 | AB32: 0 | AC32: 0 | AE32: 0 | AF32: 0 | AG32: 0 | AH32: 0 | AI32: 0 | AK32: =AH32 -> 0 | AL32: 0 | AM32: 0 | AN32: 0 | AO32: 0 | AQ32: 0
B33: TOTAL EXPENSES | C33: =SUM(C14:C32) -> 0 | D33: 0 | E33: 0 | F33: 0 | G33: 0 | H33: 0 | I33: 0 | J33: 0 | K33: 0 | L33: 0 | M33: 0 | N33: 0 | O33: 0 | Q33: =SUM(Q14:Q32) -> 0 | R33: 0 | S33: 0 | T33: 0 | U33: 0 | V33: 0 | W33: 0 | X33: 0 | Y33: 0 | Z33: 0 | AA33: 0 | AB33: =SUM(AB14:AB32) -> 0 | AC33: 0 | AE33: =SUM(AE14:AE32) -> 0 | AF33: =SUM(AF14:AF32) -> 0 | AG33: =SUM(AG14:AG32) -> 0 | AH33: =SUM(AH14:AH32) -> 0 | AI33: =SUM(AI14:AI32) -> 0 | AK33: =SUM(AK14:AK32) -> 0 | AL33: =SUM(AL14:AL32) -> 0 | AM33: =SUM(AM14:AM32) -> 0 | AN33: =SUM(AN14:AN32) -> 0 | AO33: =SUM(AO14:AO32) -> 0 | AQ33: =SUM(AQ14:AQ32) -> 0
B34: Net income before taxes | C34: =SUM(C11-C33) -> 0 | D34: 0 | E34: 0 | F34: 0 | G34: 0 | H34: 0 | I34: 0 | J34: 0 | K34: 0 | L34: 0 | M34: 0 | N34: 0 | O34: 0 | Q34: =SUM(Q11-Q33) -> 0 | R34: 0 | S34: 0 | T34: =SUM(T11-T33) -> 0 | U34: 0 | V34: 0 | W34: 0 | X34: 0 | Y34: 0 | Z34: 0 | AA34: 0 | AB34: 0 | AC34: 0 | AE34: =SUM(AE11-AE33) -> 0 | AF34: =SUM(AF11-AF33) -> 0 | AG34: =SUM(AG11-AG33) -> 0 | AH34: =SUM(AH11-AH33) -> 0 | AI34: =SUM(AI11-AI33) -> 0 | AK34: =SUM(AK11-AK33) -> 0 | AL34: =SUM(AL11-AL33) -> 0 | AM34: =SUM(AM11-AM33) -> 0 | AN34: =SUM(AN11-AN33) -> 0 | AO34: =SUM(AO11-AO33) -> 0 | AQ34: =SUM(AQ11-AQ33) -> 0
B35: Provision for taxes on income | C35: =IF(C34>0,C34*IncTaxRate,0) -> 0 | D35: 0 | E35: 0 | F35: 0 | G35: 0 | H35: 0 | I35: 0 | J35: 0 | K35: 0 | L35: 0 | M35: 0 | N35: 0 | O35: 0 | Q35: =IF(Q34>0,Q34*IncTaxRate,0) -> 0 | R35: 0 | S35: 0 | T35: 0 | U35: 0 | V35: 0 | W35: 0 | X35: 0 | Y35: 0 | Z35: 0 | AA35: 0 | AB35: 0 | AC35: 0 | AE35: =IF(AE34>0,AE34*IncTaxRate,0) -> 0 | AF35: =IF(AF34>0,AF34*IncTaxRate,0) -> 0 | AG35: =IF(AG34>0,AG34*IncTaxRate,0) -> 0 | AH35: =IF(AH34>0,AH34*IncTaxRate,0) -> 0 | AI35: =IF(AI34>0,AI34*IncTaxRate,0) -> 0 | AK35: =IF(AK34>0,AK34*IncTaxRate,0) -> 0 | AL35: =IF(AL34>0,AL34*IncTaxRate,0) -> 0 | AM35: =IF(AM34>0,AM34*IncTaxRate,0) -> 0 | AN35: =IF(AN34>0,AN34*IncTaxRate,0) -> 0 | AO35: =IF(AO34>0,AO34*IncTaxRate,0) -> 0 | AQ35: =IF(AQ34>0,AQ34*IncTaxRate,0) -> 0
B36: NET PROFIT | C36: =SUM(C34-C35) -> 0 | D36: 0 | E36: 0 | F36: 0 | G36: 0 | H36: 0 | I36: 0 | J36: 0 | K36: 0 | L36: 0 | M36: 0 | N36: 0 | O36: 0 | Q36: =SUM(Q34-Q35) -> 0 | R36: 0 | S36: 0 | T36: 0 | U36: 0 | V36: 0 | W36: 0 | X36: 0 | Y36: 0 | Z36: 0 | AA36: 0 | AB36: 0 | AC36: 0 | AE36: =SUM(AE34-AE35) -> 0 | AF36: =SUM(AF34-AF35) -> 0 | AG36: =SUM(AG34-AG35) -> 0 | AH36: =SUM(AH34-AH35) -> 0 | AI36: =SUM(AI34-AI35) -> 0 | AK36: =SUM(AK34-AK35) -> 0 | AL36: =SUM(AL34-AL35) -> 0 | AM36: =SUM(AM34-AM35) -> 0 | AN36: =SUM(AN34-AN35) -> 0 | AO36: =SUM(AO34-AO35) -> 0 | AQ36: =SUM(AQ34-AQ35) -> 0

Sheet CshFlw
B2: Cash Flow | C2: =SalesProj!E2 -> 2013 | Q2: =SalesProj!S2 -> 2014 | AE2: =SalesProj!AG2 -> 2015 | AK2: =SalesProj!AM2 -> 2016 | AQ2: =SalesProj!AS2 -> 2017
C3: =SalesProj!E3 -> January | D3: =SalesProj!F3 -> February | E3: =SalesProj!G3 -> March | F3: =SalesProj!H3 -> April | G3: =SalesProj!I3 -> May | H3: =SalesProj!J3 -> June | I3: =SalesProj!K3 -> July | J3: =SalesProj!L3 -> August | K3: =SalesProj!M3 -> September | L3: =SalesProj!N3 -> October | M3: =SalesProj!O3 -> November | N3: =SalesProj!P3 -> December | O3: TOTAL | Q3: =SalesProj!E3 -> January | R3: =SalesProj!F3 -> February | S3: =SalesProj!G3 -> March | T3: =SalesProj!H3 -> April | U3: =SalesProj!I3 -> May | V3: =SalesProj!J3 -> June | W3: =SalesProj!K3 -> July | X3: =SalesProj!L3 -> August | Y3: =SalesProj!M3 -> September | Z3: =SalesProj!N3 -> October | AA3: =SalesProj!O3 -> November | AB3: =SalesProj!P3 -> December | AC3: TOTAL | AE3: 1st Quarter | AF3: 2nd Quarter | AG3: 3rd Quarter | AH3: 4th Quarter | AI3: TOTAL | AK3: 1st Quarter | AL3: 2nd Quarter | AM3: 3rd Quarter | AN3: 4th Quarter | AO3: TOTAL
B5: CASH RECEIPTS
B6: Income from Sales
B7: Cash Sales | C7: =IncSt!C6*(1-CreditSales) -> 0 | D7: =IncSt!D6*(1-CreditSales) -> 0 | E7: =IncSt!E6*(1-CreditSales) -> 0 | F7: =IncSt!F6*(1-CreditSales) -> 0 | G7: =IncSt!G6*(1-CreditSales) -> 0 | H7: =IncSt!H6*(1-CreditSales) -> 0 | I7: =IncSt!I6*(1-CreditSales) -> 0 | J7: =IncSt!J6*(1-CreditSales) -> 0 | K7: =IncSt!K6*(1-CreditSales) -> 0 | L7: =IncSt!L6*(1-CreditSales) -> 0 | M7: =IncSt!M6*(1-CreditSales) -> 0 | N7: =IncSt!N6*(1-CreditSales) -> 0 | O7: =SUM(C7:N7) -> 0 | Q7: =IncSt!Q6*(1-CreditSales) -> 0 | R7: =IncSt!R6*(1-CreditSales) -> 0 | S7: =IncSt!S6*(1-CreditSales) -> 0 | T7: =IncSt!T6*(1-CreditSales) -> 0 | U7: =IncSt!U6*(1-CreditSales) -> 0 | V7: =IncSt!V6*(1-CreditSales) -> 0 | W7: =IncSt!W6*(1-CreditSales) -> 0 | X7: =IncSt!X6*(1-CreditSales) -> 0 | Y7: =IncSt!Y6*(1-CreditSales) -> 0 | Z7: =IncSt!Z6*(1-CreditSales) -> 0 | AA7: =IncSt!AA6*(1-CreditSales) -> 0 | AB7: =IncSt!AB6*(1-CreditSales) -> 0 | AC7: =SUM(Q7:AB7) -> 0 | AE7: =IncSt!AE6*(1-CreditSales) -> 0 | AF7: =IncSt!AF6*(1-CreditSales) -> 0 | AG7: =IncSt!AG6*(1-CreditSales) -> 0 | AH7: =IncSt!AH6*(1-CreditSales) -> 0 | AI7: =SUM(AE7:AH7) -> 0 | AK7: =IncSt!AK6*(1-CreditSales) -> 0 | AL7: =IncSt!AL6*(1-CreditSales) -> 0 | AM7: =IncSt!AM6*(1-CreditSales) -> 0 | AN7: =IncSt!AN6*(1-CreditSales) -> 0 | AO7: =SUM(AK7:AN7) -> 0 | AQ7: =IncSt!AQ6*(1-CreditSales) -> 0
B8: Collections | C8: =IF(CreditTerms<=30,(CreditMultA*IncSt!C6),IF(AND(CreditTerms>30,CreditTerms<=60),0,IF(AND(CreditTerms>60,CreditTerms<=90),0,IF(AND(CreditTerms>90,CreditTerms<=120),0,"Error")))) -> 0 | D8: =IF(CreditTerms<=30,(CreditMultA*IncSt!D6)+(CreditMultB*IncSt!C6),IF(AND(CreditTerms>30,CreditTerms<=60),(CreditMultA*IncSt!C6),IF(AND(CreditTerms>60,CreditTerms<=90),0,IF(AND(CreditTerms>90,CreditTerms<=120),0,"Error")))) -> 0 | E8: =IF(CreditTerms<=30,(CreditMultA*IncSt!E6)+(CreditMultB*IncSt!D6),IF(AND(CreditTerms>30,CreditTerms<=60),(CreditMultA*IncSt!D6)+(CreditMultB*IncSt!C6),IF(AND(CreditTerms>60,CreditTerms<=90),(CreditMultA*IncSt!C6),IF(AND(CreditTerms>90,CreditTerms<=120),0,"Error")))) -> 0 | F8: =IF(CreditTerms<=30,(CreditMultA*IncSt!F6)+(CreditMultB*IncSt!E6),IF(AND(CreditTerms>30,CreditTerms<=60),(CreditMultA*IncSt!E6)+(CreditMultB*IncSt!D6),IF(AND(CreditTerms>60,CreditTerms<=90),(CreditMultA*IncSt!D6)+(CreditMultB*IncSt!C6),IF(AND(CreditTerms>90,CreditTerms<=120),CreditMultA*IncSt!C6,"Error")))) -> 0 | G8: =IF(CreditTerms<=30,(CreditMultA*IncSt!G6)+(CreditMultB*IncSt!F6),IF(AND(CreditTerms>30,CreditTerms<=60),(CreditMultA*IncSt!F6)+(CreditMultB*IncSt!E6),IF(AND(CreditTerms>60,CreditTerms<=90),(CreditMultA*IncSt!E6)+(CreditMultB*IncSt!D6),IF(AND(CreditTerms>90,CreditTerms<=120),(CreditMultA*IncSt!D6)+(CreditMultB*IncSt!C6),"Error")))) -> 0 | H8: =IF(CreditTerms<=30,(CreditMultA*IncSt!H6)+(CreditMultB*IncSt!G6),IF(AND(CreditTerms>30,CreditTerms<=60),(CreditMultA*IncSt!G6)+(CreditMultB*IncSt!F6),IF(AND(CreditTerms>60,CreditTerms<=90),(CreditMultA*IncSt!F6)+(CreditMultB*IncSt!E6),IF(AND(CreditTerms>90,CreditTerms<=120),(CreditMultA*IncSt!E6)+(CreditMultB*IncSt!D6),"Error")))) -> 0 | I8: =IF(CreditTerms<=30,(CreditMultA*IncSt!I6)+(CreditMultB*IncSt!H6),IF(AND(CreditTerms>30,CreditTerms<=60),(CreditMultA*IncSt!H6)+(CreditMultB*IncSt!G6),IF(AND(CreditTerms>60,CreditTerms<=90),(CreditMultA*IncSt!G6)+(CreditMultB*IncSt!F6),IF(AND(CreditTerms>90,CreditTerms<=120),(CreditMultA*IncSt!F6)+(CreditMultB*IncSt!E6),"Error")))) -> 0 | J8: =IF(CreditTerms<=30,(CreditMultA*IncSt!J6)+(CreditMultB*IncSt!I6),IF(AND(CreditTerms>30,CreditTerms<=60),(CreditMultA*IncSt!I6)+(CreditMultB*IncSt!H6),IF(AND(CreditTerms>60,CreditTerms<=90),(CreditMultA*IncSt!H6)+(CreditMultB*IncSt!G6),IF(AND(CreditTerms>90,CreditTerms<=120),(CreditMultA*IncSt!G6)+(CreditMultB*IncSt!F6),"Error")))) -> 0 | K8: =IF(CreditTerms<=30,(CreditMultA*IncSt!K6)+(CreditMultB*IncSt!J6),IF(AND(CreditTerms>30,CreditTerms<=60),(CreditMultA*IncSt!J6)+(CreditMultB*IncSt!I6),IF(AND(CreditTerms>60,CreditTerms<=90),(CreditMultA*IncSt!I6)+(CreditMultB*IncSt!H6),IF(AND(CreditTerms>90,CreditTerms<=120),(CreditMultA*IncSt!H6)+(CreditMultB*IncSt!G6),"Error")))) -> 0 | L8: =IF(CreditTerms<=30,(CreditMultA*IncSt!L6)+(CreditMultB*IncSt!K6),IF(AND(CreditTerms>30,CreditTerms<=60),(CreditMultA*IncSt!K6)+(CreditMultB*IncSt!J6),IF(AND(CreditTerms>60,CreditTerms<=90),(CreditMultA*IncSt!J6)+(CreditMultB*IncSt!I6),IF(AND(CreditTerms>90,CreditTerms<=120),(CreditMultA*IncSt!I6)+(CreditMultB*IncSt!H6),"Error")))) -> 0 | M8: =IF(CreditTerms<=30,(CreditMultA*IncSt!M6)+(CreditMultB*IncSt!L6),IF(AND(CreditTerms>30,CreditTerms<=60),(CreditMultA*IncSt!L6)+(CreditMultB*IncSt!K6),IF(AND(CreditTerms>60,CreditTerms<=90),(CreditMultA*IncSt!K6)+(CreditMultB*IncSt!J6),IF(AND(CreditTerms>90,CreditTerms<=120),(CreditMultA*IncSt!J6)+(CreditMultB*IncSt!I6),"Error")))) -> 0 | N8: =IF(CreditTerms<=30,(CreditMultA*IncSt!N6)+(CreditMultB*IncSt!M6),IF(AND(CreditTerms>30,CreditTerms<=60),(CreditMultA*IncSt!M6)+(CreditMultB*IncSt!L6),IF(AND(CreditTerms>60,CreditTerms<=90),(CreditMultA*IncSt!L6)+(CreditMultB*IncSt!K6),IF(AND(CreditTerms>90,CreditTerms<=120),(CreditMultA*IncSt!K6)+(CreditMultB*IncSt!J6),"Error")))) -> 0 | O8: =SUM(C8:N8) -> 0 | Q8: =IF(CreditTerms<=30,(CreditMultA*IncSt!Q6)+(CreditMultB*IncSt!N6),IF(AND(CreditTerms>30,CreditTerms<=60),(CreditMultA*IncSt!N6)+(CreditMultB*IncSt!M6),IF(AND(CreditTerms>60,CreditTerms<=90),(CreditMultA*IncSt!M6)+(CreditMultB*IncSt!L6),IF(AND(CreditTerms>90,CreditTerms<=120),(CreditMultA*IncSt!L6)+(CreditMultB*IncSt!K6),"Error")))) -> 0 | R8: =IF(CreditTerms<=30,(CreditMultA*IncSt!R6)+(CreditMultB*IncSt!Q6),IF(AND(CreditTerms>30,CreditTerms<=60),(CreditMultA*IncSt!Q6)+(CreditMultB*IncSt!N6),IF(AND(CreditTerms>60,CreditTerms<=90),(CreditMultA*IncSt!N6)+(CreditMultB*IncSt!M6),IF(AND(CreditTerms>90,CreditTerms<=120),(CreditMultA*IncSt!M6)+(CreditMultB*IncSt!L6),"Error")))) -> 0 | S8: =IF(CreditTerms<=30,(CreditMultA*IncSt!S6)+(CreditMultB*IncSt!R6),IF(AND(CreditTerms>30,CreditTerms<=60),(CreditMultA*IncSt!R6)+(CreditMultB*IncSt!Q6),IF(AND(CreditTerms>60,CreditTerms<=90),(CreditMultA*IncSt!Q6)+(CreditMultB*IncSt!N6),IF(AND(CreditTerms>90,CreditTerms<=120),(CreditMultA*IncSt!N6)+(CreditMultB*IncSt!M6),"Error")))) -> 0 | T8: =IF(CreditTerms<=30,(CreditMultA*IncSt!T6)+(CreditMultB*IncSt!S6),IF(AND(CreditTerms>30,CreditTerms<=60),(CreditMultA*IncSt!S6)+(CreditMultB*IncSt!R6),IF(AND(CreditTerms>60,CreditTerms<=90),(CreditMultA*IncSt!R6)+(CreditMultB*IncSt!Q6),IF(AND(CreditTerms>90,CreditTerms<=120),(CreditMultA*IncSt!Q6)+(CreditMultB*IncSt!N6),"Error")))) -> 0 | U8: =IF(CreditTerms<=30,(CreditMultA*IncSt!U6)+(CreditMultB*IncSt!T6),IF(AND(CreditTerms>30,CreditTerms<=60),(CreditMultA*IncSt!T6)+(CreditMultB*IncSt!S6),IF(AND(CreditTerms>60,CreditTerms<=90),(CreditMultA*IncSt!S6)+(CreditMultB*IncSt!R6),IF(AND(CreditTerms>90,CreditTerms<=120),(CreditMultA*IncSt!R6)+(CreditMultB*IncSt!Q6),"Error")))) -> 0 | V8: =IF(CreditTerms<=30,(CreditMultA*IncSt!V6)+(CreditMultB*IncSt!U6),IF(AND(CreditTerms>30,CreditTerms<=60),(CreditMultA*IncSt!U6)+(CreditMultB*IncSt!T6),IF(AND(CreditTerms>60,CreditTerms<=90),(CreditMultA*IncSt!T6)+(CreditMultB*IncSt!S6),IF(AND(CreditTerms>90,CreditTerms<=120),(CreditMultA*IncSt!S6)+(CreditMultB*IncSt!R6),"Error")))) -> 0 | W8: =IF(CreditTerms<=30,(CreditMultA*IncSt!W6)+(CreditMultB*IncSt!V6),IF(AND(CreditTerms>30,CreditTerms<=60),(CreditMultA*IncSt!V6)+(CreditMultB*IncSt!U6),IF(AND(CreditTerms>60,CreditTerms<=90),(CreditMultA*IncSt!U6)+(CreditMultB*IncSt!T6),IF(AND(CreditTerms>90,CreditTerms<=120),(CreditMultA*IncSt!T6)+(CreditMultB*IncSt!S6),"Error")))) -> 0 | X8: =IF(CreditTerms<=30,(CreditMultA*IncSt!X6)+(CreditMultB*IncSt!W6),IF(AND(CreditTerms>30,CreditTerms<=60),(CreditMultA*IncSt!W6)+(CreditMultB*IncSt!V6),IF(AND(CreditTerms>60,CreditTerms<=90),(CreditMultA*IncSt!V6)+(CreditMultB*IncSt!U6),IF(AND(CreditTerms>90,CreditTerms<=120),(CreditMultA*IncSt!U6)+(CreditMultB*IncSt!T6),"Error")))) -> 0 | Y8: =IF(CreditTerms<=30,(CreditMultA*IncSt!Y6)+(CreditMultB*IncSt!X6),IF(AND(CreditTerms>30,CreditTerms<=60),(CreditMultA*IncSt!X6)+(CreditMultB*IncSt!W6),IF(AND(CreditTerms>60,CreditTerms<=90),(CreditMultA*IncSt!W6)+(CreditMultB*IncSt!V6),IF(AND(CreditTerms>90,CreditTerms<=120),(CreditMultA*IncSt!V6)+(CreditMultB*IncSt!U6),"Error")))) -> 0 | Z8: =IF(CreditTerms<=30,(CreditMultA*IncSt!Z6)+(CreditMultB*IncSt!Y6),IF(AND(CreditTerms>30,CreditTerms<=60),(CreditMultA*IncSt!Y6)+(CreditMultB*IncSt!X6),IF(AND(CreditTerms>60,CreditTerms<=90),(CreditMultA*IncSt!X6)+(CreditMultB*IncSt!W6),IF(AND(CreditTerms>90,CreditTerms<=120),(CreditMultA*IncSt!W6)+(CreditMultB*IncSt!V6),"Error")))) -> 0 | AA8: =IF(CreditTerms<=30,(CreditMultA*IncSt!AA6)+(CreditMultB*IncSt!Z6),IF(AND(CreditTerms>30,CreditTerms<=60),(CreditMultA*IncSt!Z6)+(CreditMultB*IncSt!Y6),IF(AND(CreditTerms>60,CreditTerms<=90),(CreditMultA*IncSt!Y6)+(CreditMultB*IncSt!X6),IF(AND(CreditTerms>90,CreditTerms<=120),(CreditMultA*IncSt!X6)+(CreditMultB*IncSt!W6),"Error")))) -> 0 | AB8: =IF(CreditTerms<=30,(CreditMultA*IncSt!AB6)+(CreditMultB*IncSt!AA6),IF(AND(CreditTerms>30,CreditTerms<=60),(CreditMultA*IncSt!AA6)+(CreditMultB*IncSt!Z6),IF(AND(CreditTerms>60,CreditTerms<=90),(CreditMultA*IncSt!Z6)+(CreditMultB*IncSt!Y6),IF(AND(CreditTerms>90,CreditTerms<=120),(CreditMultA*IncSt!Y6)+(CreditMultB*IncSt!X6),"Error")))) -> 0 | AC8: =SUM(Q8:AB8) -> 0 | AE8: =IF(CreditTerms<=30,(CreditMultB*IncSt!AB6)+(IncSt!AE6*CreditSales*2/3)+(CreditMultA*IncSt!AE6/3),IF(AND(CreditTerms>30,CreditTerms<=60),(CreditMultB*IncSt!AA6)+(IncSt!AB6*CreditSales)+(IncSt!AE6*CreditSales/3)+(CreditMultA*IncSt!AE6/3),IF(AND(CreditTerms>60,CreditTerms<=90),(CreditMultB*IncSt!Z6)+((IncSt!AA6+IncSt!AB6)*CreditSales)+(IncSt!AE6/3*CreditMultA),IF(AND(CreditTerms>90,CreditTerms<=120),(CreditMultB*IncSt!Y6)+((IncSt!Z6+IncSt!AA6)*CreditSales)+(CreditMultA*IncSt!AB6),"Error")))) -> 0 | AF8: =IF(CreditTerms<=30,(CreditMultB*IncSt!AE6/3)+(IncSt!AF6*CreditSales*2/3)+(CreditMultA*IncSt!AF6/3),IF(AND(CreditTerms>30,CreditTerms<=60),(CreditMultB*IncSt!AE6/3)+(IncSt!AE6/3*CreditSales)+(IncSt!AF6*CreditSales/3)+(IncSt!AF6/3*CreditMultA),IF(AND(CreditTerms>60,CreditTerms<=90),(CreditMultB*IncSt!AE6/3)+(IncSt!AE6*CreditSales*2/3)+(IncSt!AF6/3*CreditMultA),IF(AND(CreditTerms>90,CreditTerms<=120),(CreditMultB*IncSt!AB6)+(IncSt!AE6*CreditSales*2/3)+(CreditMultA*IncSt!AE6/3),"Error")))) -> 0 | AG8: =IF(CreditTerms<=30,(CreditMultB*IncSt!AF6/3)+(IncSt!AG6*CreditSales*2/3)+(CreditMultA*IncSt!AG6/3),IF(AND(CreditTerms>30,CreditTerms<=60),(CreditMultB*IncSt!AF6/3)+(IncSt!AF6/3*CreditSales)+(IncSt!AG6*CreditSales/3)+(IncSt!AG6/3*CreditMultA),IF(AND(CreditTerms>60,CreditTerms<=90),(CreditMultB*IncSt!AF6/3)+(IncSt!AF6*CreditSales*2/3)+(IncSt!AG6/3*CreditMultA),IF(AND(CreditTerms>90,CreditTerms<=120),(CreditMultB*IncSt!AE6/3)+(IncSt!AF6*CreditSales*2/3)+(CreditMultA*IncSt!AF6/3),"Error")))) -> 0 | AH8: =IF(CreditTerms<=30,(CreditMultB*IncSt!AG6/3)+(IncSt!AH6*CreditSales*2/3)+(CreditMultA*IncSt!AH6/3),IF(AND(CreditTerms>30,CreditTerms<=60),(CreditMultB*IncSt!AG6/3)+(IncSt!AG6/3*CreditSales)+(IncSt!AH6*CreditSales/3)+(IncSt!AH6/3*CreditMultA),IF(AND(CreditTerms>60,CreditTerms<=90),(CreditMultB*IncSt!AG6/3)+(IncSt!AG6*CreditSales*2/3)+(IncSt!AH6/3*CreditMultA),IF(AND(CreditTerms>90,CreditTerms<=120),(CreditMultB*IncSt!AF6/3)+(IncSt!AG6*CreditSales*2/3)+(CreditMultA*IncSt!AG6/3),"Error")))) -> 0 | AI8: =SUM(AE8:AH8) -> 0 | AK8: =IF(CreditTerms<=30,(CreditMultB*IncSt!AH6/3)+(IncSt!AK6*CreditSales*2/3)+(CreditMultA*IncSt!AK6/3),IF(AND(CreditTerms>30,CreditTerms<=60),(CreditMultB*IncSt!AH6/3)+(IncSt!AH6/3*CreditSales)+(IncSt!AK6*CreditSales/3)+(IncSt!AK6/3*CreditMultA),IF(AND(CreditTerms>60,CreditTerms<=90),(CreditMultB*IncSt!AH6/3)+(IncSt!AH6*CreditSales*2/3)+(IncSt!AK6/3*CreditMultA),IF(AND(CreditTerms>90,CreditTerms<=120),(CreditMultB*IncSt!AG6/3)+(IncSt!AH6*CreditSales*2/3)+(CreditMultA*IncSt!AH6/3),"Error")))) -> 0 | AL8: =IF(CreditTerms<=30,(CreditMultB*IncSt!AK6/3)+(IncSt!AL6*CreditSales*2/3)+(CreditMultA*IncSt!AL6/3),IF(AND(CreditTerms>30,CreditTerms<=60),(CreditMultB*IncSt!AK6/3)+(IncSt!AK6/3*CreditSales)+(IncSt!AL6*CreditSales/3)+(IncSt!AL6/3*CreditMultA),IF(AND(CreditTerms>60,CreditTerms<=90),(CreditMultB*IncSt!AK6/3)+(IncSt!AK6*CreditSales*2/3)+(IncSt!AL6/3*CreditMultA),IF(AND(CreditTerms>90,CreditTerms<=120),(CreditMultB*IncSt!AH6/3)+(IncSt!AK6*CreditSales*2/3)+(CreditMultA*IncSt!AK6/3),"Error")))) -> 0 | AM8: =IF(CreditTerms<=30,(CreditMultB*IncSt!AL6/3)+(IncSt!AM6*CreditSales*2/3)+(CreditMultA*IncSt!AM6/3),IF(AND(CreditTerms>30,CreditTerms<=60),(CreditMultB*IncSt!AL6/3)+(IncSt!AL6/3*CreditSales)+(IncSt!AM6*CreditSales/3)+(IncSt!AM6/3*CreditMultA),IF(AND(CreditTerms>60,CreditTerms<=90),(CreditMultB*IncSt!AL6/3)+(IncSt!AL6*CreditSales*2/3)+(IncSt!AM6/3*CreditMultA),IF(AND(CreditTerms>90,CreditTerms<=120),(CreditMultB*IncSt!AK6/3)+(IncSt!AL6*CreditSales*2/3)+(CreditMultA*IncSt!AL6/3),"Error")))) -> 0 | AN8: =IF(CreditTerms<=30,(CreditMultB*IncSt!AM6/3)+(IncSt!AN6*CreditSales*2/3)+(CreditMultA*IncSt!AN6/3),IF(AND(CreditTerms>30,CreditTerms<=60),(CreditMultB*IncSt!AM6/3)+(IncSt!AM6/3*CreditSales)+(IncSt!AN6*CreditSales/3)+(IncSt!AN6/3*CreditMultA),IF(AND(CreditTerms>60,CreditTerms<=90),(CreditMultB*IncSt!AM6/3)+(IncSt!AM6*CreditSales*2/3)+(IncSt!AN6/3*CreditMultA),IF(AND(CreditTerms>90,CreditTerms<=120),(CreditMultB*IncSt!AL6/3)+(IncSt!AM6*CreditSales*2/3)+(CreditMultA*IncSt!AM6/3),"Error")))) -> 0 | AO8: =SUM(AK8:AN8) -> 0 | AQ8: =IF(CreditTerms<=30,(CreditMultB*IncSt!AN6/3)+(IncSt!AQ6*CreditSales*11/12)+(CreditMultA*IncSt!AQ6/12),IF(AND(CreditTerms>30,CreditTerms<=60),(CreditMultB*IncSt!AN6/3)+(IncSt!AN6/3*CreditSales)+(IncSt!AQ6*CreditSales*5/6)+(IncSt!AQ6/12*CreditMultA),IF(AND(CreditTerms>60,CreditTerms<=90),(CreditMultB*IncSt!AN6/3)+(IncSt!AN6*CreditSales*2/3)+(IncSt!AQ6*3/4)+(IncSt!AQ6/12*CreditMultA),IF(AND(CreditTerms>90,CreditTerms<=120),(CreditMultB*IncSt!AM6/3)+(IncSt!AN6*CreditSales)+(IncSt!AQ6*2/3*CreditSales)+(CreditMultA*IncSt!AQ6/12),"Error")))) -> 0
B9: Total Cash from Sales | C9: =SUM(C7:C8) -> 0 | D9: 0 | E9: 0 | F9: 0 | G9: 0 | H9: 0 | I9: 0 | J9: 0 | K9: 0 | L9: 0 | M9: 0 | N9: =SUM(N7:N8) -> 0 | O9: =SUM(C9:N9) -> 0 | Q9: =SUM(Q7:Q8) -> 0 | R9: 0 | S9: 0 | T9: 0 | U9: 0 | V9: 0 | W9: 0 | X9: 0 | Y9: 0 | Z9: 0 | AA9: 0 | AB9: 0 | AC9: =SUM(Q9:AB9) -> 0 | AE9: =SUM(AE7:AE8) -> 0 | AF9: =SUM(AF7:AF8) -> 0 | AG9: =SUM(AG7:AG8) -> 0 | AH9: =SUM(AH7:AH8) -> 0 | AI9: =SUM(AE9:AH9) -> 0 | AK9: =SUM(AK7:AK8) -> 0 | AL9: =SUM(AL7:AL8) -> 0 | AM9: =SUM(AM7:AM8) -> 0 | AN9: =SUM(AN7:AN8) -> 0 | AO9: =SUM(AK9:AN9) -> 0 | AQ9: =SUM(AQ7:AQ8) -> 0
B10: Income from Financing
B11: Interest Income | C11: =IF((SUM(C9,C12,C15,C31)-C27)>0,(SUM(C9,C12,C15,C31)-C27)*InterestRate/12,0) -> 4.166666667 | D11: 4.170138889 | E11: 4.173614005 | F11: 4.177092016 | G11: 4.180572926 | H11: 4.184056737 | I11: 4.187543451 | J11: 4.191033071 | K11: 4.194525598 | L11: 4.198021036 | M11: 4.201519387 | N11: 4.205020653 | O11: =SUM(C11:N11) -> 50.22980444 | Q11: =IF((SUM(Q9,Q12,Q15,Q31)-Q27)>0,(SUM(Q9,Q12,Q15,Q31)-Q27)*InterestRate/12,0) -> 4.208524837 | R11: 4.212031941 | S11: 4.215541968 | T11: 4.219054919 | U11: 4.222570798 | V11: 4.226089607 | W11: 4.229611349 | X11: 4.233136025 | Y11: 4.236663638 | Z11: 4.240194191 | AA11: 4.243727686 | AB11: 4.247264126 | AC11: =SUM(Q11:AB11) -> 50.73441109 | AE11: =IF((SUM(AE9,AE12,AE15,AE31)-AE27)>0,(SUM(AE9,AE12,AE15,AE31)-AE27)*InterestRate/4,0) -> 12.75241054 | AF11: =IF((SUM(AF9,AF12,AF15,AF31)-AF27)>0,(SUM(AF9,AF12,AF15,AF31)-AF27)*InterestRate/4,0) -> 12.78429157 | AG11: =IF((SUM(AG9,AG12,AG15,AG31)-AG27)>0,(SUM(AG9,AG12,AG15,AG31)-AG27)*InterestRate/4,0) -> 12.81625229 | AH11: =IF((SUM(AH9,AH12,AH15,AH31)-AH27)>0,(SUM(AH9,AH12,AH15,AH31)-AH27)*InterestRate/4,0) -> 12.84829292 | AI11: =SUM(AE11:AH11) -> 51.20124732 | AK11: =IF((SUM(AK9,AK12,AK15,AK31)-AK27)>0,(SUM(AK9,AK12,AK15,AK31)-AK27)*InterestRate/4,0) -> 12.88041366 | AL11: =IF((SUM(AL9,AL12,AL15,AL31)-AL27)>0,(SUM(AL9,AL12,AL15,AL31)-AL27)*InterestRate/4,0) -> 12.91261469 | AM11: =IF((SUM(AM9,AM12,AM15,AM31)-AM27)>0,(SUM(AM9,AM12,AM15,AM31)-AM27)*InterestRate/4,0) -> 12.94489623 | AN11: =IF((SUM(AN9,AN12,AN15,AN31)-AN27)>0,(SUM(AN9,AN12,AN15,AN31)-AN27)*InterestRate/4,0) -> 12.97725847 | AO11: =SUM(AK11:AN11) -> 51.71518304 | AQ11: =IF((SUM(AQ9,AQ12,AQ15,AQ31)-AQ27)>0,(SUM(AQ9,AQ12,AQ15,AQ31)-AQ27)*InterestRate,0) -> 52.03880646
B12: Loan Proceeds | C12: =LoanInvestSchedules!M102 -> 0 | D12: =LoanInvestSchedules!N102 -> 0 | E12: =LoanInvestSchedules!O102 -> 0 | F12: =LoanInvestSchedules!P102 -> 0 | G12: =LoanInvestSchedules!Q102 -> 0 | H12: =LoanInvestSchedules!R102 -> 0 | I12: =LoanInvestSchedules!S102 -> 0 | J12: =LoanInvestSchedules!T102 -> 0 | K12: =LoanInvestSchedules!U102 -> 0 | L12: =LoanInvestSchedules!V102 -> 0 | M12: =LoanInvestSchedules!W102 -> 0 | N12: =LoanInvestSchedules!X102 -> 0 | O12: 0 | Q12: =LoanInvestSchedules!Y102 -> 0 | R12: =LoanInvestSchedules!Z102 -> 0 | S12: =LoanInvestSchedules!AA102 -> 0 | T12: =LoanInvestSchedules!AB102 -> 0 | U12: =LoanInvestSchedules!AC102 -> 0 | V12: =LoanInvestSchedules!AD102 -> 0 | W12: =LoanInvestSchedules!AE102 -> 0 | X12: =LoanInvestSchedules!AF102 -> 0 | Y12: =LoanInvestSchedules!AG102 -> 0 | Z12: =LoanInvestSchedules!AH102 -> 0 | AA12: =LoanInvestSchedules!AI102 -> 0 | AB12: =LoanInvestSchedules!AJ102 -> 0 | AC12: =SUM(Q12:AB12) -> 0 | AE12: =SUM(LoanInvestSchedules!AK102:AM102) -> 0 | AF12: =SUM(LoanInvestSchedules!AN102:AP102) -> 0 | AG12: =SUM(LoanInvestSchedules!AQ102:AS102) -> 0 | AH12: =SUM(LoanInvestSchedules!AT102:AV102) -> 0 | AI12: 0 | AK12: =SUM(LoanInvestSchedules!AW102:AY102) -> 0 | AL12: =SUM(LoanInvestSchedules!AZ102:BB102) -> 0 | AM12: =SUM(LoanInvestSchedules!BC102:BE102) -> 0 | AN12: =SUM(LoanInvestSchedules!BF102:BH102) -> 0 | AO12: 0 | AQ12: =SUM(LoanInvestSchedules!BI102:BT102) -> 0
B13: Equity Capital Investments | C13: =LoanInvestSchedules!M20 -> 0 | D13: =LoanInvestSchedules!N20 -> 0 | E13: =LoanInvestSchedules!O20 -> 0 | F13: =LoanInvestSchedules!P20 -> 0 | G13: =LoanInvestSchedules!Q20 -> 0 | H13: =LoanInvestSchedules!R20 -> 0 | I13: =LoanInvestSchedules!S20 -> 0 | J13: =LoanInvestSchedules!T20 -> 0 | K13: =LoanInvestSchedules!U20 -> 0 | L13: =LoanInvestSchedules!V20 -> 0 | M13: =LoanInvestSchedules!W20 -> 0 | N13: =LoanInvestSchedules!X20 -> 0 | O13: 0 | Q13: =LoanInvestSchedules!Y20 -> 0 | R13: =LoanInvestSchedules!Z20 -> 0 | S13: =LoanInvestSchedules!AA20 -> 0 | T13: =LoanInvestSchedules!AB20 -> 0 | U13: =LoanInvestSchedules!AC20 -> 0 | V13: =LoanInvestSchedules!AD20 -> 0 | W13: =LoanInvestSchedules!AE20 -> 0 | X13: =LoanInvestSchedules!AF20 -> 0 | Y13: =LoanInvestSchedules!AG20 -> 0 | Z13: =LoanInvestSchedules!AH20 -> 0 | AA13: =LoanInvestSchedules!AI20 -> 0 | AB13: =LoanInvestSchedules!AJ20 -> 0 | AC13: 0 | AE13: =SUM(LoanInvestSchedules!AK20:AM20) -> 0 | AF13: =SUM(LoanInvestSchedules!AN20:AP20) -> 0 | AG13: =SUM(LoanInvestSchedules!AQ20:AS20) -> 0 | AH13: =SUM(LoanInvestSchedules!AT20:AV20) -> 0 | AI13: 0 | AK13: =SUM(LoanInvestSchedules!AW20:AY20) -> 0 | AL13: =SUM(LoanInvestSchedules!AZ20:BB20) -> 0 | AM13: =SUM(LoanInvestSchedules!BC20:BE20) -> 0 | AN13: =SUM(LoanInvestSchedules!BF20:BH20) -> 0 | AO13: 0 | AQ13: =SUM(LoanInvestSchedules!BI20:BT20) -> 0
B14: Total Cash from Financing | C14: =SUM(C11:C13) -> 4.166666667 | D14: =SUM(D11:D13) -> 4.170138889 | E14: =SUM(E11:E13) -> 4.173614005 | F14: 4.177092016 | G14: 4.180572926 | H14: 4.184056737 | I14: 4.187543451 | J14: 4.191033071 | K14: 4.194525598 | L14: 4.198021036 | M14: 4.201519387 | N14: 4.205020653 | O14: 50.22980444 | Q14: =SUM(Q11:Q13) -> 4.208524837 | R14: =SUM(R11:R13) -> 4.212031941 | S14: =SUM(S11:S13) -> 4.215541968 | T14: 4.219054919 | U14: 4.222570798 | V14: 4.226089607 | W14: 4.229611349 | X14: 4.233136025 | Y14: 4.236663638 | Z14: 4.240194191 | AA14: 4.243727686 | AB14: 4.247264126 | AC14: =SUM(Q14:AB14) -> 50.73441109 | AE14: =SUM(AE11:AE13) -> 12.75241054 | AF14: =SUM(AF11:AF13) -> 12.78429157 | AG14: =SUM(AG11:AG13) -> 12.81625229 | AH14: =SUM(AH11:AH13) -> 12.84829292 | AI14: 51.20124732 | AK14: =SUM(AK11:AK13) -> 12.88041366 | AL14: =SUM(AL11:AL13) -> 12.91261469 | AM14: =SUM(AM11:AM13) -> 12.94489623 | AN14: =SUM(AN11:AN13) -> 12.97725847 | AO14: 51.71518304 | AQ14: =SUM(AQ11:AQ13) -> 52.03880646
B15: Other Cash Receipts | C15: 0 | D15: 0 | E15: 0 | F15: 0 | G15: 0 | H15: 0 | I15: 0 | J15: 0 | K15: 0 | L15: 0 | M15: 0 | N15: 0 | O15: 0 | Q15: 0 | R15: 0 | S15: 0 | T15: 0 | U15: 0 | V15: 0 | W15: 0 | X15: 0 | Y15: 0 | Z15: 0 | AA15: 0 | AB15: 0 | AC15: =SUM(Q15:AB15) -> 0 | AE15: 0 | AF15: 0 | AG15: 0 | AH15: 0 | AI15: 0 | AK15: 0 | AL15: 0 | AM15: 0 | AN15: 0 | AO15: 0 | AQ15: 0
B16: TOTAL CASH RECEIPTS | C16: =SUM(C14:C15,C9) -> 4.166666667 | D16: 4.170138889 | E16: 4.173614005 | F16: 4.177092016 | G16: 4.180572926 | H16: 4.184056737 | I16: 4.187543451 | J16: 4.191033071 | K16: 4.194525598 | L16: 4.198021036 | M16: 4.201519387 | N16: =SUM(N14:N15,N9) -> 4.205020653 | O16: 50.22980444 | Q16: =SUM(Q14:Q15,Q9) -> 4.208524837 | R16: 4.212031941 | S16: 4.215541968 | T16: 4.219054919 | U16: 4.222570798 | V16: 4.226089607 | W16: 4.229611349 | X16: 4.233136025 | Y16: 4.236663638 | Z16: 4.240194191 | AA16: 4.243727686 | AB16: 4.247264126 | AC16: =SUM(Q16:AB16) -> 50.73441109 | AE16: =SUM(AE14:AE15,AE9) -> 12.75241054 | AF16: =SUM(AF14:AF15,AF9) -> 12.78429157 | AG16: =SUM(AG14:AG15,AG9) -> 12.81625229 | AH16: =SUM(AH14:AH15,AH9) -> 12.84829292 | AI16: 51.20124732 | AK16: =SUM(AK14:AK15,AK9) -> 12.88041366 | AL16: =SUM(AL14:AL15,AL9) -> 12.91261469 | AM16: =SUM(AM14:AM15,AM9) -> 12.94489623 | AN16: =SUM(AN14:AN15,AN9) -> 12.97725847 | AO16: 51.71518304 | AQ16: =SUM(AQ14:AQ15,AQ9) -> 52.03880646
B18: CASH DISBURSEMENTS
B19: Inventory | C19: =Inventory!C85 -> 0 | D19: =Inventory!D85 -> 0 | E19: =Inventory!E85 -> 0 | F19: =Inventory!F85 -> 0 | G19: =Inventory!G85 -> 0 | H19: =Inventory!H85 -> 0 | I19: =Inventory!I85 -> 0 | J19: =Inventory!J85 -> 0 | K19: =Inventory!K85 -> 0 | L19: =Inventory!L85 -> 0 | M19: =Inventory!M85 -> 0 | N19: =Inventory!N85 -> 0 | O19: =SUM(C19:N19) -> 0 | Q19: =Inventory!Q85 -> 0 | R19: =Inventory!R85 -> 0 | S19: =Inventory!S85 -> 0 | T19: =Inventory!T85 -> 0 | U19: =Inventory!U85 -> 0 | V19: =Inventory!V85 -> 0 | W19: =Inventory!W85 -> 0 | X19: =Inventory!X85 -> 0 | Y19: =Inventory!Y85 -> 0 | Z19: =Inventory!Z85 -> 0 | AA19: =Inventory!AA85 -> 0 | AB19: =Inventory!AB85 -> 0 | AC19: =SUM(Q19:AB19) -> 0 | AE19: =Inventory!AE85 -> 0 | AF19: =Inventory!AF85 -> 0 | AG19: =Inventory!AG85 -> 0 | AH19: =Inventory!AH85 -> 0 | AI19: =SUM(AE19:AH19) -> 0 | AK19: =Inventory!AK85 -> 0 | AL19: =Inventory!AL85 -> 0 | AM19: =Inventory!AM85 -> 0 | AN19: =Inventory!AN85 -> 0 | AO19: =SUM(AK19:AN19) -> 0 | AQ19: =Inventory!AQ85 -> 0
B20: Operating Expenses | C20: =IncSt!C33-IncSt!C22-IncSt!C30 -> 0 | D20: =IncSt!D33-IncSt!D22-IncSt!D30 -> 0 | E20: =IncSt!E33-IncSt!E22-IncSt!E30 -> 0 | F20: =IncSt!F33-IncSt!F22-IncSt!F30 -> 0 | G20: =IncSt!G33-IncSt!G22-IncSt!G30 -> 0 | H20: =IncSt!H33-IncSt!H22-IncSt!H30 -> 0 | I20: =IncSt!I33-IncSt!I22-IncSt!I30 -> 0 | J20: =IncSt!J33-IncSt!J22-IncSt!J30 -> 0 | K20: =IncSt!K33-IncSt!K22-IncSt!K30 -> 0 | L20: =IncSt!L33-IncSt!L22-IncSt!L30 -> 0 | M20: =IncSt!M33-IncSt!M22-IncSt!M30 -> 0 | N20: =IncSt!N33-IncSt!N22-IncSt!N30 -> 0 | O20: 0 | Q20: =IncSt!Q33-IncSt!Q22-IncSt!Q30 -> 0 | R20: =IncSt!R33-IncSt!R22-IncSt!R30 -> 0 | S20: =IncSt!S33-IncSt!S22-IncSt!S30 -> 0 | T20: =IncSt!T33-IncSt!T22-IncSt!T30 -> 0 | U20: =IncSt!U33-IncSt!U22-IncSt!U30 -> 0 | V20: =IncSt!V33-IncSt!V22-IncSt!V30 -> 0 | W20: =IncSt!W33-IncSt!W22-IncSt!W30 -> 0 | X20: =IncSt!X33-IncSt!X22-IncSt!X30 -> 0 | Y20: =IncSt!Y33-IncSt!Y22-IncSt!Y30 -> 0 | Z20: =IncSt!Z33-IncSt!Z22-IncSt!Z30 -> 0 | AA20: =IncSt!AA33-IncSt!AA22-IncSt!AA30 -> 0 | AB20: =IncSt!AB33-IncSt!AB22-IncSt!AB30 -> 0 | AC20: 0 | AE20: =IncSt!AE33-IncSt!AE22-IncSt!AE30 -> 0 | AF20: =IncSt!AF33-IncSt!AF22-IncSt!AF30 -> 0 | AG20: =IncSt!AG33-IncSt!AG22-IncSt!AG30 -> 0 | AH20: =IncSt!AH33-IncSt!AH22-IncSt!AH30 -> 0 | AI20: 0 | AK20: =IncSt!AK33-IncSt!AK22-IncSt!AK30 -> 0 | AL20: =IncSt!AL33-IncSt!AL22-IncSt!AL30 -> 0 | AM20: =IncSt!AM33-IncSt!AM22-IncSt!AM30 -> 0 | AN20: =IncSt!AN33-IncSt!AN22-IncSt!AN30 -> 0 | AO20: 0 | AQ20: =IncSt!AQ33-IncSt!AQ22-IncSt!AQ30 -> 0
B21: Commissions/Returns & Allowances | C21: =SUM(IncSt!C7:C8) -> 0 | D21: =SUM(IncSt!D7:D8) -> 0 | E21: =SUM(IncSt!E7:E8) -> 0 | F21: =SUM(IncSt!F7:F8) -> 0 | G21: =SUM(IncSt!G7:G8) -> 0 | H21: =SUM(IncSt!H7:H8) -> 0 | I21: =SUM(IncSt!I7:I8) -> 0 | J21: =SUM(IncSt!J7:J8) -> 0 | K21: =SUM(IncSt!K7:K8) -> 0 | L21: =SUM(IncSt!L7:L8) -> 0 | M21: =SUM(IncSt!M7:M8) -> 0 | N21: =SUM(IncSt!N7:N8) -> 0 | O21: 0 | Q21: =SUM(IncSt!Q7:Q8) -> 0 | R21: =SUM(IncSt!R7:R8) -> 0 | S21: =SUM(IncSt!S7:S8) -> 0 | T21: =SUM(IncSt!T7:T8) -> 0 | U21: =SUM(IncSt!U7:U8) -> 0 | V21: =SUM(IncSt!V7:V8) -> 0 | W21: =SUM(IncSt!W7:W8) -> 0 | X21: =SUM(IncSt!X7:X8) -> 0 | Y21: =SUM(IncSt!Y7:Y8) -> 0 | Z21: =SUM(IncSt!Z7:Z8) -> 0 | AA21: =SUM(IncSt!AA7:AA8) -> 0 | AB21: =SUM(IncSt!AB7:AB8) -> 0 | AC21: 0 | AE21: =SUM(IncSt!AE7:AE8) -> 0 | AF21: =SUM(IncSt!AF7:AF8) -> 0 | AG21: =SUM(IncSt!AG7:AG8) -> 0 | AH21: =SUM(IncSt!AH7:AH8) -> 0 | AI21: 0 | AK21: =SUM(IncSt!AK7:AK8) -> 0 | AL21: =SUM(IncSt!AL7:AL8) -> 0 | AM21: =SUM(IncSt!AM7:AM8) -> 0 | AN21: =SUM(IncSt!AN7:AN8) -> 0 | AO21: 0 | AQ21: =SUM(IncSt!AQ7:AQ8) -> 0
B22: Capital Purchases | C22: =DepnSchedule!P71 -> 0 | D22: =DepnSchedule!Q71 -> 0 | E22: =DepnSchedule!R71 -> 0 | F22: =DepnSchedule!S71 -> 0 | G22: =DepnSchedule!T71 -> 0 | H22: =DepnSchedule!U71 -> 0 | I22: =DepnSchedule!V71 -> 0 | J22: =DepnSchedule!W71 -> 0 | K22: =DepnSchedule!X71 -> 0 | L22: =DepnSchedule!Y71 -> 0 | M22: =DepnSchedule!Z71 -> 0 | N22: =DepnSchedule!AA71 -> 0 | O22: 0 | Q22: =DepnSchedule!AB71 -> 0 | R22: =DepnSchedule!AC71 -> 0 | S22: =DepnSchedule!AD71 -> 0 | T22: =DepnSchedule!AE71 -> 0 | U22: =DepnSchedule!AF71 -> 0 | V22: =DepnSchedule!AG71 -> 0 | W22: =DepnSchedule!AH71 -> 0 | X22: =DepnSchedule!AI71 -> 0 | Y22: =DepnSchedule!AJ71 -> 0 | Z22: =DepnSchedule!AK71 -> 0 | AA22: =DepnSchedule!AL71 -> 0 | AB22: =DepnSchedule!AM71 -> 0 | AC22: 0 | AE22: =SUM(DepnSchedule!AN71:AP71) -> 0 | AF22: =SUM(DepnSchedule!AQ71:AS71) -> 0 | AG22: =SUM(DepnSchedule!AT71:AV71) -> 0 | AH22: =SUM(DepnSchedule!AW71:AY71) -> 0 | AI22: 0 | AK22: =SUM(DepnSchedule!AZ71:BB71) -> 0 | AL22: =SUM(DepnSchedule!BC71:BE71) -> 0 | AM22: =SUM(DepnSchedule!BF71:BH71) -> 0 | AN22: =SUM(DepnSchedule!BI71:BK71) -> 0 | AO22: 0 | AQ22: =SUM(DepnSchedule!BL71:BW71) -> 0
B23: Loan Payments | C23: =LoanInvestSchedules!M49 -> 0 | D23: =LoanInvestSchedules!N49 -> 0 | E23: =LoanInvestSchedules!O49 -> 0 | F23: =LoanInvestSchedules!P49 -> 0 | G23: =LoanInvestSchedules!Q49 -> 0 | H23: =LoanInvestSchedules!R49 -> 0 | I23: =LoanInvestSchedules!S49 -> 0 | J23: =LoanInvestSchedules!T49 -> 0 | K23: =LoanInvestSchedules!U49 -> 0 | L23: =LoanInvestSchedules!V49 -> 0 | M23: =LoanInvestSchedules!W49 -> 0 | N23: =LoanInvestSchedules!X49 -> 0 | O23: 0 | Q23: =LoanInvestSchedules!Y49 -> 0 | R23: =LoanInvestSchedules!Z49 -> 0 | S23: =LoanInvestSchedules!AA49 -> 0 | T23: =LoanInvestSchedules!AB49 -> 0 | U23: =LoanInvestSchedules!AC49 -> 0 | V23: =LoanInvestSchedules!AD49 -> 0 | W23: =LoanInvestSchedules!AE49 -> 0 | X23: =LoanInvestSchedules!AF49 -> 0 | Y23: =LoanInvestSchedules!AG49 -> 0 | Z23: =LoanInvestSchedules!AH49 -> 0 | AA23: =LoanInvestSchedules!AI49 -> 0 | AB23: =LoanInvestSchedules!AJ49 -> 0 | AC23: 0 | AE23: =SUM(LoanInvestSchedules!AK49:AM49) -> 0 | AF23: =SUM(LoanInvestSchedules!AN49:AP49) -> 0 | AG23: =SUM(LoanInvestSchedules!AQ49:AS49) -> 0 | AH23: =SUM(LoanInvestSchedules!AT49:AV49) -> 0 | AI23: 0 | AK23: =SUM(LoanInvestSchedules!AW49:AY49) -> 0 | AL23: =SUM(LoanInvestSchedules!AZ49:BB49) -> 0 | AM23: =SUM(LoanInvestSchedules!BC49:BE49) -> 0 | AN23: =SUM(LoanInvestSchedules!BF49:BH49) -> 0 | AO23: 0 | AQ23: =SUM(LoanInvestSchedules!BI49:BT49) -> 0
B24: Income Tax Payments | C24: 0 | D24: =C24 -> 0 | E24: =D24 -> 0 | F24: 0 | G24: 0 | H24: 0 | I24: 0 | J24: 0 | K24: 0 | L24: 0 | M24: 0 | N24: 0 | O24: 0 | Q24: =N24 -> 0 | R24: =Q24 -> 0 | S24: =R24 -> 0 | T24: 0 | U24: 0 | V24: 0 | W24: 0 | X24: 0 | Y24: 0 | Z24: 0 | AA24: 0 | AB24: 0 | AC24: 0 | AE24: =AB24*3 -> 0 | AF24: =AE24 -> 0 | AG24: 0 | AH24: 0 | AI24: 0 | AK24: =AH24 -> 0 | AL24: =AK24 -> 0 | AM24: 0 | AN24: 0 | AO24: 0 | AQ24: =AN24*4 -> 0
B25: Investor Dividend Payments | C25: 0 | D25: =C25 -> 0 | E25: =D25 -> 0 | F25: 0 | G25: 0 | H25: 0 | I25: 0 | J25: 0 | K25: 0 | L25: 0 | M25: 0 | N25: 0 | O25: 0 | Q25: =N25 -> 0 | R25: =Q25 -> 0 | S25: =R25 -> 0 | T25: 0 | U25: 0 | V25: 0 | W25: 0 | X25: 0 | Y25: 0 | Z25: 0 | AA25: 0 | AB25: 0 | AC25: 0 | AE25: =AB25*3 -> 0 | AF25: 0 | AG25: 0 | AH25: 0 | AI25: 0 | AK25: =AH25 -> 0 | AL25: 0 | AM25: 0 | AN25: 0 | AO25: 0 | AQ25: =AN25*4 -> 0
B26: Owner's Draw | C26: 0 | D26: =C26 -> 0 | E26: =D26 -> 0 | F26: 0 | G26: 0 | H26: 0 | I26: 0 | J26: 0 | K26: 0 | L26: 0 | M26: 0 | N26: =M26 -> 0 | O26: 0 | Q26: =N26 -> 0 | R26: =Q26 -> 0 | S26: =R26 -> 0 | T26: 0 | U26: 0 | V26: 0 | W26: 0 | X26: 0 | Y26: 0 | Z26: 0 | AA26: 0 | AB26: =AA26 -> 0 | AC26: 0 | AE26: =N26*3 -> 0 | AF26: 0 | AG26: 0 | AH26: 0 | AI26: 0 | AK26: =AH26 -> 0 | AL26: 0 | AM26: 0 | AN26: 0 | AO26: 0 | AQ26: =AN26*4 -> 0
B27: TOTAL CASH DISBURSEMENTS | C27: =SUM(C19:C26) -> 0 | D27: 0 | E27: 0 | F27: 0 | G27: 0 | H27: 0 | I27: 0 | J27: 0 | K27: 0 | L27: 0 | M27: 0 | N27: =SUM(N19:N26) -> 0 | O27: 0 | Q27: =SUM(Q19:Q26) -> 0 | R27: 0 | S27: 0 | T27: 0 | U27: 0 | V27: 0 | W27: 0 | X27: 0 | Y27: 0 | Z27: 0 | AA27: 0 | AB27: 0 | AC27: 0 | AE27: =SUM(AE19:AE26) -> 0 | AF27: =SUM(AF19:AF26) -> 0 | AG27: =SUM(AG19:AG26) -> 0 | AH27: =SUM(AH19:AH26) -> 0 | AI27: 0 | AK27: =SUM(AK19:AK26) -> 0 | AL27: =SUM(AL19:AL26) -> 0 | AM27: =SUM(AM19:AM26) -> 0 | AN27: =SUM(AN19:AN26) -> 0 | AO27: 0 | AQ27: =SUM(AQ19:AQ26) -> 0
B29: NET CASH FLOW | C29: =C16-C27 -> 4.166666667 | D29: 4.170138889 | E29: 4.173614005 | F29: 4.177092016 | G29: 4.180572926 | H29: 4.184056737 | I29: 4.187543451 | J29: 4.191033071 | K29: 4.194525598 | L29: 4.198021036 | M29: 4.201519387 | N29: =N16-N27 -> 4.205020653 | O29: =O16-O27 -> 50.22980444 | Q29: =Q16-Q27 -> 4.208524837 | R29: 4.212031941 | S29: 4.215541968 | T29: 4.219054919 | U29: 4.222570798 | V29: 4.226089607 | W29: 4.229611349 | X29: 4.233136025 | Y29: 4.236663638 | Z29: 4.240194191 | AA29: 4.243727686 | AB29: =AB16-AB27 -> 4.247264126 | AC29: =AC16-AC27 -> 50.73441109 | AE29: =AE16-AE27 -> 12.75241054 | AF29: =AF16-AF27 -> 12.78429157 | AG29: =AG16-AG27 -> 12.81625229 | AH29: =AH16-AH27 -> 12.84829292 | AI29: =AI16-AI27 -> 51.20124732 | AK29: =AK16-AK27 -> 12.88041366 | AL29: =AL16-AL27 -> 12.91261469 | AM29: =AM16-AM27 -> 12.94489623 | AN29: =AN16-AN27 -> 12.97725847 | AO29: =AO16-AO27 -> 51.71518304 | AQ29: =AQ16-AQ27 -> 52.03880646
B31: Opening Cash Balance | C31: =StartupCash -> 5000 | D31: =C34 -> 5004.166667 | E31: =D34 -> 5008.336806 | F31: =E34 -> 5012.51042 | G31: =F34 -> 5016.687512 | H31: =G34 -> 5020.868085 | I31: 5025.052141 | J31: 5029.239685 | K31: 5033.430718 | L31: 5037.625243 | M31: 5041.823264 | N31: =M34 -> 5046.024784 | Q31: =N34 -> 5050.229804 | R31: =Q34 -> 5054.438329 | S31: 5058.650361 | T31: 5062.865903 | U31: 5067.084958 | V31: 5071.307529 | W31: 5075.533619 | X31: 5079.76323 | Y31: 5083.996366 | Z31: 5088.23303 | AA31: 5092.473224 | AB31: 5096.716951 | AE31: =AB34 -> 5100.964216 | AF31: =AE34 -> 5113.716626 | AG31: =AF34 -> 5126.500918 | AH31: =AG34 -> 5139.31717 | AK31: =AH34 -> 5152.165463 | AL31: =AK34 -> 5165.045877 | AM31: =AL34 -> 5177.958491 | AN31: =AM34 -> 5190.903387 | AQ31: =AO34 -> 5203.880646
B32: Cash Receipts | C32: =C16 -> 4.166666667 | D32: 4.170138889 | E32: 4.173614005 | F32: 4.177092016 | G32: 4.180572926 | H32: 4.184056737 | I32: 4.187543451 | J32: 4.191033071 | K32: 4.194525598 | L32: 4.198021036 | M32: 4.201519387 | N32: =N16 -> 4.205020653 | Q32: =Q16 -> 4.208524837 | R32: 4.212031941 | S32: 4.215541968 | T32: 4.219054919 | U32: 4.222570798 | V32: 4.226089607 | W32: 4.229611349 | X32: 4.233136025 | Y32: 4.236663638 | Z32: 4.240194191 | AA32: 4.243727686 | AB32: =AB16 -> 4.247264126 | AE32: =AE16 -> 12.75241054 | AF32: =AF16 -> 12.78429157 | AG32: =AG16 -> 12.81625229 | AH32: =AH16 -> 12.84829292 | AK32: =AK16 -> 12.88041366 | AL32: =AL16 -> 12.91261469 | AM32: =AM16 -> 12.94489623 | AN32: =AN16 -> 12.97725847 | AQ32: =AQ16 -> 52.03880646
B33: Cash Disbursements | C33: =C27 -> 0 | D33: 0 | E33: 0 | F33: 0 | G33: 0 | H33: 0 | I33: 0 | J33: 0 | K33: 0 | L33: 0 | M33: 0 | N33: =N27 -> 0 | Q33: =Q27 -> 0 | R33: 0 | S33: 0 | T33: 0 | U33: 0 | V33: 0 | W33: 0 | X33: 0 | Y33: 0 | Z33: 0 | AA33: 0 | AB33: =AB27 -> 0 | AE33: =AE27 -> 0 | AF33: =AF27 -> 0 | AG33: =AG27 -> 0 | AH33: =AH27 -> 0 | AK33: =AK27 -> 0 | AL33: =AL27 -> 0 | AM33: =AM27 -> 0 | AN33: =AN27 -> 0 | AQ33: =AQ27 -> 0
B34: ENDING CASH BALANCE | C34: =C31+C32-C33 -> 5004.166667 | D34: 5008.336806 | E34: 5012.51042 | F34: 5016.687512 | G34: 5020.868085 | H34: 5025.052141 | I34: 5029.239685 | J34: 5033.430718 | K34: 5037.625243 | L34: 5041.823264 | M34: 5046.024784 | N34: =N31+N32-N33 -> 5050.229804 | O34: =N34 -> 5050.229804 | Q34: =Q31+Q32-Q33 -> 5054.438329 | R34: 5058.650361 | S34: 5062.865903 | T34: 5067.084958 | U34: 5071.307529 | V34: 5075.533619 | W34: 5079.76323 | X34: 5083.996366 | Y34: 5088.23303 | Z34: 5092.473224 | AA34: 5096.716951 | AB34: 5100.964216 | AC34: =AB34 -> 5100.964216 | AE34: =AE31+AE32-AE33 -> 5113.716626 | AF34: =AF31+AF32-AF33 -> 5126.500918 | AG34: =AG31+AG32-AG33 -> 5139.31717 | AH34: =AH31+AH32-AH33 -> 5152.165463 | AI34: =AH34 -> 5152.165463 | AK34: =AK31+AK32-AK33 -> 5165.045877 | AL34: =AL31+AL32-AL33 -> 5177.958491 | AM34: =AM31+AM32-AM33 -> 5190.903387 | AN34: =AN31+AN32-AN33 -> 5203.880646 | AO34: =AN34 -> 5203.880646 | AQ34: =AQ31+AQ32-AQ33 -> 5255.919452

Sheet BalSht
B2: Balance Sheet | H2: Balance Sheet | N2: Balance Sheet | T2: Balance Sheet | Z2: Balance Sheet | AF2: Balance Sheet | AL2: Balance Sheet | AR2: Balance Sheet
B4: =Setup!C7 -> Your Company Name | H4: =Setup!C7 -> Your Company Name | N4: =Setup!C7 -> Your Company Name | T4: =Setup!C7 -> Your Company Name | Z4: =Setup!C7 -> Your Company Name | AF4: =Setup!C7 -> Your Company Name | AL4: =Setup!C7 -> Your Company Name | AR4: =Setup!C7 -> Your Company Name
B5: First Quarter | H5: Second Quarter | N5: Third Quarter | T5: Fourth Quarter | Z5: =SalesProj!S2 -> 2014 | AF5: =SalesProj!AG2 -> 2015 | AL5: =SalesProj!AM2 -> 2016 | AR5: =SalesProj!AS2 -> 2017
B6: =SalesProj!E2 -> 2013 | H6: =SalesProj!E2 -> 2013 | N6: =SalesProj!E2 -> 2013 | T6: =SalesProj!E2 -> 2013
B8: ASSETS | H8: ASSETS | N8: ASSETS | T8: ASSETS | Z8: ASSETS | AF8: ASSETS | AL8: ASSETS | AR8: ASSETS
B9: Current Assets | H9: Current Assets | N9: Current Assets | T9: Current Assets | Z9: Current Assets | AF9: Current Assets | AL9: Current Assets | AR9: Current Assets
B10: Cash | C10: =CshFlw!E34 -> 5012.51042 | H10: Cash | I10: =CshFlw!H34 -> 5025.052141 | N10: Cash | O10: =CshFlw!K34 -> 5037.625243 | T10: Cash | U10: =CshFlw!N34 -> 5050.229804 | Z10: Cash | AA10: =CshFlw!AB34 -> 5100.964216 | AF10: Cash | AG10: =CshFlw!AI34 -> 5152.165463 | AL10: Cash | AM10: =CshFlw!AO34 -> 5203.880646 | AR10: Cash | AS10: =CshFlw!AQ34 -> 5255.919452
B11: Accounts Receivable | C11: =SUM(IncSt!C6:E6)-SUM(CshFlw!C7:E8) -> 0 | H11: Accounts Receivable | I11: =SUM(IncSt!$C$6:H$6)-SUM(CshFlw!$C$7:H$8) -> 0 | N11: Accounts Receivable | O11: =SUM(IncSt!$C$6:K$6)-SUM(CshFlw!$C$7:K$8) -> 0 | T11: Accounts Receivable | U11: =SUM(IncSt!$C$6:N$6)-SUM(CshFlw!$C$7:N$8) -> 0 | Z11: Accounts Receivable | AA11: =IncSt!AC6-CshFlw!AC9+U11 -> 0 | AF11: Accounts Receivable | AG11: =IncSt!AI$6-CshFlw!AI9+AA11 -> 0 | AL11: Accounts Receivable | AM11: =IncSt!AO6-CshFlw!AO9+AG11 -> 0 | AR11: Accounts Receivable | AS11: =IncSt!AQ6-CshFlw!AQ9+AM11 -> 0
B12: Inventory | C12: =SUM(Inventory!C85:E85)-SUM(SalesProj!E111:G111) -> 0 | H12: Inventory | I12: =C12+SUM(Inventory!F85:H85)-SUM(SalesProj!H111:J111) -> 0 | N12: Inventory | O12: =I12+SUM(Inventory!I85:K85)-SUM(SalesProj!K111:M111) -> 0 | T12: Inventory | U12: =O12+SUM(Inventory!L85:N85)-SUM(SalesProj!N111:P111) -> 0 | Z12: Inventory | AA12: =U12+Inventory!AC85-SalesProj!AE111 -> 0 | AF12: Inventory | AG12: =AA12+Inventory!AI85-SalesProj!AK111 -> 0 | AL12: Inventory | AM12: =AG12+Inventory!AO85-SalesProj!AQ111 -> 0 | AR12: Inventory | AS12: =AM12+Inventory!AQ85-SalesProj!AS111 -> 0
B13: Other Current Assets | C13: 0 | H13: Other Current Assets | I13: 0 | N13: Other Current Assets | O13: 0 | T13: Other Current Assets | U13: 0 | Z13: Other Current Assets | AA13: 0 | AF13: Other Current Assets | AG13: 0 | AL13: Other Current Assets | AM13: 0 | AR13: Other Current Assets | AS13: 0
B14: Total Current Assets | D14: =SUM(C10:C13) -> 5012.51042 | H14: Total Current Assets | J14: =SUM(I10:I13) -> 5025.052141 | N14: Total Current Assets | P14: =SUM(O10:O13) -> 5037.625243 | T14: Total Current Assets | V14: =SUM(U10:U13) -> 5050.229804 | Z14: Total Current Assets | AB14: =SUM(AA10:AA13) -> 5100.964216 | AF14: Total Current Assets | AH14: =SUM(AG10:AG13) -> 5152.165463 | AL14: Total Current Assets | AN14: =SUM(AM10:AM13) -> 5203.880646 | AR14: Total Current Assets | AT14: =SUM(AS10:AS13) -> 5255.919452
B16: Fixed Assets | H16: Fixed Assets | N16: Fixed Assets | T16: Fixed Assets | Z16: Fixed Assets | AF16: Fixed Assets | AL16: Fixed Assets | AR16: Fixed Assets
B17: Land | C17: =SUM(DepnSchedule!P67:R67) -> 0 | H17: Land | I17: =C17+SUM(DepnSchedule!S67:U67) -> 0 | N17: Land | O17: =I17+SUM(DepnSchedule!V67:X67) -> 0 | T17: Land | U17: =O17+SUM(DepnSchedule!Y67:AA67) -> 0 | Z17: Land | AA17: =U17+SUM(DepnSchedule!AB67:AM67) -> 0 | AF17: Land | AG17: =AA17+SUM(DepnSchedule!AN67:AY67) -> 0 | AL17: Land | AM17: =AG17+SUM(DepnSchedule!AZ67:BK67) -> 0 | AR17: Land | AS17: =AM17+SUM(DepnSchedule!BL67:BW67) -> 0
B18: Facilities | C18: =SUM(DepnSchedule!P68:R68) -> 0 | H18: Facilities | I18: =C18+SUM(DepnSchedule!S68:U68) -> 0 | N18: Facilities | O18: =I18+SUM(DepnSchedule!V68:X68) -> 0 | T18: Facilities | U18: =O18+SUM(DepnSchedule!Y68:AA68) -> 0 | Z18: Facilities | AA18: =U18+SUM(DepnSchedule!AB68:AM68) -> 0 | AF18: Facilities | AG18: =AA18+SUM(DepnSchedule!AN68:AY68) -> 0 | AL18: Facilities | AM18: =AG18+SUM(DepnSchedule!AZ68:BK68) -> 0 | AR18: Facilities | AS18: =AM18+SUM(DepnSchedule!BL68:BW68) -> 0
B19: Equipment | C19: =SUM(DepnSchedule!P69:R69) -> 0 | H19: Equipment | I19: =C19+SUM(DepnSchedule!S69:U69) -> 0 | N19: Equipment | O19: =I19+SUM(DepnSchedule!V69:X69) -> 0 | T19: Equipment | U19: =O19+SUM(DepnSchedule!Y69:AA69) -> 0 | Z19: Equipment | AA19: =U19+SUM(DepnSchedule!AB69:AM69) -> 0 | AF19: Equipment | AG19: =AA19+SUM(DepnSchedule!AN69:AY69) -> 0 | AL19: Equipment | AM19: =AG19+SUM(DepnSchedule!AZ69:BK69) -> 0 | AR19: Equipment | AS19: =AM19+SUM(DepnSchedule!BL69:BW69) -> 0
B20: Computers & Telecommunications | C20: =SUM(DepnSchedule!P70:R70) -> 0 | H20: Computers & Telecommunications | I20: =C20+SUM(DepnSchedule!S70:U70) -> 0 | N20: Computers & Telecommunications | O20: =I20+SUM(DepnSchedule!V70:X70) -> 0 | T20: Computers & Telecommunications | U20: =O20+SUM(DepnSchedule!Y70:AA70) -> 0 | Z20: Computers & Telecommunications | AA20: =U20+SUM(DepnSchedule!AB70:AM70) -> 0 | AF20: Computers & Telecommunications | AG20: =AA20+SUM(DepnSchedule!AN70:AY70) -> 0 | AL20: Computers & Telecommunications | AM20: =AG20+SUM(DepnSchedule!AZ70:BK70) -> 0 | AR20: Computers & Telecommunications | AS20: =AM20+SUM(DepnSchedule!BL70:BW70) -> 0
B21: (Less Accumlated Depreciation) | C21: =SUM(IncSt!C22:E22) -> 0 | H21: (Less Accumlated Depreciation) | I21: =SUM(IncSt!C22:H22) -> 0 | N21: (Less Accumlated Depreciation) | O21: =SUM(IncSt!C22:K22) -> 0 | T21: (Less Accumlated Depreciation) | U21: =SUM(IncSt!C22:N22) -> 0 | Z21: (Less Accumlated Depreciation) | AA21: =U21+IncSt!AC22 -> 0 | AF21: (Less Accumlated Depreciation) | AG21: =AA21+IncSt!AI22 -> 0 | AL21: (Less Accumlated Depreciation) | AM21: =AG21+IncSt!AO22 -> 0 | AR21: (Less Accumlated Depreciation) | AS21: =AM21+IncSt!AQ22 -> 0
B22: Total Fixed Assets | D22: =SUM(C17:C20)-C21 -> 0 | H22: Total Fixed Assets | J22: =SUM(I17:I20)-I21 -> 0 | N22: Total Fixed Assets | P22: =SUM(O17:O20)-O21 -> 0 | T22: Total Fixed Assets | V22: =SUM(U17:U20)-U21 -> 0 | Z22: Total Fixed Assets | AB22: =SUM(AA17:AA20)-AA21 -> 0 | AF22: Total Fixed Assets | AH22: =SUM(AG17:AG20)-AG21 -> 0 | AL22: Total Fixed Assets | AN22: =SUM(AM17:AM20)-AM21 -> 0 | AR22: Total Fixed Assets | AT22: =SUM(AS17:AS20)-AS21 -> 0
B23: Other Assets | D23: 0 | H23: Other Assets | J23: 0 | N23: Other Assets | P23: 0 | T23: Other Assets | V23: 0 | Z23: Other Assets | AB23: 0 | AF23: Other Assets | AH23: 0 | AL23: Other Assets | AN23: 0 | AR23: Other Assets | AT23: 0
B24: TOTAL ASSETS | E24: =SUM(D23,D22,D14) -> 5012.51042 | H24: TOTAL ASSETS | K24: =SUM(J23,J22,J14) -> 5025.052141 | N24: TOTAL ASSETS | Q24: =SUM(P23,P22,P14) -> 5037.625243 | T24: TOTAL ASSETS | W24: =SUM(V23,V22,V14) -> 5050.229804 | Z24: TOTAL ASSETS | AC24: =SUM(AB23,AB22,AB14) -> 5100.964216 | AF24: TOTAL ASSETS | AI24: =SUM(AH23,AH22,AH14) -> 5152.165463 | AL24: TOTAL ASSETS | AO24: =SUM(AN23,AN22,AN14) -> 5203.880646 | AR24: TOTAL ASSETS | AU24: =SUM(AT23,AT22,AT14) -> 5255.919452
B26: LIABILITIES | H26: LIABILITIES | N26: LIABILITIES | T26: LIABILITIES | Z26: LIABILITIES | AF26: LIABILITIES | AL26: LIABILITIES | AR26: LIABILITIES
B27: Current Liabilities | H27: Current Liabilities | N27: Current Liabilities | T27: Current Liabilities | Z27: Current Liabilities | AF27: Current Liabilities | AL27: Current Liabilities | AR27: Current Liabilities
B28: Short-Term Notes Payable | C28: =LoanInvestSchedules!N130 -> 0 | H28: Short-Term Notes Payable | I28: =LoanInvestSchedules!Q130 -> 0 | N28: Short-Term Notes Payable | O28: =LoanInvestSchedules!T130 -> 0 | T28: Short-Term Notes Payable | U28: =LoanInvestSchedules!W130 -> 0 | Z28: Short-Term Notes Payable | AA28: =LoanInvestSchedules!Z130 -> 0 | AF28: Short-Term Notes Payable | AG28: =LoanInvestSchedules!AC130 -> 0 | AL28: Short-Term Notes Payable | AM28: =LoanInvestSchedules!AF130 -> 0 | AR28: Short-Term Notes Payable | AS28: =LoanInvestSchedules!AI130 -> 0
B29: Income Taxes Due | C29: =(SUM(IncSt!C35:E35))-(SUM(CshFlw!C24:E24)) -> 0 | H29: Income Taxes Due | I29: =(SUM(IncSt!C35:H35))-(SUM(CshFlw!C24:H24)) -> 0 | N29: Income Taxes Due | O29: =(SUM(IncSt!C35:K35))-(SUM(CshFlw!C24:K24)) -> 0 | T29: Income Taxes Due | U29: =(SUM(IncSt!O35))-(SUM(CshFlw!O24)) -> 0 | Z29: Income Taxes Due | AA29: =U29+IncSt!AC35-CshFlw!AC24 -> 0 | AF29: Income Taxes Due | AG29: =AA29+IncSt!AI35-CshFlw!AI24 -> 0 | AL29: Income Taxes Due | AM29: =AG29+IncSt!AO35-CshFlw!AO24 -> 0 | AR29: Income Taxes Due | AS29: =AM29+IncSt!AQ35-CshFlw!AQ24 -> 0
B30: Other Current Liabilities | C30: 0 | H30: Other Current Liabilities | I30: 0 | N30: Other Current Liabilities | O30: 0 | T30: Other Current Liabilities | U30: 0 | Z30: Other Current Liabilities | AA30: 0 | AF30: Other Current Liabilities | AG30: 0 | AL30: Other Current Liabilities | AM30: 0 | AR30: Other Current Liabilities | AS30: 0
B31: Total Current Liabilities | D31: =SUM(C28:C30) -> 0 | H31: Total Current Liabilities | J31: =SUM(I28:I30) -> 0 | N31: Total Current Liabilities | P31: =SUM(O28:O30) -> 0 | T31: Total Current Liabilities | V31: =SUM(U28:U30) -> 0 | Z31: Total Current Liabilities | AB31: =SUM(AA28:AA30) -> 0 | AF31: Total Current Liabilities | AH31: =SUM(AG28:AG30) -> 0 | AL31: Total Current Liabilities | AN31: =SUM(AM28:AM30) -> 0 | AR31: Total Current Liabilities | AT31: =SUM(AS28:AS30) -> 0
B33: Long-Term Liabilities | H33: Long-Term Liabilities | N33: Long-Term Liabilities | T33: Long-Term Liabilities | Z33: Long-Term Liabilities | AF33: Long-Term Liabilities | AL33: Long-Term Liabilities | AR33: Long-Term Liabilities
B34: Long-Term Notes Payable | C34: =LoanInvestSchedules!O130 -> 0 | H34: Long-Term Notes Payable | I34: =LoanInvestSchedules!R130 -> 0 | N34: Long-Term Notes Payable | O34: =LoanInvestSchedules!U130 -> 0 | T34: Long-Term Notes Payable | U34: =LoanInvestSchedules!X130 -> 0 | Z34: Long-Term Notes Payable | AA34: =LoanInvestSchedules!AA130 -> 0 | AF34: Long-Term Notes Payable | AG34: =LoanInvestSchedules!AD130 -> 0 | AL34: Long-Term Notes Payable | AM34: =LoanInvestSchedules!AG130 -> 0 | AR34: Long-Term Notes Payable | AS34: =LoanInvestSchedules!AJ130 -> 0
B35: Other Long-Term Liabilities | C35: 0 | H35: Other Long-Term Liabilities | I35: 0 | N35: Other Long-Term Liabilities | O35: 0 | T35: Other Long-Term Liabilities | U35: 0 | Z35: Other Long-Term Liabilities | AA35: 0 | AF35: Other Long-Term Liabilities | AG35: 0 | AL35: Other Long-Term Liabilities | AM35: 0 | AR35: Other Long-Term Liabilities | AS35: 0
B36: Total Long-Term Liabilities | D36: =C34+C35 -> 0 | H36: Total Long-Term Liabilities | J36: =I34+I35 -> 0 | N36: Total Long-Term Liabilities | P36: =O34+O35 -> 0 | T36: Total Long-Term Liabilities | V36: =U34+U35 -> 0 | Z36: Total Long-Term Liabilities | AB36: =AA34+AA35 -> 0 | AF36: Total Long-Term Liabilities | AH36: =AG34+AG35 -> 0 | AL36: Total Long-Term Liabilities | AN36: =AM34+AM35 -> 0 | AR36: Total Long-Term Liabilities | AT36: =AS34+AS35 -> 0
B38: NET WORTH | H38: NET WORTH | N38: NET WORTH | T38: NET WORTH | Z38: NET WORTH | AF38: NET WORTH | AL38: NET WORTH | AR38: NET WORTH
B39: Paid-In Capital | C39: =StartupCash+SUM(CshFlw!C13:E13) -> 5000 | H39: Paid-In Capital | I39: =C39+SUM(CshFlw!F13:H13) -> 5000 | N39: Paid-In Capital | O39: =I39+SUM(CshFlw!I13:K13) -> 5000 | T39: Paid-In Capital | U39: =O39+SUM(CshFlw!L13:N13) -> 5000 | Z39: Paid-In Capital | AA39: =U39+CshFlw!AC13 -> 5000 | AF39: Paid-In Capital | AG39: =AA39+CshFlw!AI13 -> 5000 | AL39: Paid-In Capital | AM39: =AG39+CshFlw!AO13 -> 5000 | AR39: Paid-In Capital | AS39: =AM39+CshFlw!AQ13 -> 5000
B40: Retained Earnings | C40: =E24-D31-D36-C39 -> 12.51041956 | H40: Retained Earnings | I40: =K24-J31-J36-I39 -> 25.05214124 | N40: Retained Earnings | O40: =Q24-P31-P36-O39 -> 37.62524336 | T40: Retained Earnings | U40: =W24-V31-V36-U39 -> 50.22980444 | Z40: Retained Earnings | AA40: =AC24-AB31-AB36-AA39 -> 100.9642155 | AF40: Retained Earnings | AG40: =AI24-AH31-AH36-AG39 -> 152.1654628 | AL40: Retained Earnings | AM40: =AO24-AN31-AN36-AM39 -> 203.8806459 | AR40: Retained Earnings | AS40: =AU24-AT31-AT36-AS39 -> 255.9194523
B41: Total Net Worth | D41: =SUM(C39:C40) -> 5012.51042 | H41: Total Net Worth | J41: =SUM(I39:I40) -> 5025.052141 | N41: Total Net Worth | P41: =SUM(O39:O40) -> 5037.625243 | T41: Total Net Worth | V41: =SUM(U39:U40) -> 5050.229804 | Z41: Total Net Worth | AB41: =SUM(AA39:AA40) -> 5100.964216 | AF41: Total Net Worth | AH41: =SUM(AG39:AG40) -> 5152.165463 | AL41: Total Net Worth | AN41: =SUM(AM39:AM40) -> 5203.880646 | AR41: Total Net Worth | AT41: =SUM(AS39:AS40) -> 5255.919452
B42: TOTAL LIABILITIES AND NET WORTH | E42: =SUM(D41,D36,D31) -> 5012.51042 | H42: TOTAL LIABILITIES AND NET WORTH | K42: =SUM(J41,J36,J31) -> 5025.052141 | N42: TOTAL LIABILITIES AND NET WORTH | Q42: =SUM(P41,P36,P31) -> 5037.625243 | T42: TOTAL LIABILITIES AND NET WORTH | W42: =SUM(V41,V36,V31) -> 5050.229804 | Z42: TOTAL LIABILITIES AND NET WORTH | AC42: =SUM(AB41,AB36,AB31) -> 5100.964216 | AF42: TOTAL LIABILITIES AND NET WORTH | AI42: =SUM(AH41,AH36,AH31) -> 5152.165463 | AL42: TOTAL LIABILITIES AND NET WORTH | AO42: =SUM(AN41,AN36,AN31) -> 5203.880646 | AR42: TOTAL LIABILITIES AND NET WORTH | AU42: =SUM(AT41,AT36,AT31) -> 5255.919452

Sheet BrkEvn
B2: Break-even Estimates
B5: =Ratios!B4 -> Year 1 (2013-2014)
B6: =SalesProj!E3 -> January | C6: =IF(IncSt!C$6<>0,IncSt!C$33/(1-((IncSt!C$10+IncSt!C$7+IncSt!C$8)/IncSt!C$6)),0) -> 0
B7: =SalesProj!F3 -> February | C7: =IF(IncSt!D$6<>0,IncSt!D$33/(1-((IncSt!D$10+IncSt!D$7+IncSt!D$8)/IncSt!D$6)),0) -> 0
B8: =SalesProj!G3 -> March | C8: =IF(IncSt!E$6<>0,IncSt!E$33/(1-((IncSt!E$10+IncSt!E$7+IncSt!E$8)/IncSt!E$6)),0) -> 0
B9: =SalesProj!H3 -> April | C9: =IF(IncSt!F$6<>0,IncSt!F$33/(1-((IncSt!F$10+IncSt!F$7+IncSt!F$8)/IncSt!F$6)),0) -> 0
B10: =SalesProj!I3 -> May | C10: =IF(IncSt!G$6<>0,IncSt!G$33/(1-((IncSt!G$10+IncSt!G$7+IncSt!G$8)/IncSt!G$6)),0) -> 0
B11: =SalesProj!J3 -> June | C11: =IF(IncSt!H$6<>0,IncSt!H$33/(1-((IncSt!H$10+IncSt!H$7+IncSt!H$8)/IncSt!H$6)),0) -> 0
B12: =SalesProj!K3 -> July | C12: =IF(IncSt!I$6<>0,IncSt!I$33/(1-((IncSt!I$10+IncSt!I$7+IncSt!I$8)/IncSt!I$6)),0) -> 0
B13: =SalesProj!L3 -> August | C13: =IF(IncSt!J$6<>0,IncSt!J$33/(1-((IncSt!J$10+IncSt!J$7+IncSt!J$8)/IncSt!J$6)),0) -> 0
B14: =SalesProj!M3 -> September | C14: =IF(IncSt!K$6<>0,IncSt!K$33/(1-((IncSt!K$10+IncSt!K$7+IncSt!K$8)/IncSt!K$6)),0) -> 0
B15: =SalesProj!N3 -> October | C15: =IF(IncSt!L$6<>0,IncSt!L$33/(1-((IncSt!L$10+IncSt!L$7+IncSt!L$8)/IncSt!L$6)),0) -> 0
B16: =SalesProj!O3 -> November | C16: =IF(IncSt!M$6<>0,IncSt!M$33/(1-((IncSt!M$10+IncSt!M$7+IncSt!M$8)/IncSt!M$6)),0) -> 0
B17: =SalesProj!P3 -> December | C17: =IF(IncSt!N$6<>0,IncSt!N$33/(1-((IncSt!N$10+IncSt!N$7+IncSt!N$8)/IncSt!N$6)),0) -> 0
B18: Monthly Average | C18: =AVERAGE(C6:C17) -> 0
B20: =Ratios!B10 -> Year 2 (2014-2015)
B21: =B6 -> January | C21: =IF(IncSt!Q$6<>0,IncSt!Q$33/(1-((IncSt!Q$10+IncSt!Q$7+IncSt!Q$8)/IncSt!Q$6)),0) -> 0
B22: February | C22: =IF(IncSt!R$6<>0,IncSt!R$33/(1-((IncSt!R$10+IncSt!R$7+IncSt!R$8)/IncSt!R$6)),0) -> 0
B23: March | C23: =IF(IncSt!S$6<>0,IncSt!S$33/(1-((IncSt!S$10+IncSt!S$7+IncSt!S$8)/IncSt!S$6)),0) -> 0
B24: April | C24: =IF(IncSt!T$6<>0,IncSt!T$33/(1-((IncSt!T$10+IncSt!T$7+IncSt!T$8)/IncSt!T$6)),0) -> 0
B25: May | C25: =IF(IncSt!U$6<>0,IncSt!U$33/(1-((IncSt!U$10+IncSt!U$7+IncSt!U$8)/IncSt!U$6)),0) -> 0
B26: June | C26: =IF(IncSt!V$6<>0,IncSt!V$33/(1-((IncSt!V$10+IncSt!V$7+IncSt!V$8)/IncSt!V$6)),0) -> 0
B27: July | C27: =IF(IncSt!W$6<>0,IncSt!W$33/(1-((IncSt!W$10+IncSt!W$7+IncSt!W$8)/IncSt!W$6)),0) -> 0
B28: August | C28: =IF(IncSt!X$6<>0,IncSt!X$33/(1-((IncSt!X$10+IncSt!X$7+IncSt!X$8)/IncSt!X$6)),0) -> 0
B29: September | C29: =IF(IncSt!Y$6<>0,IncSt!Y$33/(1-((IncSt!Y$10+IncSt!Y$7+IncSt!Y$8)/IncSt!Y$6)),0) -> 0
B30: October | C30: =IF(IncSt!Z$6<>0,IncSt!Z$33/(1-((IncSt!Z$10+IncSt!Z$7+IncSt!Z$8)/IncSt!Z$6)),0) -> 0
B31: November | C31: =IF(IncSt!AA$6<>0,IncSt!AA$33/(1-((IncSt!AA$10+IncSt!AA$7+IncSt!AA$8)/IncSt!AA$6)),0) -> 0
B32: December | C32: =IF(IncSt!AB$6<>0,IncSt!AB$33/(1-((IncSt!AB$10+IncSt!AB$7+IncSt!AB$8)/IncSt!AB$6)),0) -> 0
B33: Monthly Average | C33: =AVERAGE(C21:C32) -> 0
B35: =Ratios!B12 -> Year 3 (2015-2016)
B36: 1st Quarter | C36: =IF(IncSt!AE$6<>0,IncSt!AE$33/(1-((IncSt!AE$10+IncSt!AE$7+IncSt!AE$8)/IncSt!AE$6)),0) -> 0
B37: 2nd Quarter | C37: =IF(IncSt!AF$6<>0,IncSt!AF$33/(1-((IncSt!AF$10+IncSt!AF$7+IncSt!AF$8)/IncSt!AF$6)),0) -> 0
B38: 3rd Quarter | C38: =IF(IncSt!AG$6<>0,IncSt!AG$33/(1-((IncSt!AG$10+IncSt!AG$7+IncSt!AG$8)/IncSt!AG$6)),0) -> 0
B39: 4th Quarter | C39: =IF(IncSt!AH$6<>0,IncSt!AH$33/(1-((IncSt!AH$10+IncSt!AH$7+IncSt!AH$8)/IncSt!AH$6)),0) -> 0
B40: Quarterly Average | C40: =AVERAGE(C36:C39) -> 0
B42: =Ratios!B14 -> Year 4 (2016-2017)
B43: 1st Quarter | C43: =IF(IncSt!AK$6<>0,IncSt!AK$33/(1-((IncSt!AK$10+IncSt!AK$7+IncSt!AK$8)/IncSt!AK$6)),0) -> 0
B44: 2nd Quarter | C44: =IF(IncSt!AL$6<>0,IncSt!AL$33/(1-((IncSt!AL$10+IncSt!AL$7+IncSt!AL$8)/IncSt!AL$6)),0) -> 0
B45: 3rd Quarter | C45: =IF(IncSt!AM$6<>0,IncSt!AM$33/(1-((IncSt!AM$10+IncSt!AM$7+IncSt!AM$8)/IncSt!AM$6)),0) -> 0
B46: 4th Quarter | C46: =IF(IncSt!AN$6<>0,IncSt!AN$33/(1-((IncSt!AN$10+IncSt!AN$7+IncSt!AN$8)/IncSt!AN$6)),0) -> 0
B47: Quarterly Average | C47: =AVERAGE(C43:C46) -> 0
B49: =Ratios!B16 -> Year 5 (2017-2018)
B50: Annual Average | C50: =IF(IncSt!AQ$6<>0,IncSt!AQ$33/(1-((IncSt!AQ$10+IncSt!AQ$7+IncSt!AQ$8)/IncSt!AQ$6)),0) -> 0

Sheet Ratios
B2: Key Ratios
B4: ="Year 1 (" & Config!$B$33 & ")" -> Year 1 (2013-2014) | C4: Working Capital | D4: Current Ratio | E4: Quick Ratio | F4: Cash Turnover | G4: Debt to Equity | H4: Return on Investment | I4: Return on Sales | J4: Return on Assets | K4: Net Sales
B5: 1st Quarter | C5: =WrkCapQ1 -> 5012.51042 | D5: =IF(BalSht!$D$31<>0,BalSht!$D$14/BalSht!$D$31,"N.A.") -> N.A. | E5: =IF(BalSht!$D$31<>0,(BalSht!$D$14-BalSht!C12)/BalSht!$D$31,"N.A.") -> N.A. | F5: =SUM(IncSt!C9:E9)/WrkCapQ1 -> 0 | G5: =(BalSht!D$31+BalSht!D$36)/BalSht!D$41 -> 0 | H5: =SUM(IncSt!C$34:E$34)/BalSht!D$41 -> 0 | I5: =IF(K5<>0, SUM(IncSt!C$34:E$34)/K5, "N.A.") -> N.A. | J5: =SUM(IncSt!C$34:E$34)/BalSht!E$24 -> 0 | K5: =SUM(IncSt!C$9:E$9) -> 0
B6: 2nd Quarter | C6: =WrkCapQ2 -> 5025.052141 | D6: =IF(BalSht!$J$31<>0,BalSht!$J$14/BalSht!$J$31,"N.A.") -> N.A. | E6: =IF(BalSht!$J$31<>0,(BalSht!$J$14-BalSht!I12)/BalSht!$J$31,"N.A.") -> N.A. | F6: =SUM(IncSt!F9:H9)/WrkCapQ2 -> 0 | G6: =(BalSht!J$31+BalSht!J$36)/BalSht!J$41 -> 0 | H6: =SUM(IncSt!F$34:H$34)/BalSht!J$41 -> 0 | I6: =IF(K6<>0, SUM(IncSt!F$34:H$34)/K6, "N.A.") -> N.A. | J6: =SUM(IncSt!F$34:H$34)/BalSht!K$24 -> 0 | K6: =SUM(IncSt!F$9:H$9) -> 0
B7: 3rd Quarter | C7: =WrkCapQ3 -> 5037.625243 | D7: =IF(BalSht!$P$31<>0,BalSht!$P$14/BalSht!$P$31,"N.A.") -> N.A. | E7: =IF(BalSht!$P$31<>0,(BalSht!$P$14-BalSht!O12)/BalSht!$P$31,"N.A.") -> N.A. | F7: =SUM(IncSt!I9:K9)/WrkCapQ3 -> 0 | G7: =(BalSht!P$31+BalSht!P$36)/BalSht!P$41 -> 0 | H7: =SUM(IncSt!I$34:K$34)/BalSht!P$41 -> 0 | I7: =IF(K7<>0, SUM(IncSt!I$34:K$34)/K7, "N.A.") -> N.A. | J7: =SUM(IncSt!I$34:K$34)/BalSht!Q$24 -> 0 | K7: =SUM(IncSt!I$9:K$9) -> 0
B8: 4th Quarter | C8: =WrkCapQ4 -> 5050.229804 | D8: =IF(BalSht!$V$31<>0,BalSht!$V$14/BalSht!$V$31,"N.A.") -> N.A. | E8: =IF(BalSht!$V$31<>0,(BalSht!$V$14-BalSht!U12)/BalSht!$V$31,"N.A.") -> N.A. | F8: =SUM(IncSt!L9:N9)/WrkCapQ4 -> 0 | G8: =(BalSht!V$31+BalSht!V$36)/BalSht!V$41 -> 0 | H8: =SUM(IncSt!L$34:N$34)/BalSht!V$41 -> 0 | I8: =IF(K8<>0, SUM(IncSt!L$34:N$34)/K8, "N.A.") -> N.A. | J8: =SUM(IncSt!L$34:N$34)/BalSht!W$24 -> 0 | K8: =SUM(IncSt!L$9:N$9) -> 0
B10: ="Year 2 (" & Config!$B$34 & ")" -> Year 2 (2014-2015) | C10: =WrkCapY2 -> 5100.964216 | D10: =IF(BalSht!$AB$31<>0,BalSht!$AB$14/BalSht!$AB$31,"N.A.") -> N.A. | E10: =IF(BalSht!$AB$31<>0,(BalSht!$AB$14-BalSht!AA12)/BalSht!$AB$31,"N.A.") -> N.A. | F10: =IncSt!AC9/WrkCapY2 -> 0 | G10: =(BalSht!AB$31+BalSht!AB$36)/BalSht!AB$41 -> 0 | H10: =IncSt!AC34/BalSht!AB41 -> 0 | I10: =IF(K10<>0, IncSt!AC34/ K10, "N.A.") -> N.A. | J10: =IncSt!AC34/BalSht!AC24 -> 0 | K10: =IncSt!AC9 -> 0
B12: ="Year 3 (" & Config!$B$35 & ")" -> Year 3 (2015-2016) | C12: =WrkCapY3 -> 5152.165463 | D12: =IF(BalSht!$AH$31<>0,BalSht!$AH$14/BalSht!$AH$31,"N.A.") -> N.A. | E12: =IF(BalSht!$AH$31<>0,(BalSht!$AH$14-BalSht!AG12)/BalSht!$AH$31,"N.A.") -> N.A. | F12: =IncSt!AI9/WrkCapY3 -> 0 | G12: =(BalSht!AH$31+BalSht!AH$36)/BalSht!AH$41 -> 0 | H12: =IncSt!AI34/BalSht!AH41 -> 0 | I12: =IF(K12<>0, IncSt!AI34/K12, "N.A.") -> N.A. | J12: =IncSt!AI34/BalSht!AI24 -> 0 | K12: =IncSt!AI9 -> 0
B14: ="Year 4 (" & Config!$B$36 & ")" -> Year 4 (2016-2017) | C14: =WrkCapY4 -> 5203.880646 | D14: =IF(BalSht!$AN$31<>0,BalSht!$AN$14/BalSht!$AN$31,"N.A.") -> N.A. | E14: =IF(BalSht!$AN$31<>0,(BalSht!$AN$14-BalSht!AM12)/BalSht!$AN$31,"N.A.") -> N.A. | F14: =IncSt!AO9/WrkCapY4 -> 0 | G14: =(BalSht!AN$31+BalSht!AN$36)/BalSht!AN$41 -> 0 | H14: =IncSt!AO34/BalSht!AN41 -> 0 | I14: =IF(K14<>0, IncSt!AO34/K14, "N.A.") -> N.A. | J14: =IncSt!AO34/BalSht!AO24 -> 0 | K14: =IncSt!AO9 -> 0
B16: ="Year 5 (" & Config!$B$37 & ")" -> Year 5 (2017-2018) | C16: =WrkCapY5 -> 5255.919452 | D16: =IF(BalSht!$AT$31<>0,BalSht!$AT$14/BalSht!$AT$31,"N.A.") -> N.A. | E16: =IF(BalSht!$AT$31<>0,(BalSht!$AT$14-BalSht!AS12)/BalSht!$AT$31,"N.A.") -> N.A. | F16: =IncSt!AQ9/WrkCapY5 -> 0 | G16: =(BalSht!AT$31+BalSht!AT$36)/BalSht!AT$41 -> 0 | H16: =IncSt!AQ34/BalSht!AT41 -> 0 | I16: =IF(K16<>0, IncSt!AQ34/K16, "N.A.") -> N.A. | J16: =IncSt!AQ34/BalSht!AU24 -> 0 | K16: =IncSt!AQ9 -> 0

Sheet About (hidden)
B2: About Business Plan Financials
B4: PlanningShop
B5: Business Plan Financials
B9: Version 2.8
B10: SUBJECT TO END-USER LICENSE AGREEMENT
B11: Copyright 2003-2014 PlanningShop. All rights reserved.
B12: www.planningshop.com

Sheet License
B2: License Agreement
B4: LICENSE AGREEMENT FOR PLANNINGSHOP’S BUSINESS PLAN FINANCIALS This License Agreement is a legal agreement between you (the product purchaser/user) and PlanningShop for the Business Plan Financials product (“Software”) that accompanies this Agreement, including all associated documentation and packaging. By installing and/or using the Software, you accept the terms of this Agreement. PRODUCT LICENSE The Software is protected by intellectual property laws and treaties. It is owned by PlanningShop and licensed to you for your use (not sold). You acknowledge that PlanningShop has conferred to you NO title or ownership of the Software or any of its constituent parts. Re-distribution of the Software or any of constituent its parts, whether in an original or modified form, is strictly forbidden. 1. General License. You may install one copy of the Software on a single computing device for use by a single user. Additional users, whether using the same computing device or a separate device, must purchase additional licenses. Multi-user licenses are available from PlanningShop. A second copy of the Software may be stored on a separate device for the sole purpose of backing up the original copy. You may not copy, distribute, or resell the Software. 2. Unauthorized Use. You may not modify, disassemble, or reverse engineer the Software or its code for any form of distribution. The Software, its content, design and programming are copyrighted by PlanningShop. 3. WARRANTY. THIS SOFTWARE IS PROVIDED AS IS. PLANNINGSHOP AND ITS AFFILIATED PARTIES MAKE NO CLAIMS, PROMISES OR GUARANTEES ABOUT THE ACCURACY, COMPLETENESS, OR ADEQUACY OF THE SOFTWARE FOR ANY PURPOPSE AND EXPRESSLY DISCLAIMS LIABILITY FOR ERRORS, OMISSIONS, FAILURES, OR DEFECTS. NO WARRANTY OF ANY KIND, IMPLIED, EXPRESS OR STATUTORY, INCLUDING BUT NOT LIMITED TO THE WARRANTIES OF NON-INFRINGEMENT OF THIRD PARTY RIGHTS, TITLE, MERCHANTABILITY, FITNESS FOR A PARTICULAR PURPOSE AND FREEDOM FROM COMPUTER VIRUS, IS GIVEN IN CONJUNCTION WITH THE SOFTWARE.
B5: 4. DAMAGES. IN NO EVENT WILL PLANNINGSHOP BE LIABLE FOR ANY DAMAGES, INCLUDING WITHOUT LIMITATION DIRECT OR INDIRECT, SPECIAL, INCIDENTAL, OR CONSEQUENTIAL DAMAGES, LOSSES OR EXPENSES ARISING IN CONNECTION WITH THIS SOFTWARE OR USE THEREOF OR INABILITY TO USE BY ANY PARTY, OR IN CONNECTION WITH ANY FAILURE OF PERFORMANCE, ERROR, OMISSION, DEFECT, OR COMPUTER VIRUS EVEN IF THE PLANNINGSHOP, OR AFFILIATED PARTIES, ARE ADVISED OF THE POSSIBILITY OF SUCH DAMAGES, LOSSES OR EXPENSES. 5. Governing Law. This Agreement shall be treated as though it were executed and performed in Palo Alto, California, and shall be governed by and construed in accordance with the laws of the State of California, USA (without regard to conflict of law principles). All actions shall be subject to the limitations set forth in Section 3 and Section 4. The language in this Agreement shall be interpreted as in accordance with its fair meaning and not strictly for or against either party. All legal proceedings arising out of or in connection with this Agreement shall be brought solely in Palo Alto, California. You expressly submit to the exclusive jurisdiction of said courts and consent to extraterritorial service of process. Should any part of this Agreement be held invalid or unenforceable, that portion shall be construed consistent with applicable law and the remaining portions shall remain in full force and effect. 6. Contact. Should you have any questions concerning this agreement, or if you desire to contact PlanningShop for any reason, you may do so at: PlanningShop, 555 Bryant Street #180, Palo Alto, California, USA, 94301.

Sheet Config (hidden)
A1: CONFIG WORKSHEET | F1: Startup Year | I1: =B70 -> Jan | J1: 1 | L1: Plan Years:
F2: =setupYearStart -> 2013 | I2: =C70 -> Feb | J2: 2 | L2: =setupYearStart -> 2013 | M2: 0
A3: Version: | F3: Startup Month | I3: =D70 -> Mar | J3: 3 | L3: =L2+1 -> 2014 | M3: 12
A4: 2.8 | F4: =setupMonthStart -> January | I4: =E70 -> Apr | J4: 4 | L4: =L3+1 -> 2015 | M4: 24
A5: 2013-07-22 | F5: Startup Month Abbrev | I5: =F70 -> May | J5: 5 | L5: =L4+1 -> 2016 | M5: 36
F6: =LEFT(cMonthStartup,3) -> Jan | I6: =G70 -> Jun | J6: 6 | L6: =L5+1 -> 2017 | M6: 48
F7: Start Date: | I7: =H70 -> Jul | J7: 7 | L7: =L6+1 -> 2018
A8: O/S Type | F8: =DATEVALUE("01-"&cMonthStartupAbbrev&"-"&cYearStartup) -> 2013-01-01 | I8: =I70 -> Aug | J8: 8
A9: Windows | I9: =J70 -> Sep | J9: 9
I10: =K70 -> Oct | J10: 10
I11: =L70 -> Nov | J11: 11
I12: =M70 -> Dec | J12: 12
D14: CREDIT MULTIPLIER
A15: Number of Products | E15: Multiple | F15: With "Credit Sales"
A16: One | D16: A | E16: =1-E17 -> 0 | F16: =E16*CreditSales -> 0
A17: Two | D17: B | E17: =IF(CreditTerms<=30,CreditTerms/30,IF(AND(CreditTerms>30,CreditTerms<=60),(CreditTerms-30)/30,IF(AND(CreditTerms>60,CreditTerms<=90),(CreditTerms-60)/30,IF(AND(CreditTerms>90,CreditTerms<=120),(CreditTerms-90)/30,"Error")))) -> 1 | F17: =E17*CreditSales -> 0.25
A18: Three
A19: Four
A20: Five
A21: Six | D21: Working Capital Calc
A22: Seven | D22: Q1 | E22: =BalSht!D14-BalSht!D31 -> 5012.51042
A23: Eight | D23: Q2 | E23: =BalSht!J14-BalSht!J31 -> 5025.052141
A24: Nine | D24: Q3 | E24: =BalSht!P14-BalSht!P31 -> 5037.625243
A25: Ten | D25: Q4 | E25: =BalSht!V14-BalSht!V31 -> 5050.229804
D26: Y2 | E26: =BalSht!AB14-BalSht!AB31 -> 5100.964216
D27: Y3 | E27: =BalSht!AH14-BalSht!AH31 -> 5152.165463
D28: Y4 | E28: =BalSht!AN14-BalSht!AN31 -> 5203.880646
D29: Y5 | E29: =BalSht!AT14-BalSht!AT31 -> 5255.919452
E32: Chart Titles
A33: Year 1 String | B33: =IF(cMonthStartup=1,TEXT(cYearStartup,"general"),TEXT(cYearStartup,"general")&"-"&TEXT(cYearStartup+1,"general")) -> 2013-2014 | E33: ="Year 1: Financials at-a-Glance (" & B$33 & ")" -> Year 1: Financials at-a-Glance (2013-2014)
A34: Year 2 String | B34: =IF(cMonthStartup=1,TEXT(cYearStartup+1,"general"),TEXT(cYearStartup+1,"general")&"-"&TEXT(cYearStartup+2,"general")) -> 2014-2015 | E34: ="Year 1: Net Sales (" & B$33 & ")" -> Year 1: Net Sales (2013-2014)
A35: Year 3 String | B35: =IF(cMonthStartup=1,TEXT(cYearStartup+2,"general"),TEXT(cYearStartup+2,"general")&"-"&TEXT(cYearStartup+3,"general")) -> 2015-2016 | E35: ="Year 1: Cash Flow (" & $B$33 & ")" -> Year 1: Cash Flow (2013-2014)
A36: Year 4 String | B36: =IF(cMonthStartup=1,TEXT(cYearStartup+3,"general"),TEXT(cYearStartup+3,"general")&"-"&TEXT(cYearStartup+4,"general")) -> 2016-2017 | E36: ="Year 2: Cash Flow (" & $B$34 & ")" -> Year 2: Cash Flow (2014-2015)
A37: Year 5 String | B37: =IF(cMonthStartup=1,TEXT(cYearStartup+4,"general"),TEXT(cYearStartup+4,"general")&"-"&TEXT(cYearStartup+5,"general")) -> 2017-2018
A40: DOUBLE LIST FOR Months on top of worksheets
A41: January
A42: February
A43: March
A44: April
A45: May
A46: June
A47: July
A48: August
A49: September
A50: October
A51: November
A52: December
A53: January
A54: February
A55: March
A56: April
A57: May
A58: June
A59: July
A60: August
A61: September
A62: October
A63: November
A64: December
B66: Start Month
A67: From Setup | B67: =cMonthStartup -> January | C67: =INDEX( listdoubleMonths, C68) -> February | D67: March | E67: April | F67: May | G67: June | H67: July | I67: August | J67: September | K67: October | L67: November | M67: December
A68: Match Position in Doublelist | B68: =MATCH(B67, listdoubleMonths, 0) -> 1 | C68: =B68+1 -> 2 | D68: 3 | E68: 4 | F68: 5 | G68: 6 | H68: 7 | I68: 8 | J68: 9 | K68: 10 | L68: 11 | M68: 12
A69: Adjust index to 1-12 | B69: =IF(B68<=12, B68, B68-12) -> 1 | C69: 2 | D69: 3 | E69: 4 | F69: 5 | G69: 6 | H69: 7 | I69: 8 | J69: 9 | K69: 10 | L69: 11 | M69: 12
A70: Abbrev | B70: =LEFT(B67,3) -> Jan | C70: Feb | D70: Mar | E70: Apr | F70: May | G70: Jun | H70: Jul | I70: Aug | J70: Sep | K70: Oct | L70: Nov | M70: Dec
A74: To-Do List
A76: Changing this changes ALL months on CapEX and CapInvest to new value, even ieach row's purchase date istill remains in the future. This is the same behavior as in 2.5, but might want to correct it.
A77: Changing the Year Titles on SaleProj and all other worksheets, for fiscal years that straddle two calendar years (example: Year 1: 2012-2013
A78: Making a "Demo" version of this workbook, with watermark, 1 loan, 1 product line, 1 investment
A79: Adding a Worksheet to do revolving credit calculations. See http://www.vertex42.com/Files/download/line-of-credit.html for a cool line of credit worksheet (it's complicated)
A80: Cleaning up all the dates, lists of months, etc. on the config worksheet
A81: Adding "Reset_XXX" subroutines for ALL the worksheets
A82: Check PrintAreas, footers, headers for New DepnSchedule and New LoanPaymentSchedule

Sheet DepnSchedule (hidden)
C2: Depreciation Schedule from CapEx Worksheet
P3: =cStartDate -> 2013-01-01 | Q3: =DATE(YEAR(cStartDate), MONTH(cStartDate)+Q$4-1, DAY(cStartDate)) -> 2013-02-01 | R3: 2013-03-01 | S3: 2013-04-01 | T3: 2013-05-01 | U3: 2013-06-01 | V3: 2013-07-01 | W3: 2013-08-01 | X3: 2013-09-01 | Y3: 2013-10-01 | Z3: 2013-11-01 | AA3: 2013-12-01 | AB3: 2014-01-01 | AC3: 2014-02-01 | AD3: 2014-03-01 | AE3: 2014-04-01 | AF3: 2014-05-01 | AG3: 2014-06-01 | AH3: 2014-07-01 | AI3: 2014-08-01 | AJ3: 2014-09-01 | AK3: 2014-10-01 | AL3: 2014-11-01 | AM3: 2014-12-01 | AN3: 2015-01-01 | AO3: 2015-02-01 | AP3: 2015-03-01 | AQ3: 2015-04-01 | AR3: 2015-05-01 | AS3: 2015-06-01 | AT3: 2015-07-01 | AU3: 2015-08-01 | AV3: 2015-09-01 | AW3: =DATE(YEAR(cStartDate), MONTH(cStartDate)+AW$4-1, DAY(cStartDate)) -> 2015-10-01 | AX3: 2015-11-01 | AY3: 2015-12-01 | AZ3: 2016-01-01 | BA3: 2016-02-01 | BB3: 2016-03-01 | BC3: 2016-04-01 | BD3: 2016-05-01 | BE3: 2016-06-01 | BF3: 2016-07-01 | BG3: 2016-08-01 | BH3: 2016-09-01 | BI3: 2016-10-01 | BJ3: 2016-11-01 | BK3: 2016-12-01 | BL3: 2017-01-01 | BM3: 2017-02-01 | BN3: 2017-03-01 | BO3: 2017-04-01 | BP3: 2017-05-01 | BQ3: 2017-06-01 | BR3: 2017-07-01 | BS3: 2017-08-01 | BT3: 2017-09-01 | BU3: 2017-10-01 | BV3: 2017-11-01 | BW3: 2017-12-01
B4: Item# | C4: Category | D4: Item Name | E4: Purch Value | F4: Salvage Value | G4: Yrs of Service | H4: Mos of Service | I4: Month Purchased | J4: Year Purchased | K4: Purchase Month | L4: End Month | M4: End Date | N4: Depn Amt montly | P4: 1 | Q4: 2 | R4: 3 | S4: 4 | T4: 5 | U4: 6 | V4: 7 | W4: 8 | X4: 9 | Y4: 10 | Z4: 11 | AA4: 12 | AB4: 13 | AC4: 14 | AD4: 15 | AE4: 16 | AF4: 17 | AG4: 18 | AH4: 19 | AI4: 20 | AJ4: 21 | AK4: 22 | AL4: 23 | AM4: 24 | AN4: 25 | AO4: 26 | AP4: 27 | AQ4: 28 | AR4: 29 | AS4: 30 | AT4: 31 | AU4: 32 | AV4: 33 | AW4: 34 | AX4: 35 | AY4: 36 | AZ4: 37 | BA4: 38 | BB4: 39 | BC4: 40 | BD4: 41 | BE4: 42 | BF4: 43 | BG4: 44 | BH4: 45 | BI4: 46 | BJ4: 47 | BK4: 48 | BL4: 49 | BM4: 50 | BN4: 51 | BO4: 52 | BP4: 53 | BQ4: 54 | BR4: 55 | BS4: 56 | BT4: 57 | BU4: 58 | BV4: 59 | BW4: 60
B5: 1 | C5: Facilities | D5: =CapEx!B6 -> Item Name (change name here) | E5: =CapEx!C6 -> 0 | F5: =CapEx!G6 -> 0 | G5: =CapEx!F6 -> 1 | H5: =G5*12 -> 12 | I5: =CapEx!D6 -> Jan | J5: =CapEx!E6 -> 2013 | K5: =IF(E5=0,1,DATEDIF(cStartDate,DATEVALUE("01-"&I5&"-"&J5),"m")+1) -> 1 | L5: =K5+H5-1 -> 12 | M5: =DATE(YEAR(cStartDate), MONTH(cStartDate)+$L5-1, DAY(cStartDate)) -> 2013-12-01 | N5: =SLN($E5,$F5,$G5)/12 -> 0 | P5: =IF(AND(P$4>=$K5,P$4<=$L5,$G5>1),$N5,0) -> 0 | Q5: =IF(AND(Q$4>=$K5,Q$4<=$L5,$G5>1),$N5,0) -> 0 | R5: 0 | S5: 0 | T5: 0 | U5: 0 | V5: 0 | W5: 0 | X5: 0 | Y5: 0 | Z5: 0 | AA5: 0 | AB5: 0 | AC5: 0 | AD5: 0 | AE5: 0 | AF5: 0 | AG5: 0 | AH5: 0 | AI5: 0 | AJ5: 0 | AK5: 0 | AL5: 0 | AM5: 0 | AN5: 0 | AO5: 0 | AP5: 0 | AQ5: 0 | AR5: 0 | AS5: 0 | AT5: 0 | AU5: 0 | AV5: 0 | AW5: 0 | AX5: 0 | AY5: 0 | AZ5: 0 | BA5: 0 | BB5: 0 | BC5: 0 | BD5: 0 | BE5: 0 | BF5: 0 | BG5: 0 | BH5: 0 | BI5: 0 | BJ5: 0 | BK5: 0 | BL5: 0 | BM5: 0 | BN5: 0 | BO5: 0 | BP5: 0 | BQ5: 0 | BR5: 0 | BS5: 0 | BT5: 0 | BU5: 0 | BV5: 0 | BW5: 0
B6: 2 | C6: Facilities | D6: =CapEx!B7 -> Item Name (change name here) | E6: =CapEx!C7 -> 0 | F6: =CapEx!G7 -> 0 | G6: =CapEx!F7 -> 1 | H6: =G6*12 -> 12 | I6: =CapEx!D7 -> Jan | J6: =CapEx!E7 -> 2013 | K6: =IF(E6=0,1,DATEDIF(cStartDate,DATEVALUE("01-"&CapEx!$D7&"-"&CapEx!$E7),"m")+1) -> 1 | L6: =K6+H6-1 -> 12 | M6: 2013-12-01 | N6: =SLN($E6,$F6,$G6)/12 -> 0 | P6: =IF(AND(P$4>=$K6,P$4<=$L6,$G6>1),$N6,0) -> 0 | Q6: 0 | R6: 0 | S6: 0 | T6: 0 | U6: 0 | V6: 0 | W6: 0 | X6: 0 | Y6: 0 | Z6: 0 | AA6: 0 | AB6: 0 | AC6: 0 | AD6: 0 | AE6: 0 | AF6: 0 | AG6: 0 | AH6: 0 | AI6: 0 | AJ6: 0 | AK6: 0 | AL6: 0 | AM6: 0 | AN6: 0 | AO6: 0 | AP6: 0 | AQ6: 0 | AR6: 0 | AS6: 0 | AT6: 0 | AU6: 0 | AV6: 0 | AW6: 0 | AX6: 0 | AY6: 0 | AZ6: 0 | BA6: 0 | BB6: 0 | BC6: 0 | BD6: 0 | BE6: 0 | BF6: 0 | BG6: 0 | BH6: 0 | BI6: 0 | BJ6: 0 | BK6: 0 | BL6: 0 | BM6: 0 | BN6: 0 | BO6: 0 | BP6: 0 | BQ6: 0 | BR6: 0 | BS6: 0 | BT6: 0 | BU6: 0 | BV6: 0 | BW6: 0
B7: 3 | C7: Facilities | D7: =CapEx!B8 -> Item Name (change name here) | E7: =CapEx!C8 -> 0 | F7: =CapEx!G8 -> 0 | G7: =CapEx!F8 -> 1 | H7: 12 | I7: =CapEx!D8 -> Jan | J7: =CapEx!E8 -> 2013 | K7: =IF(E7=0,1,DATEDIF(cStartDate,DATEVALUE("01-"&CapEx!$D8&"-"&CapEx!$E8),"m")+1) -> 1 | L7: 12 | M7: 2013-12-01 | N7: 0 | P7: 0 | Q7: 0 | R7: 0 | S7: 0 | T7: 0 | U7: 0 | V7: 0 | W7: 0 | X7: 0 | Y7: 0 | Z7: 0 | AA7: 0 | AB7: 0 | AC7: 0 | AD7: 0 | AE7: 0 | AF7: 0 | AG7: 0 | AH7: 0 | AI7: 0 | AJ7: 0 | AK7: 0 | AL7: 0 | AM7: 0 | AN7: 0 | AO7: 0 | AP7: 0 | AQ7: 0 | AR7: 0 | AS7: 0 | AT7: 0 | AU7: 0 | AV7: 0 | AW7: 0 | AX7: 0 | AY7: 0 | AZ7: 0 | BA7: 0 | BB7: 0 | BC7: 0 | BD7: 0 | BE7: 0 | BF7: 0 | BG7: 0 | BH7: 0 | BI7: 0 | BJ7: 0 | BK7: 0 | BL7: 0 | BM7: 0 | BN7: 0 | BO7: 0 | BP7: 0 | BQ7: 0 | BR7: 0 | BS7: 0 | BT7: 0 | BU7: 0 | BV7: 0 | BW7: 0
B8: 4 | C8: Facilities | D8: =CapEx!B9 -> Item Name (change name here) | E8: =CapEx!C9 -> 0 | F8: =CapEx!G9 -> 0 | G8: =CapEx!F9 -> 1 | H8: 12 | I8: =CapEx!D9 -> Jan | J8: =CapEx!E9 -> 2013 | K8: =IF(E8=0,1,DATEDIF(cStartDate,DATEVALUE("01-"&CapEx!$D9&"-"&CapEx!$E9),"m")+1) -> 1 | L8: 12 | M8: 2013-12-01 | N8: 0 | P8: 0 | Q8: 0 | R8: 0 | S8: 0 | T8: 0 | U8: 0 | V8: 0 | W8: 0 | X8: 0 | Y8: 0 | Z8: 0 | AA8: 0 | AB8: 0 | AC8: 0 | AD8: 0 | AE8: 0 | AF8: 0 | AG8: 0 | AH8: 0 | AI8: 0 | AJ8: 0 | AK8: 0 | AL8: 0 | AM8: 0 | AN8: 0 | AO8: 0 | AP8: 0 | AQ8: 0 | AR8: 0 | AS8: 0 | AT8: 0 | AU8: 0 | AV8: 0 | AW8: 0 | AX8: 0 | AY8: 0 | AZ8: 0 | BA8: 0 | BB8: 0 | BC8: 0 | BD8: 0 | BE8: 0 | BF8: 0 | BG8: 0 | BH8: 0 | BI8: 0 | BJ8: 0 | BK8: 0 | BL8: 0 | BM8: 0 | BN8: 0 | BO8: 0 | BP8: 0 | BQ8: 0 | BR8: 0 | BS8: 0 | BT8: 0 | BU8: 0 | BV8: 0 | BW8: 0
B9: 5 | C9: Facilities | D9: =CapEx!B10 -> Item Name (change name here) | E9: =CapEx!C10 -> 0 | F9: =CapEx!G10 -> 0 | G9: =CapEx!F10 -> 1 | H9: 12 | I9: =CapEx!D10 -> Jan | J9: =CapEx!E10 -> 2013 | K9: =IF(E9=0,1,DATEDIF(cStartDate,DATEVALUE("01-"&CapEx!$D10&"-"&CapEx!$E10),"m")+1) -> 1 | L9: 12 | M9: 2013-12-01 | N9: 0 | P9: 0 | Q9: 0 | R9: 0 | S9: 0 | T9: 0 | U9: 0 | V9: 0 | W9: 0 | X9: 0 | Y9: 0 | Z9: 0 | AA9: 0 | AB9: 0 | AC9: 0 | AD9: 0 | AE9: 0 | AF9: 0 | AG9: 0 | AH9: 0 | AI9: 0 | AJ9: =IF(AND(AJ$4>=$K9,AJ$4<=$L9,$G9>1),$N9,0) -> 0 | AK9: 0 | AL9: 0 | AM9: 0 | AN9: 0 | AO9: 0 | AP9: 0 | AQ9: 0 | AR9: 0 | AS9: 0 | AT9: 0 | AU9: 0 | AV9: 0 | AW9: 0 | AX9: 0 | AY9: 0 | AZ9: =IF(AND(AZ$4>=$K9,AZ$4<=$L9,$G9>1),$N9,0) -> 0 | BA9: 0 | BB9: 0 | BC9: 0 | BD9: 0 | BE9: 0 | BF9: 0 | BG9: 0 | BH9: 0 | BI9: 0 | BJ9: 0 | BK9: 0 | BL9: 0 | BM9: 0 | BN9: 0 | BO9: 0 | BP9: =IF(AND(BP$4>=$K9,BP$4<=$L9,$G9>1),$N9,0) -> 0 | BQ9: 0 | BR9: 0 | BS9: 0 | BT9: 0 | BU9: 0 | BV9: 0 | BW9: 0
B10: 6 | C10: Facilities | D10: =CapEx!B11 -> Item Name (change name here) | E10: =CapEx!C11 -> 0 | F10: =CapEx!G11 -> 0 | G10: =CapEx!F11 -> 1 | H10: 12 | I10: =CapEx!D11 -> Jan | J10: =CapEx!E11 -> 2013 | K10: =IF(E10=0,1,DATEDIF(cStartDate,DATEVALUE("01-"&CapEx!$D11&"-"&CapEx!$E11),"m")+1) -> 1 | L10: 12 | M10: 2013-12-01 | N10: 0 | P10: 0 | Q10: 0 | R10: 0 | S10: 0 | T10: 0 | U10: 0 | V10: 0 | W10: 0 | X10: 0 | Y10: 0 | Z10: 0 | AA10: 0 | AB10: 0 | AC10: 0 | AD10: 0 | AE10: 0 | AF10: =IF(AND(AF$4>=$K10,AF$4<=$L10,$G10>1),$N10,0) -> 0 | AG10: 0 | AH10: 0 | AI10: 0 | AJ10: 0 | AK10: 0 | AL10: 0 | AM10: 0 | AN10: 0 | AO10: 0 | AP10: 0 | AQ10: 0 | AR10: 0 | AS10: 0 | AT10: 0 | AU10: 0 | AV10: =IF(AND(AV$4>=$K10,AV$4<=$L10,$G10>1),$N10,0) -> 0 | AW10: 0 | AX10: 0 | AY10: 0 | AZ10: 0 | BA10: 0 | BB10: 0 | BC10: 0 | BD10: 0 | BE10: 0 | BF10: 0 | BG10: 0 | BH10: 0 | BI10: 0 | BJ10: 0 | BK10: 0 | BL10: 0 | BM10: 0 | BN10: 0 | BO10: 0 | BP10: 0 | BQ10: 0 | BR10: 0 | BS10: 0 | BT10: 0 | BU10: 0 | BV10: 0 | BW10: 0
B11: 7 | C11: Facilities | D11: =CapEx!B12 -> Item Name (change name here) | E11: =CapEx!C12 -> 0 | F11: =CapEx!G12 -> 0 | G11: =CapEx!F12 -> 1 | H11: 12 | I11: =CapEx!D12 -> Jan | J11: =CapEx!E12 -> 2013 | K11: =IF(E11=0,1,DATEDIF(cStartDate,DATEVALUE("01-"&CapEx!$D12&"-"&CapEx!$E12),"m")+1) -> 1 | L11: 12 | M11: 2013-12-01 | N11: 0 | P11: 0 | Q11: 0 | R11: 0 | S11: 0 | T11: 0 | U11: 0 | V11: 0 | W11: 0 | X11: 0 | Y11: 0 | Z11: 0 | AA11: 0 | AB11: 0 | AC11: 0 | AD11: 0 | AE11: 0 | AF11: 0 | AG11: 0 | AH11: 0 | AI11: 0 | AJ11: 0 | AK11: 0 | AL11: 0 | AM11: 0 | AN11: 0 | AO11: 0 | AP11: 0 | AQ11: 0 | AR11: 0 | AS11: 0 | AT11: 0 | AU11: 0 | AV11: 0 | AW11: 0 | AX11: 0 | AY11: 0 | AZ11: 0 | BA11: 0 | BB11: 0 | BC11: 0 | BD11: 0 | BE11: 0 | BF11: 0 | BG11: 0 | BH11: 0 | BI11: 0 | BJ11: 0 | BK11: 0 | BL11: 0 | BM11: 0 | BN11: 0 | BO11: 0 | BP11: 0 | BQ11: 0 | BR11: 0 | BS11: 0 | BT11: 0 | BU11: 0 | BV11: 0 | BW11: 0
B12: 8 | C12: Facilities | D12: =CapEx!B13 -> Item Name (change name here) | E12: =CapEx!C13 -> 0 | F12: =CapEx!G13 -> 0 | G12: =CapEx!F13 -> 1 | H12: 12 | I12: =CapEx!D13 -> Jan | J12: =CapEx!E13 -> 2013 | K12: =IF(E12=0,1,DATEDIF(cStartDate,DATEVALUE("01-"&CapEx!$D13&"-"&CapEx!$E13),"m")+1) -> 1 | L12: 12 | M12: 2013-12-01 | N12: 0 | P12: 0 | Q12: 0 | R12: 0 | S12: 0 | T12: 0 | U12: 0 | V12: 0 | W12: 0 | X12: 0 | Y12: 0 | Z12: 0 | AA12: 0 | AB12: 0 | AC12: 0 | AD12: 0 | AE12: 0 | AF12: 0 | AG12: 0 | AH12: 0 | AI12: 0 | AJ12: 0 | AK12: 0 | AL12: 0 | AM12: 0 | AN12: 0 | AO12: 0 | AP12: 0 | AQ12: 0 | AR12: 0 | AS12: 0 | AT12: 0 | AU12: 0 | AV12: 0 | AW12: 0 | AX12: 0 | AY12: 0 | AZ12: 0 | BA12: 0 | BB12: 0 | BC12: 0 | BD12: 0 | BE12: 0 | BF12: 0 | BG12: 0 | BH12: 0 | BI12: 0 | BJ12: 0 | BK12: 0 | BL12: 0 | BM12: 0 | BN12: 0 | BO12: 0 | BP12: 0 | BQ12: 0 | BR12: 0 | BS12: 0 | BT12: 0 | BU12: 0 | BV12: 0 | BW12: 0
B13: 9 | C13: Facilities | D13: =CapEx!B14 -> Item Name (change name here) | E13: =CapEx!C14 -> 0 | F13: =CapEx!G14 -> 0 | G13: =CapEx!F14 -> 1 | H13: 12 | I13: =CapEx!D14 -> Jan | J13: =CapEx!E14 -> 2013 | K13: =IF(E13=0,1,DATEDIF(cStartDate,DATEVALUE("01-"&CapEx!$D14&"-"&CapEx!$E14),"m")+1) -> 1 | L13: 12 | M13: 2013-12-01 | N13: 0 | P13: 0 | Q13: 0 | R13: 0 | S13: 0 | T13: 0 | U13: 0 | V13: 0 | W13: 0 | X13: 0 | Y13: 0 | Z13: 0 | AA13: 0 | AB13: 0 | AC13: 0 | AD13: 0 | AE13: 0 | AF13: 0 | AG13: 0 | AH13: 0 | AI13: 0 | AJ13: 0 | AK13: 0 | AL13: 0 | AM13: 0 | AN13: 0 | AO13: 0 | AP13: 0 | AQ13: 0 | AR13: 0 | AS13: 0 | AT13: 0 | AU13: 0 | AV13: 0 | AW13: 0 | AX13: 0 | AY13: 0 | AZ13: 0 | BA13: 0 | BB13: 0 | BC13: 0 | BD13: 0 | BE13: 0 | BF13: 0 | BG13: 0 | BH13: 0 | BI13: 0 | BJ13: 0 | BK13: 0 | BL13: 0 | BM13: 0 | BN13: 0 | BO13: 0 | BP13: 0 | BQ13: 0 | BR13: 0 | BS13: 0 | BT13: 0 | BU13: 0 | BV13: 0 | BW13: 0
B14: 10 | C14: Facilities | D14: =CapEx!B15 -> Item Name (change name here) | E14: =CapEx!C15 -> 0 | F14: =CapEx!G15 -> 0 | G14: =CapEx!F15 -> 1 | H14: 12 | I14: =CapEx!D15 -> Jan | J14: =CapEx!E15 -> 2013 | K14: =IF(E14=0,1,DATEDIF(cStartDate,DATEVALUE("01-"&CapEx!$D15&"-"&CapEx!$E15),"m")+1) -> 1 | L14: 12 | M14: 2013-12-01 | N14: 0 | P14: 0 | Q14: 0 | R14: 0 | S14: 0 | T14: 0 | U14: 0 | V14: 0 | W14: 0 | X14: 0 | Y14: 0 | Z14: 0 | AA14: 0 | AB14: 0 | AC14: 0 | AD14: 0 | AE14: 0 | AF14: 0 | AG14: 0 | AH14: 0 | AI14: 0 | AJ14: 0 | AK14: 0 | AL14: 0 | AM14: 0 | AN14: 0 | AO14: 0 | AP14: 0 | AQ14: 0 | AR14: 0 | AS14: 0 | AT14: 0 | AU14: 0 | AV14: 0 | AW14: 0 | AX14: 0 | AY14: 0 | AZ14: 0 | BA14: 0 | BB14: 0 | BC14: 0 | BD14: 0 | BE14: 0 | BF14: 0 | BG14: 0 | BH14: 0 | BI14: 0 | BJ14: 0 | BK14: 0 | BL14: 0 | BM14: 0 | BN14: 0 | BO14: 0 | BP14: 0 | BQ14: 0 | BR14: 0 | BS14: 0 | BT14: 0 | BU14: 0 | BV14: 0 | BW14: 0
B15: 11 | C15: Equip | D15: =CapEx!B18 -> Item Name (change name here) | E15: =CapEx!C18 -> 0 | F15: =CapEx!G18 -> 0 | G15: =CapEx!F18 -> 1 | H15: 12 | I15: =CapEx!D18 -> Jan | J15: =CapEx!E18 -> 2013 | K15: =IF(E15=0,1,DATEDIF(cStartDate,DATEVALUE("01-"&CapEx!$D18&"-"&CapEx!$E18),"m")+1) -> 1 | L15: 12 | M15: 2013-12-01 | N15: 0 | P15: 0 | Q15: 0 | R15: 0 | S15: 0 | T15: 0 | U15: 0 | V15: 0 | W15: 0 | X15: 0 | Y15: 0 | Z15: 0 | AA15: 0 | AB15: 0 | AC15: 0 | AD15: 0 | AE15: 0 | AF15: 0 | AG15: 0 | AH15: 0 | AI15: 0 | AJ15: 0 | AK15: 0 | AL15: 0 | AM15: 0 | AN15: 0 | AO15: 0 | AP15: 0 | AQ15: 0 | AR15: 0 | AS15: 0 | AT15: 0 | AU15: 0 | AV15: 0 | AW15: 0 | AX15: 0 | AY15: 0 | AZ15: 0 | BA15: 0 | BB15: 0 | BC15: 0 | BD15: 0 | BE15: 0 | BF15: 0 | BG15: 0 | BH15: 0 | BI15: 0 | BJ15: 0 | BK15: 0 | BL15: 0 | BM15: 0 | BN15: 0 | BO15: 0 | BP15: 0 | BQ15: 0 | BR15: 0 | BS15: 0 | BT15: 0 | BU15: 0 | BV15: 0 | BW15: 0
B16: 12 | C16: Equip | D16: =CapEx!B19 -> Item Name (change name here) | E16: =CapEx!C19 -> 0 | F16: =CapEx!G19 -> 0 | G16: =CapEx!F19 -> 1 | H16: 12 | I16: =CapEx!D19 -> Jan | J16: =CapEx!E19 -> 2013 | K16: =IF(E16=0,1,DATEDIF(cStartDate,DATEVALUE("01-"&CapEx!$D19&"-"&CapEx!$E19),"m")+1) -> 1 | L16: 12 | M16: 2013-12-01 | N16: 0 | P16: 0 | Q16: 0 | R16: 0 | S16: 0 | T16: 0 | U16: 0 | V16: 0 | W16: 0 | X16: 0 | Y16: 0 | Z16: 0 | AA16: 0 | AB16: 0 | AC16: 0 | AD16: 0 | AE16: 0 | AF16: 0 | AG16: 0 | AH16: 0 | AI16: 0 | AJ16: 0 | AK16: 0 | AL16: 0 | AM16: 0 | AN16: 0 | AO16: 0 | AP16: 0 | AQ16: 0 | AR16: 0 | AS16: 0 | AT16: 0 | AU16: 0 | AV16: 0 | AW16: 0 | AX16: 0 | AY16: 0 | AZ16: 0 | BA16: 0 | BB16: 0 | BC16: 0 | BD16: 0 | BE16: 0 | BF16: 0 | BG16: 0 | BH16: 0 | BI16: 0 | BJ16: 0 | BK16: 0 | BL16: 0 | BM16: 0 | BN16: 0 | BO16: 0 | BP16: 0 | BQ16: 0 | BR16: 0 | BS16: 0 | BT16: 0 | BU16: 0 | BV16: 0 | BW16: 0
B17: 13 | C17: Equip | D17: =CapEx!B20 -> Item Name (change name here) | E17: =CapEx!C20 -> 0 | F17: =CapEx!G20 -> 0 | G17: =CapEx!F20 -> 1 | H17: 12 | I17: =CapEx!D20 -> Jan | J17: =CapEx!E20 -> 2013 | K17: =IF(E17=0,1,DATEDIF(cStartDate,DATEVALUE("01-"&CapEx!$D20&"-"&CapEx!$E20),"m")+1) -> 1 | L17: 12 | M17: 2013-12-01 | N17: 0 | P17: 0 | Q17: 0 | R17: 0 | S17: 0 | T17: 0 | U17: 0 | V17: 0 | W17: 0 | X17: 0 | Y17: 0 | Z17: 0 | AA17: 0 | AB17: 0 | AC17: 0 | AD17: 0 | AE17: 0 | AF17: 0 | AG17: 0 | AH17: 0 | AI17: 0 | AJ17: 0 | AK17: 0 | AL17: 0 | AM17: 0 | AN17: 0 | AO17: 0 | AP17: 0 | AQ17: 0 | AR17: 0 | AS17: 0 | AT17: 0 | AU17: 0 | AV17: 0 | AW17: 0 | AX17: 0 | AY17: 0 | AZ17: 0 | BA17: 0 | BB17: 0 | BC17: 0 | BD17: 0 | BE17: 0 | BF17: 0 | BG17: 0 | BH17: 0 | BI17: 0 | BJ17: 0 | BK17: 0 | BL17: 0 | BM17: 0 | BN17: 0 | BO17: 0 | BP17: 0 | BQ17: 0 | BR17: 0 | BS17: 0 | BT17: 0 | BU17: 0 | BV17: 0 | BW17: 0
B18: 14 | C18: Equip | D18: =CapEx!B21 -> Item Name (change name here) | E18: =CapEx!C21 -> 0 | F18: =CapEx!G21 -> 0 | G18: =CapEx!F21 -> 1 | H18: 12 | I18: =CapEx!D21 -> Jan | J18: =CapEx!E21 -> 2013 | K18: =IF(E18=0,1,DATEDIF(cStartDate,DATEVALUE("01-"&CapEx!$D21&"-"&CapEx!$E21),"m")+1) -> 1 | L18: 12 | M18: 2013-12-01 | N18: 0 | P18: 0 | Q18: 0 | R18: 0 | S18: 0 | T18: 0 | U18: 0 | V18: 0 | W18: 0 | X18: 0 | Y18: 0 | Z18: 0 | AA18: 0 | AB18: 0 | AC18: 0 | AD18: 0 | AE18: 0 | AF18: 0 | AG18: 0 | AH18: 0 | AI18: 0 | AJ18: 0 | AK18: 0 | AL18: 0 | AM18: 0 | AN18: 0 | AO18: 0 | AP18: 0 | AQ18: 0 | AR18: 0 | AS18: 0 | AT18: 0 | AU18: 0 | AV18: 0 | AW18: 0 | AX18: 0 | AY18: 0 | AZ18: 0 | BA18: 0 | BB18: 0 | BC18: 0 | BD18: 0 | BE18: 0 | BF18: 0 | BG18: 0 | BH18: 0 | BI18: 0 | BJ18: 0 | BK18: 0 | BL18: 0 | BM18: 0 | BN18: 0 | BO18: 0 | BP18: 0 | BQ18: 0 | BR18: 0 | BS18: 0 | BT18: 0 | BU18: 0 | BV18: 0 | BW18: 0
B19: 15 | C19: Equip | D19: =CapEx!B22 -> Item Name (change name here) | E19: =CapEx!C22 -> 0 | F19: =CapEx!G22 -> 0 | G19: =CapEx!F22 -> 1 | H19: 12 | I19: =CapEx!D22 -> Jan | J19: =CapEx!E22 -> 2013 | K19: =IF(E19=0,1,DATEDIF(cStartDate,DATEVALUE("01-"&CapEx!$D22&"-"&CapEx!$E22),"m")+1) -> 1 | L19: 12 | M19: 2013-12-01 | N19: 0 | P19: 0 | Q19: 0 | R19: 0 | S19: 0 | T19: 0 | U19: 0 | V19: 0 | W19: 0 | X19: 0 | Y19: 0 | Z19: 0 | AA19: 0 | AB19: 0 | AC19: 0 | AD19: 0 | AE19: 0 | AF19: 0 | AG19: 0 | AH19: 0 | AI19: 0 | AJ19: 0 | AK19: 0 | AL19: 0 | AM19: 0 | AN19: 0 | AO19: 0 | AP19: 0 | AQ19: 0 | AR19: 0 | AS19: 0 | AT19: 0 | AU19: 0 | AV19: 0 | AW19: 0 | AX19: 0 | AY19: 0 | AZ19: 0 | BA19: 0 | BB19: 0 | BC19: 0 | BD19: 0 | BE19: 0 | BF19: 0 | BG19: 0 | BH19: 0 | BI19: 0 | BJ19: 0 | BK19: 0 | BL19: 0 | BM19: 0 | BN19: 0 | BO19: 0 | BP19: 0 | BQ19: 0 | BR19: 0 | BS19: 0 | BT19: 0 | BU19: 0 | BV19: 0 | BW19: 0
B20: 16 | C20: Equip | D20: =CapEx!B23 -> Item Name (change name here) | E20: =CapEx!C23 -> 0 | F20: =CapEx!G23 -> 0 | G20: =CapEx!F23 -> 1 | H20: 12 | I20: =CapEx!D23 -> Jan | J20: =CapEx!E23 -> 2013 | K20: =IF(E20=0,1,DATEDIF(cStartDate,DATEVALUE("01-"&CapEx!$D23&"-"&CapEx!$E23),"m")+1) -> 1 | L20: 12 | M20: 2013-12-01 | N20: 0 | P20: 0 | Q20: 0 | R20: 0 | S20: 0 | T20: 0 | U20: 0 | V20: 0 | W20: 0 | X20: 0 | Y20: 0 | Z20: 0 | AA20: 0 | AB20: 0 | AC20: 0 | AD20: 0 | AE20: 0 | AF20: 0 | AG20: 0 | AH20: 0 | AI20: 0 | AJ20: 0 | AK20: 0 | AL20: 0 | AM20: 0 | AN20: 0 | AO20: 0 | AP20: 0 | AQ20: 0 | AR20: 0 | AS20: 0 | AT20: 0 | AU20: 0 | AV20: 0 | AW20: 0 | AX20: 0 | AY20: 0 | AZ20: 0 | BA20: 0 | BB20: 0 | BC20: 0 | BD20: 0 | BE20: 0 | BF20: 0 | BG20: 0 | BH20: 0 | BI20: 0 | BJ20: 0 | BK20: 0 | BL20: 0 | BM20: 0 | BN20: 0 | BO20: 0 | BP20: 0 | BQ20: 0 | BR20: 0 | BS20: 0 | BT20: 0 | BU20: 0 | BV20: 0 | BW20: 0
B21: 17 | C21: Equip | D21: =CapEx!B24 -> Item Name (change name here) | E21: =CapEx!C24 -> 0 | F21: =CapEx!G24 -> 0 | G21: =CapEx!F24 -> 1 | H21: 12 | I21: =CapEx!D24 -> Jan | J21: =CapEx!E24 -> 2013 | K21: =IF(E21=0,1,DATEDIF(cStartDate,DATEVALUE("01-"&CapEx!$D24&"-"&CapEx!$E24),"m")+1) -> 1 | L21: 12 | M21: 2013-12-01 | N21: 0 | P21: 0 | Q21: 0 | R21: 0 | S21: 0 | T21: 0 | U21: 0 | V21: 0 | W21: 0 | X21: 0 | Y21: 0 | Z21: 0 | AA21: 0 | AB21: 0 | AC21: 0 | AD21: 0 | AE21: 0 | AF21: 0 | AG21: 0 | AH21: 0 | AI21: 0 | AJ21: 0 | AK21: 0 | AL21: 0 | AM21: 0 | AN21: 0 | AO21: 0 | AP21: 0 | AQ21: 0 | AR21: 0 | AS21: 0 | AT21: 0 | AU21: 0 | AV21: 0 | AW21: 0 | AX21: 0 | AY21: 0 | AZ21: 0 | BA21: 0 | BB21: 0 | BC21: 0 | BD21: 0 | BE21: 0 | BF21: 0 | BG21: 0 | BH21: 0 | BI21: 0 | BJ21: 0 | BK21: 0 | BL21: 0 | BM21: 0 | BN21: 0 | BO21: 0 | BP21: 0 | BQ21: 0 | BR21: 0 | BS21: 0 | BT21: 0 | BU21: 0 | BV21: 0 | BW21: 0
B22: 18 | C22: Equip | D22: =CapEx!B25 -> Item Name (change name here) | E22: =CapEx!C25 -> 0 | F22: =CapEx!G25 -> 0 | G22: =CapEx!F25 -> 1 | H22: 12 | I22: =CapEx!D25 -> Jan | J22: =CapEx!E25 -> 2013 | K22: =IF(E22=0,1,DATEDIF(cStartDate,DATEVALUE("01-"&CapEx!$D25&"-"&CapEx!$E25),"m")+1) -> 1 | L22: 12 | M22: 2013-12-01 | N22: 0 | P22: 0 | Q22: 0 | R22: 0 | S22: 0 | T22: 0 | U22: 0 | V22: 0 | W22: 0 | X22: 0 | Y22: 0 | Z22: 0 | AA22: 0 | AB22: 0 | AC22: 0 | AD22: 0 | AE22: 0 | AF22: 0 | AG22: 0 | AH22: 0 | AI22: 0 | AJ22: 0 | AK22: 0 | AL22: 0 | AM22: 0 | AN22: 0 | AO22: 0 | AP22: 0 | AQ22: 0 | AR22: 0 | AS22: 0 | AT22: 0 | AU22: 0 | AV22: 0 | AW22: 0 | AX22: 0 | AY22: 0 | AZ22: 0 | BA22: 0 | BB22: 0 | BC22: 0 | BD22: 0 | BE22: 0 | BF22: 0 | BG22: 0 | BH22: 0 | BI22: 0 | BJ22: 0 | BK22: 0 | BL22: 0 | BM22: 0 | BN22: 0 | BO22: 0 | BP22: 0 | BQ22: 0 | BR22: 0 | BS22: 0 | BT22: 0 | BU22: 0 | BV22: 0 | BW22: 0
B23: 19 | C23: Equip | D23: =CapEx!B26 -> Item Name (change name here) | E23: =CapEx!C26 -> 0 | F23: =CapEx!G26 -> 0 | G23: =CapEx!F26 -> 1 | H23: 12 | I23: =CapEx!D26 -> Jan | J23: =CapEx!E26 -> 2013 | K23: =IF(E23=0,1,DATEDIF(cStartDate,DATEVALUE("01-"&CapEx!$D26&"-"&CapEx!$E26),"m")+1) -> 1 | L23: 12 | M23: 2013-12-01 | N23: 0 | P23: 0 | Q23: 0 | R23: 0 | S23: 0 | T23: 0 | U23: 0 | V23: 0 | W23: 0 | X23: 0 | Y23: 0 | Z23: 0 | AA23: 0 | AB23: 0 | AC23: 0 | AD23: 0 | AE23: 0 | AF23: 0 | AG23: 0 | AH23: 0 | AI23: 0 | AJ23: 0 | AK23: 0 | AL23: 0 | AM23: 0 | AN23: 0 | AO23: 0 | AP23: 0 | AQ23: 0 | AR23: 0 | AS23: 0 | AT23: 0 | AU23: 0 | AV23: 0 | AW23: 0 | AX23: 0 | AY23: 0 | AZ23: 0 | BA23: 0 | BB23: 0 | BC23: 0 | BD23: 0 | BE23: 0 | BF23: 0 | BG23: 0 | BH23: 0 | BI23: 0 | BJ23: 0 | BK23: 0 | BL23: 0 | BM23: 0 | BN23: 0 | BO23: 0 | BP23: 0 | BQ23: 0 | BR23: 0 | BS23: 0 | BT23: 0 | BU23: 0 | BV23: 0 | BW23: 0
B24: 20 | C24: Equip | D24: =CapEx!B27 -> Item Name (change name here) | E24: =CapEx!C27 -> 0 | F24: =CapEx!G27 -> 0 | G24: =CapEx!F27 -> 1 | H24: 12 | I24: =CapEx!D27 -> Jan | J24: =CapEx!E27 -> 2013 | K24: =IF(E24=0,1,DATEDIF(cStartDate,DATEVALUE("01-"&CapEx!$D27&"-"&CapEx!$E27),"m")+1) -> 1 | L24: 12 | M24: 2013-12-01 | N24: 0 | P24: 0 | Q24: 0 | R24: 0 | S24: 0 | T24: 0 | U24: 0 | V24: 0 | W24: 0 | X24: 0 | Y24: 0 | Z24: 0 | AA24: 0 | AB24: 0 | AC24: 0 | AD24: 0 | AE24: 0 | AF24: 0 | AG24: 0 | AH24: 0 | AI24: 0 | AJ24: 0 | AK24: 0 | AL24: 0 | AM24: 0 | AN24: 0 | AO24: 0 | AP24: 0 | AQ24: 0 | AR24: 0 | AS24: 0 | AT24: 0 | AU24: 0 | AV24: 0 | AW24: 0 | AX24: 0 | AY24: 0 | AZ24: 0 | BA24: 0 | BB24: 0 | BC24: 0 | BD24: 0 | BE24: 0 | BF24: 0 | BG24: 0 | BH24: 0 | BI24: 0 | BJ24: 0 | BK24: 0 | BL24: 0 | BM24: 0 | BN24: 0 | BO24: =IF(AND(BO$4>=$K24,BO$4<=$L24,$G24>1),$N24,0) -> 0 | BP24: 0 | BQ24: 0 | BR24: 0 | BS24: 0 | BT24: 0 | BU24: 0 | BV24: 0 | BW24: 0
B25: 21 | C25: Equip | D25: =CapEx!B28 -> Item Name (change name here) | E25: =CapEx!C28 -> 0 | F25: =CapEx!G28 -> 0 | G25: =CapEx!F28 -> 1 | H25: 12 | I25: =CapEx!D28 -> Jan | J25: =CapEx!E28 -> 2013 | K25: =IF(E25=0,1,DATEDIF(cStartDate,DATEVALUE("01-"&CapEx!$D28&"-"&CapEx!$E28),"m")+1) -> 1 | L25: 12 | M25: 2013-12-01 | N25: 0 | P25: 0 | Q25: 0 | R25: 0 | S25: 0 | T25: 0 | U25: 0 | V25: 0 | W25: 0 | X25: 0 | Y25: 0 | Z25: 0 | AA25: =IF(AND(AA$4>=$K25,AA$4<=$L25,$G25>1),$N25,0) -> 0 | AB25: 0 | AC25: 0 | AD25: 0 | AE25: 0 | AF25: 0 | AG25: 0 | AH25: 0 | AI25: 0 | AJ25: 0 | AK25: 0 | AL25: 0 | AM25: 0 | AN25: 0 | AO25: 0 | AP25: 0 | AQ25: 0 | AR25: 0 | AS25: 0 | AT25: 0 | AU25: 0 | AV25: 0 | AW25: 0 | AX25: 0 | AY25: 0 | AZ25: =IF(AND(AZ$4>=$K25,AZ$4<=$L25,$G25>1),$N25,0) -> 0 | BA25: 0 | BB25: 0 | BC25: 0 | BD25: 0 | BE25: 0 | BF25: 0 | BG25: 0 | BH25: 0 | BI25: 0 | BJ25: 0 | BK25: 0 | BL25: 0 | BM25: 0 | BN25: 0 | BO25: 0 | BP25: 0 | BQ25: 0 | BR25: 0 | BS25: 0 | BT25: 0 | BU25: 0 | BV25: 0 | BW25: 0
B26: 22 | C26: Equip | D26: =CapEx!B29 -> Item Name (change name here) | E26: =CapEx!C29 -> 0 | F26: =CapEx!G29 -> 0 | G26: =CapEx!F29 -> 1 | H26: 12 | I26: =CapEx!D29 -> Jan | J26: =CapEx!E29 -> 2013 | K26: =IF(E26=0,1,DATEDIF(cStartDate,DATEVALUE("01-"&CapEx!$D29&"-"&CapEx!$E29),"m")+1) -> 1 | L26: 12 | M26: 2013-12-01 | N26: 0 | P26: =IF(AND(P$4>=$K26,P$4<=$L26,$G26>1),$N26,0) -> 0 | Q26: 0 | R26: 0 | S26: 0 | T26: 0 | U26: 0 | V26: 0 | W26: 0 | X26: 0 | Y26: 0 | Z26: 0 | AA26: 0 | AB26: 0 | AC26: 0 | AD26: 0 | AE26: 0 | AF26: 0 | AG26: 0 | AH26: 0 | AI26: 0 | AJ26: 0 | AK26: 0 | AL26: 0 | AM26: 0 | AN26: 0 | AO26: 0 | AP26: 0 | AQ26: 0 | AR26: 0 | AS26: 0 | AT26: 0 | AU26: 0 | AV26: 0 | AW26: 0 | AX26: 0 | AY26: 0 | AZ26: 0 | BA26: 0 | BB26: 0 | BC26: 0 | BD26: 0 | BE26: 0 | BF26: 0 | BG26: 0 | BH26: 0 | BI26: 0 | BJ26: 0 | BK26: 0 | BL26: 0 | BM26: 0 | BN26: 0 | BO26: 0 | BP26: 0 | BQ26: 0 | BR26: 0 | BS26: 0 | BT26: 0 | BU26: 0 | BV26: 0 | BW26: 0
B27: 23 | C27: Equip | D27: =CapEx!B30 -> Item Name (change name here) | E27: =CapEx!C30 -> 0 | F27: =CapEx!G30 -> 0 | G27: =CapEx!F30 -> 1 | H27: 12 | I27: =CapEx!D30 -> Jan | J27: =CapEx!E30 -> 2013 | K27: =IF(E27=0,1,DATEDIF(cStartDate,DATEVALUE("01-"&CapEx!$D30&"-"&CapEx!$E30),"m")+1) -> 1 | L27: 12 | M27: 2013-12-01 | N27: 0 | P27: 0 | Q27: 0 | R27: 0 | S27: 0 | T27: 0 | U27: 0 | V27: 0 | W27: 0 | X27: 0 | Y27: 0 | Z27: 0 | AA27: 0 | AB27: 0 | AC27: 0 | AD27: 0 | AE27: 0 | AF27: 0 | AG27: 0 | AH27: 0 | AI27: 0 | AJ27: 0 | AK27: 0 | AL27: 0 | AM27: 0 | AN27: 0 | AO27: 0 | AP27: 0 | AQ27: 0 | AR27: 0 | AS27: 0 | AT27: 0 | AU27: 0 | AV27: 0 | AW27: 0 | AX27: 0 | AY27: 0 | AZ27: 0 | BA27: 0 | BB27: 0 | BC27: 0 | BD27: 0 | BE27: 0 | BF27: 0 | BG27: 0 | BH27: 0 | BI27: 0 | BJ27: 0 | BK27: 0 | BL27: 0 | BM27: 0 | BN27: 0 | BO27: 0 | BP27: 0 | BQ27: 0 | BR27: 0 | BS27: 0 | BT27: 0 | BU27: 0 | BV27: 0 | BW27: 0
B28: 24 | C28: Equip | D28: =CapEx!B31 -> Item Name (change name here) | E28: =CapEx!C31 -> 0 | F28: =CapEx!G31 -> 0 | G28: =CapEx!F31 -> 1 | H28: 12 | I28: =CapEx!D31 -> Jan | J28: =CapEx!E31 -> 2013 | K28: =IF(E28=0,1,DATEDIF(cStartDate,DATEVALUE("01-"&CapEx!$D31&"-"&CapEx!$E31),"m")+1) -> 1 | L28: 12 | M28: 2013-12-01 | N28: 0 | P28: 0 | Q28: 0 | R28: 0 | S28: 0 | T28: 0 | U28: 0 | V28: 0 | W28: 0 | X28: 0 | Y28: 0 | Z28: 0 | AA28: 0 | AB28: 0 | AC28: 0 | AD28: 0 | AE28: 0 | AF28: 0 | AG28: 0 | AH28: 0 | AI28: 0 | AJ28: 0 | AK28: 0 | AL28: 0 | AM28: 0 | AN28: 0 | AO28: 0 | AP28: 0 | AQ28: =IF(AND(AQ$4>=$K28,AQ$4<=$L28,$G28>1),$N28,0) -> 0 | AR28: 0 | AS28: 0 | AT28: 0 | AU28: 0 | AV28: 0 | AW28: 0 | AX28: 0 | AY28: 0 | AZ28: 0 | BA28: 0 | BB28: 0 | BC28: 0 | BD28: 0 | BE28: 0 | BF28: 0 | BG28: 0 | BH28: 0 | BI28: 0 | BJ28: 0 | BK28: 0 | BL28: 0 | BM28: 0 | BN28: 0 | BO28: 0 | BP28: 0 | BQ28: 0 | BR28: 0 | BS28: 0 | BT28: 0 | BU28: 0 | BV28: 0 | BW28: 0
B29: 25 | C29: Equip | D29: =CapEx!B32 -> Item Name (change name here) | E29: =CapEx!C32 -> 0 | F29: =CapEx!G32 -> 0 | G29: =CapEx!F32 -> 1 | H29: 12 | I29: =CapEx!D32 -> Jan | J29: =CapEx!E32 -> 2013 | K29: =IF(E29=0,1,DATEDIF(cStartDate,DATEVALUE("01-"&CapEx!$D32&"-"&CapEx!$E32),"m")+1) -> 1 | L29: 12 | M29: 2013-12-01 | N29: 0 | P29: 0 | Q29: 0 | R29: 0 | S29: 0 | T29: 0 | U29: 0 | V29: 0 | W29: 0 | X29: 0 | Y29: 0 | Z29: 0 | AA29: 0 | AB29: 0 | AC29: 0 | AD29: 0 | AE29: 0 | AF29: 0 | AG29: 0 | AH29: 0 | AI29: 0 | AJ29: 0 | AK29: 0 | AL29: 0 | AM29: 0 | AN29: 0 | AO29: 0 | AP29: 0 | AQ29: 0 | AR29: 0 | AS29: 0 | AT29: 0 | AU29: 0 | AV29: 0 | AW29: 0 | AX29: 0 | AY29: 0 | AZ29: 0 | BA29: 0 | BB29: 0 | BC29: 0 | BD29: 0 | BE29: 0 | BF29: 0 | BG29: 0 | BH29: 0 | BI29: 0 | BJ29: 0 | BK29: 0 | BL29: 0 | BM29: 0 | BN29: 0 | BO29: 0 | BP29: 0 | BQ29: 0 | BR29: 0 | BS29: 0 | BT29: 0 | BU29: 0 | BV29: 0 | BW29: 0
B30: 26 | C30: Equip | D30: =CapEx!B33 -> Item Name (change name here) | E30: =CapEx!C33 -> 0 | F30: =CapEx!G33 -> 0 | G30: =CapEx!F33 -> 1 | H30: 12 | I30: =CapEx!D33 -> Jan | J30: =CapEx!E33 -> 2013 | K30: =IF(E30=0,1,DATEDIF(cStartDate,DATEVALUE("01-"&CapEx!$D33&"-"&CapEx!$E33),"m")+1) -> 1 | L30: 12 | M30: 2013-12-01 | N30: 0 | P30: 0 | Q30: 0 | R30: 0 | S30: 0 | T30: 0 | U30: 0 | V30: 0 | W30: 0 | X30: 0 | Y30: 0 | Z30: 0 | AA30: 0 | AB30: 0 | AC30: 0 | AD30: 0 | AE30: 0 | AF30: 0 | AG30: 0 | AH30: 0 | AI30: 0 | AJ30: 0 | AK30: 0 | AL30: 0 | AM30: 0 | AN30: 0 | AO30: 0 | AP30: 0 | AQ30: 0 | AR30: 0 | AS30: 0 | AT30: 0 | AU30: 0 | AV30: 0 | AW30: 0 | AX30: 0 | AY30: 0 | AZ30: 0 | BA30: 0 | BB30: 0 | BC30: 0 | BD30: 0 | BE30: 0 | BF30: 0 | BG30: 0 | BH30: 0 | BI30: 0 | BJ30: 0 | BK30: 0 | BL30: 0 | BM30: 0 | BN30: 0 | BO30: 0 | BP30: 0 | BQ30: 0 | BR30: 0 | BS30: 0 | BT30: 0 | BU30: 0 | BV30: 0 | BW30: 0
B31: 27 | C31: Equip | D31: =CapEx!B34 -> Item Name (change name here) | E31: =CapEx!C34 -> 0 | F31: =CapEx!G34 -> 0 | G31: =CapEx!F34 -> 1 | H31: 12 | I31: =CapEx!D34 -> Jan | J31: =CapEx!E34 -> 2013 | K31: =IF(E31=0,1,DATEDIF(cStartDate,DATEVALUE("01-"&CapEx!$D34&"-"&CapEx!$E34),"m")+1) -> 1 | L31: 12 | M31: 2013-12-01 | N31: 0 | P31: 0 | Q31: 0 | R31: 0 | S31: 0 | T31: 0 | U31: 0 | V31: 0 | W31: 0 | X31: 0 | Y31: 0 | Z31: 0 | AA31: 0 | AB31: 0 | AC31: 0 | AD31: 0 | AE31: 0 | AF31: 0 | AG31: 0 | AH31: 0 | AI31: 0 | AJ31: 0 | AK31: 0 | AL31: 0 | AM31: 0 | AN31: 0 | AO31: 0 | AP31: 0 | AQ31: 0 | AR31: 0 | AS31: 0 | AT31: 0 | AU31: 0 | AV31: 0 | AW31: 0 | AX31: 0 | AY31: 0 | AZ31: 0 | BA31: 0 | BB31: 0 | BC31: 0 | BD31: 0 | BE31: 0 | BF31: 0 | BG31: 0 | BH31: 0 | BI31: 0 | BJ31: 0 | BK31: 0 | BL31: 0 | BM31: 0 | BN31: 0 | BO31: 0 | BP31: 0 | BQ31: 0 | BR31: 0 | BS31: 0 | BT31: 0 | BU31: 0 | BV31: 0 | BW31: 0
B32: 28 | C32: Equip | D32: =CapEx!B35 -> Item Name (change name here) | E32: =CapEx!C35 -> 0 | F32: =CapEx!G35 -> 0 | G32: =CapEx!F35 -> 1 | H32: 12 | I32: =CapEx!D35 -> Jan | J32: =CapEx!E35 -> 2013 | K32: =IF(E32=0,1,DATEDIF(cStartDate,DATEVALUE("01-"&CapEx!$D35&"-"&CapEx!$E35),"m")+1) -> 1 | L32: 12 | M32: 2013-12-01 | N32: 0 | P32: 0 | Q32: 0 | R32: 0 | S32: 0 | T32: 0 | U32: 0 | V32: 0 | W32: 0 | X32: 0 | Y32: 0 | Z32: 0 | AA32: 0 | AB32: 0 | AC32: 0 | AD32: 0 | AE32: 0 | AF32: 0 | AG32: 0 | AH32: 0 | AI32: 0 | AJ32: 0 | AK32: 0 | AL32: 0 | AM32: 0 | AN32: 0 | AO32: 0 | AP32: 0 | AQ32: 0 | AR32: 0 | AS32: 0 | AT32: 0 | AU32: 0 | AV32: 0 | AW32: 0 | AX32: 0 | AY32: 0 | AZ32: 0 | BA32: 0 | BB32: 0 | BC32: 0 | BD32: 0 | BE32: 0 | BF32: 0 | BG32: 0 | BH32: 0 | BI32: 0 | BJ32: 0 | BK32: 0 | BL32: 0 | BM32: 0 | BN32: 0 | BO32: 0 | BP32: 0 | BQ32: 0 | BR32: 0 | BS32: 0 | BT32: 0 | BU32: 0 | BV32: 0 | BW32: 0
B33: 29 | C33: Equip | D33: =CapEx!B36 -> Item Name (change name here) | E33: =CapEx!C36 -> 0 | F33: =CapEx!G36 -> 0 | G33: =CapEx!F36 -> 1 | H33: 12 | I33: =CapEx!D36 -> Jan | J33: =CapEx!E36 -> 2013 | K33: =IF(E33=0,1,DATEDIF(cStartDate,DATEVALUE("01-"&CapEx!$D36&"-"&CapEx!$E36),"m")+1) -> 1 | L33: 12 | M33: 2013-12-01 | N33: 0 | P33: 0 | Q33: 0 | R33: 0 | S33: 0 | T33: 0 | U33: 0 | V33: 0 | W33: 0 | X33: 0 | Y33: 0 | Z33: 0 | AA33: 0 | AB33: 0 | AC33: 0 | AD33: 0 | AE33: 0 | AF33: 0 | AG33: 0 | AH33: 0 | AI33: 0 | AJ33: 0 | AK33: 0 | AL33: 0 | AM33: 0 | AN33: 0 | AO33: 0 | AP33: 0 | AQ33: 0 | AR33: 0 | AS33: 0 | AT33: 0 | AU33: 0 | AV33: 0 | AW33: 0 | AX33: 0 | AY33: 0 | AZ33: 0 | BA33: 0 | BB33: 0 | BC33: 0 | BD33: 0 | BE33: 0 | BF33: 0 | BG33: 0 | BH33: 0 | BI33: 0 | BJ33: 0 | BK33: 0 | BL33: 0 | BM33: 0 | BN33: 0 | BO33: 0 | BP33: 0 | BQ33: 0 | BR33: 0 | BS33: 0 | BT33: 0 | BU33: 0 | BV33: 0 | BW33: 0
B34: 30 | C34: Equip | D34: =CapEx!B37 -> Item Name (change name here) | E34: =CapEx!C37 -> 0 | F34: =CapEx!G37 -> 0 | G34: =CapEx!F37 -> 1 | H34: 12 | I34: =CapEx!D37 -> Jan | J34: =CapEx!E37 -> 2013 | K34: =IF(E34=0,1,DATEDIF(cStartDate,DATEVALUE("01-"&CapEx!$D37&"-"&CapEx!$E37),"m")+1) -> 1 | L34: 12 | M34: 2013-12-01 | N34: 0 | P34: 0 | Q34: 0 | R34: 0 | S34: 0 | T34: 0 | U34: 0 | V34: 0 | W34: 0 | X34: 0 | Y34: 0 | Z34: 0 | AA34: 0 | AB34: 0 | AC34: 0 | AD34: 0 | AE34: 0 | AF34: 0 | AG34: 0 | AH34: 0 | AI34: 0 | AJ34: 0 | AK34: 0 | AL34: 0 | AM34: 0 | AN34: 0 | AO34: 0 | AP34: 0 | AQ34: 0 | AR34: 0 | AS34: 0 | AT34: 0 | AU34: 0 | AV34: 0 | AW34: 0 | AX34: 0 | AY34: 0 | AZ34: 0 | BA34: 0 | BB34: 0 | BC34: 0 | BD34: 0 | BE34: 0 | BF34: 0 | BG34: 0 | BH34: 0 | BI34: 0 | BJ34: 0 | BK34: 0 | BL34: 0 | BM34: 0 | BN34: 0 | BO34: 0 | BP34: 0 | BQ34: 0 | BR34: 0 | BS34: 0 | BT34: 0 | BU34: 0 | BV34: 0 | BW34: 0
B35: 31 | C35: Comp | D35: =CapEx!B40 -> Item Name (change name here) | E35: =CapEx!C40 -> 0 | F35: =CapEx!G40 -> 0 | G35: =CapEx!F40 -> 1 | H35: 12 | I35: =CapEx!D40 -> Jan | J35: =CapEx!E40 -> 2013 | K35: =IF(E35=0,1,DATEDIF(cStartDate,DATEVALUE("01-"&CapEx!$D40&"-"&CapEx!$E40),"m")+1) -> 1 | L35: 12 | M35: 2013-12-01 | N35: 0 | P35: 0 | Q35: 0 | R35: 0 | S35: 0 | T35: 0 | U35: 0 | V35: 0 | W35: 0 | X35: 0 | Y35: 0 | Z35: 0 | AA35: 0 | AB35: 0 | AC35: 0 | AD35: 0 | AE35: 0 | AF35: 0 | AG35: 0 | AH35: 0 | AI35: 0 | AJ35: 0 | AK35: 0 | AL35: 0 | AM35: 0 | AN35: 0 | AO35: 0 | AP35: 0 | AQ35: 0 | AR35: 0 | AS35: 0 | AT35: 0 | AU35: 0 | AV35: 0 | AW35: 0 | AX35: 0 | AY35: 0 | AZ35: 0 | BA35: 0 | BB35: 0 | BC35: 0 | BD35: 0 | BE35: 0 | BF35: 0 | BG35: 0 | BH35: 0 | BI35: 0 | BJ35: 0 | BK35: 0 | BL35: 0 | BM35: 0 | BN35: 0 | BO35: 0 | BP35: 0 | BQ35: 0 | BR35: 0 | BS35: 0 | BT35: 0 | BU35: 0 | BV35: 0 | BW35: 0
B36: 32 | C36: Comp | D36: =CapEx!B41 -> Item Name (change name here) | E36: =CapEx!C41 -> 0 | F36: =CapEx!G41 -> 0 | G36: =CapEx!F41 -> 1 | H36: 12 | I36: =CapEx!D41 -> Jan | J36: =CapEx!E41 -> 2013 | K36: =IF(E36=0,1,DATEDIF(cStartDate,DATEVALUE("01-"&CapEx!$D41&"-"&CapEx!$E41),"m")+1) -> 1 | L36: 12 | M36: 2013-12-01 | N36: 0 | P36: 0 | Q36: 0 | R36: 0 | S36: 0 | T36: 0 | U36: 0 | V36: 0 | W36: 0 | X36: 0 | Y36: 0 | Z36: 0 | AA36: 0 | AB36: 0 | AC36: 0 | AD36: 0 | AE36: 0 | AF36: 0 | AG36: 0 | AH36: 0 | AI36: 0 | AJ36: 0 | AK36: 0 | AL36: 0 | AM36: 0 | AN36: 0 | AO36: 0 | AP36: 0 | AQ36: 0 | AR36: 0 | AS36: 0 | AT36: 0 | AU36: 0 | AV36: 0 | AW36: 0 | AX36: 0 | AY36: 0 | AZ36: 0 | BA36: 0 | BB36: 0 | BC36: 0 | BD36: 0 | BE36: 0 | BF36: 0 | BG36: 0 | BH36: 0 | BI36: 0 | BJ36: 0 | BK36: 0 | BL36: 0 | BM36: 0 | BN36: 0 | BO36: 0 | BP36: 0 | BQ36: 0 | BR36: 0 | BS36: 0 | BT36: 0 | BU36: 0 | BV36: 0 | BW36: 0
B37: 33 | C37: Comp | D37: =CapEx!B42 -> Item Name (change name here) | E37: =CapEx!C42 -> 0 | F37: =CapEx!G42 -> 0 | G37: =CapEx!F42 -> 1 | H37: 12 | I37: =CapEx!D42 -> Jan | J37: =CapEx!E42 -> 2013 | K37: =IF(E37=0,1,DATEDIF(cStartDate,DATEVALUE("01-"&CapEx!$D42&"-"&CapEx!$E42),"m")+1) -> 1 | L37: 12 | M37: =DATE(YEAR(cStartDate), MONTH(cStartDate)+$L37-1, DAY(cStartDate)) -> 2013-12-01 | N37: 0 | P37: 0 | Q37: 0 | R37: 0 | S37: 0 | T37: 0 | U37: 0 | V37: 0 | W37: 0 | X37: 0 | Y37: 0 | Z37: 0 | AA37: 0 | AB37: 0 | AC37: 0 | AD37: 0 | AE37: 0 | AF37: 0 | AG37: 0 | AH37: 0 | AI37: 0 | AJ37: 0 | AK37: 0 | AL37: 0 | AM37: 0 | AN37: 0 | AO37: 0 | AP37: 0 | AQ37: 0 | AR37: 0 | AS37: 0 | AT37: 0 | AU37: 0 | AV37: 0 | AW37: 0 | AX37: 0 | AY37: 0 | AZ37: 0 | BA37: 0 | BB37: 0 | BC37: 0 | BD37: 0 | BE37: 0 | BF37: 0 | BG37: 0 | BH37: 0 | BI37: 0 | BJ37: 0 | BK37: 0 | BL37: 0 | BM37: 0 | BN37: 0 | BO37: 0 | BP37: 0 | BQ37: 0 | BR37: 0 | BS37: 0 | BT37: 0 | BU37: 0 | BV37: 0 | BW37: 0
B38: 34 | C38: Comp | D38: =CapEx!B43 -> Item Name (change name here) | E38: =CapEx!C43 -> 0 | F38: =CapEx!G43 -> 0 | G38: =CapEx!F43 -> 1 | H38: 12 | I38: =CapEx!D43 -> Jan | J38: =CapEx!E43 -> 2013 | K38: =IF(E38=0,1,DATEDIF(cStartDate,DATEVALUE("01-"&CapEx!$D43&"-"&CapEx!$E43),"m")+1) -> 1 | L38: 12 | M38: 2013-12-01 | N38: 0 | P38: 0 | Q38: 0 | R38: 0 | S38: 0 | T38: 0 | U38: 0 | V38: 0 | W38: 0 | X38: 0 | Y38: 0 | Z38: 0 | AA38: 0 | AB38: 0 | AC38: 0 | AD38: 0 | AE38: 0 | AF38: 0 | AG38: 0 | AH38: 0 | AI38: 0 | AJ38: 0 | AK38: 0 | AL38: 0 | AM38: 0 | AN38: 0 | AO38: 0 | AP38: 0 | AQ38: 0 | AR38: 0 | AS38: 0 | AT38: 0 | AU38: 0 | AV38: 0 | AW38: 0 | AX38: 0 | AY38: 0 | AZ38: 0 | BA38: 0 | BB38: 0 | BC38: 0 | BD38: 0 | BE38: 0 | BF38: 0 | BG38: 0 | BH38: 0 | BI38: 0 | BJ38: 0 | BK38: 0 | BL38: 0 | BM38: 0 | BN38: 0 | BO38: 0 | BP38: 0 | BQ38: 0 | BR38: 0 | BS38: 0 | BT38: 0 | BU38: 0 | BV38: 0 | BW38: 0
